Workbook

Sheet Instructions
A1: Instructions - Fleet Procurement Analysis Tool
B2: ="Version " & TEXT(MAX(Version[Version]), "#,##0.00") -> Version 1.17
B3: ="Last Updated: " & TEXT(MAX(Version[Date]), "m/d/yyyy") -> Last Updated: 2/12/2020
A5: Input Definitions | E5: Model Overview
C7: User-entered inputs
C9: Default assumptions that can be overridden by user
C11: Calculations or assumptions that cannot be altered
A13: Ownership Structure Definitions
B15: Purchase (Cash) - Vehicles purchased with cash
B16: Purchase (Loan) - Vehicles purchased with debt financing
B17: FMV (Closed-End) Lease - Vehicles leased with Fair Market Value lease structure. Vehicles not purchased at end of lease term.
B18: FMV (Closed-End) Lease w/ Cash Purchase - Vehicles leased with Fair Market Value lease structure. Vehicles purchased at end of lease term with cash.
B19: FMV (Closed-End) Lease w/ Loan Purchase - Vehicles leased with Fair Market Value lease structure. Vehicles purchased at end of lease term with debt financing.
B20: TRAC (Open-End) Lease - Vehicles leased with Terminal Rental Adjustment Clause lease structure. Vehicles not purchased at end of lease term.
B21: TRAC (Open-End) Lease w/ Cash Purchase - Vehicles leased with Terminal Rental Adjustment Clause lease structure. Vehicles purchased at end of lease term with cash.
B22: TRAC (Open-End) Lease w/ Loan Purchase - Vehicles leased with Terminal Rental Adjustment Clause lease structure. Vehicles purchased at end of lease term with debt financing.
B23: Tax-Exempt Lease Purchase (Cash) - Vehicles leased with tax-exempt lease-purchase structure. Vehicles purchased at end of lease term with cash, typically a nominal amount ($1).

Sheet Solicitation Inputs (hidden)
A1: Quick Inputs - Fleet Procurement Analysis Tool
B2: *Coming soon*
B4: Market Inputs
B6: ZIP Code | C6: 20001
B7: Include Cost of Carbon? | C7: No
B10: Vehicle Inputs
B11: Procurement 1 (Baseline) | K11: Procurement 2 (Comparison)
B12: Vehicle Type #1 | K12: Vehicle Type #1
B13: Vehicle Drivetrain Type | E13: BEV | K13: Vehicle Drivetrain Type | N13: BEV
B14: Vehicle Year | E14: 2017 | K14: Vehicle Year | N14: 2017
B15: Vehicle Make | E15: Chevy | K15: Vehicle Make | N15: Ford
B16: Vehicle Model | E16: Bolt | K16: Vehicle Model | N16: Focus Electric
B19: Vehicle Procurement Inputs
B20: Procurement 1 (Baseline) | K20: Procurement 2 (Comparison)
B21: Vehicle Type #1 | K21: Vehicle Type #1
B22: Ownership Structure | E22: TRAC (Open-End) Lease w/ Cash Purchase | K22: Ownership Structure | N22: TRAC (Open-End) Lease w/ Cash Purchase
B23: Tax Credits Can Be Monetized? (Y/N) | E23: Yes | K23: Tax Credits Can Be Monetized? (Y/N) | N23: Yes

Sheet Initital Settings
A1: Initial Settings - Fleet Procurement Analysis Tool | H1: *HIDDEN* | I1: *HIDDEN* | J1: *HIDDEN* | K1: *HIDDEN* | L1: *HIDDEN* | M1: *HIDDEN*
B3: Save/Load
B5: Procurement Name | C5: Demo Fleet Procurement
B7: Load values from external file
B9: Save all current user inputs to an external file
B12: Sensitivity Settings
B14: Update sensitivity analysis results if Calculation Options is set to Manual or Automatic Excerpt for Tables
B16: Variable | C16: Input Field | D16: Min Value | E16: Max Value | F16: Current Baseline Value | G16: Current Comparison Value | H16: Base Field Code | I16: Base Field Reference | J16: Sensitivity Reference | K16: Comp Field Code | L16: Comp Field Reference | M16: Sensitivity Reference
B17: Market Variables
B18: 1 | C18: Electricity Cost ($/kWh) | D18: 0.09 | E18: 0.22 | F18: =INDIRECT(H18,FALSE) -> 0.122 | G18: =INDIRECT(K18,FALSE) -> 0.122 | H18: =VLOOKUP(sensitivity_01_input_field,DB_Sensitivity_Codes,2,FALSE) -> Electricity_Price | I18: =MID(CELL("filename",INDIRECT(H18)),FIND("]", CELL("filename",INDIRECT(H18)))+1,32) & "!" & ADDRESS(ROW(INDIRECT(H18)),COLUMN(INDIRECT(H18)),4,1) -> Inputs!K7 | J18: =CELL("address", OFFSET('Sensitivity Tables'!A$9, 16*(B18-1), 0)) -> '[Fleet-Procurement-Analysis-Tool_BETA.xlsm]Sensitivity Tables'!$A$9 | K18: =VLOOKUP(sensitivity_01_input_field,DB_Sensitivity_Codes,3,FALSE) -> Electricity_Price | L18: =MID(CELL("filename",INDIRECT(K18)),FIND("]", CELL("filename",INDIRECT(K18)))+1,32) & "!" & ADDRESS(ROW(INDIRECT(K18)),COLUMN(INDIRECT(K18)),4,1) -> Inputs!K7 | M18: =CELL("address", OFFSET('Sensitivity Tables'!A$9, 16*(B18-1), 0)) -> '[Fleet-Procurement-Analysis-Tool_BETA.xlsm]Sensitivity Tables'!$A$9
B19: Vehicle, Procurement, and Charging Variables
B20: 2 | C20: Number of Vehicles to Procure (#) | D20: 5 | E20: 30 | F20: =INDIRECT(H20,FALSE) -> 19 | G20: =INDIRECT(K20,FALSE) -> 19 | H20: =VLOOKUP(sensitivity_02_input_field,DB_Sensitivity_Codes,2,FALSE) -> Base_V1_Num_Vehicles | I20: =MID(CELL("filename",INDIRECT(H20)),FIND("]", CELL("filename",INDIRECT(H20)))+1,32) & "!" & ADDRESS(ROW(INDIRECT(H20)),COLUMN(INDIRECT(H20)),4,1) -> Inputs!E45 | J20: =CELL("address", OFFSET('Sensitivity Tables'!A$9, 16*(B20-1), 0)) -> '[Fleet-Procurement-Analysis-Tool_BETA.xlsm]Sensitivity Tables'!$A$25 | K20: =VLOOKUP(sensitivity_02_input_field,DB_Sensitivity_Codes,3,FALSE) -> Comp_V1_Num_Vehicles | L20: =MID(CELL("filename",INDIRECT(K20)),FIND("]", CELL("filename",INDIRECT(K20)))+1,32) & "!" & ADDRESS(ROW(INDIRECT(K20)),COLUMN(INDIRECT(K20)),4,1) -> Inputs!N45 | M20: =CELL("address", OFFSET('Sensitivity Tables'!E$9, 16*(B20-1), 0)) -> '[Fleet-Procurement-Analysis-Tool_BETA.xlsm]Sensitivity Tables'!$E$25
B21: 3 | C21: Annual Vehicle Mileage (VMT/Year) | D21: 5000 | E21: 25000 | F21: =INDIRECT(H21,FALSE) -> 15000 | G21: =INDIRECT(K21,FALSE) -> 15000 | H21: =VLOOKUP(sensitivity_03_input_field,DB_Sensitivity_Codes,2,FALSE) -> Base_V1_VMT | I21: =MID(CELL("filename",INDIRECT(H21)),FIND("]", CELL("filename",INDIRECT(H21)))+1,32) & "!" & ADDRESS(ROW(INDIRECT(H21)),COLUMN(INDIRECT(H21)),4,1) -> Inputs!E29 | J21: =CELL("address", OFFSET('Sensitivity Tables'!A$9, 16*(B21-1), 0)) -> '[Fleet-Procurement-Analysis-Tool_BETA.xlsm]Sensitivity Tables'!$A$41 | K21: =VLOOKUP(sensitivity_03_input_field,DB_Sensitivity_Codes,3,FALSE) -> Comp_V1_VMT | L21: =MID(CELL("filename",INDIRECT(K21)),FIND("]", CELL("filename",INDIRECT(K21)))+1,32) & "!" & ADDRESS(ROW(INDIRECT(K21)),COLUMN(INDIRECT(K21)),4,1) -> Inputs!N29 | M21: =CELL("address", OFFSET('Sensitivity Tables'!E$9, 16*(B21-1), 0)) -> '[Fleet-Procurement-Analysis-Tool_BETA.xlsm]Sensitivity Tables'!$E$41
B22: 4 | C22: Expected Years of Use/Ownership (Years) | D22: 3 | E22: 10 | F22: =INDIRECT(H22,FALSE) -> 7 | G22: =INDIRECT(K22,FALSE) -> 7 | H22: =VLOOKUP(sensitivity_04_input_field,DB_Sensitivity_Codes,2,FALSE) -> Base_V1_Years_Usage | I22: =MID(CELL("filename",INDIRECT(H22)),FIND("]", CELL("filename",INDIRECT(H22)))+1,32) & "!" & ADDRESS(ROW(INDIRECT(H22)),COLUMN(INDIRECT(H22)),4,1) -> Inputs!E28 | J22: =CELL("address", OFFSET('Sensitivity Tables'!A$9, 16*(B22-1), 0)) -> '[Fleet-Procurement-Analysis-Tool_BETA.xlsm]Sensitivity Tables'!$A$57 | K22: =VLOOKUP(sensitivity_04_input_field,DB_Sensitivity_Codes,3,FALSE) -> Comp_V1_Years_Usage | L22: =MID(CELL("filename",INDIRECT(K22)),FIND("]", CELL("filename",INDIRECT(K22)))+1,32) & "!" & ADDRESS(ROW(INDIRECT(K22)),COLUMN(INDIRECT(K22)),4,1) -> Inputs!N28 | M22: =CELL("address", OFFSET('Sensitivity Tables'!E$9, 16*(B22-1), 0)) -> '[Fleet-Procurement-Analysis-Tool_BETA.xlsm]Sensitivity Tables'!$E$57

Sheet Inputs
A1: Inputs - Fleet Procurement Analysis Tool | F1: *HIDDEN* | G1: *HIDDEN* | H1: *HIDDEN* | O1: *HIDDEN* | P1: *HIDDEN* | Q1: *HIDDEN*
F2: Autofill Values | G2: Sensitivity Values (to model) | H2: Validation Calcs | O2: Autofill Values | P2: Sensitivity Values (to model) | Q2: Validation Calcs
B3: Market Inputs
B5: Market | C5: U.S. | F5: =IF(_Market="U.S.",VLOOKUP(State_Ex,DB_Fuel_Prices[],3,FALSE),VLOOKUP(Province_Ex,DB_Gasoline_Prices_Canada[],2,FALSE)) -> 2.7208 | G5: =IFERROR(INDIRECT(VLOOKUP(MID(CELL("filename",K5),FIND("]", CELL("filename",K5))+1,32) & "!" & ADDRESS(ROW(K5),COLUMN(K5),4,1), DB_Sensitivity_Indirect_Reference_Base,2, FALSE)), K5) -> 2.312 | J5: ="Gasoline Price ($/" & Constant_Volume_Metric & ")" -> Gasoline Price ($/Gallon) | K5: 2.312
B6: ZIP Code | C6: 20001 | F6: =IF(_Market="U.S.",VLOOKUP(State_Ex,DB_Fuel_Prices[],4,FALSE),VLOOKUP(Province_Ex,DB_Gasoline_Prices_Canada[],2,FALSE)) -> 3.2668 | G6: 3.2211 | J6: ="Diesel Price ($/" & Constant_Volume_Metric & ")" -> Diesel Price ($/Gallon) | K6: 3.2211
B7: U.S. State | C7: =VLOOKUP(_Zip_Code,ZipCodeLookup[],3,FALSE) -> DC | F7: =IF(_Market="U.S.",VLOOKUP(State_Ex,DB_Fuel_Prices[],6,FALSE),VLOOKUP(Province_Ex,DB_Electricity_Prices_Canada[],2,FALSE)) -> 0.07856 | G7: 0.122 | J7: Electricity Cost ($/kWh) | K7: 0.122
B8: PADD Region | C8: =VLOOKUP(_Zip_Code,ZipCodeLookup[],5,FALSE) -> 1b | F8: =IF(_Market="U.S.",0.5, 0.5) -> 0.5 | G8: 0.5 | J8: Public Charging Price ($/kWh) | K8: 0.5
B9: eGRID Region | C9: =VLOOKUP(_Zip_Code,ZipCodeLookup[],6,FALSE) -> RFCE | F9: =IF(_Market="U.S.",VLOOKUP(State_Ex,DB_Fuel_Prices[],6,FALSE),VLOOKUP(Province_Ex,DB_Electricity_Prices_Canada[],2,FALSE)) -> 0.07856 | G9: 0.094 | J9: En Route Charging Price ($/kWh) | K9: 0.094
B10: Canadian Province | C10: British Columbia | F10: =IF(_Market="U.S.", DB_General_Inflation[Inflation (U.S.)], DB_General_Inflation[Inflation (Canada)]) -> 0.022 | G10: 0.02 | J10: Inflation Rate (Excluding Fuel) (%/Year) | K10: 0.02
F11: =IF(_Market="U.S.",35, 35) -> 35 | G11: =IFERROR(INDIRECT(VLOOKUP(MID(CELL("filename",K11),FIND("]", CELL("filename",K11))+1,32) & "!" & ADDRESS(ROW(K11),COLUMN(K11),4,1), DB_Sensitivity_Indirect_Reference_Base,2, FALSE)), K11) -> 35 | J11: Cost of Downtime from Public Charging ($/Hour) | K11: 35
J13: Include Cost of Carbon? | K13: No
F14: =IF(_Market="U.S.", DB_Carbon_Price_US, DB_Carbon_Price_Canada) -> 42 | G14: =IFERROR(INDIRECT(VLOOKUP(MID(CELL("filename",K14),FIND("]", CELL("filename",K14))+1,32) & "!" & ADDRESS(ROW(K14),COLUMN(K14),4,1), DB_Sensitivity_Indirect_Reference_Base,2, FALSE)), K14) -> 0 | J14: ="Cost of Carbon " & IF(_Market="U.S.", "($/Ton)", "($/Tonne)") -> Cost of Carbon ($/Ton) | K14: 0
B17: Vehicle Inputs
B18: Procurement 1 (Baseline) | K18: Procurement 2 (Comparison)
B19: Vehicle Drivetrain Type | E19: ICE | K19: Vehicle Drivetrain Type | N19: BEV
B20: Vehicle Class | E20: Passenger Vehicles (Light-Duty) | K20: Vehicle Class | N20: Passenger Vehicles (Light-Duty)
B21: Vehicle Year | E21: 2017 | K21: Vehicle Year | N21: 2017
B22: Vehicle Make | E22: Chevrolet | K22: Vehicle Make | N22: Chevrolet
B23: Vehicle Model | E23: Cruze | H23: =_Base_V1_Vehicle_Year&" "&_Base_V1_Vehicle_Make&" "&_Base_V1_Vehicle_Model&" "&_Base_V1_Vehicle_Drivetrain -> 2017 Chevrolet Cruze ICE | K23: Vehicle Model | N23: Bolt EV | Q23: =_Comp_V1_Vehicle_Year&" "&_Comp_V1_Vehicle_Make&" "&_Comp_V1_Vehicle_Model&" "&_Comp_V1_Vehicle_Drivetrain -> 2017 Chevrolet Bolt EV BEV
B24: =IF(_Market="U.S.", "Fuel Economy Gasoline/Diesel City (MPG)", "Fuel Consumption Gasoline/Diesel City (L/100 km)") -> Fuel Economy Gasoline/Diesel City (MPG) | E24: 30 | F24: =IF(_Market="U.S.", VLOOKUP(Base_V1_Type_Ex,DB_Vehicles[], COLUMN(DB_Vehicles[[#Headers],[Fuel Economy Gas/Diesel City (MPG)]]),FALSE), VLOOKUP(Base_V1_Type_Ex,DB_Vehicles__Canada[],COLUMN(DB_Vehicles__Canada[[#Headers],[Fuel Consumption Gas/Diesel City (L/100 km)]])-COLUMN(DB_Vehicles__Canada[[#Headers],[Selection Name]])+1,FALSE)) -> 30 | G24: =IFERROR(INDIRECT(VLOOKUP(MID(CELL("filename",E24),FIND("]", CELL("filename",E24))+1,32) & "!" & ADDRESS(ROW(E24),COLUMN(E24),4,1), DB_Sensitivity_Indirect_Reference_Base,2, FALSE)), E24) -> 30 | K24: =IF(_Market="U.S.", "Fuel Economy Gasoline/Diesel City (MPG)", "Fuel Consumption Gasoline/Diesel City (L/100 km)") -> Fuel Economy Gasoline/Diesel City (MPG) | N24: 0 | O24: =IF(_Market="U.S.", VLOOKUP(Comp_V1_Type_Ex,DB_Vehicles[], COLUMN(DB_Vehicles[[#Headers],[Fuel Economy Gas/Diesel City (MPG)]]),FALSE), VLOOKUP(Comp_V1_Type_Ex,DB_Vehicles__Canada[],COLUMN(DB_Vehicles__Canada[[#Headers],[Fuel Consumption Gas/Diesel City (L/100 km)]])-COLUMN(DB_Vehicles__Canada[[#Headers],[Selection Name]])+1,FALSE)) -> 0 | P24: =IFERROR(INDIRECT(VLOOKUP(MID(CELL("filename",N24),FIND("]", CELL("filename",N24))+1,32) & "!" & ADDRESS(ROW(N24),COLUMN(N24),4,1), DB_Sensitivity_Indirect_Reference_Comp,2, FALSE)), N24) -> 0
B25: =IF(_Market="U.S.", "Fuel Economy Gasoline/Diesel Highway (MPG)", "Fuel Consumption Gasoline/Diesel Highway (L/100 km)") -> Fuel Economy Gasoline/Diesel Highway (MPG) | E25: 40 | F25: =IF(_Market="U.S.", VLOOKUP(Base_V1_Type_Ex,DB_Vehicles[], COLUMN(DB_Vehicles[[#Headers],[Fuel Economy Gas/Diesel Hwy (MPG)]]),FALSE), VLOOKUP(Base_V1_Type_Ex,DB_Vehicles__Canada[],COLUMN(DB_Vehicles__Canada[[#Headers],[Fuel Consumption Gas/Diesel Hwy (L/100 km)]])-COLUMN(DB_Vehicles__Canada[[#Headers],[Selection Name]])+1,FALSE)) -> 40 | G25: =IFERROR(INDIRECT(VLOOKUP(MID(CELL("filename",E25),FIND("]", CELL("filename",E25))+1,32) & "!" & ADDRESS(ROW(E25),COLUMN(E25),4,1), DB_Sensitivity_Indirect_Reference_Base,2, FALSE)), E25) -> 40 | K25: =IF(_Market="U.S.", "Fuel Economy Gasoline/Diesel Highway (MPG)", "Fuel Consumption Gasoline/Diesel Highway (L/100 km)") -> Fuel Economy Gasoline/Diesel Highway (MPG) | N25: 0 | O25: =IF(_Market="U.S.", VLOOKUP(Comp_V1_Type_Ex,DB_Vehicles[], COLUMN(DB_Vehicles[[#Headers],[Fuel Economy Gas/Diesel Hwy (MPG)]]),FALSE), VLOOKUP(Comp_V1_Type_Ex,DB_Vehicles__Canada[],COLUMN(DB_Vehicles__Canada[[#Headers],[Fuel Consumption Gas/Diesel City (L/100 km)]])-COLUMN(DB_Vehicles__Canada[[#Headers],[Selection Name]])+1,FALSE)) -> 0 | P25: 0
B26: =IF(_Market="U.S.", DB_Vehicles[[#Headers],[Fuel Economy Electric City (MPGe)]], DB_Vehicles__Canada[[#Headers],[Fuel Consumption Electric City (Le/100 km)]]) -> Fuel Economy Electric City (MPGe) | E26: 0 | F26: =IF(_Market="U.S.", VLOOKUP(Base_V1_Type_Ex,DB_Vehicles[], COLUMN(DB_Vehicles[[#Headers],[Fuel Economy Electric City (MPGe)]]),FALSE), VLOOKUP(Base_V1_Type_Ex,DB_Vehicles__Canada[],COLUMN(DB_Vehicles__Canada[[#Headers],[Fuel Consumption Electric City (Le/100 km)]])-COLUMN(DB_Vehicles__Canada[[#Headers],[Selection Name]])+1,FALSE)) -> 0 | G26: 0 | K26: =IF(_Market="U.S.", DB_Vehicles[[#Headers],[Fuel Economy Electric City (MPGe)]], DB_Vehicles__Canada[[#Headers],[Fuel Consumption Electric City (Le/100 km)]]) -> Fuel Economy Electric City (MPGe) | N26: 128 | O26: =IF(_Market="U.S.", VLOOKUP(Comp_V1_Type_Ex,DB_Vehicles[], COLUMN(DB_Vehicles[[#Headers],[Fuel Economy Electric City (MPGe)]]),FALSE), VLOOKUP(Comp_V1_Type_Ex,DB_Vehicles__Canada[],COLUMN(DB_Vehicles__Canada[[#Headers],[Fuel Consumption Electric City (Le/100 km)]])-COLUMN(DB_Vehicles__Canada[[#Headers],[Selection Name]])+1,FALSE)) -> 128 | P26: 128
B27: =IF(_Market="U.S.", DB_Vehicles[[#Headers],[Fuel Economy Electric Hwy (MPGe)]], DB_Vehicles__Canada[[#Headers],[Fuel Consumption Electric Hwy (Le/100 km)]]) -> Fuel Economy Electric Hwy (MPGe) | E27: 0 | F27: =IF(_Market="U.S.", VLOOKUP(Base_V1_Type_Ex,DB_Vehicles[], COLUMN(DB_Vehicles[[#Headers],[Fuel Economy Electric Hwy (MPGe)]]),FALSE), VLOOKUP(Base_V1_Type_Ex,DB_Vehicles__Canada[],COLUMN(DB_Vehicles__Canada[[#Headers],[Fuel Consumption Electric Hwy (Le/100 km)]])-COLUMN(DB_Vehicles__Canada[[#Headers],[Selection Name]])+1,FALSE)) -> 0 | G27: =IFERROR(INDIRECT(VLOOKUP(MID(CELL("filename",E27),FIND("]", CELL("filename",E27))+1,32) & "!" & ADDRESS(ROW(E27),COLUMN(E27),4,1), DB_Sensitivity_Indirect_Reference_Base,2, FALSE)), E27) -> 0 | K27: =IF(_Market="U.S.", DB_Vehicles[[#Headers],[Fuel Economy Electric Hwy (MPGe)]], DB_Vehicles__Canada[[#Headers],[Fuel Consumption Electric Hwy (Le/100 km)]]) -> Fuel Economy Electric Hwy (MPGe) | N27: 110 | O27: =IF(_Market="U.S.", VLOOKUP(Comp_V1_Type_Ex,DB_Vehicles[], COLUMN(DB_Vehicles[[#Headers],[Fuel Economy Electric Hwy (MPGe)]]),FALSE), VLOOKUP(Comp_V1_Type_Ex,DB_Vehicles__Canada[],COLUMN(DB_Vehicles__Canada[[#Headers],[Fuel Consumption Electric Hwy (Le/100 km)]])-COLUMN(DB_Vehicles__Canada[[#Headers],[Selection Name]])+1,FALSE)) -> 110 | P27: 110
B28: Expected Years of Use/Ownership (Years) | E28: 7 | F28: =DB_Expected_Years_Of_Use_Ownership -> 7 | G28: 7 | K28: Expected Years of Use/Ownership (Years) | N28: 7 | O28: =DB_Expected_Years_Of_Use_Ownership -> 7 | P28: 7
B29: ="Annual Vehicle Mileage (V"&LEFT(Constant_Distance_Metric,1)&"T/Year)" -> Annual Vehicle Mileage (VMT/Year) | E29: 15000 | F29: =IF(_Market="U.S.", DB_Annual_Mileage_US, DB_Annual_Mileage_Canada) -> 15000 | G29: 15000 | K29: ="Annual Vehicle Mileage (V"&LEFT(Constant_Distance_Metric,1)&"T/Year)" -> Annual Vehicle Mileage (VMT/Year) | N29: 15000 | O29: =IF(_Market="U.S.", DB_Annual_Mileage_US, DB_Annual_Mileage_Canada) -> 15000 | P29: 15000
B30: ="% of Annual " & Constant_Distance_Metric & "s on Gasoline/Diesel" -> % of Annual Miles on Gasoline/Diesel | E30: 1 | F30: =IF(_Base_V1_Vehicle_Drivetrain<>"BEV", MAX((Base_V1_VMT/365)-IF(_Market="U.S.", VLOOKUP(Base_V1_Type_Ex,DB_Vehicles[], COLUMN(DB_Vehicles[[#Headers],[Electric Range]]),FALSE), VLOOKUP(Base_V1_Type_Ex,DB_Vehicles__Canada[], COLUMN(DB_Vehicles__Canada[[#Headers],[Electric Range]])-COLUMN(DB_Vehicles__Canada[[#Headers],[Selection Name]])+1,FALSE)),0)/(Base_V1_VMT/365), 0) -> 1 | G30: 1 | K30: ="% of Annual " & Constant_Distance_Metric & "s on Gasoline/Diesel" -> % of Annual Miles on Gasoline/Diesel | N30: 0 | O30: =IF(_Comp_V1_Vehicle_Drivetrain<>"BEV", MAX((Comp_V1_VMT/365)-IF(_Market="U.S.", VLOOKUP(Comp_V1_Type_Ex,DB_Vehicles[], COLUMN(DB_Vehicles[[#Headers],[Electric Range]]),FALSE), VLOOKUP(Comp_V1_Type_Ex,DB_Vehicles__Canada[], COLUMN(DB_Vehicles__Canada[[#Headers],[Electric Range]])-COLUMN(DB_Vehicles__Canada[[#Headers],[Selection Name]])+1,FALSE)),0)/(Comp_V1_VMT/365), 0) -> 0 | P30: 0
B31: ="% of Annual " & Constant_Distance_Metric & "s City Driving" -> % of Annual Miles City Driving | E31: 0.55 | F31: =DB_Percent_Annual_Miles_City_Driving -> 0.55 | G31: 0.55 | K31: ="% of Annual " & Constant_Distance_Metric & "s City Driving" -> % of Annual Miles City Driving | N31: 0.55 | O31: =Data!C265 -> 0.55 | P31: 0.55
B32: Cost to Insure ($/Year) | E32: 1222 | F32: =SUMIFS(DB_Vehicle_Insurance_Table[Cost], DB_Vehicle_Insurance_Table[Vehicle Class], _Base_V1_Vehicle_Vehicle_Class, DB_Vehicle_Insurance_Table[Market], _Market) -> 1232 | G32: 1222 | K32: Cost to Insure ($/Year) | N32: 1222 | O32: =SUMIFS(DB_Vehicle_Insurance_Table[Cost], DB_Vehicle_Insurance_Table[Vehicle Class], _Comp_V1_Vehicle_Vehicle_Class, DB_Vehicle_Insurance_Table[Market], _Market) -> 1232 | P32: 1222
B33: Use Drivetrain Default Maintenance and Repair Costs? | E33: Yes | K33: Use Drivetrain Default Maintenance and Repair Costs? | N33: Yes
B34: ="Maintenance and Repair Cost - Years 1 - 5 ($/" & Constant_Distance_Metric & ")" -> Maintenance and Repair Cost - Years 1 - 5 ($/Mile) | E34: 0.08 | F34: =SUMIFS(DB_Maint_Repair_Costs[[Year 1 ]], DB_Maint_Repair_Costs[Market], _Market, DB_Maint_Repair_Costs[Vehicle Type], _Base_V1_Vehicle_Drivetrain, DB_Maint_Repair_Costs[Vehicle Class], _Base_V1_Vehicle_Vehicle_Class) -> 0.08 | G34: 0.08 | K34: ="Maintenance and Repair Cost - Years 1 - 5 ($/" & Constant_Distance_Metric & ")" -> Maintenance and Repair Cost - Years 1 - 5 ($/Mile) | N34: 0.04 | O34: =SUMIFS(DB_Maint_Repair_Costs[[Year 1 ]], DB_Maint_Repair_Costs[Market], _Market, DB_Maint_Repair_Costs[Vehicle Type], _Comp_V1_Vehicle_Drivetrain, DB_Maint_Repair_Costs[Vehicle Class], _Comp_V1_Vehicle_Vehicle_Class) -> 0.04 | P34: =IFERROR(INDIRECT(VLOOKUP(MID(CELL("filename",N34),FIND("]", CELL("filename",N34))+1,32) & "!" & ADDRESS(ROW(N34),COLUMN(N34),4,1), DB_Sensitivity_Indirect_Reference_Comp,2, FALSE)), N34) -> 0.04
B35: ="Maintenance and Repair Cost - Years 5+ ($/" & Constant_Distance_Metric & ")" -> Maintenance and Repair Cost - Years 5+ ($/Mile) | E35: 0.104 | F35: =SUMIFS(DB_Maint_Repair_Costs[Year 6], DB_Maint_Repair_Costs[Market], _Market, DB_Maint_Repair_Costs[Vehicle Type], _Base_V1_Vehicle_Drivetrain, DB_Maint_Repair_Costs[Vehicle Class], _Base_V1_Vehicle_Vehicle_Class) -> 0.104 | G35: =IFERROR(INDIRECT(VLOOKUP(MID(CELL("filename",E35),FIND("]", CELL("filename",E35))+1,32) & "!" & ADDRESS(ROW(E35),COLUMN(E35),4,1), DB_Sensitivity_Indirect_Reference_Base,2, FALSE)), E35) -> 0.104 | K35: ="Maintenance and Repair Cost - Years 5+ ($/" & Constant_Distance_Metric & ")" -> Maintenance and Repair Cost - Years 5+ ($/Mile) | N35: 0.052 | O35: =SUMIFS(DB_Maint_Repair_Costs[Year 6], DB_Maint_Repair_Costs[Market], _Market, DB_Maint_Repair_Costs[Vehicle Type], _Comp_V1_Vehicle_Drivetrain, DB_Maint_Repair_Costs[Vehicle Class], _Comp_V1_Vehicle_Vehicle_Class) -> 0.052 | P35: =IFERROR(INDIRECT(VLOOKUP(MID(CELL("filename",N35),FIND("]", CELL("filename",N35))+1,32) & "!" & ADDRESS(ROW(N35),COLUMN(N35),4,1), DB_Sensitivity_Indirect_Reference_Comp,2, FALSE)), N35) -> 0.052
B36: Recurring Taxes and Fees ($/Year) | E36: 10 | G36: 10 | K36: Recurring Taxes and Fees ($/Year) | N36: 10 | P36: =IFERROR(INDIRECT(VLOOKUP(MID(CELL("filename",N36),FIND("]", CELL("filename",N36))+1,32) & "!" & ADDRESS(ROW(N36),COLUMN(N36),4,1), DB_Sensitivity_Indirect_Reference_Comp,2, FALSE)), N36) -> 10
C37: =IF(_Market="U.S.", IF(_Base_V1_Vehicle_Vehicle_Class="Passenger Vehicles (Light-Duty)", "Vehicle details from fueleconomy.gov", "More information on this vehicle"), "") -> Vehicle details from fueleconomy.gov | G37: =IF(_Market="U.S.", VLOOKUP(Base_V1_Type_Ex,DB_Vehicles[],COLUMN(DB_Vehicles[[#Headers],[Fueleconomy.gov Link]]),FALSE), VLOOKUP(Base_V1_Type_Ex,DB_Vehicles__Canada[],COLUMN(DB_Vehicles__Canada[[#Headers],[Link]])-COLUMN(DB_Vehicles__Canada[[#Headers],[Selection Name]])+1,FALSE)) -> https://www.fueleconomy.gov/feg/Find.do?action=sbs&id=37907 | M37: =IF(_Market="U.S.", IF(_Comp_V1_Vehicle_Vehicle_Class="Passenger Vehicles (Light-Duty)", "Vehicle details from fueleconomy.gov", "More information on this vehicle"), "") -> Vehicle details from fueleconomy.gov | P37: =IF(_Market="U.S.", VLOOKUP(Comp_V1_Type_Ex,DB_Vehicles[],COLUMN(DB_Vehicles[[#Headers],[Fueleconomy.gov Link]]),FALSE), VLOOKUP(Comp_V1_Type_Ex,DB_Vehicles__Canada[],COLUMN(DB_Vehicles__Canada[[#Headers],[Link]])-COLUMN(DB_Vehicles__Canada[[#Headers],[Selection Name]])+1,FALSE)) -> https://www.fueleconomy.gov/feg/Find.do?action=sbs&id=38187
B40: Vehicle Procurement Inputs
B41: Procurement 1 (Baseline) | K41: Procurement 2 (Comparison)
B43: Discount Rate for NPV Calculations (%) | E43: 0 | G43: =IFERROR(INDIRECT(VLOOKUP(MID(CELL("filename",E43),FIND("]", CELL("filename",E43))+1,32) & "!" & ADDRESS(ROW(E43),COLUMN(E43),4,1), DB_Sensitivity_Indirect_Reference_Base,2, FALSE)), E43) -> 0 | K43: Discount Rate for NPV Calculations (%) | N43: 0 | P43: =IFERROR(INDIRECT(VLOOKUP(MID(CELL("filename",N43),FIND("]", CELL("filename",N43))+1,32) & "!" & ADDRESS(ROW(N43),COLUMN(N43),4,1), DB_Sensitivity_Indirect_Reference_Comp,2, FALSE)), N43) -> 0
B45: Number of Vehicles to Procure (#) | E45: 19 | G45: =IFERROR(INDIRECT(VLOOKUP(MID(CELL("filename",E45),FIND("]", CELL("filename",E45))+1,32) & "!" & ADDRESS(ROW(E45),COLUMN(E45),4,1), DB_Sensitivity_Indirect_Reference_Base,2, FALSE)), E45) -> 19 | K45: Number of Vehicles to Procure (#) | N45: 19 | P45: =IFERROR(INDIRECT(VLOOKUP(MID(CELL("filename",N45),FIND("]", CELL("filename",N45))+1,32) & "!" & ADDRESS(ROW(N45),COLUMN(N45),4,1), DB_Sensitivity_Indirect_Reference_Comp,2, FALSE)), N45) -> 19
B46: Pricing Approach (select one) | E46: Dealer Cost Plus Markup | H46: =IF(IFERROR(FIND("MSRP",_Base_V1_Pricing_Approach,1),0)>0,TRUE,FALSE) -> FALSE | K46: Pricing Approach (select one) | N46: Dealer Cost Plus Markup | Q46: =IF(IFERROR(FIND("MSRP",_Comp_V1_Pricing_Approach,1),0)>0,TRUE,FALSE) -> FALSE
B47: MSRP ($/Vehicle) | E47: 16975 | F47: =IF(_Market="U.S.", VLOOKUP(Base_V1_Type_Ex,DB_Vehicles[],COLUMN(DB_Vehicles[[#Headers],[MSRP]]),FALSE), VLOOKUP(Base_V1_Type_Ex, DB_Vehicles__Canada[], COLUMN(DB_Vehicles__Canada[[#Headers],[MSRP]])-COLUMN(DB_Vehicles__Canada[[#Headers],[Selection Name]])+1,FALSE)) -> 16975 | G47: =IFERROR(INDIRECT(VLOOKUP(MID(CELL("filename",E47),FIND("]", CELL("filename",E47))+1,32) & "!" & ADDRESS(ROW(E47),COLUMN(E47),4,1), DB_Sensitivity_Indirect_Reference_Base,2, FALSE)), E47) -> 16975 | K47: MSRP ($) | N47: 36620 | O47: =IF(_Market="U.S.", VLOOKUP(Comp_V1_Type_Ex,DB_Vehicles[],COLUMN(DB_Vehicles[[#Headers],[MSRP]]),FALSE), VLOOKUP(Comp_V1_Type_Ex, DB_Vehicles__Canada[], COLUMN(DB_Vehicles__Canada[[#Headers],[MSRP]])-COLUMN(DB_Vehicles__Canada[[#Headers],[Selection Name]])+1,FALSE)) -> 36620 | P47: =IFERROR(INDIRECT(VLOOKUP(MID(CELL("filename",N47),FIND("]", CELL("filename",N47))+1,32) & "!" & ADDRESS(ROW(N47),COLUMN(N47),4,1), DB_Sensitivity_Indirect_Reference_Comp,2, FALSE)), N47) -> 36620
B48: Value of Negotiated Discounts off MSRP ($/Vehicle) | E48: 0 | G48: =IFERROR(INDIRECT(VLOOKUP(MID(CELL("filename",E48),FIND("]", CELL("filename",E48))+1,32) & "!" & ADDRESS(ROW(E48),COLUMN(E48),4,1), DB_Sensitivity_Indirect_Reference_Base,2, FALSE)), E48) -> 0 | K48: Value of Negotiated Discounts off MSRP ($/Vehicle) | N48: 0 | P48: =IFERROR(INDIRECT(VLOOKUP(MID(CELL("filename",N48),FIND("]", CELL("filename",N48))+1,32) & "!" & ADDRESS(ROW(N48),COLUMN(N48),4,1), DB_Sensitivity_Indirect_Reference_Comp,2, FALSE)), N48) -> 0
B49: Dealer Triple Net Price ($/Vehicle) | E49: 18024 | G49: =IFERROR(INDIRECT(VLOOKUP(MID(CELL("filename",E49),FIND("]", CELL("filename",E49))+1,32) & "!" & ADDRESS(ROW(E49),COLUMN(E49),4,1), DB_Sensitivity_Indirect_Reference_Base,2, FALSE)), E49) -> 18024 | K49: Dealer Triple Net Price ($/Vehicle) | N49: 33226 | P49: =IFERROR(INDIRECT(VLOOKUP(MID(CELL("filename",N49),FIND("]", CELL("filename",N49))+1,32) & "!" & ADDRESS(ROW(N49),COLUMN(N49),4,1), DB_Sensitivity_Indirect_Reference_Comp,2, FALSE)), N49) -> 33226
B50: Dealer Markup ($/Vehicle) | E50: 200 | G50: =IFERROR(INDIRECT(VLOOKUP(MID(CELL("filename",E50),FIND("]", CELL("filename",E50))+1,32) & "!" & ADDRESS(ROW(E50),COLUMN(E50),4,1), DB_Sensitivity_Indirect_Reference_Base,2, FALSE)), E50) -> 200 | K50: Dealer Markup ($/Vehicle) | N50: 300 | P50: =IFERROR(INDIRECT(VLOOKUP(MID(CELL("filename",N50),FIND("]", CELL("filename",N50))+1,32) & "!" & ADDRESS(ROW(N50),COLUMN(N50),4,1), DB_Sensitivity_Indirect_Reference_Comp,2, FALSE)), N50) -> 300
B51: Total Base Price | E51: =IF(IFERROR(FIND("MSRP",_Base_V1_Pricing_Approach,1),0)>0,Base_V1_MSRP_Modeled-Base_V1_Discounts_Modeled,Base_V1_List_Price_Modeled+Base_V1_List_Price_Markup_Modeled) -> 18224 | K51: Total Base Price | N51: =IF(IFERROR(FIND("MSRP",_Comp_V1_Pricing_Approach,1),0)>0,Comp_V1_MSRP_Modeled-Comp_V1_Discounts_Modeled,Comp_V1_List_Price_Modeled+Comp_V1_List_Price_Markup_Modeled) -> 33526
B52: Value of Federal Tax Incentives ($/Vehicle) | E52: 0 | F52: =IFERROR(IF(_Market="U.S.", VLOOKUP(Base_V1_Type_Ex, DB_Vehicle_Incentives[], MATCH("Federal Tax Credit", DB_Vehicle_Incentives[#Headers],0),FALSE), 0), 0) -> 0 | G52: =IFERROR(INDIRECT(VLOOKUP(MID(CELL("filename",E52),FIND("]", CELL("filename",E52))+1,32) & "!" & ADDRESS(ROW(E52),COLUMN(E52),4,1), DB_Sensitivity_Indirect_Reference_Base,2, FALSE)), E52) -> 0 | K52: Value of Federal Tax Credits ($/Vehicle) | N52: 7500 | O52: =IFERROR(IF(_Market="U.S.", VLOOKUP(Comp_V1_Type_Ex, DB_Vehicle_Incentives[], MATCH("Federal Tax Credit", DB_Vehicle_Incentives[#Headers],0),FALSE), 0), 0) -> 0 | P52: =IFERROR(INDIRECT(VLOOKUP(MID(CELL("filename",N52),FIND("]", CELL("filename",N52))+1,32) & "!" & ADDRESS(ROW(N52),COLUMN(N52),4,1), DB_Sensitivity_Indirect_Reference_Comp,2, FALSE)), N52) -> 7500
B53: Value of State Tax Incentives ($/Vehicle) | E53: 0 | F53: =IFERROR(IF(_Market="U.S.", IF(VLOOKUP("Incentive Type", DB_Vehicle_Incentives[], MATCH(State_Ex, DB_Vehicle_Incentives[#Headers], 0), FALSE)="Tax", VLOOKUP(Base_V1_Type_Ex, DB_Vehicle_Incentives[], MATCH(State_Ex, DB_Vehicle_Incentives[#Headers], 0),FALSE),0), IF(VLOOKUP("Incentive Type", DB_Vehicle_Incentives__Canada[], MATCH(Province_Ex, DB_Vehicle_Incentives__Canada[#Headers], 0), FALSE)="Tax", VLOOKUP(Base_V1_Type_Ex, DB_Vehicle_Incentives__Canada[], MATCH(Province_Ex, DB_Vehicle_Incentives__Canada[#Headers], 0),FALSE),0)), 0) -> 0 | G53: 0 | K53: Value of State Tax Incentives ($/Vehicle) | N53: 0 | O53: =IFERROR(IF(_Market="U.S.", IF(VLOOKUP("Incentive Type", DB_Vehicle_Incentives[], MATCH(State_Ex, DB_Vehicle_Incentives[#Headers], 0), FALSE)="Tax", VLOOKUP(Comp_V1_Type_Ex, DB_Vehicle_Incentives[], MATCH(State_Ex, DB_Vehicle_Incentives[#Headers], 0),FALSE),0), IF(VLOOKUP("Incentive Type", DB_Vehicle_Incentives__Canada[], MATCH(Province_Ex, DB_Vehicle_Incentives__Canada[#Headers], 0), FALSE)="Tax", VLOOKUP(Comp_V1_Type_Ex, DB_Vehicle_Incentives__Canada[], MATCH(Province_Ex, DB_Vehicle_Incentives__Canada[#Headers], 0),FALSE),0)), 0) -> 0 | P53: 0
B54: State Tax Incentive Cap ($) | E54: 0 | G54: 0 | K54: State Tax Incentive Cap ($) | N54: 0 | P54: 0
B55: Value of Non-tax Incentives ($/Vehicle) | E55: 0 | F55: =IFERROR(IF(_Market="U.S.", IF(VLOOKUP("Incentive Type", DB_Vehicle_Incentives[], MATCH(State_Ex, DB_Vehicle_Incentives[#Headers], 0), FALSE)<>"Tax", VLOOKUP(Base_V1_Type_Ex, DB_Vehicle_Incentives[], MATCH(State_Ex, DB_Vehicle_Incentives[#Headers], 0),FALSE),0), IF(VLOOKUP("Incentive Type", DB_Vehicle_Incentives__Canada[], MATCH(Province_Ex, DB_Vehicle_Incentives__Canada[#Headers], 0), FALSE)<>"Tax", VLOOKUP(Base_V1_Type_Ex, DB_Vehicle_Incentives__Canada[], MATCH(Province_Ex, DB_Vehicle_Incentives__Canada[#Headers], 0),FALSE),0)), 0) -> 0 | G55: 0 | K55: Value of Non-tax Incentives ($/Vehicle) | N55: 0 | O55: =IFERROR(IF(_Market="U.S.", IF(VLOOKUP("Incentive Type", DB_Vehicle_Incentives[], MATCH(State_Ex, DB_Vehicle_Incentives[#Headers], 0), FALSE)<>"Tax", VLOOKUP(Comp_V1_Type_Ex, DB_Vehicle_Incentives[], MATCH(State_Ex, DB_Vehicle_Incentives[#Headers], 0),FALSE),0), IF(VLOOKUP("Incentive Type", DB_Vehicle_Incentives__Canada[], MATCH(Province_Ex, DB_Vehicle_Incentives__Canada[#Headers], 0), FALSE)<>"Tax", VLOOKUP(Comp_V1_Type_Ex, DB_Vehicle_Incentives__Canada[], MATCH(Province_Ex, DB_Vehicle_Incentives__Canada[#Headers], 0),FALSE),0)), 0) -> 0 | P55: 0
B56: Initial Tax, Title, and Registration Cost ($/Vehicle) | E56: 1000 | G56: 1000 | K56: Initial Tax, Title, and Registration Cost ($/Vehicle) | N56: 1000 | P56: 1000
B57: Initial Fee as Percent of Vehicle Base Price (%) | E57: 0 | G57: 0 | K57: Initial Fee as Percent of Vehicle Base Price (%) | N57: 0 | P57: 0
B58: Ownership Structure | E58: Purchase (Cash) | H58: =IF(IFERROR(FIND("Cash",_Base_V1_Ownership_Structure,1),0)>0,TRUE,FALSE) -> TRUE | K58: Ownership Structure | N58: Purchase (Cash) | Q58: =IF(IFERROR(FIND("Cash",_Comp_V1_Ownership_Structure,1),0)>0,TRUE,FALSE) -> TRUE
B59: Tax Credits Can Be Monetized? (Y/N) | E59: Yes | H59: =IF(IFERROR(FIND("Loan",_Base_V1_Ownership_Structure,1),0)>0,TRUE,FALSE) -> FALSE | K59: Tax Credits Can Be Monetized? (Y/N) | N59: Yes | Q59: =IF(IFERROR(FIND("Loan",_Comp_V1_Ownership_Structure,1),0)>0,TRUE,FALSE) -> FALSE
H60: =IF(IFERROR(FIND("Lease",_Base_V1_Ownership_Structure,1),0)>0,TRUE,FALSE) -> FALSE | Q60: =IF(IFERROR(FIND("Lease",_Comp_V1_Ownership_Structure,1),0)>0,TRUE,FALSE) -> FALSE
B61: Down Payment ($/Vehicle) | E61: 0 | G61: =IFERROR(INDIRECT(VLOOKUP(MID(CELL("filename",E61),FIND("]", CELL("filename",E61))+1,32) & "!" & ADDRESS(ROW(E61),COLUMN(E61),4,1), DB_Sensitivity_Indirect_Reference_Base,2, FALSE)), E61) -> 0 | K61: Down Payment ($/Vehicle) | N61: 0 | P61: =IFERROR(INDIRECT(VLOOKUP(MID(CELL("filename",N61),FIND("]", CELL("filename",N61))+1,32) & "!" & ADDRESS(ROW(N61),COLUMN(N61),4,1), DB_Sensitivity_Indirect_Reference_Comp,2, FALSE)), N61) -> 0
B62: Lease | K62: Lease
B63: Lease Term (Years) | E63: 3 | G63: =IFERROR(INDIRECT(VLOOKUP(MID(CELL("filename",E63),FIND("]", CELL("filename",E63))+1,32) & "!" & ADDRESS(ROW(E63),COLUMN(E63),4,1), DB_Sensitivity_Indirect_Reference_Base,2, FALSE)), E63) -> 3 | H63: Data validation handled in VBA | K63: Lease Term (Years) | N63: 0 | P63: =IFERROR(INDIRECT(VLOOKUP(MID(CELL("filename",N63),FIND("]", CELL("filename",N63))+1,32) & "!" & ADDRESS(ROW(N63),COLUMN(N63),4,1), DB_Sensitivity_Indirect_Reference_Comp,2, FALSE)), N63) -> 0 | Q63: Data validation handled in VBA
B64: Lease Interest Rate (APR - %) | E64: 0.1 | G64: =IFERROR(INDIRECT(VLOOKUP(MID(CELL("filename",E64),FIND("]", CELL("filename",E64))+1,32) & "!" & ADDRESS(ROW(E64),COLUMN(E64),4,1), DB_Sensitivity_Indirect_Reference_Base,2, FALSE)), E64) -> 0.1 | K64: Lease Interest Rate (APR - %) | N64: 0 | P64: =IFERROR(INDIRECT(VLOOKUP(MID(CELL("filename",N64),FIND("]", CELL("filename",N64))+1,32) & "!" & ADDRESS(ROW(N64),COLUMN(N64),4,1), DB_Sensitivity_Indirect_Reference_Comp,2, FALSE)), N64) -> 0
B65: OR | K65: OR
B66: Money Factor (#) | E66: 0.004166666667 | G66: =IFERROR(INDIRECT(VLOOKUP(MID(CELL("filename",E66),FIND("]", CELL("filename",E66))+1,32) & "!" & ADDRESS(ROW(E66),COLUMN(E66),4,1), DB_Sensitivity_Indirect_Reference_Base,2, FALSE)), E66) -> 0.004166666667 | K66: Money Factor (#) | N66: 0 | P66: =IFERROR(INDIRECT(VLOOKUP(MID(CELL("filename",N66),FIND("]", CELL("filename",N66))+1,32) & "!" & ADDRESS(ROW(N66),COLUMN(N66),4,1), DB_Sensitivity_Indirect_Reference_Comp,2, FALSE)), N66) -> 0
B67: Acquisition Fee ($/Vehicle) | E67: 0 | G67: 0 | K67: Acquisition Fee ($/Vehicle) | N67: 0 | P67: 0
B68: Disposition Charge ($/Vehicle) | E68: 0 | G68: 0 | K68: Disposition Charge ($/Vehicle) | N68: 0 | P68: 0
B69: Negotiated Residual Value ($/Vehicle) | E69: 17000 | G69: 17000 | H69: =IF(IFERROR(FIND("Tax-Exempt",_Base_V1_Ownership_Structure,1),0)>0,IF(Base_V1_Lease_Residual_Price=1,TRUE,FALSE),TRUE) -> TRUE | K69: Negotiated Residual Value ($/Vehicle) | N69: 0 | P69: 0 | Q69: =IF(IFERROR(FIND("Tax-Exempt",_Comp_V1_Ownership_Structure,1),0)>0,IF(Comp_V1_Lease_Residual_Price=1,TRUE,FALSE),TRUE) -> TRUE
B70: Mileage Included (Closed-End Only) | E70: 0 | G70: 0 | K70: Mileage Included (Closed-End Only) | N70: 0 | P70: 0
B71: ="Excess Mileage Cost ($/" & Constant_Distance_Metric & ")" -> Excess Mileage Cost ($/Mile) | E71: 0 | G71: 0 | K71: ="Excess Mileage Cost ($/" & Constant_Distance_Metric & ")" -> Excess Mileage Cost ($/Mile) | N71: 0 | P71: 0
B72: Loan | K72: Loan
B73: Loan Term (Years) | E73: 4 | G73: =IFERROR(INDIRECT(VLOOKUP(MID(CELL("filename",E73),FIND("]", CELL("filename",E73))+1,32) & "!" & ADDRESS(ROW(E73),COLUMN(E73),4,1), DB_Sensitivity_Indirect_Reference_Base,2, FALSE)), E73) -> 4 | H73: Data validation handled in VBA | K73: Loan Term (Years) | N73: 4 | P73: =IFERROR(INDIRECT(VLOOKUP(MID(CELL("filename",N73),FIND("]", CELL("filename",N73))+1,32) & "!" & ADDRESS(ROW(N73),COLUMN(N73),4,1), DB_Sensitivity_Indirect_Reference_Comp,2, FALSE)), N73) -> 4 | Q73: Data validation handled in VBA
B74: Loan Interest Rate (APR - %) | E74: 0.05 | G74: =IFERROR(INDIRECT(VLOOKUP(MID(CELL("filename",E74),FIND("]", CELL("filename",E74))+1,32) & "!" & ADDRESS(ROW(E74),COLUMN(E74),4,1), DB_Sensitivity_Indirect_Reference_Base,2, FALSE)), E74) -> 0.05 | K74: Loan Interest Rate (APR - %) | N74: 0.05 | P74: =IFERROR(INDIRECT(VLOOKUP(MID(CELL("filename",N74),FIND("]", CELL("filename",N74))+1,32) & "!" & ADDRESS(ROW(N74),COLUMN(N74),4,1), DB_Sensitivity_Indirect_Reference_Comp,2, FALSE)), N74) -> 0.05
B77: EV Charging Infrastructure Use and Installation Inputs
B78: Procurement 1 (Baseline) | K78: Procurement 2 (Comparison)
B79: % Depot/Home Charging | E79: 1 | G79: =IFERROR(INDIRECT(VLOOKUP(MID(CELL("filename",E79),FIND("]", CELL("filename",E79))+1,32) & "!" & ADDRESS(ROW(E79),COLUMN(E79),4,1), DB_Sensitivity_Indirect_Reference_Base,2, FALSE)), E79) -> 1 | K79: % Depot/Home Charging | N79: 1 | P79: =IFERROR(INDIRECT(VLOOKUP(MID(CELL("filename",N79),FIND("]", CELL("filename",N79))+1,32) & "!" & ADDRESS(ROW(N79),COLUMN(N79),4,1), DB_Sensitivity_Indirect_Reference_Base,2, FALSE)), N79) -> 1
B80: % Public Charging | E80: 0 | G80: =IFERROR(INDIRECT(VLOOKUP(MID(CELL("filename",E80),FIND("]", CELL("filename",E80))+1,32) & "!" & ADDRESS(ROW(E80),COLUMN(E80),4,1), DB_Sensitivity_Indirect_Reference_Base,2, FALSE)), E80) -> 0 | K80: % Public Charging | N80: 0 | P80: =IFERROR(INDIRECT(VLOOKUP(MID(CELL("filename",N80),FIND("]", CELL("filename",N80))+1,32) & "!" & ADDRESS(ROW(N80),COLUMN(N80),4,1), DB_Sensitivity_Indirect_Reference_Base,2, FALSE)), N80) -> 0
B81: % En Route Charging | E81: =MAX(1-Base_Percent_Home_Charging-Base_Percent_Public_Charging, 0) -> 0 | G81: =IFERROR(INDIRECT(VLOOKUP(MID(CELL("filename",E81),FIND("]", CELL("filename",E81))+1,32) & "!" & ADDRESS(ROW(E81),COLUMN(E81),4,1), DB_Sensitivity_Indirect_Reference_Base,2, FALSE)), E81) -> 0 | K81: % En Route Charging | N81: =MAX(1-Comp_Percent_Home_Charging-Comp_Percent_Public_Charging, 0) -> 0 | P81: =IFERROR(INDIRECT(VLOOKUP(MID(CELL("filename",N81),FIND("]", CELL("filename",N81))+1,32) & "!" & ADDRESS(ROW(N81),COLUMN(N81),4,1), DB_Sensitivity_Indirect_Reference_Base,2, FALSE)), N81) -> 0
B82: Charging Level | E82: Level 2 | K82: Charging Level | N82: DC Fast Charging
B83: Maximum Power for Public Charging Only (kW) | E83: 7.2 | F83: =IF(_Base_Charging_Level="Level 2", 7.2, 50) -> 7.2 | G83: =IFERROR(INDIRECT(VLOOKUP(MID(CELL("filename",E83),FIND("]", CELL("filename",E83))+1,32) & "!" & ADDRESS(ROW(E83),COLUMN(E83),4,1), DB_Sensitivity_Indirect_Reference_Base,2, FALSE)), E83) -> 7.2 | K83: Maximum Power for Public Charging Only (kW) | N83: 50 | O83: =IF(_Comp_Charging_Level="Level 2", 7.2, 50) -> 50 | P83: =IFERROR(INDIRECT(VLOOKUP(MID(CELL("filename",N83),FIND("]", CELL("filename",N83))+1,32) & "!" & ADDRESS(ROW(N83),COLUMN(N83),4,1), DB_Sensitivity_Indirect_Reference_Comp,2, FALSE)), N83) -> 50
B85: Procurement Includes EV Charging? | E85: No | K85: Procurement Includes EV Charging? | N85: No
B86: Number of EV Charging Stations Needed (#) | E86: 0 | G86: =IFERROR(INDIRECT(VLOOKUP(MID(CELL("filename",E86),FIND("]", CELL("filename",E86))+1,32) & "!" & ADDRESS(ROW(E86),COLUMN(E86),4,1), DB_Sensitivity_Indirect_Reference_Base,2, FALSE)), E86) -> 0 | K86: Number of EV Charging Stations Needed (#) | N86: 0 | P86: =IFERROR(INDIRECT(VLOOKUP(MID(CELL("filename",N86),FIND("]", CELL("filename",N86))+1,32) & "!" & ADDRESS(ROW(N86),COLUMN(N86),4,1), DB_Sensitivity_Indirect_Reference_Comp,2, FALSE)), N86) -> 0
B87: Charging Equipment Cost ($/Station) | E87: 0 | F87: =SUMIFS(DB_Charging_Infrastructure[Cost],DB_Charging_Infrastructure[Charging Level], _Base_Charging_Level, DB_Charging_Infrastructure[Market], _Market, DB_Charging_Infrastructure[Description],B87) -> 5000 | G87: 0 | H87: =SUM(G87:G89) -> 0 | K87: Charging Equipment Cost ($/Station) | N87: 0 | O87: =SUMIFS(DB_Charging_Infrastructure[Cost],DB_Charging_Infrastructure[Charging Level], _Comp_Charging_Level, DB_Charging_Infrastructure[Market], _Market, DB_Charging_Infrastructure[Description],K87) -> 25000 | P87: 0 | Q87: =SUM(P87:P89) -> 0
B88: Construction & Equipment Installation Cost ($/Station) | E88: 0 | F88: =SUMIFS(DB_Charging_Infrastructure[Cost],DB_Charging_Infrastructure[Charging Level], _Base_Charging_Level, DB_Charging_Infrastructure[Market], _Market, DB_Charging_Infrastructure[Description],B88) -> 0 | G88: 0 | K88: Construction & Equipment Installation Cost ($/Station) | N88: 0 | O88: =SUMIFS(DB_Charging_Infrastructure[Cost],DB_Charging_Infrastructure[Charging Level], _Comp_Charging_Level, DB_Charging_Infrastructure[Market], _Market, DB_Charging_Infrastructure[Description],K88) -> 25000 | P88: 0
B89: Electric Utility Upgrades and Grid Interconnection Cost ($/Site) | E89: 0 | F89: =SUMIFS(DB_Charging_Infrastructure[Cost],DB_Charging_Infrastructure[Charging Level], _Base_Charging_Level, DB_Charging_Infrastructure[Market], _Market, DB_Charging_Infrastructure[Description],B89) -> 0 | G89: 0 | K89: Electric Utility Upgrades and Grid Interconnection Cost ($/Site) | N89: 0 | O89: =SUMIFS(DB_Charging_Infrastructure[Cost],DB_Charging_Infrastructure[Charging Level], _Comp_Charging_Level, DB_Charging_Infrastructure[Market], _Market, DB_Charging_Infrastructure[Description],K89) -> 30000 | P89: 0
B90: Maintenance Cost ($/Station/Year) | E90: 0 | F90: =SUMIFS(DB_Charging_Infrastructure[Cost],DB_Charging_Infrastructure[Charging Level], _Base_Charging_Level, DB_Charging_Infrastructure[Market], _Market, DB_Charging_Infrastructure[Description],B90) -> 300 | G90: 0 | K90: Maintenance Cost ($/Station/Year) | N90: 0 | O90: =SUMIFS(DB_Charging_Infrastructure[Cost],DB_Charging_Infrastructure[Charging Level], _Comp_Charging_Level, DB_Charging_Infrastructure[Market], _Market, DB_Charging_Infrastructure[Description],K90) -> 3000 | P90: 0
B91: Ownership Structure | E91: Purchase (Cash) | H91: =IF(IFERROR(FIND("Cash",_Base_Inf_Ownership_Structure,1),0)>0,TRUE,FALSE) -> TRUE | K91: Ownership Structure | N91: Purchase (Cash) | Q91: =IF(IFERROR(FIND("Cash",_Comp_Inf_Ownership_Structure,1),0)>0,TRUE,FALSE) -> TRUE
B92: Loan | K92: Loan
B93: Cash Upfront / Down Payment ($) | E93: 0 | G93: =IFERROR(INDIRECT(VLOOKUP(MID(CELL("filename",E93),FIND("]", CELL("filename",E93))+1,32) & "!" & ADDRESS(ROW(E93),COLUMN(E93),4,1), DB_Sensitivity_Indirect_Reference_Base,2, FALSE)), E93) -> 0 | K93: Cash Upfront / Down Payment ($) | N93: 0 | P93: =IFERROR(INDIRECT(VLOOKUP(MID(CELL("filename",N93),FIND("]", CELL("filename",N93))+1,32) & "!" & ADDRESS(ROW(N93),COLUMN(N93),4,1), DB_Sensitivity_Indirect_Reference_Base,2, FALSE)), N93) -> 0
B94: Loan Term (Years) | E94: 0 | G94: =IFERROR(INDIRECT(VLOOKUP(MID(CELL("filename",E94),FIND("]", CELL("filename",E94))+1,32) & "!" & ADDRESS(ROW(E94),COLUMN(E94),4,1), DB_Sensitivity_Indirect_Reference_Base,2, FALSE)), E94) -> 0 | K94: Loan Term (Years) | N94: 0 | P94: =IFERROR(INDIRECT(VLOOKUP(MID(CELL("filename",N94),FIND("]", CELL("filename",N94))+1,32) & "!" & ADDRESS(ROW(N94),COLUMN(N94),4,1), DB_Sensitivity_Indirect_Reference_Base,2, FALSE)), N94) -> 0
B95: Interest Rate (APR - %) | E95: 0 | G95: =IFERROR(INDIRECT(VLOOKUP(MID(CELL("filename",E95),FIND("]", CELL("filename",E95))+1,32) & "!" & ADDRESS(ROW(E95),COLUMN(E95),4,1), DB_Sensitivity_Indirect_Reference_Base,2, FALSE)), E95) -> 0 | K95: Interest Rate (APR - %) | N95: 0 | P95: =IFERROR(INDIRECT(VLOOKUP(MID(CELL("filename",N95),FIND("]", CELL("filename",N95))+1,32) & "!" & ADDRESS(ROW(N95),COLUMN(N95),4,1), DB_Sensitivity_Indirect_Reference_Base,2, FALSE)), N95) -> 0

Sheet Results
A1: Results - Fleet Procurement Analysis Tool
A2: ="Procurement Name: " & Procurement_Name -> Procurement Name: Demo Fleet Procurement
A3: Procurement Summary
L4: Procurement Details
B5: ="Vehicle Cost per " & Constant_Distance_Metric & " (Nominal)" -> Vehicle Cost per Mile (Nominal) | M5: =Base_V1_Type_Ex&" (Baseline)" -> 2017 Chevrolet Cruze ICE (Baseline) | N5: =Comp_V1_Type_Ex&" (Comparison)" -> 2017 Chevrolet Bolt EV BEV (Comparison)
L6: Procurement Type | M6: =_Base_V1_Ownership_Structure -> Purchase (Cash) | N6: =_Comp_V1_Ownership_Structure -> Purchase (Cash)
L7: Number of Vehicles Procured | M7: =Base_V1_Num_Vehicles_Modeled -> 19 | N7: =Comp_V1_Num_Vehicles_Modeled -> 19
L8: Years of Use/Ownership | M8: =Base_V1_Years_Usage_Modeled -> 7 | N8: =Comp_V1_Years_Usage_Modeled -> 7
L9: =Constant_Distance_Metric & "s Procured" -> Miles Procured | M9: =Base_V1_Years_Usage_Modeled*Base_V1_VMT_Modeled*Base_V1_Num_Vehicles_Modeled -> 1995000 | N9: =Comp_V1_Years_Usage_Modeled*Comp_V1_VMT_Modeled*Comp_V1_Num_Vehicles_Modeled -> 1995000
L10: Total NPV Vehicle and Operating Cost | M10: =SUM(M11:M14) -> 811249.5886 | N10: =SUM(N11:N14) -> 987901.2323
L11: Total Tax Incentives Captured | M11: =IF(Base_V1_Tax_Incentives_Monetized="Yes",(Base_V1_Federal_Tax_Incentives_Modeled*Base_V1_Num_Vehicles_Modeled)+IF(Base_V1_State_Tax_Incentive_Cap_Modeled=0,Base_V1_State_Tax_Incentives_Modeled*Base_V1_Num_Vehicles_Modeled,MIN(Base_V1_State_Tax_Incentive_Cap_Modeled,Base_V1_State_Tax_Incentives_Modeled*Base_V1_Num_Vehicles_Modeled)),0) -> 0 | N11: =IF(Comp_V1_Tax_Incentives_Monetized="Yes",(Comp_V1_Federal_Tax_Incentives_Modeled*Comp_V1_Num_Vehicles_Modeled)+IF(Comp_V1_State_Tax_Incentive_Cap_Modeled=0,Comp_V1_State_Tax_Incentives_Modeled*Comp_V1_Num_Vehicles_Modeled,MIN(Comp_V1_State_Tax_Incentive_Cap_Modeled,Comp_V1_State_Tax_Incentives_Modeled*Comp_V1_Num_Vehicles_Modeled)),0) -> 142500
L12: Total Non-Tax Incentive Captured | M12: =Base_V1_Other_Incentives_Modeled*Base_V1_Num_Vehicles_Modeled -> 0 | N12: =Comp_V1_Other_Incentives_Modeled*Comp_V1_Num_Vehicles_Modeled -> 0
L13: Total Discounts Captured | M13: =IF(_Base_V1_Pricing_Approach="MSRP Less Discounts",Base_V1_Discounts_Modeled*Base_V1_Num_Vehicles_Modeled,0) -> 0 | N13: =IF(_Comp_V1_Pricing_Approach="MSRP Less Discounts",Comp_V1_Discounts_Modeled*Comp_V1_Num_Vehicles_Modeled,0) -> 0
L14: NPV Vehicle Total Cost less Incentives and Discounts | M14: =-Base_V1_Annualized_Cost_Ownership_Ex*Base_V1_Years_Usage_Modeled*Base_V1_Num_Vehicles_Modeled -> 811249.5886 | N14: =-Comp_V1_Annualized_Cost_Ownership_Ex*Comp_V1_Years_Usage_Modeled*Comp_V1_Num_Vehicles_Modeled -> 845401.2323
L15: NPV Total Cost of Infrastructure | M15: =-Base_Inf_Annualized_Cost_Ownership_Ex*Base_V1_Years_Usage_Modeled -> 0 | N15: =-Comp_Inf_Annualized_Cost_Ownership_Ex*Comp_V1_Years_Usage_Modeled -> 0
L16: Total NPV Cost | M16: =SUM(M14:M15) -> 811249.5886 | N16: =SUM(N14:N15) -> 845401.2323
B17: ="The baseline is "& ABS(ROUND(('Results Tables'!C31-'Results Tables'!D31)/'Results Tables'!C31*100,2))&"% "&IF(ROUND(('Results Tables'!C31-'Results Tables'!D31)/'Results Tables'!C31*100,2)>0,"more","less")&" expensive than the comparison vehicle" -> The baseline is 4.21% less expensive than the comparison vehicle | L17: ="Total NPV Cost / " & Constant_Distance_Metric -> Total NPV Cost / Mile | M17: =M16/M9 -> 0.4066413978 | N17: =N16/N9 -> 0.4237600162
A19: Societal Benefit Summary
B30: Fleet Gasoline/Diesel Use (Total All Vehicles)
B32: =Base_V1_Type_Ex&" Based Fleet" -> 2017 Chevrolet Cruze ICE Based Fleet | F32: VS | G32: =Comp_V1_Type_Ex&" Based Fleet" -> 2017 Chevrolet Bolt EV BEV Based Fleet | K32: = | L32: ="The baseline fleet uses "& TEXT(ABS(ROUND(B33-G33,0)),"#,##0")&" "&IF(ROUND(B33-G33,0)>0,"more ","fewer ")& LOWER(Constant_Volume_Metric) & "s of gasoline/diesel than the comparison fleet" -> The baseline fleet uses 59,019 more gallons of gasoline/diesel than the comparison fleet
B33: ='Results Tables'!C38 -> 59018.75 | D33: =LOWER(Constant_Volume_Metric) & "s" -> gallons | G33: ='Results Tables'!D38 -> 0 | I33: =LOWER(Constant_Volume_Metric) & "s" -> gallons
A35: Cash Flow Summary
A56: Sensitivity Analysis

Sheet Financial Model
A1: Financial Models - Fleet Procurement Analysis Tool
D2: Year 0 | E2: Year 1 | F2: Year 2 | G2: Year 3 | H2: Year 4 | I2: Year 5 | J2: Year 6 | K2: Year 7 | L2: Year 8 | M2: Year 9 | N2: Year 10 | O2: Year 11 | P2: Year 12 | Q2: Year 13 | R2: Year 14 | S2: Year 15 | T2: Year 16 | U2: Year 17 | V2: Year 18 | W2: Year 19 | X2: Year 20 | Y2: Year 21 | Z2: Year 22 | AA2: Year 23 | AB2: Year 24 | AC2: Year 25
B3: Baseline Vehicle 1
D4: Year 0 | E4: Year 1 | F4: Year 2 | G4: Year 3 | H4: Year 4 | I4: Year 5 | J4: Year 6 | K4: Year 7 | L4: Year 8 | M4: Year 9 | N4: Year 10 | O4: Year 11 | P4: Year 12 | Q4: Year 13 | R4: Year 14 | S4: Year 15 | T4: Year 16 | U4: Year 17 | V4: Year 18 | W4: Year 19 | X4: Year 20 | Y4: Year 21 | Z4: Year 22 | AA4: Year 23 | AB4: Year 24 | AC4: Year 25
B5: Depreciation Calculations
B6: Fair Market Value - BEV | D6: =IF(_Base_V1_Vehicle_Drivetrain="BEV",Base_V1_Base_Price_Ex,0) -> 0 | E6: =IF(_Base_V1_Vehicle_Vehicle_Class=Const_Passenger_Light_Duty, IF(_Base_V1_Vehicle_Drivetrain="BEV",MAX(IF(_Base_V1_Vehicle_Drivetrain="BEV",Reg_BEV_Const_Ex+Reg_BEV_Age_Coef_Ex*(COLUMN(E4)-COLUMN($D4))+Reg_BEV_Agesq_Coef_Ex*((COLUMN(E4)-COLUMN($D4))^2)+Reg_BEV_MSRP_Coef_Ex*Base_V1_Base_Price_Ex+Reg_BEV_Range_Coef_Ex*Constant_Baseline_Electric_Range+Reg_BEV_Mileage_Coef_Ex*Base_V1_VMT_Modeled*(COLUMN(E4)-COLUMN($D4)),0),300),0), IF(COLUMN(E4)-COLUMN($D4)=1, 'Financial Model'!D6*0.77, 'Financial Model'!D6*0.85)) -> 0 | F6: =IF(_Base_V1_Vehicle_Vehicle_Class=Const_Passenger_Light_Duty, IF(_Base_V1_Vehicle_Drivetrain="BEV",MAX(IF(_Base_V1_Vehicle_Drivetrain="BEV",Reg_BEV_Const_Ex+Reg_BEV_Age_Coef_Ex*(COLUMN(F4)-COLUMN($D4))+Reg_BEV_Agesq_Coef_Ex*((COLUMN(F4)-COLUMN($D4))^2)+Reg_BEV_MSRP_Coef_Ex*Base_V1_Base_Price_Ex+Reg_BEV_Range_Coef_Ex*Constant_Baseline_Electric_Range+Reg_BEV_Mileage_Coef_Ex*Base_V1_VMT_Modeled*(COLUMN(F4)-COLUMN($D4)),0),300),0), IF(COLUMN(F4)-COLUMN($D4)=1, 'Financial Model'!E6*0.77, 'Financial Model'!E6*0.85)) -> 0 | G6: =IF(_Base_V1_Vehicle_Vehicle_Class=Const_Passenger_Light_Duty, IF(_Base_V1_Vehicle_Drivetrain="BEV",MAX(IF(_Base_V1_Vehicle_Drivetrain="BEV",Reg_BEV_Const_Ex+Reg_BEV_Age_Coef_Ex*(COLUMN(G4)-COLUMN($D4))+Reg_BEV_Agesq_Coef_Ex*((COLUMN(G4)-COLUMN($D4))^2)+Reg_BEV_MSRP_Coef_Ex*Base_V1_Base_Price_Ex+Reg_BEV_Range_Coef_Ex*Constant_Baseline_Electric_Range+Reg_BEV_Mileage_Coef_Ex*Base_V1_VMT_Modeled*(COLUMN(G4)-COLUMN($D4)),0),300),0), IF(COLUMN(G4)-COLUMN($D4)=1, 'Financial Model'!F6*0.77, 'Financial Model'!F6*0.85)) -> 0 | H6: =IF(_Base_V1_Vehicle_Vehicle_Class=Const_Passenger_Light_Duty, IF(_Base_V1_Vehicle_Drivetrain="BEV",MAX(IF(_Base_V1_Vehicle_Drivetrain="BEV",Reg_BEV_Const_Ex+Reg_BEV_Age_Coef_Ex*(COLUMN(H4)-COLUMN($D4))+Reg_BEV_Agesq_Coef_Ex*((COLUMN(H4)-COLUMN($D4))^2)+Reg_BEV_MSRP_Coef_Ex*Base_V1_Base_Price_Ex+Reg_BEV_Range_Coef_Ex*Constant_Baseline_Electric_Range+Reg_BEV_Mileage_Coef_Ex*Base_V1_VMT_Modeled*(COLUMN(H4)-COLUMN($D4)),0),300),0), IF(COLUMN(H4)-COLUMN($D4)=1, 'Financial Model'!G6*0.77, 'Financial Model'!G6*0.85)) -> 0 | I6: =IF(_Base_V1_Vehicle_Vehicle_Class=Const_Passenger_Light_Duty, IF(_Base_V1_Vehicle_Drivetrain="BEV",MAX(IF(_Base_V1_Vehicle_Drivetrain="BEV",Reg_BEV_Const_Ex+Reg_BEV_Age_Coef_Ex*(COLUMN(I4)-COLUMN($D4))+Reg_BEV_Agesq_Coef_Ex*((COLUMN(I4)-COLUMN($D4))^2)+Reg_BEV_MSRP_Coef_Ex*Base_V1_Base_Price_Ex+Reg_BEV_Range_Coef_Ex*Constant_Baseline_Electric_Range+Reg_BEV_Mileage_Coef_Ex*Base_V1_VMT_Modeled*(COLUMN(I4)-COLUMN($D4)),0),300),0), IF(COLUMN(I4)-COLUMN($D4)=1, 'Financial Model'!H6*0.77, 'Financial Model'!H6*0.85)) -> 0 | J6: =IF($H6-$I6=0,0,MAX((1-($H6-$I6)/$H6)*I6,300)) -> 0 | K6: =IF($H6-$I6=0,0,MAX((1-($H6-$I6)/$H6)*J6,300)) -> 0 | L6: 0 | M6: 0 | N6: 0 | O6: 0 | P6: 0 | Q6: 0 | R6: 0 | S6: 0 | T6: 0 | U6: 0 | V6: 0 | W6: 0 | X6: 0 | Y6: 0 | Z6: 0 | AA6: 0 | AB6: 0 | AC6: 0
B7: Fair Market Value - PHEV | D7: =IF(_Base_V1_Vehicle_Drivetrain="PHEV",Base_V1_Base_Price_Ex,0) -> 0 | E7: =IF(_Base_V1_Vehicle_Vehicle_Class=Const_Passenger_Light_Duty,IF(_Base_V1_Vehicle_Drivetrain="PHEV",MAX(IF(_Base_V1_Vehicle_Drivetrain="PHEV",Reg_PHEV_Const_Ex+Reg_PHEV_Age_Coef_Ex*(COLUMN(E4)-COLUMN($D4))+Reg_PHEV_Agesq_Coef_Ex*((COLUMN(E4)-COLUMN($D4))^2)+Reg_PHEV_MSRP_Coef_Ex*Base_V1_Base_Price_Ex+Reg_PHEV_Range_Coef_Ex*Constant_Baseline_Electric_Range+Reg_PHEV_Mileage_Coef_Ex*Base_V1_VMT_Modeled*(COLUMN(E4)-COLUMN($D4)),0),300),0),IF(COLUMN(E4)-COLUMN($D4)=1, 'Financial Model'!D7*0.77, 'Financial Model'!D7*0.85)) -> 0 | F7: =IF(_Base_V1_Vehicle_Vehicle_Class=Const_Passenger_Light_Duty,IF(_Base_V1_Vehicle_Drivetrain="PHEV",MAX(IF(_Base_V1_Vehicle_Drivetrain="PHEV",Reg_PHEV_Const_Ex+Reg_PHEV_Age_Coef_Ex*(COLUMN(F4)-COLUMN($D4))+Reg_PHEV_Agesq_Coef_Ex*((COLUMN(F4)-COLUMN($D4))^2)+Reg_PHEV_MSRP_Coef_Ex*Base_V1_Base_Price_Ex+Reg_PHEV_Range_Coef_Ex*Constant_Baseline_Electric_Range+Reg_PHEV_Mileage_Coef_Ex*Base_V1_VMT_Modeled*(COLUMN(F4)-COLUMN($D4)),0),300),0),IF(COLUMN(F4)-COLUMN($D4)=1, 'Financial Model'!E7*0.77, 'Financial Model'!E7*0.85)) -> 0 | G7: =IF(_Base_V1_Vehicle_Vehicle_Class=Const_Passenger_Light_Duty,IF(_Base_V1_Vehicle_Drivetrain="PHEV",MAX(IF(_Base_V1_Vehicle_Drivetrain="PHEV",Reg_PHEV_Const_Ex+Reg_PHEV_Age_Coef_Ex*(COLUMN(G4)-COLUMN($D4))+Reg_PHEV_Agesq_Coef_Ex*((COLUMN(G4)-COLUMN($D4))^2)+Reg_PHEV_MSRP_Coef_Ex*Base_V1_Base_Price_Ex+Reg_PHEV_Range_Coef_Ex*Constant_Baseline_Electric_Range+Reg_PHEV_Mileage_Coef_Ex*Base_V1_VMT_Modeled*(COLUMN(G4)-COLUMN($D4)),0),300),0),IF(COLUMN(G4)-COLUMN($D4)=1, 'Financial Model'!F7*0.77, 'Financial Model'!F7*0.85)) -> 0 | H7: =IF(_Base_V1_Vehicle_Vehicle_Class=Const_Passenger_Light_Duty,IF(_Base_V1_Vehicle_Drivetrain="PHEV",MAX(IF(_Base_V1_Vehicle_Drivetrain="PHEV",Reg_PHEV_Const_Ex+Reg_PHEV_Age_Coef_Ex*(COLUMN(H4)-COLUMN($D4))+Reg_PHEV_Agesq_Coef_Ex*((COLUMN(H4)-COLUMN($D4))^2)+Reg_PHEV_MSRP_Coef_Ex*Base_V1_Base_Price_Ex+Reg_PHEV_Range_Coef_Ex*Constant_Baseline_Electric_Range+Reg_PHEV_Mileage_Coef_Ex*Base_V1_VMT_Modeled*(COLUMN(H4)-COLUMN($D4)),0),300),0),IF(COLUMN(H4)-COLUMN($D4)=1, 'Financial Model'!G7*0.77, 'Financial Model'!G7*0.85)) -> 0 | I7: =IF(_Base_V1_Vehicle_Vehicle_Class=Const_Passenger_Light_Duty,IF(_Base_V1_Vehicle_Drivetrain="PHEV",MAX(IF(_Base_V1_Vehicle_Drivetrain="PHEV",Reg_PHEV_Const_Ex+Reg_PHEV_Age_Coef_Ex*(COLUMN(I4)-COLUMN($D4))+Reg_PHEV_Agesq_Coef_Ex*((COLUMN(I4)-COLUMN($D4))^2)+Reg_PHEV_MSRP_Coef_Ex*Base_V1_Base_Price_Ex+Reg_PHEV_Range_Coef_Ex*Constant_Baseline_Electric_Range+Reg_PHEV_Mileage_Coef_Ex*Base_V1_VMT_Modeled*(COLUMN(I4)-COLUMN($D4)),0),300),0),IF(COLUMN(I4)-COLUMN($D4)=1, 'Financial Model'!H7*0.77, 'Financial Model'!H7*0.85)) -> 0 | J7: =IF($H7-$I7=0,0,MAX((1-($H7-$I7)/$H7)*I7,300)) -> 0 | K7: 0 | L7: 0 | M7: 0 | N7: 0 | O7: 0 | P7: 0 | Q7: 0 | R7: 0 | S7: 0 | T7: 0 | U7: 0 | V7: 0 | W7: 0 | X7: 0 | Y7: 0 | Z7: 0 | AA7: 0 | AB7: 0 | AC7: 0
B8: Fair Market Value - ICE | D8: =IF(_Base_V1_Vehicle_Drivetrain="ICE",Base_V1_Base_Price_Ex,0) -> 18224 | E8: =IF(_Base_V1_Vehicle_Vehicle_Class=Const_Passenger_Light_Duty, IF(_Base_V1_Vehicle_Drivetrain="ICE",MAX(IF(_Base_V1_Vehicle_Drivetrain="ICE",Reg_ICE_Const_Ex+Reg_ICE_Age_Coef_Ex*(COLUMN(E4)-COLUMN($D4))+Reg_ICE_Agesq_Coef_Ex*(COLUMN(E4)-COLUMN($D4))^2+Reg_ICE_MSRP_Coef_Ex*Base_V1_Base_Price_Ex+Reg_ICE_MPG_Coef_Ex*Constant_Baseline_Fuel_Economy_Gas_City+Reg_ICE_Mileage_Coef_Ex*Base_V1_VMT_Modeled*(COLUMN(E4)-COLUMN($D4)),0),300),0), IF(COLUMN(E4)-COLUMN($D4)=1, 'Financial Model'!D8*0.77, 'Financial Model'!D8*0.85)) -> 15194.84491 | F8: =IF(_Base_V1_Vehicle_Vehicle_Class=Const_Passenger_Light_Duty, IF(_Base_V1_Vehicle_Drivetrain="ICE",MAX(IF(_Base_V1_Vehicle_Drivetrain="ICE",Reg_ICE_Const_Ex+Reg_ICE_Age_Coef_Ex*(COLUMN(F4)-COLUMN($D4))+Reg_ICE_Agesq_Coef_Ex*(COLUMN(F4)-COLUMN($D4))^2+Reg_ICE_MSRP_Coef_Ex*Base_V1_Base_Price_Ex+Reg_ICE_MPG_Coef_Ex*Constant_Baseline_Fuel_Economy_Gas_City+Reg_ICE_Mileage_Coef_Ex*Base_V1_VMT_Modeled*(COLUMN(F4)-COLUMN($D4)),0),300),0), IF(COLUMN(F4)-COLUMN($D4)=1, 'Financial Model'!E8*0.77, 'Financial Model'!E8*0.85)) -> 13565.36491 | G8: =IF(_Base_V1_Vehicle_Vehicle_Class=Const_Passenger_Light_Duty, IF(_Base_V1_Vehicle_Drivetrain="ICE",MAX(IF(_Base_V1_Vehicle_Drivetrain="ICE",Reg_ICE_Const_Ex+Reg_ICE_Age_Coef_Ex*(COLUMN(G4)-COLUMN($D4))+Reg_ICE_Agesq_Coef_Ex*(COLUMN(G4)-COLUMN($D4))^2+Reg_ICE_MSRP_Coef_Ex*Base_V1_Base_Price_Ex+Reg_ICE_MPG_Coef_Ex*Constant_Baseline_Fuel_Economy_Gas_City+Reg_ICE_Mileage_Coef_Ex*Base_V1_VMT_Modeled*(COLUMN(G4)-COLUMN($D4)),0),300),0), IF(COLUMN(G4)-COLUMN($D4)=1, 'Financial Model'!F8*0.77, 'Financial Model'!F8*0.85)) -> 11618.18491 | H8: =IF(_Base_V1_Vehicle_Vehicle_Class=Const_Passenger_Light_Duty, IF(_Base_V1_Vehicle_Drivetrain="ICE",MAX(IF(_Base_V1_Vehicle_Drivetrain="ICE",Reg_ICE_Const_Ex+Reg_ICE_Age_Coef_Ex*(COLUMN(H4)-COLUMN($D4))+Reg_ICE_Agesq_Coef_Ex*(COLUMN(H4)-COLUMN($D4))^2+Reg_ICE_MSRP_Coef_Ex*Base_V1_Base_Price_Ex+Reg_ICE_MPG_Coef_Ex*Constant_Baseline_Fuel_Economy_Gas_City+Reg_ICE_Mileage_Coef_Ex*Base_V1_VMT_Modeled*(COLUMN(H4)-COLUMN($D4)),0),300),0), IF(COLUMN(H4)-COLUMN($D4)=1, 'Financial Model'!G8*0.77, 'Financial Model'!G8*0.85)) -> 9353.304912 | I8: =IF(_Base_V1_Vehicle_Vehicle_Class=Const_Passenger_Light_Duty, IF(_Base_V1_Vehicle_Drivetrain="ICE",MAX(IF(_Base_V1_Vehicle_Drivetrain="ICE",Reg_ICE_Const_Ex+Reg_ICE_Age_Coef_Ex*(COLUMN(I4)-COLUMN($D4))+Reg_ICE_Agesq_Coef_Ex*(COLUMN(I4)-COLUMN($D4))^2+Reg_ICE_MSRP_Coef_Ex*Base_V1_Base_Price_Ex+Reg_ICE_MPG_Coef_Ex*Constant_Baseline_Fuel_Economy_Gas_City+Reg_ICE_Mileage_Coef_Ex*Base_V1_VMT_Modeled*(COLUMN(I4)-COLUMN($D4)),0),300),0), IF(COLUMN(I4)-COLUMN($D4)=1, 'Financial Model'!H8*0.77, 'Financial Model'!H8*0.85)) -> 6770.724912 | J8: 4901.231839 | K8: 3547.93229 | L8: 2568.297919 | M8: 1859.154477 | N8: 1345.815586 | O8: 974.2168357 | P8: 705.2217651 | Q8: 510.5000445 | R8: 369.5437496 | S8: 300 | T8: 300 | U8: 300 | V8: 300 | W8: 300 | X8: 300 | Y8: 300 | Z8: 300 | AA8: 300 | AB8: 300 | AC8: 300
B10: Capital and Financing Costs
B11: Cash
B12: Cash Payment | D12: =IF(AND(Base_V1_Has_Cash_Purchase_Ex=TRUE,Base_V1_Has_Loan_Ex=FALSE,Base_V1_Has_Lease_Ex=FALSE,COLUMN(D4)-COLUMN($D4)=0),-(Base_V1_Base_Price_Ex-IF(Base_V1_Tax_Incentives_Monetized="Yes",Base_V1_Federal_Tax_Incentives_Modeled+IF(Base_V1_State_Tax_Incentive_Cap_Modeled=0,Base_V1_State_Tax_Incentives_Modeled,MIN(Base_V1_State_Tax_Incentive_Cap_Modeled,Base_V1_State_Tax_Incentives_Modeled*Base_V1_Num_Vehicles_Modeled)/Base_V1_Num_Vehicles_Modeled),0)-Base_V1_Other_Incentives_Modeled),IF(AND(Base_V1_Has_Cash_Purchase_Ex=TRUE,OR(Base_V1_Has_Loan_Ex=TRUE,Base_V1_Has_Lease_Ex=TRUE),COLUMN(D4)-COLUMN($D4)=Base_V1_Lease_Term_Modeled),IF(ISERROR(FIND("Tax",_Base_V1_Ownership_Structure,1)),-SUM(D6:D8),-Base_V1_Lease_Residual_Price_Modeled),0)) -> -18224 | E12: 0 | F12: 0 | G12: 0 | H12: 0 | I12: 0 | J12: 0 | K12: 0 | L12: 0 | M12: 0 | N12: 0 | O12: 0 | P12: 0 | Q12: 0 | R12: 0 | S12: 0 | T12: 0 | U12: 0 | V12: 0 | W12: 0 | X12: 0 | Y12: 0 | Z12: 0 | AA12: 0 | AB12: 0 | AC12: 0
B13: Lease
B14: Down Payment | D14: =IF(Base_V1_Has_Lease_Ex=TRUE,-Base_V1_Down_Payment_Modeled,0) -> 0
B15: Acquisition Fee | D15: =IF(Base_V1_Has_Lease_Ex=TRUE,-Base_V1_Lease_Acquisition_Fee_Modeled,0) -> 0
B16: Disposition Charge | D16: =IF(AND(Base_V1_Has_Lease_Ex=TRUE,((COLUMN(D4)-COLUMN($D4))=Base_V1_Lease_Term_Modeled)),-Base_V1_Lease_Disposition_Fee_Modeled,0) -> 0 | E16: 0 | F16: 0 | G16: 0 | H16: 0 | I16: 0 | J16: 0 | K16: 0 | L16: 0 | M16: 0 | N16: 0 | O16: 0 | P16: 0 | Q16: 0 | R16: 0 | S16: 0 | T16: 0 | U16: 0 | V16: 0 | W16: 0 | X16: 0 | Y16: 0 | Z16: 0 | AA16: 0 | AB16: 0 | AC16: 0
B17: Lease Payments | E17: =IF(Base_V1_Has_Lease_Ex=TRUE,IF((COLUMN(E4)-COLUMN($E4))<Base_V1_Lease_Term_Modeled,-PMT(Base_V1_Lease_APR_Modeled/12,Base_V1_Lease_Term_Modeled*12,-(Base_V1_Base_Price_Ex-IF(Base_V1_Tax_Incentives_Monetized="Yes",Base_V1_Federal_Tax_Incentives_Modeled+IF(Base_V1_State_Tax_Incentive_Cap_Modeled=0,Base_V1_State_Tax_Incentives_Modeled,MIN(Base_V1_State_Tax_Incentive_Cap_Modeled,Base_V1_State_Tax_Incentives_Modeled*Base_V1_Num_Vehicles_Modeled)/Base_V1_Num_Vehicles_Modeled),0)-Base_V1_Other_Incentives_Modeled-Base_V1_Down_Payment_Modeled)+Base_V1_Lease_Residual_Price_Modeled,0)*12,0),0) -> 0 | F17: 0 | G17: 0 | H17: 0 | I17: 0 | J17: 0 | K17: 0 | L17: 0 | M17: 0 | N17: 0 | O17: 0 | P17: 0 | Q17: 0 | R17: 0 | S17: 0 | T17: 0 | U17: 0 | V17: 0 | W17: 0 | X17: 0 | Y17: 0 | Z17: 0 | AA17: 0 | AB17: 0 | AC17: 0
B18: Principal Payments | E18: =IF(Base_V1_Has_Lease_Ex=TRUE,IF((COLUMN(E4)-COLUMN($E4))<Base_V1_Lease_Term_Modeled,-PPMT(Base_V1_Lease_APR_Modeled/12,(COLUMN(E4)-COLUMN($D4))*12,Base_V1_Lease_Term_Modeled*12,-(Base_V1_Base_Price_Ex-IF(Base_V1_Tax_Incentives_Monetized="Yes",Base_V1_Federal_Tax_Incentives_Modeled+IF(Base_V1_State_Tax_Incentive_Cap_Modeled=0,Base_V1_State_Tax_Incentives_Modeled,MIN(Base_V1_State_Tax_Incentive_Cap_Modeled,Base_V1_State_Tax_Incentives_Modeled*Base_V1_Num_Vehicles_Modeled)/Base_V1_Num_Vehicles_Modeled),0)-Base_V1_Other_Incentives_Modeled-Base_V1_Down_Payment_Modeled)+Base_V1_Lease_Residual_Price_Modeled,0)*12,0),0) -> 0 | F18: 0 | G18: 0 | H18: 0 | I18: 0 | J18: 0 | K18: 0 | L18: 0 | M18: 0 | N18: 0 | O18: 0 | P18: 0 | Q18: 0 | R18: 0 | S18: 0 | T18: 0 | U18: 0 | V18: 0 | W18: 0 | X18: 0 | Y18: 0 | Z18: 0 | AA18: 0 | AB18: 0 | AC18: 0
B19: Interest Payments | E19: =IF(Base_V1_Has_Lease_Ex=TRUE,IF((COLUMN(E4)-COLUMN($E4))<Base_V1_Lease_Term_Modeled,-IPMT(Base_V1_Lease_APR_Modeled/12,(COLUMN(E4)-COLUMN($D4))*12,Base_V1_Lease_Term_Modeled*12,-(Base_V1_Base_Price_Ex-IF(Base_V1_Tax_Incentives_Monetized="Yes",Base_V1_Federal_Tax_Incentives_Modeled+IF(Base_V1_State_Tax_Incentive_Cap_Modeled=0,Base_V1_State_Tax_Incentives_Modeled,MIN(Base_V1_State_Tax_Incentive_Cap_Modeled,Base_V1_State_Tax_Incentives_Modeled*Base_V1_Num_Vehicles_Modeled)/Base_V1_Num_Vehicles_Modeled),0)-Base_V1_Other_Incentives_Modeled-Base_V1_Down_Payment_Modeled)+Base_V1_Lease_Residual_Price_Modeled,0)*12,0),0) -> 0 | F19: 0 | G19: 0 | H19: 0 | I19: 0 | J19: 0 | K19: 0 | L19: 0 | M19: 0 | N19: 0 | O19: 0 | P19: 0 | Q19: 0 | R19: 0 | S19: 0 | T19: 0 | U19: 0 | V19: 0 | W19: 0 | X19: 0 | Y19: 0 | Z19: 0 | AA19: 0 | AB19: 0 | AC19: 0
B20: TRAC Value Adjustment | E20: =IF(ISERROR(FIND("TRAC",_Base_V1_Ownership_Structure,1)),0,IF(Base_V1_Has_Loan_Ex=TRUE,0,IF((COLUMN(E4)-COLUMN($D4))=Base_V1_Lease_Term_Modeled,SUM(E6:E8)-Base_V1_Lease_Residual_Price_Modeled,0))) -> 0 | F20: 0 | G20: 0 | H20: 0 | I20: 0 | J20: 0 | K20: 0 | L20: 0 | M20: 0 | N20: 0 | O20: 0 | P20: 0 | Q20: 0 | R20: 0 | S20: 0 | T20: 0 | U20: 0 | V20: 0 | W20: 0 | X20: 0 | Y20: 0 | Z20: 0 | AA20: 0 | AB20: 0 | AC20: 0
B21: FMV Mileage Adjustment | E21: =MIN(0,MAX(-Base_V1_Lease_Residual_Price_Modeled+SUM(E6:E8),IF(IFERROR(IF(FIND("FMV",_Base_V1_Ownership_Structure,1)>0,TRUE,FALSE),FALSE),IF((COLUMN(E4)-COLUMN($D4))=Base_V1_Lease_Term_Modeled,(Base_V1_Lease_Mileage_Inc_Modeled-Base_V1_VMT_Modeled)*(COLUMN(E4)-COLUMN($D4))*Base_V1_Lease_Mileage_Cost_Modeled,0),0))) -> 0 | F21: 0 | G21: 0 | H21: 0 | I21: 0 | J21: 0 | K21: 0 | L21: 0 | M21: 0 | N21: 0 | O21: 0 | P21: 0 | Q21: 0 | R21: 0 | S21: 0 | T21: 0 | U21: 0 | V21: 0 | W21: 0 | X21: 0 | Y21: 0 | Z21: 0 | AA21: 0 | AB21: 0 | AC21: 0
B22: Subtotal Lease Cash Flows | D22: =SUM(D14:D17)+SUM(D20:D21) -> 0 | E22: =SUM(E14:E17)+SUM(E20:E21) -> 0 | F22: 0 | G22: 0 | H22: 0 | I22: 0 | J22: 0 | K22: 0 | L22: 0 | M22: 0 | N22: 0 | O22: 0 | P22: 0 | Q22: 0 | R22: 0 | S22: 0 | T22: 0 | U22: 0 | V22: 0 | W22: 0 | X22: 0 | Y22: 0 | Z22: 0 | AA22: 0 | AB22: 0 | AC22: 0
B23: Loan
B24: Down Payment | D24: =IF(AND(Base_V1_Has_Loan_Ex=TRUE,Base_V1_Has_Lease_Ex=FALSE),-Base_V1_Down_Payment_Modeled,0) -> 0
B25: Loan Payments | E25: =IF(Base_V1_Has_Loan_Ex=TRUE,IF(AND((COLUMN(E4)-COLUMN($E4))<Base_V1_Loan_Term_Modeled+Base_V1_Lease_Term_Modeled,(COLUMN(E4)-COLUMN($E4))>=Base_V1_Lease_Term_Modeled),PMT(Base_V1_Loan_APR_Modeled/12,Base_V1_Loan_Term_Modeled*12,IF(Base_V1_Has_Lease_Ex=TRUE,SUM(OFFSET($D4,0,Comp_V1_Lease_Term_Modeled,3,1)),Base_V1_Base_Price_Ex-IF(Base_V1_Tax_Incentives_Monetized="Yes",Base_V1_Federal_Tax_Incentives_Modeled+IF(Base_V1_State_Tax_Incentive_Cap_Modeled=0,Base_V1_State_Tax_Incentives_Modeled,MIN(Base_V1_State_Tax_Incentive_Cap_Modeled,Base_V1_State_Tax_Incentives_Modeled*Base_V1_Num_Vehicles_Modeled)/Base_V1_Num_Vehicles_Modeled),0)-Base_V1_Other_Incentives_Modeled-Base_V1_Down_Payment_Modeled),0)*12,0),0) -> 0 | F25: 0 | G25: 0 | H25: 0 | I25: 0 | J25: 0 | K25: 0 | L25: 0 | M25: 0 | N25: 0 | O25: 0 | P25: 0 | Q25: 0 | R25: 0 | S25: 0 | T25: 0 | U25: 0 | V25: 0 | W25: 0 | X25: 0 | Y25: 0 | Z25: 0 | AA25: 0 | AB25: 0 | AC25: 0
B26: Principal Payments | E26: =IF(Base_V1_Has_Loan_Ex=TRUE,IF(AND((COLUMN(E4)-COLUMN($E4))<Base_V1_Loan_Term_Modeled+Base_V1_Lease_Term_Modeled,(COLUMN(E4)-COLUMN($E4))>=Base_V1_Lease_Term_Modeled),PPMT(Base_V1_Loan_APR_Modeled/12,IF(Base_V1_Has_Lease_Ex=TRUE,(COLUMN(E4)-COLUMN($D4)-Base_V1_Lease_Term_Modeled)*12,(COLUMN(E4)-COLUMN($D4))*12),Base_V1_Loan_Term_Modeled*12,IF(Base_V1_Has_Lease_Ex=TRUE,SUM(OFFSET($D4,0,Comp_V1_Lease_Term_Modeled,3,1)),Base_V1_Base_Price_Ex-IF(Base_V1_Tax_Incentives_Monetized="Yes",Base_V1_Federal_Tax_Incentives_Modeled+IF(Base_V1_State_Tax_Incentive_Cap_Modeled=0,Base_V1_State_Tax_Incentives_Modeled,MIN(Base_V1_State_Tax_Incentive_Cap_Modeled,Base_V1_State_Tax_Incentives_Modeled*Base_V1_Num_Vehicles_Modeled)/Base_V1_Num_Vehicles_Modeled),0)-Base_V1_Other_Incentives_Modeled-Base_V1_Down_Payment_Modeled),0)*12,0),0) -> 0 | F26: 0 | G26: 0 | H26: 0 | I26: 0 | J26: 0 | K26: 0 | L26: 0 | M26: 0 | N26: 0 | O26: 0 | P26: 0 | Q26: 0 | R26: 0 | S26: 0 | T26: 0 | U26: 0 | V26: 0 | W26: 0 | X26: 0 | Y26: 0 | Z26: 0 | AA26: 0 | AB26: 0 | AC26: 0
B27: Interest Payments | E27: =IF(Base_V1_Has_Loan_Ex=TRUE,IF(AND((COLUMN(E4)-COLUMN($E4))<Base_V1_Loan_Term_Modeled+Base_V1_Lease_Term_Modeled,(COLUMN(E4)-COLUMN($E4))>=Base_V1_Lease_Term_Modeled),IPMT(Base_V1_Loan_APR_Modeled/12,IF(Base_V1_Has_Lease_Ex=TRUE,(COLUMN(E4)-COLUMN($D4)-Base_V1_Lease_Term)*12,(COLUMN(E4)-COLUMN($D4))*12),Base_V1_Loan_Term_Modeled*12,IF(Base_V1_Has_Lease_Ex=TRUE,SUM(OFFSET($D4,0,Comp_V1_Lease_Term_Modeled,3,1)),Base_V1_Base_Price_Ex-IF(Base_V1_Tax_Incentives_Monetized="Yes",Base_V1_Federal_Tax_Incentives_Modeled+IF(Base_V1_State_Tax_Incentive_Cap_Modeled=0,Base_V1_State_Tax_Incentives_Modeled,MIN(Base_V1_State_Tax_Incentive_Cap_Modeled,Base_V1_State_Tax_Incentives_Modeled*Base_V1_Num_Vehicles_Modeled)/Base_V1_Num_Vehicles_Modeled),0)-Base_V1_Other_Incentives_Modeled-Base_V1_Down_Payment_Modeled),0)*12,0),0) -> 0 | F27: 0 | G27: 0 | H27: 0 | I27: 0 | J27: 0 | K27: 0 | L27: 0 | M27: 0 | N27: 0 | O27: 0 | P27: 0 | Q27: 0 | R27: 0 | S27: 0 | T27: 0 | U27: 0 | V27: 0 | W27: 0 | X27: 0 | Y27: 0 | Z27: 0 | AA27: 0 | AB27: 0 | AC27: 0
B28: Subtotal Loan Cash Flows | D28: =SUM(D24:D25) -> 0 | E28: =SUM(E24:E25) -> 0 | F28: 0 | G28: 0 | H28: 0 | I28: 0 | J28: 0 | K28: 0 | L28: 0 | M28: 0 | N28: 0 | O28: 0 | P28: 0 | Q28: 0 | R28: 0 | S28: 0 | T28: 0 | U28: 0 | V28: 0 | W28: 0 | X28: 0 | Y28: 0 | Z28: 0 | AA28: 0 | AB28: 0 | AC28: 0
B29: Terminal Value | E29: =IF(OR(Base_V1_Has_Loan_Ex=TRUE,Base_V1_Has_Cash_Purchase_Ex=TRUE),IF((COLUMN(E4)-COLUMN($D4))=Base_V1_Years_Usage_Modeled,SUM(E6:E8),0),0) -> 0 | F29: 0 | G29: 0 | H29: 0 | I29: 0 | J29: 0 | K29: 3547.93229 | L29: 0 | M29: 0 | N29: 0 | O29: 0 | P29: 0 | Q29: 0 | R29: 0 | S29: 0 | T29: 0 | U29: 0 | V29: 0 | W29: 0 | X29: 0 | Y29: 0 | Z29: 0 | AA29: 0 | AB29: 0 | AC29: 0
B31: Total Capital and Financing Costs | D31: =D12+D22+D28+D29 -> -18224 | E31: =E12+E22+E28+E29 -> 0 | F31: =F12+F22+F28+F29 -> 0 | G31: 0 | H31: 0 | I31: 0 | J31: 0 | K31: 3547.93229 | L31: 0 | M31: 0 | N31: 0 | O31: 0 | P31: 0 | Q31: 0 | R31: 0 | S31: 0 | T31: 0 | U31: 0 | V31: 0 | W31: 0 | X31: 0 | Y31: 0 | Z31: 0 | AA31: 0 | AB31: 0 | AC31: 0
B33: Fuel and Operating Costs
B34: Fuel Cost | E34: =IF(COLUMN(E4)-COLUMN($E4)<Base_V1_Years_Usage_Modeled,-((Base_V1_Gas_Diesel_Usage_Ex*IF(Base_V1_Fuel_Type_Ex="Diesel", Diesel_Price_Modeled, Gasoline_Price_Modeled)*IF(_Market="U.S.", Data!D$72, Data!D$75))+(Base_V1_Electricity_Usage_Ex*IF(_Market="U.S.", Data!D$74, Data!D$76))*(Base_Percent_Home_Charging_Modeled*Electricity_Price_Modeled+Base_Percent_Public_Charging_Modeled*Public_Charging_Price_Modeled+Base_Percent_En_Route_Charging_Modeled*En_Route_Charging_Price_Modeled)),0) -> -1025.95 | F34: =IF(COLUMN(F4)-COLUMN($E4)<Base_V1_Years_Usage_Modeled,-((Base_V1_Gas_Diesel_Usage_Ex*IF(Base_V1_Fuel_Type_Ex="Diesel", Diesel_Price_Modeled, Gasoline_Price_Modeled)*IF(_Market="U.S.", Data!E$72, Data!E$75))+(Base_V1_Electricity_Usage_Ex*IF(_Market="U.S.", Data!E$74, Data!E$76))*(Base_Percent_Home_Charging_Modeled*Electricity_Price_Modeled+Base_Percent_Public_Charging_Modeled*Public_Charging_Price_Modeled+Base_Percent_En_Route_Charging_Modeled*En_Route_Charging_Price_Modeled)),0) -> -1147.236735 | G34: =IF(COLUMN(G4)-COLUMN($E4)<Base_V1_Years_Usage_Modeled,-((Base_V1_Gas_Diesel_Usage_Ex*IF(Base_V1_Fuel_Type_Ex="Diesel", Diesel_Price_Modeled, Gasoline_Price_Modeled)*IF(_Market="U.S.", Data!F$72, Data!F$75))+(Base_V1_Electricity_Usage_Ex*IF(_Market="U.S.", Data!F$74, Data!F$76))*(Base_Percent_Home_Charging_Modeled*Electricity_Price_Modeled+Base_Percent_Public_Charging_Modeled*Public_Charging_Price_Modeled+Base_Percent_En_Route_Charging_Modeled*En_Route_Charging_Price_Modeled)),0) -> -1155.350794 | H34: =IF(COLUMN(H4)-COLUMN($E4)<Base_V1_Years_Usage_Modeled,-((Base_V1_Gas_Diesel_Usage_Ex*IF(Base_V1_Fuel_Type_Ex="Diesel", Diesel_Price_Modeled, Gasoline_Price_Modeled)*IF(_Market="U.S.", Data!G$72, Data!G$75))+(Base_V1_Electricity_Usage_Ex*IF(_Market="U.S.", Data!G$74, Data!G$76))*(Base_Percent_Home_Charging_Modeled*Electricity_Price_Modeled+Base_Percent_Public_Charging_Modeled*Public_Charging_Price_Modeled+Base_Percent_En_Route_Charging_Modeled*En_Route_Charging_Price_Modeled)),0) -> -1189.962188 | I34: =IF(COLUMN(I4)-COLUMN($E4)<Base_V1_Years_Usage_Modeled,-((Base_V1_Gas_Diesel_Usage_Ex*IF(Base_V1_Fuel_Type_Ex="Diesel", Diesel_Price_Modeled, Gasoline_Price_Modeled)*IF(_Market="U.S.", Data!H$72, Data!H$75))+(Base_V1_Electricity_Usage_Ex*IF(_Market="U.S.", Data!H$74, Data!H$76))*(Base_Percent_Home_Charging_Modeled*Electricity_Price_Modeled+Base_Percent_Public_Charging_Modeled*Public_Charging_Price_Modeled+Base_Percent_En_Route_Charging_Modeled*En_Route_Charging_Price_Modeled)),0) -> -1198.852318 | J34: =IF(COLUMN(J4)-COLUMN($E4)<Base_V1_Years_Usage_Modeled,-((Base_V1_Gas_Diesel_Usage_Ex*IF(Base_V1_Fuel_Type_Ex="Diesel", Diesel_Price_Modeled, Gasoline_Price_Modeled)*IF(_Market="U.S.", Data!I$72, Data!I$75))+(Base_V1_Electricity_Usage_Ex*IF(_Market="U.S.", Data!I$74, Data!I$76))*(Base_Percent_Home_Charging_Modeled*Electricity_Price_Modeled+Base_Percent_Public_Charging_Modeled*Public_Charging_Price_Modeled+Base_Percent_En_Route_Charging_Modeled*En_Route_Charging_Price_Modeled)),0) -> -1202.099238 | K34: =IF(COLUMN(K4)-COLUMN($E4)<Base_V1_Years_Usage_Modeled,-((Base_V1_Gas_Diesel_Usage_Ex*IF(Base_V1_Fuel_Type_Ex="Diesel", Diesel_Price_Modeled, Gasoline_Price_Modeled)*IF(_Market="U.S.", Data!J$72, Data!J$75))+(Base_V1_Electricity_Usage_Ex*IF(_Market="U.S.", Data!J$74, Data!J$76))*(Base_Percent_Home_Charging_Modeled*Electricity_Price_Modeled+Base_Percent_Public_Charging_Modeled*Public_Charging_Price_Modeled+Base_Percent_En_Route_Charging_Modeled*En_Route_Charging_Price_Modeled)),0) -> -1218.76304 | L34: =IF(COLUMN(L4)-COLUMN($E4)<Base_V1_Years_Usage_Modeled,-((Base_V1_Gas_Diesel_Usage_Ex*IF(Base_V1_Fuel_Type_Ex="Diesel", Diesel_Price_Modeled, Gasoline_Price_Modeled)*IF(_Market="U.S.", Data!K$72, Data!K$75))+(Base_V1_Electricity_Usage_Ex*IF(_Market="U.S.", Data!K$74, Data!K$76))*(Base_Percent_Home_Charging_Modeled*Electricity_Price_Modeled+Base_Percent_Public_Charging_Modeled*Public_Charging_Price_Modeled+Base_Percent_En_Route_Charging_Modeled*En_Route_Charging_Price_Modeled)),0) -> 0 | M34: =IF(COLUMN(M4)-COLUMN($E4)<Base_V1_Years_Usage_Modeled,-((Base_V1_Gas_Diesel_Usage_Ex*IF(Base_V1_Fuel_Type_Ex="Diesel", Diesel_Price_Modeled, Gasoline_Price_Modeled)*IF(_Market="U.S.", Data!L$72, Data!L$75))+(Base_V1_Electricity_Usage_Ex*IF(_Market="U.S.", Data!L$74, Data!L$76))*(Base_Percent_Home_Charging_Modeled*Electricity_Price_Modeled+Base_Percent_Public_Charging_Modeled*Public_Charging_Price_Modeled+Base_Percent_En_Route_Charging_Modeled*En_Route_Charging_Price_Modeled)),0) -> 0 | N34: =IF(COLUMN(N4)-COLUMN($E4)<Base_V1_Years_Usage_Modeled,-((Base_V1_Gas_Diesel_Usage_Ex*IF(Base_V1_Fuel_Type_Ex="Diesel", Diesel_Price_Modeled, Gasoline_Price_Modeled)*IF(_Market="U.S.", Data!M$72, Data!M$75))+(Base_V1_Electricity_Usage_Ex*IF(_Market="U.S.", Data!M$74, Data!M$76))*(Base_Percent_Home_Charging_Modeled*Electricity_Price_Modeled+Base_Percent_Public_Charging_Modeled*Public_Charging_Price_Modeled+Base_Percent_En_Route_Charging_Modeled*En_Route_Charging_Price_Modeled)),0) -> 0 | O34: =IF(COLUMN(O4)-COLUMN($E4)<Base_V1_Years_Usage_Modeled,-((Base_V1_Gas_Diesel_Usage_Ex*IF(Base_V1_Fuel_Type_Ex="Diesel", Diesel_Price_Modeled, Gasoline_Price_Modeled)*IF(_Market="U.S.", Data!N$72, Data!N$75))+(Base_V1_Electricity_Usage_Ex*IF(_Market="U.S.", Data!N$74, Data!N$76))*(Base_Percent_Home_Charging_Modeled*Electricity_Price_Modeled+Base_Percent_Public_Charging_Modeled*Public_Charging_Price_Modeled+Base_Percent_En_Route_Charging_Modeled*En_Route_Charging_Price_Modeled)),0) -> 0 | P34: =IF(COLUMN(P4)-COLUMN($E4)<Base_V1_Years_Usage_Modeled,-((Base_V1_Gas_Diesel_Usage_Ex*IF(Base_V1_Fuel_Type_Ex="Diesel", Diesel_Price_Modeled, Gasoline_Price_Modeled)*IF(_Market="U.S.", Data!O$72, Data!O$75))+(Base_V1_Electricity_Usage_Ex*IF(_Market="U.S.", Data!O$74, Data!O$76))*(Base_Percent_Home_Charging_Modeled*Electricity_Price_Modeled+Base_Percent_Public_Charging_Modeled*Public_Charging_Price_Modeled+Base_Percent_En_Route_Charging_Modeled*En_Route_Charging_Price_Modeled)),0) -> 0 | Q34: =IF(COLUMN(Q4)-COLUMN($E4)<Base_V1_Years_Usage_Modeled,-((Base_V1_Gas_Diesel_Usage_Ex*IF(Base_V1_Fuel_Type_Ex="Diesel", Diesel_Price_Modeled, Gasoline_Price_Modeled)*IF(_Market="U.S.", Data!P$72, Data!P$75))+(Base_V1_Electricity_Usage_Ex*IF(_Market="U.S.", Data!P$74, Data!P$76))*(Base_Percent_Home_Charging_Modeled*Electricity_Price_Modeled+Base_Percent_Public_Charging_Modeled*Public_Charging_Price_Modeled+Base_Percent_En_Route_Charging_Modeled*En_Route_Charging_Price_Modeled)),0) -> 0 | R34: =IF(COLUMN(R4)-COLUMN($E4)<Base_V1_Years_Usage_Modeled,-((Base_V1_Gas_Diesel_Usage_Ex*IF(Base_V1_Fuel_Type_Ex="Diesel", Diesel_Price_Modeled, Gasoline_Price_Modeled)*IF(_Market="U.S.", Data!Q$72, Data!Q$75))+(Base_V1_Electricity_Usage_Ex*IF(_Market="U.S.", Data!Q$74, Data!Q$76))*(Base_Percent_Home_Charging_Modeled*Electricity_Price_Modeled+Base_Percent_Public_Charging_Modeled*Public_Charging_Price_Modeled+Base_Percent_En_Route_Charging_Modeled*En_Route_Charging_Price_Modeled)),0) -> 0 | S34: =IF(COLUMN(S4)-COLUMN($E4)<Base_V1_Years_Usage_Modeled,-((Base_V1_Gas_Diesel_Usage_Ex*IF(Base_V1_Fuel_Type_Ex="Diesel", Diesel_Price_Modeled, Gasoline_Price_Modeled)*IF(_Market="U.S.", Data!R$72, Data!R$75))+(Base_V1_Electricity_Usage_Ex*IF(_Market="U.S.", Data!R$74, Data!R$76))*(Base_Percent_Home_Charging_Modeled*Electricity_Price_Modeled+Base_Percent_Public_Charging_Modeled*Public_Charging_Price_Modeled+Base_Percent_En_Route_Charging_Modeled*En_Route_Charging_Price_Modeled)),0) -> 0 | T34: =IF(COLUMN(T4)-COLUMN($E4)<Base_V1_Years_Usage_Modeled,-((Base_V1_Gas_Diesel_Usage_Ex*IF(Base_V1_Fuel_Type_Ex="Diesel", Diesel_Price_Modeled, Gasoline_Price_Modeled)*IF(_Market="U.S.", Data!S$72, Data!S$75))+(Base_V1_Electricity_Usage_Ex*IF(_Market="U.S.", Data!S$74, Data!S$76))*(Base_Percent_Home_Charging_Modeled*Electricity_Price_Modeled+Base_Percent_Public_Charging_Modeled*Public_Charging_Price_Modeled+Base_Percent_En_Route_Charging_Modeled*En_Route_Charging_Price_Modeled)),0) -> 0 | U34: =IF(COLUMN(U4)-COLUMN($E4)<Base_V1_Years_Usage_Modeled,-((Base_V1_Gas_Diesel_Usage_Ex*IF(Base_V1_Fuel_Type_Ex="Diesel", Diesel_Price_Modeled, Gasoline_Price_Modeled)*IF(_Market="U.S.", Data!T$72, Data!T$75))+(Base_V1_Electricity_Usage_Ex*IF(_Market="U.S.", Data!T$74, Data!T$76))*(Base_Percent_Home_Charging_Modeled*Electricity_Price_Modeled+Base_Percent_Public_Charging_Modeled*Public_Charging_Price_Modeled+Base_Percent_En_Route_Charging_Modeled*En_Route_Charging_Price_Modeled)),0) -> 0 | V34: =IF(COLUMN(V4)-COLUMN($E4)<Base_V1_Years_Usage_Modeled,-((Base_V1_Gas_Diesel_Usage_Ex*IF(Base_V1_Fuel_Type_Ex="Diesel", Diesel_Price_Modeled, Gasoline_Price_Modeled)*IF(_Market="U.S.", Data!U$72, Data!U$75))+(Base_V1_Electricity_Usage_Ex*IF(_Market="U.S.", Data!U$74, Data!U$76))*(Base_Percent_Home_Charging_Modeled*Electricity_Price_Modeled+Base_Percent_Public_Charging_Modeled*Public_Charging_Price_Modeled+Base_Percent_En_Route_Charging_Modeled*En_Route_Charging_Price_Modeled)),0) -> 0 | W34: =IF(COLUMN(W4)-COLUMN($E4)<Base_V1_Years_Usage_Modeled,-((Base_V1_Gas_Diesel_Usage_Ex*IF(Base_V1_Fuel_Type_Ex="Diesel", Diesel_Price_Modeled, Gasoline_Price_Modeled)*IF(_Market="U.S.", Data!V$72, Data!V$75))+(Base_V1_Electricity_Usage_Ex*IF(_Market="U.S.", Data!V$74, Data!V$76))*(Base_Percent_Home_Charging_Modeled*Electricity_Price_Modeled+Base_Percent_Public_Charging_Modeled*Public_Charging_Price_Modeled+Base_Percent_En_Route_Charging_Modeled*En_Route_Charging_Price_Modeled)),0) -> 0 | X34: =IF(COLUMN(X4)-COLUMN($E4)<Base_V1_Years_Usage_Modeled,-((Base_V1_Gas_Diesel_Usage_Ex*IF(Base_V1_Fuel_Type_Ex="Diesel", Diesel_Price_Modeled, Gasoline_Price_Modeled)*IF(_Market="U.S.", Data!W$72, Data!W$75))+(Base_V1_Electricity_Usage_Ex*IF(_Market="U.S.", Data!W$74, Data!W$76))*(Base_Percent_Home_Charging_Modeled*Electricity_Price_Modeled+Base_Percent_Public_Charging_Modeled*Public_Charging_Price_Modeled+Base_Percent_En_Route_Charging_Modeled*En_Route_Charging_Price_Modeled)),0) -> 0 | Y34: =IF(COLUMN(Y4)-COLUMN($E4)<Base_V1_Years_Usage_Modeled,-((Base_V1_Gas_Diesel_Usage_Ex*IF(Base_V1_Fuel_Type_Ex="Diesel", Diesel_Price_Modeled, Gasoline_Price_Modeled)*IF(_Market="U.S.", Data!X$72, Data!X$75))+(Base_V1_Electricity_Usage_Ex*IF(_Market="U.S.", Data!X$74, Data!X$76))*(Base_Percent_Home_Charging_Modeled*Electricity_Price_Modeled+Base_Percent_Public_Charging_Modeled*Public_Charging_Price_Modeled+Base_Percent_En_Route_Charging_Modeled*En_Route_Charging_Price_Modeled)),0) -> 0 | Z34: =IF(COLUMN(Z4)-COLUMN($E4)<Base_V1_Years_Usage_Modeled,-((Base_V1_Gas_Diesel_Usage_Ex*IF(Base_V1_Fuel_Type_Ex="Diesel", Diesel_Price_Modeled, Gasoline_Price_Modeled)*IF(_Market="U.S.", Data!Y$72, Data!Y$75))+(Base_V1_Electricity_Usage_Ex*IF(_Market="U.S.", Data!Y$74, Data!Y$76))*(Base_Percent_Home_Charging_Modeled*Electricity_Price_Modeled+Base_Percent_Public_Charging_Modeled*Public_Charging_Price_Modeled+Base_Percent_En_Route_Charging_Modeled*En_Route_Charging_Price_Modeled)),0) -> 0 | AA34: =IF(COLUMN(AA4)-COLUMN($E4)<Base_V1_Years_Usage_Modeled,-((Base_V1_Gas_Diesel_Usage_Ex*IF(Base_V1_Fuel_Type_Ex="Diesel", Diesel_Price_Modeled, Gasoline_Price_Modeled)*IF(_Market="U.S.", Data!Z$72, Data!Z$75))+(Base_V1_Electricity_Usage_Ex*IF(_Market="U.S.", Data!Z$74, Data!Z$76))*(Base_Percent_Home_Charging_Modeled*Electricity_Price_Modeled+Base_Percent_Public_Charging_Modeled*Public_Charging_Price_Modeled+Base_Percent_En_Route_Charging_Modeled*En_Route_Charging_Price_Modeled)),0) -> 0 | AB34: =IF(COLUMN(AB4)-COLUMN($E4)<Base_V1_Years_Usage_Modeled,-((Base_V1_Gas_Diesel_Usage_Ex*IF(Base_V1_Fuel_Type_Ex="Diesel", Diesel_Price_Modeled, Gasoline_Price_Modeled)*IF(_Market="U.S.", Data!AA$72, Data!AA$75))+(Base_V1_Electricity_Usage_Ex*IF(_Market="U.S.", Data!AA$74, Data!AA$76))*(Base_Percent_Home_Charging_Modeled*Electricity_Price_Modeled+Base_Percent_Public_Charging_Modeled*Public_Charging_Price_Modeled+Base_Percent_En_Route_Charging_Modeled*En_Route_Charging_Price_Modeled)),0) -> 0 | AC34: =IF(COLUMN(AC4)-COLUMN($E4)<Base_V1_Years_Usage_Modeled,-((Base_V1_Gas_Diesel_Usage_Ex*IF(Base_V1_Fuel_Type_Ex="Diesel", Diesel_Price_Modeled, Gasoline_Price_Modeled)*IF(_Market="U.S.", Data!AB$72, Data!AB$75))+(Base_V1_Electricity_Usage_Ex*IF(_Market="U.S.", Data!AB$74, Data!AB$76))*(Base_Percent_Home_Charging_Modeled*Electricity_Price_Modeled+Base_Percent_Public_Charging_Modeled*Public_Charging_Price_Modeled+Base_Percent_En_Route_Charging_Modeled*En_Route_Charging_Price_Modeled)),0) -> 0
B35: Maintenance and Repair Cost | E35: =-IF(_Base_V1_Maint_Repair_Cost_Use_Default="Yes",IF(COLUMN(E4)-COLUMN($E4)<Base_V1_Years_Usage_Modeled,VLOOKUP(_Base_V1_Vehicle_Vehicle_Class & _Base_V1_Vehicle_Drivetrain & _Market,DB_Maint_Repair_Costs[],COLUMN(E4)-COLUMN($E4)+COLUMN(DB_Maint_Repair_Costs[[#Headers],[Year 1 ]]),FALSE)*Base_V1_VMT_Modeled,0),IF(AND(COLUMN(E4)-COLUMN($E4)<Base_V1_Years_Usage_Modeled,COLUMN(E4)-COLUMN($E4)<5),Base_V1_Maint_Repair_Cost_Year_1_Modeled*Base_V1_VMT_Modeled,IF(AND(COLUMN(E4)-COLUMN($E4)<Base_V1_Years_Usage_Modeled,COLUMN(E4)-COLUMN($E4)>=5),Base_V1_Maint_Repair_Cost_Year_5_Modeled*Base_V1_VMT_Modeled,0)))*Data!D$83 -> -1200 | F35: =-IF(_Base_V1_Maint_Repair_Cost_Use_Default="Yes",IF(COLUMN(F4)-COLUMN($E4)<Base_V1_Years_Usage_Modeled,VLOOKUP(_Base_V1_Vehicle_Vehicle_Class & _Base_V1_Vehicle_Drivetrain & _Market,DB_Maint_Repair_Costs[],COLUMN(F4)-COLUMN($E4)+COLUMN(DB_Maint_Repair_Costs[[#Headers],[Year 1 ]]),FALSE)*Base_V1_VMT_Modeled,0),IF(AND(COLUMN(F4)-COLUMN($E4)<Base_V1_Years_Usage_Modeled,COLUMN(F4)-COLUMN($E4)<5),Base_V1_Maint_Repair_Cost_Year_1_Modeled*Base_V1_VMT_Modeled,IF(AND(COLUMN(F4)-COLUMN($E4)<Base_V1_Years_Usage_Modeled,COLUMN(F4)-COLUMN($E4)>=5),Base_V1_Maint_Repair_Cost_Year_5_Modeled*Base_V1_VMT_Modeled,0)))*Data!E$83 -> -1224 | G35: =-IF(_Base_V1_Maint_Repair_Cost_Use_Default="Yes",IF(COLUMN(G4)-COLUMN($E4)<Base_V1_Years_Usage_Modeled,VLOOKUP(_Base_V1_Vehicle_Vehicle_Class & _Base_V1_Vehicle_Drivetrain & _Market,DB_Maint_Repair_Costs[],COLUMN(G4)-COLUMN($E4)+COLUMN(DB_Maint_Repair_Costs[[#Headers],[Year 1 ]]),FALSE)*Base_V1_VMT_Modeled,0),IF(AND(COLUMN(G4)-COLUMN($E4)<Base_V1_Years_Usage_Modeled,COLUMN(G4)-COLUMN($E4)<5),Base_V1_Maint_Repair_Cost_Year_1_Modeled*Base_V1_VMT_Modeled,IF(AND(COLUMN(G4)-COLUMN($E4)<Base_V1_Years_Usage_Modeled,COLUMN(G4)-COLUMN($E4)>=5),Base_V1_Maint_Repair_Cost_Year_5_Modeled*Base_V1_VMT_Modeled,0)))*Data!F$83 -> -1248.48 | H35: =-IF(_Base_V1_Maint_Repair_Cost_Use_Default="Yes",IF(COLUMN(H4)-COLUMN($E4)<Base_V1_Years_Usage_Modeled,VLOOKUP(_Base_V1_Vehicle_Vehicle_Class & _Base_V1_Vehicle_Drivetrain & _Market,DB_Maint_Repair_Costs[],COLUMN(H4)-COLUMN($E4)+COLUMN(DB_Maint_Repair_Costs[[#Headers],[Year 1 ]]),FALSE)*Base_V1_VMT_Modeled,0),IF(AND(COLUMN(H4)-COLUMN($E4)<Base_V1_Years_Usage_Modeled,COLUMN(H4)-COLUMN($E4)<5),Base_V1_Maint_Repair_Cost_Year_1_Modeled*Base_V1_VMT_Modeled,IF(AND(COLUMN(H4)-COLUMN($E4)<Base_V1_Years_Usage_Modeled,COLUMN(H4)-COLUMN($E4)>=5),Base_V1_Maint_Repair_Cost_Year_5_Modeled*Base_V1_VMT_Modeled,0)))*Data!G$83 -> -1273.4496 | I35: =-IF(_Base_V1_Maint_Repair_Cost_Use_Default="Yes",IF(COLUMN(I4)-COLUMN($E4)<Base_V1_Years_Usage_Modeled,VLOOKUP(_Base_V1_Vehicle_Vehicle_Class & _Base_V1_Vehicle_Drivetrain & _Market,DB_Maint_Repair_Costs[],COLUMN(I4)-COLUMN($E4)+COLUMN(DB_Maint_Repair_Costs[[#Headers],[Year 1 ]]),FALSE)*Base_V1_VMT_Modeled,0),IF(AND(COLUMN(I4)-COLUMN($E4)<Base_V1_Years_Usage_Modeled,COLUMN(I4)-COLUMN($E4)<5),Base_V1_Maint_Repair_Cost_Year_1_Modeled*Base_V1_VMT_Modeled,IF(AND(COLUMN(I4)-COLUMN($E4)<Base_V1_Years_Usage_Modeled,COLUMN(I4)-COLUMN($E4)>=5),Base_V1_Maint_Repair_Cost_Year_5_Modeled*Base_V1_VMT_Modeled,0)))*Data!H$83 -> -1298.918592 | J35: =-IF(_Base_V1_Maint_Repair_Cost_Use_Default="Yes",IF(COLUMN(J4)-COLUMN($E4)<Base_V1_Years_Usage_Modeled,VLOOKUP(_Base_V1_Vehicle_Vehicle_Class & _Base_V1_Vehicle_Drivetrain & _Market,DB_Maint_Repair_Costs[],COLUMN(J4)-COLUMN($E4)+COLUMN(DB_Maint_Repair_Costs[[#Headers],[Year 1 ]]),FALSE)*Base_V1_VMT_Modeled,0),IF(AND(COLUMN(J4)-COLUMN($E4)<Base_V1_Years_Usage_Modeled,COLUMN(J4)-COLUMN($E4)<5),Base_V1_Maint_Repair_Cost_Year_1_Modeled*Base_V1_VMT_Modeled,IF(AND(COLUMN(J4)-COLUMN($E4)<Base_V1_Years_Usage_Modeled,COLUMN(J4)-COLUMN($E4)>=5),Base_V1_Maint_Repair_Cost_Year_5_Modeled*Base_V1_VMT_Modeled,0)))*Data!I$83 -> -1722.366053 | K35: =-IF(_Base_V1_Maint_Repair_Cost_Use_Default="Yes",IF(COLUMN(K4)-COLUMN($E4)<Base_V1_Years_Usage_Modeled,VLOOKUP(_Base_V1_Vehicle_Vehicle_Class & _Base_V1_Vehicle_Drivetrain & _Market,DB_Maint_Repair_Costs[],COLUMN(K4)-COLUMN($E4)+COLUMN(DB_Maint_Repair_Costs[[#Headers],[Year 1 ]]),FALSE)*Base_V1_VMT_Modeled,0),IF(AND(COLUMN(K4)-COLUMN($E4)<Base_V1_Years_Usage_Modeled,COLUMN(K4)-COLUMN($E4)<5),Base_V1_Maint_Repair_Cost_Year_1_Modeled*Base_V1_VMT_Modeled,IF(AND(COLUMN(K4)-COLUMN($E4)<Base_V1_Years_Usage_Modeled,COLUMN(K4)-COLUMN($E4)>=5),Base_V1_Maint_Repair_Cost_Year_5_Modeled*Base_V1_VMT_Modeled,0)))*Data!J$83 -> -1756.813374 | L35: =-IF(_Base_V1_Maint_Repair_Cost_Use_Default="Yes",IF(COLUMN(L4)-COLUMN($E4)<Base_V1_Years_Usage_Modeled,VLOOKUP(_Base_V1_Vehicle_Vehicle_Class & _Base_V1_Vehicle_Drivetrain & _Market,DB_Maint_Repair_Costs[],COLUMN(L4)-COLUMN($E4)+COLUMN(DB_Maint_Repair_Costs[[#Headers],[Year 1 ]]),FALSE)*Base_V1_VMT_Modeled,0),IF(AND(COLUMN(L4)-COLUMN($E4)<Base_V1_Years_Usage_Modeled,COLUMN(L4)-COLUMN($E4)<5),Base_V1_Maint_Repair_Cost_Year_1_Modeled*Base_V1_VMT_Modeled,IF(AND(COLUMN(L4)-COLUMN($E4)<Base_V1_Years_Usage_Modeled,COLUMN(L4)-COLUMN($E4)>=5),Base_V1_Maint_Repair_Cost_Year_5_Modeled*Base_V1_VMT_Modeled,0)))*Data!K$83 -> 0 | M35: =-IF(_Base_V1_Maint_Repair_Cost_Use_Default="Yes",IF(COLUMN(M4)-COLUMN($E4)<Base_V1_Years_Usage_Modeled,VLOOKUP(_Base_V1_Vehicle_Vehicle_Class & _Base_V1_Vehicle_Drivetrain & _Market,DB_Maint_Repair_Costs[],COLUMN(M4)-COLUMN($E4)+COLUMN(DB_Maint_Repair_Costs[[#Headers],[Year 1 ]]),FALSE)*Base_V1_VMT_Modeled,0),IF(AND(COLUMN(M4)-COLUMN($E4)<Base_V1_Years_Usage_Modeled,COLUMN(M4)-COLUMN($E4)<5),Base_V1_Maint_Repair_Cost_Year_1_Modeled*Base_V1_VMT_Modeled,IF(AND(COLUMN(M4)-COLUMN($E4)<Base_V1_Years_Usage_Modeled,COLUMN(M4)-COLUMN($E4)>=5),Base_V1_Maint_Repair_Cost_Year_5_Modeled*Base_V1_VMT_Modeled,0)))*Data!L$83 -> 0 | N35: =-IF(_Base_V1_Maint_Repair_Cost_Use_Default="Yes",IF(COLUMN(N4)-COLUMN($E4)<Base_V1_Years_Usage_Modeled,VLOOKUP(_Base_V1_Vehicle_Vehicle_Class & _Base_V1_Vehicle_Drivetrain & _Market,DB_Maint_Repair_Costs[],COLUMN(N4)-COLUMN($E4)+COLUMN(DB_Maint_Repair_Costs[[#Headers],[Year 1 ]]),FALSE)*Base_V1_VMT_Modeled,0),IF(AND(COLUMN(N4)-COLUMN($E4)<Base_V1_Years_Usage_Modeled,COLUMN(N4)-COLUMN($E4)<5),Base_V1_Maint_Repair_Cost_Year_1_Modeled*Base_V1_VMT_Modeled,IF(AND(COLUMN(N4)-COLUMN($E4)<Base_V1_Years_Usage_Modeled,COLUMN(N4)-COLUMN($E4)>=5),Base_V1_Maint_Repair_Cost_Year_5_Modeled*Base_V1_VMT_Modeled,0)))*Data!M$83 -> 0 | O35: =-IF(_Base_V1_Maint_Repair_Cost_Use_Default="Yes",IF(COLUMN(O4)-COLUMN($E4)<Base_V1_Years_Usage_Modeled,VLOOKUP(_Base_V1_Vehicle_Vehicle_Class & _Base_V1_Vehicle_Drivetrain & _Market,DB_Maint_Repair_Costs[],COLUMN(O4)-COLUMN($E4)+COLUMN(DB_Maint_Repair_Costs[[#Headers],[Year 1 ]]),FALSE)*Base_V1_VMT_Modeled,0),IF(AND(COLUMN(O4)-COLUMN($E4)<Base_V1_Years_Usage_Modeled,COLUMN(O4)-COLUMN($E4)<5),Base_V1_Maint_Repair_Cost_Year_1_Modeled*Base_V1_VMT_Modeled,IF(AND(COLUMN(O4)-COLUMN($E4)<Base_V1_Years_Usage_Modeled,COLUMN(O4)-COLUMN($E4)>=5),Base_V1_Maint_Repair_Cost_Year_5_Modeled*Base_V1_VMT_Modeled,0)))*Data!N$83 -> 0 | P35: =-IF(_Base_V1_Maint_Repair_Cost_Use_Default="Yes",IF(COLUMN(P4)-COLUMN($E4)<Base_V1_Years_Usage_Modeled,VLOOKUP(_Base_V1_Vehicle_Vehicle_Class & _Base_V1_Vehicle_Drivetrain & _Market,DB_Maint_Repair_Costs[],COLUMN(P4)-COLUMN($E4)+COLUMN(DB_Maint_Repair_Costs[[#Headers],[Year 1 ]]),FALSE)*Base_V1_VMT_Modeled,0),IF(AND(COLUMN(P4)-COLUMN($E4)<Base_V1_Years_Usage_Modeled,COLUMN(P4)-COLUMN($E4)<5),Base_V1_Maint_Repair_Cost_Year_1_Modeled*Base_V1_VMT_Modeled,IF(AND(COLUMN(P4)-COLUMN($E4)<Base_V1_Years_Usage_Modeled,COLUMN(P4)-COLUMN($E4)>=5),Base_V1_Maint_Repair_Cost_Year_5_Modeled*Base_V1_VMT_Modeled,0)))*Data!O$83 -> 0 | Q35: =-IF(_Base_V1_Maint_Repair_Cost_Use_Default="Yes",IF(COLUMN(Q4)-COLUMN($E4)<Base_V1_Years_Usage_Modeled,VLOOKUP(_Base_V1_Vehicle_Vehicle_Class & _Base_V1_Vehicle_Drivetrain & _Market,DB_Maint_Repair_Costs[],COLUMN(Q4)-COLUMN($E4)+COLUMN(DB_Maint_Repair_Costs[[#Headers],[Year 1 ]]),FALSE)*Base_V1_VMT_Modeled,0),IF(AND(COLUMN(Q4)-COLUMN($E4)<Base_V1_Years_Usage_Modeled,COLUMN(Q4)-COLUMN($E4)<5),Base_V1_Maint_Repair_Cost_Year_1_Modeled*Base_V1_VMT_Modeled,IF(AND(COLUMN(Q4)-COLUMN($E4)<Base_V1_Years_Usage_Modeled,COLUMN(Q4)-COLUMN($E4)>=5),Base_V1_Maint_Repair_Cost_Year_5_Modeled*Base_V1_VMT_Modeled,0)))*Data!P$83 -> 0 | R35: =-IF(_Base_V1_Maint_Repair_Cost_Use_Default="Yes",IF(COLUMN(R4)-COLUMN($E4)<Base_V1_Years_Usage_Modeled,VLOOKUP(_Base_V1_Vehicle_Vehicle_Class & _Base_V1_Vehicle_Drivetrain & _Market,DB_Maint_Repair_Costs[],COLUMN(R4)-COLUMN($E4)+COLUMN(DB_Maint_Repair_Costs[[#Headers],[Year 1 ]]),FALSE)*Base_V1_VMT_Modeled,0),IF(AND(COLUMN(R4)-COLUMN($E4)<Base_V1_Years_Usage_Modeled,COLUMN(R4)-COLUMN($E4)<5),Base_V1_Maint_Repair_Cost_Year_1_Modeled*Base_V1_VMT_Modeled,IF(AND(COLUMN(R4)-COLUMN($E4)<Base_V1_Years_Usage_Modeled,COLUMN(R4)-COLUMN($E4)>=5),Base_V1_Maint_Repair_Cost_Year_5_Modeled*Base_V1_VMT_Modeled,0)))*Data!Q$83 -> 0 | S35: =-IF(_Base_V1_Maint_Repair_Cost_Use_Default="Yes",IF(COLUMN(S4)-COLUMN($E4)<Base_V1_Years_Usage_Modeled,VLOOKUP(_Base_V1_Vehicle_Vehicle_Class & _Base_V1_Vehicle_Drivetrain & _Market,DB_Maint_Repair_Costs[],COLUMN(S4)-COLUMN($E4)+COLUMN(DB_Maint_Repair_Costs[[#Headers],[Year 1 ]]),FALSE)*Base_V1_VMT_Modeled,0),IF(AND(COLUMN(S4)-COLUMN($E4)<Base_V1_Years_Usage_Modeled,COLUMN(S4)-COLUMN($E4)<5),Base_V1_Maint_Repair_Cost_Year_1_Modeled*Base_V1_VMT_Modeled,IF(AND(COLUMN(S4)-COLUMN($E4)<Base_V1_Years_Usage_Modeled,COLUMN(S4)-COLUMN($E4)>=5),Base_V1_Maint_Repair_Cost_Year_5_Modeled*Base_V1_VMT_Modeled,0)))*Data!R$83 -> 0 | T35: =-IF(_Base_V1_Maint_Repair_Cost_Use_Default="Yes",IF(COLUMN(T4)-COLUMN($E4)<Base_V1_Years_Usage_Modeled,VLOOKUP(_Base_V1_Vehicle_Vehicle_Class & _Base_V1_Vehicle_Drivetrain & _Market,DB_Maint_Repair_Costs[],COLUMN(T4)-COLUMN($E4)+COLUMN(DB_Maint_Repair_Costs[[#Headers],[Year 1 ]]),FALSE)*Base_V1_VMT_Modeled,0),IF(AND(COLUMN(T4)-COLUMN($E4)<Base_V1_Years_Usage_Modeled,COLUMN(T4)-COLUMN($E4)<5),Base_V1_Maint_Repair_Cost_Year_1_Modeled*Base_V1_VMT_Modeled,IF(AND(COLUMN(T4)-COLUMN($E4)<Base_V1_Years_Usage_Modeled,COLUMN(T4)-COLUMN($E4)>=5),Base_V1_Maint_Repair_Cost_Year_5_Modeled*Base_V1_VMT_Modeled,0)))*Data!S$83 -> 0 | U35: =-IF(_Base_V1_Maint_Repair_Cost_Use_Default="Yes",IF(COLUMN(U4)-COLUMN($E4)<Base_V1_Years_Usage_Modeled,VLOOKUP(_Base_V1_Vehicle_Vehicle_Class & _Base_V1_Vehicle_Drivetrain & _Market,DB_Maint_Repair_Costs[],COLUMN(U4)-COLUMN($E4)+COLUMN(DB_Maint_Repair_Costs[[#Headers],[Year 1 ]]),FALSE)*Base_V1_VMT_Modeled,0),IF(AND(COLUMN(U4)-COLUMN($E4)<Base_V1_Years_Usage_Modeled,COLUMN(U4)-COLUMN($E4)<5),Base_V1_Maint_Repair_Cost_Year_1_Modeled*Base_V1_VMT_Modeled,IF(AND(COLUMN(U4)-COLUMN($E4)<Base_V1_Years_Usage_Modeled,COLUMN(U4)-COLUMN($E4)>=5),Base_V1_Maint_Repair_Cost_Year_5_Modeled*Base_V1_VMT_Modeled,0)))*Data!T$83 -> 0 | V35: =-IF(_Base_V1_Maint_Repair_Cost_Use_Default="Yes",IF(COLUMN(V4)-COLUMN($E4)<Base_V1_Years_Usage_Modeled,VLOOKUP(_Base_V1_Vehicle_Vehicle_Class & _Base_V1_Vehicle_Drivetrain & _Market,DB_Maint_Repair_Costs[],COLUMN(V4)-COLUMN($E4)+COLUMN(DB_Maint_Repair_Costs[[#Headers],[Year 1 ]]),FALSE)*Base_V1_VMT_Modeled,0),IF(AND(COLUMN(V4)-COLUMN($E4)<Base_V1_Years_Usage_Modeled,COLUMN(V4)-COLUMN($E4)<5),Base_V1_Maint_Repair_Cost_Year_1_Modeled*Base_V1_VMT_Modeled,IF(AND(COLUMN(V4)-COLUMN($E4)<Base_V1_Years_Usage_Modeled,COLUMN(V4)-COLUMN($E4)>=5),Base_V1_Maint_Repair_Cost_Year_5_Modeled*Base_V1_VMT_Modeled,0)))*Data!U$83 -> 0 | W35: =-IF(_Base_V1_Maint_Repair_Cost_Use_Default="Yes",IF(COLUMN(W4)-COLUMN($E4)<Base_V1_Years_Usage_Modeled,VLOOKUP(_Base_V1_Vehicle_Vehicle_Class & _Base_V1_Vehicle_Drivetrain & _Market,DB_Maint_Repair_Costs[],COLUMN(W4)-COLUMN($E4)+COLUMN(DB_Maint_Repair_Costs[[#Headers],[Year 1 ]]),FALSE)*Base_V1_VMT_Modeled,0),IF(AND(COLUMN(W4)-COLUMN($E4)<Base_V1_Years_Usage_Modeled,COLUMN(W4)-COLUMN($E4)<5),Base_V1_Maint_Repair_Cost_Year_1_Modeled*Base_V1_VMT_Modeled,IF(AND(COLUMN(W4)-COLUMN($E4)<Base_V1_Years_Usage_Modeled,COLUMN(W4)-COLUMN($E4)>=5),Base_V1_Maint_Repair_Cost_Year_5_Modeled*Base_V1_VMT_Modeled,0)))*Data!V$83 -> 0 | X35: =-IF(_Base_V1_Maint_Repair_Cost_Use_Default="Yes",IF(COLUMN(X4)-COLUMN($E4)<Base_V1_Years_Usage_Modeled,VLOOKUP(_Base_V1_Vehicle_Vehicle_Class & _Base_V1_Vehicle_Drivetrain & _Market,DB_Maint_Repair_Costs[],COLUMN(X4)-COLUMN($E4)+COLUMN(DB_Maint_Repair_Costs[[#Headers],[Year 1 ]]),FALSE)*Base_V1_VMT_Modeled,0),IF(AND(COLUMN(X4)-COLUMN($E4)<Base_V1_Years_Usage_Modeled,COLUMN(X4)-COLUMN($E4)<5),Base_V1_Maint_Repair_Cost_Year_1_Modeled*Base_V1_VMT_Modeled,IF(AND(COLUMN(X4)-COLUMN($E4)<Base_V1_Years_Usage_Modeled,COLUMN(X4)-COLUMN($E4)>=5),Base_V1_Maint_Repair_Cost_Year_5_Modeled*Base_V1_VMT_Modeled,0)))*Data!W$83 -> 0 | Y35: =-IF(_Base_V1_Maint_Repair_Cost_Use_Default="Yes",IF(COLUMN(Y4)-COLUMN($E4)<Base_V1_Years_Usage_Modeled,VLOOKUP(_Base_V1_Vehicle_Vehicle_Class & _Base_V1_Vehicle_Drivetrain & _Market,DB_Maint_Repair_Costs[],COLUMN(Y4)-COLUMN($E4)+COLUMN(DB_Maint_Repair_Costs[[#Headers],[Year 1 ]]),FALSE)*Base_V1_VMT_Modeled,0),IF(AND(COLUMN(Y4)-COLUMN($E4)<Base_V1_Years_Usage_Modeled,COLUMN(Y4)-COLUMN($E4)<5),Base_V1_Maint_Repair_Cost_Year_1_Modeled*Base_V1_VMT_Modeled,IF(AND(COLUMN(Y4)-COLUMN($E4)<Base_V1_Years_Usage_Modeled,COLUMN(Y4)-COLUMN($E4)>=5),Base_V1_Maint_Repair_Cost_Year_5_Modeled*Base_V1_VMT_Modeled,0)))*Data!X$83 -> 0 | Z35: =-IF(_Base_V1_Maint_Repair_Cost_Use_Default="Yes",IF(COLUMN(Z4)-COLUMN($E4)<Base_V1_Years_Usage_Modeled,VLOOKUP(_Base_V1_Vehicle_Vehicle_Class & _Base_V1_Vehicle_Drivetrain & _Market,DB_Maint_Repair_Costs[],COLUMN(Z4)-COLUMN($E4)+COLUMN(DB_Maint_Repair_Costs[[#Headers],[Year 1 ]]),FALSE)*Base_V1_VMT_Modeled,0),IF(AND(COLUMN(Z4)-COLUMN($E4)<Base_V1_Years_Usage_Modeled,COLUMN(Z4)-COLUMN($E4)<5),Base_V1_Maint_Repair_Cost_Year_1_Modeled*Base_V1_VMT_Modeled,IF(AND(COLUMN(Z4)-COLUMN($E4)<Base_V1_Years_Usage_Modeled,COLUMN(Z4)-COLUMN($E4)>=5),Base_V1_Maint_Repair_Cost_Year_5_Modeled*Base_V1_VMT_Modeled,0)))*Data!Y$83 -> 0 | AA35: =-IF(_Base_V1_Maint_Repair_Cost_Use_Default="Yes",IF(COLUMN(AA4)-COLUMN($E4)<Base_V1_Years_Usage_Modeled,VLOOKUP(_Base_V1_Vehicle_Vehicle_Class & _Base_V1_Vehicle_Drivetrain & _Market,DB_Maint_Repair_Costs[],COLUMN(AA4)-COLUMN($E4)+COLUMN(DB_Maint_Repair_Costs[[#Headers],[Year 1 ]]),FALSE)*Base_V1_VMT_Modeled,0),IF(AND(COLUMN(AA4)-COLUMN($E4)<Base_V1_Years_Usage_Modeled,COLUMN(AA4)-COLUMN($E4)<5),Base_V1_Maint_Repair_Cost_Year_1_Modeled*Base_V1_VMT_Modeled,IF(AND(COLUMN(AA4)-COLUMN($E4)<Base_V1_Years_Usage_Modeled,COLUMN(AA4)-COLUMN($E4)>=5),Base_V1_Maint_Repair_Cost_Year_5_Modeled*Base_V1_VMT_Modeled,0)))*Data!Z$83 -> 0 | AB35: =-IF(_Base_V1_Maint_Repair_Cost_Use_Default="Yes",IF(COLUMN(AB4)-COLUMN($E4)<Base_V1_Years_Usage_Modeled,VLOOKUP(_Base_V1_Vehicle_Vehicle_Class & _Base_V1_Vehicle_Drivetrain & _Market,DB_Maint_Repair_Costs[],COLUMN(AB4)-COLUMN($E4)+COLUMN(DB_Maint_Repair_Costs[[#Headers],[Year 1 ]]),FALSE)*Base_V1_VMT_Modeled,0),IF(AND(COLUMN(AB4)-COLUMN($E4)<Base_V1_Years_Usage_Modeled,COLUMN(AB4)-COLUMN($E4)<5),Base_V1_Maint_Repair_Cost_Year_1_Modeled*Base_V1_VMT_Modeled,IF(AND(COLUMN(AB4)-COLUMN($E4)<Base_V1_Years_Usage_Modeled,COLUMN(AB4)-COLUMN($E4)>=5),Base_V1_Maint_Repair_Cost_Year_5_Modeled*Base_V1_VMT_Modeled,0)))*Data!AA$83 -> 0 | AC35: =-IF(_Base_V1_Maint_Repair_Cost_Use_Default="Yes",IF(COLUMN(AC4)-COLUMN($E4)<Base_V1_Years_Usage_Modeled,VLOOKUP(_Base_V1_Vehicle_Vehicle_Class & _Base_V1_Vehicle_Drivetrain & _Market,DB_Maint_Repair_Costs[],COLUMN(AC4)-COLUMN($E4)+COLUMN(DB_Maint_Repair_Costs[[#Headers],[Year 1 ]]),FALSE)*Base_V1_VMT_Modeled,0),IF(AND(COLUMN(AC4)-COLUMN($E4)<Base_V1_Years_Usage_Modeled,COLUMN(AC4)-COLUMN($E4)<5),Base_V1_Maint_Repair_Cost_Year_1_Modeled*Base_V1_VMT_Modeled,IF(AND(COLUMN(AC4)-COLUMN($E4)<Base_V1_Years_Usage_Modeled,COLUMN(AC4)-COLUMN($E4)>=5),Base_V1_Maint_Repair_Cost_Year_5_Modeled*Base_V1_VMT_Modeled,0)))*Data!AB$83 -> 0
B36: Taxes and Fees | D36: =-Base_V1_Initial_Taxes_Fees_Modeled-(Base_V1_Initial_Percent_Base_Price_Modeled*Base_V1_Base_Price_Ex) -> -1000 | E36: =-IF(COLUMN(E4)-COLUMN($E4)<Base_V1_Years_Usage_Modeled,Base_V1_Taxes_Fees_Modeled,0)*Data!D$83 -> -10 | F36: =-IF(COLUMN(F4)-COLUMN($E4)<Base_V1_Years_Usage_Modeled,Base_V1_Taxes_Fees_Modeled,0)*Data!E$83 -> -10.2 | G36: =-IF(COLUMN(G4)-COLUMN($E4)<Base_V1_Years_Usage_Modeled,Base_V1_Taxes_Fees_Modeled,0)*Data!F$83 -> -10.404 | H36: =-IF(COLUMN(H4)-COLUMN($E4)<Base_V1_Years_Usage_Modeled,Base_V1_Taxes_Fees_Modeled,0)*Data!G$83 -> -10.61208 | I36: =-IF(COLUMN(I4)-COLUMN($E4)<Base_V1_Years_Usage_Modeled,Base_V1_Taxes_Fees_Modeled,0)*Data!H$83 -> -10.8243216 | J36: =-IF(COLUMN(J4)-COLUMN($E4)<Base_V1_Years_Usage_Modeled,Base_V1_Taxes_Fees_Modeled,0)*Data!I$83 -> -11.04080803 | K36: =-IF(COLUMN(K4)-COLUMN($E4)<Base_V1_Years_Usage_Modeled,Base_V1_Taxes_Fees_Modeled,0)*Data!J$83 -> -11.26162419 | L36: =-IF(COLUMN(L4)-COLUMN($E4)<Base_V1_Years_Usage_Modeled,Base_V1_Taxes_Fees_Modeled,0)*Data!K$83 -> 0 | M36: =-IF(COLUMN(M4)-COLUMN($E4)<Base_V1_Years_Usage_Modeled,Base_V1_Taxes_Fees_Modeled,0)*Data!L$83 -> 0 | N36: =-IF(COLUMN(N4)-COLUMN($E4)<Base_V1_Years_Usage_Modeled,Base_V1_Taxes_Fees_Modeled,0)*Data!M$83 -> 0 | O36: =-IF(COLUMN(O4)-COLUMN($E4)<Base_V1_Years_Usage_Modeled,Base_V1_Taxes_Fees_Modeled,0)*Data!N$83 -> 0 | P36: =-IF(COLUMN(P4)-COLUMN($E4)<Base_V1_Years_Usage_Modeled,Base_V1_Taxes_Fees_Modeled,0)*Data!O$83 -> 0 | Q36: =-IF(COLUMN(Q4)-COLUMN($E4)<Base_V1_Years_Usage_Modeled,Base_V1_Taxes_Fees_Modeled,0)*Data!P$83 -> 0 | R36: =-IF(COLUMN(R4)-COLUMN($E4)<Base_V1_Years_Usage_Modeled,Base_V1_Taxes_Fees_Modeled,0)*Data!Q$83 -> 0 | S36: =-IF(COLUMN(S4)-COLUMN($E4)<Base_V1_Years_Usage_Modeled,Base_V1_Taxes_Fees_Modeled,0)*Data!R$83 -> 0 | T36: =-IF(COLUMN(T4)-COLUMN($E4)<Base_V1_Years_Usage_Modeled,Base_V1_Taxes_Fees_Modeled,0)*Data!S$83 -> 0 | U36: =-IF(COLUMN(U4)-COLUMN($E4)<Base_V1_Years_Usage_Modeled,Base_V1_Taxes_Fees_Modeled,0)*Data!T$83 -> 0 | V36: =-IF(COLUMN(V4)-COLUMN($E4)<Base_V1_Years_Usage_Modeled,Base_V1_Taxes_Fees_Modeled,0)*Data!U$83 -> 0 | W36: =-IF(COLUMN(W4)-COLUMN($E4)<Base_V1_Years_Usage_Modeled,Base_V1_Taxes_Fees_Modeled,0)*Data!V$83 -> 0 | X36: =-IF(COLUMN(X4)-COLUMN($E4)<Base_V1_Years_Usage_Modeled,Base_V1_Taxes_Fees_Modeled,0)*Data!W$83 -> 0 | Y36: =-IF(COLUMN(Y4)-COLUMN($E4)<Base_V1_Years_Usage_Modeled,Base_V1_Taxes_Fees_Modeled,0)*Data!X$83 -> 0 | Z36: =-IF(COLUMN(Z4)-COLUMN($E4)<Base_V1_Years_Usage_Modeled,Base_V1_Taxes_Fees_Modeled,0)*Data!Y$83 -> 0 | AA36: =-IF(COLUMN(AA4)-COLUMN($E4)<Base_V1_Years_Usage_Modeled,Base_V1_Taxes_Fees_Modeled,0)*Data!Z$83 -> 0 | AB36: =-IF(COLUMN(AB4)-COLUMN($E4)<Base_V1_Years_Usage_Modeled,Base_V1_Taxes_Fees_Modeled,0)*Data!AA$83 -> 0 | AC36: =-IF(COLUMN(AC4)-COLUMN($E4)<Base_V1_Years_Usage_Modeled,Base_V1_Taxes_Fees_Modeled,0)*Data!AB$83 -> 0
B37: Insurance Cost | E37: =-IF(COLUMN(E4)-COLUMN($E4)<Base_V1_Years_Usage_Modeled,Base_V1_Insurance_Cost_Modeled,0)*Data!D$83 -> -1222 | F37: =-IF(COLUMN(F4)-COLUMN($E4)<Base_V1_Years_Usage_Modeled,Base_V1_Insurance_Cost_Modeled,0)*Data!E$83 -> -1246.44 | G37: =-IF(COLUMN(G4)-COLUMN($E4)<Base_V1_Years_Usage_Modeled,Base_V1_Insurance_Cost_Modeled,0)*Data!F$83 -> -1271.3688 | H37: =-IF(COLUMN(H4)-COLUMN($E4)<Base_V1_Years_Usage_Modeled,Base_V1_Insurance_Cost_Modeled,0)*Data!G$83 -> -1296.796176 | I37: =-IF(COLUMN(I4)-COLUMN($E4)<Base_V1_Years_Usage_Modeled,Base_V1_Insurance_Cost_Modeled,0)*Data!H$83 -> -1322.7321 | J37: =-IF(COLUMN(J4)-COLUMN($E4)<Base_V1_Years_Usage_Modeled,Base_V1_Insurance_Cost_Modeled,0)*Data!I$83 -> -1349.186742 | K37: =-IF(COLUMN(K4)-COLUMN($E4)<Base_V1_Years_Usage_Modeled,Base_V1_Insurance_Cost_Modeled,0)*Data!J$83 -> -1376.170476 | L37: =-IF(COLUMN(L4)-COLUMN($E4)<Base_V1_Years_Usage_Modeled,Base_V1_Insurance_Cost_Modeled,0)*Data!K$83 -> 0 | M37: =-IF(COLUMN(M4)-COLUMN($E4)<Base_V1_Years_Usage_Modeled,Base_V1_Insurance_Cost_Modeled,0)*Data!L$83 -> 0 | N37: =-IF(COLUMN(N4)-COLUMN($E4)<Base_V1_Years_Usage_Modeled,Base_V1_Insurance_Cost_Modeled,0)*Data!M$83 -> 0 | O37: =-IF(COLUMN(O4)-COLUMN($E4)<Base_V1_Years_Usage_Modeled,Base_V1_Insurance_Cost_Modeled,0)*Data!N$83 -> 0 | P37: =-IF(COLUMN(P4)-COLUMN($E4)<Base_V1_Years_Usage_Modeled,Base_V1_Insurance_Cost_Modeled,0)*Data!O$83 -> 0 | Q37: =-IF(COLUMN(Q4)-COLUMN($E4)<Base_V1_Years_Usage_Modeled,Base_V1_Insurance_Cost_Modeled,0)*Data!P$83 -> 0 | R37: =-IF(COLUMN(R4)-COLUMN($E4)<Base_V1_Years_Usage_Modeled,Base_V1_Insurance_Cost_Modeled,0)*Data!Q$83 -> 0 | S37: =-IF(COLUMN(S4)-COLUMN($E4)<Base_V1_Years_Usage_Modeled,Base_V1_Insurance_Cost_Modeled,0)*Data!R$83 -> 0 | T37: =-IF(COLUMN(T4)-COLUMN($E4)<Base_V1_Years_Usage_Modeled,Base_V1_Insurance_Cost_Modeled,0)*Data!S$83 -> 0 | U37: =-IF(COLUMN(U4)-COLUMN($E4)<Base_V1_Years_Usage_Modeled,Base_V1_Insurance_Cost_Modeled,0)*Data!T$83 -> 0 | V37: =-IF(COLUMN(V4)-COLUMN($E4)<Base_V1_Years_Usage_Modeled,Base_V1_Insurance_Cost_Modeled,0)*Data!U$83 -> 0 | W37: =-IF(COLUMN(W4)-COLUMN($E4)<Base_V1_Years_Usage_Modeled,Base_V1_Insurance_Cost_Modeled,0)*Data!V$83 -> 0 | X37: =-IF(COLUMN(X4)-COLUMN($E4)<Base_V1_Years_Usage_Modeled,Base_V1_Insurance_Cost_Modeled,0)*Data!W$83 -> 0 | Y37: =-IF(COLUMN(Y4)-COLUMN($E4)<Base_V1_Years_Usage_Modeled,Base_V1_Insurance_Cost_Modeled,0)*Data!X$83 -> 0 | Z37: =-IF(COLUMN(Z4)-COLUMN($E4)<Base_V1_Years_Usage_Modeled,Base_V1_Insurance_Cost_Modeled,0)*Data!Y$83 -> 0 | AA37: =-IF(COLUMN(AA4)-COLUMN($E4)<Base_V1_Years_Usage_Modeled,Base_V1_Insurance_Cost_Modeled,0)*Data!Z$83 -> 0 | AB37: =-IF(COLUMN(AB4)-COLUMN($E4)<Base_V1_Years_Usage_Modeled,Base_V1_Insurance_Cost_Modeled,0)*Data!AA$83 -> 0 | AC37: =-IF(COLUMN(AC4)-COLUMN($E4)<Base_V1_Years_Usage_Modeled,Base_V1_Insurance_Cost_Modeled,0)*Data!AB$83 -> 0
B38: Subtotal Fuel and Operating Costs | D38: =SUM(D34:D37) -> -1000 | E38: -3457.95 | F38: -3627.876735 | G38: -3685.603594 | H38: -3770.820044 | I38: -3831.327331 | J38: -4284.69284 | K38: -4363.008515 | L38: 0 | M38: 0 | N38: 0 | O38: 0 | P38: 0 | Q38: 0 | R38: 0 | S38: 0 | T38: 0 | U38: 0 | V38: 0 | W38: 0 | X38: 0 | Y38: 0 | Z38: 0 | AA38: 0 | AB38: 0 | AC38: 0
B40: Other Costs
B41: Cost of Carbon | E41: =-IF(COLUMN(E4)-COLUMN($E4)<Base_V1_Years_Usage_Modeled,Base_V1_CO2_Ex/2204.62*Carbon_Price_Modeled,0) -> 0 | F41: 0 | G41: 0 | H41: 0 | I41: 0 | J41: 0 | K41: 0 | L41: 0 | M41: 0 | N41: 0 | O41: 0 | P41: 0 | Q41: 0 | R41: 0 | S41: 0 | T41: 0 | U41: 0 | V41: 0 | W41: 0 | X41: 0 | Y41: 0 | Z41: 0 | AA41: 0 | AB41: 0 | AC41: 0
B42: Cost of Downtime from Public Charging | E42: =-IF(AND(COLUMN(E5)-COLUMN($E5)<Base_V1_Years_Usage_Modeled, Cost_of_Downtime_from_Charging_Modeled<>0, Base_Station_Max_Power_Modeled<>0),(Base_V1_Electricity_Usage_Ex*Base_Percent_Public_Charging_Modeled)/Base_Station_Max_Power_Modeled*Cost_of_Downtime_from_Charging_Modeled, 0) -> 0 | F42: 0 | G42: 0 | H42: 0 | I42: 0 | J42: 0 | K42: 0 | L42: 0 | M42: 0 | N42: 0 | O42: 0 | P42: 0 | Q42: 0 | R42: 0 | S42: 0 | T42: 0 | U42: 0 | V42: 0 | W42: 0 | X42: 0 | Y42: 0 | Z42: 0 | AA42: 0 | AB42: 0 | AC42: 0
B43: Subtotal Other Costs | D43: =SUM(D41:D42) -> 0 | E43: =SUM(E41:E42) -> 0 | F43: =SUM(F41:F42) -> 0 | G43: 0 | H43: 0 | I43: 0 | J43: 0 | K43: 0 | L43: 0 | M43: 0 | N43: 0 | O43: 0 | P43: 0 | Q43: 0 | R43: 0 | S43: 0 | T43: 0 | U43: 0 | V43: 0 | W43: 0 | X43: 0 | Y43: 0 | Z43: 0 | AA43: 0 | AB43: 0 | AC43: 0
B45: Total Discounted Costs
B46: Total Annual Costs | D46: =D31+D38+D43 -> -19224 | E46: -3457.95 | F46: -3627.876735 | G46: -3685.603594 | H46: -3770.820044 | I46: -3831.327331 | J46: -4284.69284 | K46: -815.0762252 | L46: 0 | M46: 0 | N46: 0 | O46: 0 | P46: 0 | Q46: 0 | R46: 0 | S46: 0 | T46: 0 | U46: 0 | V46: 0 | W46: 0 | X46: 0 | Y46: 0 | Z46: 0 | AA46: 0 | AB46: 0 | AC46: 0
B47: Discount Factor | C47: =Base_Discount_Rate_Modeled -> 0 | D47: =(1/(1+$C47))^(COLUMN(D4)-COLUMN($D4)) -> 1 | E47: 1 | F47: 1 | G47: 1 | H47: 1 | I47: 1 | J47: 1 | K47: 1 | L47: 1 | M47: 1 | N47: 1 | O47: 1 | P47: 1 | Q47: 1 | R47: 1 | S47: 1 | T47: 1 | U47: 1 | V47: 1 | W47: 1 | X47: 1 | Y47: 1 | Z47: 1 | AA47: 1 | AB47: 1 | AC47: 1
B48: Discounted Total | D48: =D46*D47 -> -19224 | E48: =E46*E47 -> -3457.95 | F48: =F46*F47 -> -3627.876735 | G48: -3685.603594 | H48: -3770.820044 | I48: -3831.327331 | J48: -4284.69284 | K48: -815.0762252 | L48: 0 | M48: 0 | N48: 0 | O48: 0 | P48: 0 | Q48: 0 | R48: 0 | S48: 0 | T48: 0 | U48: 0 | V48: 0 | W48: 0 | X48: 0 | Y48: 0 | Z48: 0 | AA48: 0 | AB48: 0 | AC48: 0
B49: Cumulative Discounted Total | D49: =IF((COLUMN(D4)-COLUMN($D4))<=Base_V1_Years_Usage_Modeled,C49+D48,0) -> -19224 | E49: -22681.95 | F49: -26309.82674 | G49: -29995.43033 | H49: -33766.25037 | I49: -37597.5777 | J49: -41882.27054 | K49: -42697.34677 | L49: 0 | M49: 0 | N49: 0 | O49: 0 | P49: 0 | Q49: 0 | R49: 0 | S49: 0 | T49: 0 | U49: 0 | V49: 0 | W49: 0 | X49: 0 | Y49: 0 | Z49: 0 | AA49: 0 | AB49: 0 | AC49: 0
B50: Annualized NPV Total Cost of Ownership | D50: =OFFSET($D49,0,Base_V1_Years_Usage_Modeled)/Base_V1_Years_Usage_Modeled -> -6099.620967
B52: Baseline EV Infrastructure
D53: Year 0 | E53: Year 1 | F53: Year 2 | G53: Year 3 | H53: Year 4 | I53: Year 5 | J53: Year 6 | K53: Year 7 | L53: Year 8 | M53: Year 9 | N53: Year 10 | O53: Year 11 | P53: Year 12 | Q53: Year 13 | R53: Year 14 | S53: Year 15 | T53: Year 16 | U53: Year 17 | V53: Year 18 | W53: Year 19 | X53: Year 20 | Y53: Year 21 | Z53: Year 22 | AA53: Year 23 | AB53: Year 24 | AC53: Year 25
B54: Capital and Financing Costs
B55: Cash
B56: Cash Payment | D56: =IF(AND(Base_Inf_Has_Cash_Purchase_Ex=TRUE,_Base_Include_Charging="Yes"),-Base_Num_Stations_Modeled*Base_Station_Cost_Modeled,0) -> 0
B57: Loan
B58: Down Payment | D58: =IF(AND(Base_Inf_Has_Cash_Purchase_Ex=FALSE,_Base_Include_Charging="Yes"),-Base_Inf_Down_Payment_Modeled,0) -> 0
B59: Loan Payments | E59: =IF(AND(Base_Inf_Has_Cash_Purchase_Ex=FALSE,_Base_Include_Charging="Yes",(COLUMN(E53)-COLUMN($E53))<Base_Inf_Loan_Term_Modeled),PMT(Base_Inf_Loan_APR_Modeled/12,Base_Inf_Loan_Term_Modeled*12,(Base_Num_Stations_Modeled*Base_Station_Cost_Modeled)-Base_Inf_Down_Payment_Modeled,0)*12,0) -> 0 | F59: 0 | G59: 0 | H59: 0 | I59: 0 | J59: 0 | K59: 0 | L59: 0 | M59: 0 | N59: 0 | O59: 0 | P59: 0 | Q59: 0 | R59: 0 | S59: 0 | T59: 0 | U59: 0 | V59: 0 | W59: 0 | X59: 0 | Y59: 0 | Z59: 0 | AA59: 0 | AB59: 0 | AC59: 0
B60: Subtotal Loan Cash Flows | D60: =SUM(D58:D59) -> 0 | E60: =SUM(E58:E59) -> 0 | F60: 0 | G60: 0 | H60: 0 | I60: 0 | J60: 0 | K60: 0 | L60: 0 | M60: 0 | N60: 0 | O60: 0 | P60: 0 | Q60: 0 | R60: 0 | S60: 0 | T60: 0 | U60: 0 | V60: 0 | W60: 0 | X60: 0 | Y60: 0 | Z60: 0 | AA60: 0 | AB60: 0 | AC60: 0
B62: Total Capital and Financing Costs | D62: =D56+D60 -> 0 | E62: =E56+E60 -> 0 | F62: 0 | G62: 0 | H62: 0 | I62: 0 | J62: 0 | K62: 0 | L62: 0 | M62: 0 | N62: 0 | O62: 0 | P62: 0 | Q62: 0 | R62: 0 | S62: 0 | T62: 0 | U62: 0 | V62: 0 | W62: 0 | X62: 0 | Y62: 0 | Z62: 0 | AA62: 0 | AB62: 0 | AC62: 0
B64: Operating Costs
B65: Maintenance Cost | E65: =-IF(AND(COLUMN(E53)-COLUMN($E53)<Base_V1_Years_Usage_Modeled,_Base_Include_Charging="Yes"),Base_Station_Maint_Cost_Modeled*Base_Num_Stations_Modeled,0)*Data!D$83 -> 0 | F65: =-IF(AND(COLUMN(F53)-COLUMN($E53)<Base_V1_Years_Usage_Modeled,_Base_Include_Charging="Yes"),Base_Station_Maint_Cost_Modeled*Base_Num_Stations_Modeled,0)*Data!E$83 -> 0 | G65: =-IF(AND(COLUMN(G53)-COLUMN($E53)<Base_V1_Years_Usage_Modeled,_Base_Include_Charging="Yes"),Base_Station_Maint_Cost_Modeled*Base_Num_Stations_Modeled,0)*Data!F$83 -> 0 | H65: =-IF(AND(COLUMN(H53)-COLUMN($E53)<Base_V1_Years_Usage_Modeled,_Base_Include_Charging="Yes"),Base_Station_Maint_Cost_Modeled*Base_Num_Stations_Modeled,0)*Data!G$83 -> 0 | I65: =-IF(AND(COLUMN(I53)-COLUMN($E53)<Base_V1_Years_Usage_Modeled,_Base_Include_Charging="Yes"),Base_Station_Maint_Cost_Modeled*Base_Num_Stations_Modeled,0)*Data!H$83 -> 0 | J65: =-IF(AND(COLUMN(J53)-COLUMN($E53)<Base_V1_Years_Usage_Modeled,_Base_Include_Charging="Yes"),Base_Station_Maint_Cost_Modeled*Base_Num_Stations_Modeled,0)*Data!I$83 -> 0 | K65: =-IF(AND(COLUMN(K53)-COLUMN($E53)<Base_V1_Years_Usage_Modeled,_Base_Include_Charging="Yes"),Base_Station_Maint_Cost_Modeled*Base_Num_Stations_Modeled,0)*Data!J$83 -> 0 | L65: =-IF(AND(COLUMN(L53)-COLUMN($E53)<Base_V1_Years_Usage_Modeled,_Base_Include_Charging="Yes"),Base_Station_Maint_Cost_Modeled*Base_Num_Stations_Modeled,0)*Data!K$83 -> 0 | M65: =-IF(AND(COLUMN(M53)-COLUMN($E53)<Base_V1_Years_Usage_Modeled,_Base_Include_Charging="Yes"),Base_Station_Maint_Cost_Modeled*Base_Num_Stations_Modeled,0)*Data!L$83 -> 0 | N65: =-IF(AND(COLUMN(N53)-COLUMN($E53)<Base_V1_Years_Usage_Modeled,_Base_Include_Charging="Yes"),Base_Station_Maint_Cost_Modeled*Base_Num_Stations_Modeled,0)*Data!M$83 -> 0 | O65: =-IF(AND(COLUMN(O53)-COLUMN($E53)<Base_V1_Years_Usage_Modeled,_Base_Include_Charging="Yes"),Base_Station_Maint_Cost_Modeled*Base_Num_Stations_Modeled,0)*Data!N$83 -> 0 | P65: =-IF(AND(COLUMN(P53)-COLUMN($E53)<Base_V1_Years_Usage_Modeled,_Base_Include_Charging="Yes"),Base_Station_Maint_Cost_Modeled*Base_Num_Stations_Modeled,0)*Data!O$83 -> 0 | Q65: =-IF(AND(COLUMN(Q53)-COLUMN($E53)<Base_V1_Years_Usage_Modeled,_Base_Include_Charging="Yes"),Base_Station_Maint_Cost_Modeled*Base_Num_Stations_Modeled,0)*Data!P$83 -> 0 | R65: =-IF(AND(COLUMN(R53)-COLUMN($E53)<Base_V1_Years_Usage_Modeled,_Base_Include_Charging="Yes"),Base_Station_Maint_Cost_Modeled*Base_Num_Stations_Modeled,0)*Data!Q$83 -> 0 | S65: =-IF(AND(COLUMN(S53)-COLUMN($E53)<Base_V1_Years_Usage_Modeled,_Base_Include_Charging="Yes"),Base_Station_Maint_Cost_Modeled*Base_Num_Stations_Modeled,0)*Data!R$83 -> 0 | T65: =-IF(AND(COLUMN(T53)-COLUMN($E53)<Base_V1_Years_Usage_Modeled,_Base_Include_Charging="Yes"),Base_Station_Maint_Cost_Modeled*Base_Num_Stations_Modeled,0)*Data!S$83 -> 0 | U65: =-IF(AND(COLUMN(U53)-COLUMN($E53)<Base_V1_Years_Usage_Modeled,_Base_Include_Charging="Yes"),Base_Station_Maint_Cost_Modeled*Base_Num_Stations_Modeled,0)*Data!T$83 -> 0 | V65: =-IF(AND(COLUMN(V53)-COLUMN($E53)<Base_V1_Years_Usage_Modeled,_Base_Include_Charging="Yes"),Base_Station_Maint_Cost_Modeled*Base_Num_Stations_Modeled,0)*Data!U$83 -> 0 | W65: =-IF(AND(COLUMN(W53)-COLUMN($E53)<Base_V1_Years_Usage_Modeled,_Base_Include_Charging="Yes"),Base_Station_Maint_Cost_Modeled*Base_Num_Stations_Modeled,0)*Data!V$83 -> 0 | X65: =-IF(AND(COLUMN(X53)-COLUMN($E53)<Base_V1_Years_Usage_Modeled,_Base_Include_Charging="Yes"),Base_Station_Maint_Cost_Modeled*Base_Num_Stations_Modeled,0)*Data!W$83 -> 0 | Y65: =-IF(AND(COLUMN(Y53)-COLUMN($E53)<Base_V1_Years_Usage_Modeled,_Base_Include_Charging="Yes"),Base_Station_Maint_Cost_Modeled*Base_Num_Stations_Modeled,0)*Data!X$83 -> 0 | Z65: =-IF(AND(COLUMN(Z53)-COLUMN($E53)<Base_V1_Years_Usage_Modeled,_Base_Include_Charging="Yes"),Base_Station_Maint_Cost_Modeled*Base_Num_Stations_Modeled,0)*Data!Y$83 -> 0 | AA65: =-IF(AND(COLUMN(AA53)-COLUMN($E53)<Base_V1_Years_Usage_Modeled,_Base_Include_Charging="Yes"),Base_Station_Maint_Cost_Modeled*Base_Num_Stations_Modeled,0)*Data!Z$83 -> 0 | AB65: =-IF(AND(COLUMN(AB53)-COLUMN($E53)<Base_V1_Years_Usage_Modeled,_Base_Include_Charging="Yes"),Base_Station_Maint_Cost_Modeled*Base_Num_Stations_Modeled,0)*Data!AA$83 -> 0 | AC65: =-IF(AND(COLUMN(AC53)-COLUMN($E53)<Base_V1_Years_Usage_Modeled,_Base_Include_Charging="Yes"),Base_Station_Maint_Cost_Modeled*Base_Num_Stations_Modeled,0)*Data!AB$83 -> 0
B66: Subtotal Operating Costs | E66: =SUM(E65:E65) -> 0 | F66: 0 | G66: 0 | H66: 0 | I66: 0 | J66: 0 | K66: 0 | L66: 0 | M66: 0 | N66: 0 | O66: 0 | P66: 0 | Q66: 0 | R66: 0 | S66: 0 | T66: 0 | U66: 0 | V66: 0 | W66: 0 | X66: 0 | Y66: 0 | Z66: 0 | AA66: 0 | AB66: 0 | AC66: 0
B67: Total Discounted Costs
B68: Total Annual Costs | D68: =D62+D66 -> 0 | E68: =E62+E66 -> 0 | F68: 0 | G68: 0 | H68: 0 | I68: 0 | J68: 0 | K68: 0 | L68: 0 | M68: 0 | N68: 0 | O68: 0 | P68: 0 | Q68: 0 | R68: 0 | S68: 0 | T68: 0 | U68: 0 | V68: 0 | W68: 0 | X68: 0 | Y68: 0 | Z68: 0 | AA68: 0 | AB68: 0 | AC68: 0
B69: Discount Factor | C69: =Base_Discount_Rate_Modeled -> 0 | D69: =(1/(1+$C69))^(COLUMN(D53)-COLUMN($D53)) -> 1 | E69: 1 | F69: 1 | G69: 1 | H69: 1 | I69: 1 | J69: 1 | K69: 1 | L69: 1 | M69: 1 | N69: 1 | O69: 1 | P69: 1 | Q69: 1 | R69: 1 | S69: 1 | T69: 1 | U69: 1 | V69: 1 | W69: 1 | X69: 1 | Y69: 1 | Z69: 1 | AA69: 1 | AB69: 1 | AC69: 1
B70: Discounted Total | D70: =D68*D69 -> 0 | E70: =E68*E69 -> 0 | F70: =F68*F69 -> 0 | G70: 0 | H70: 0 | I70: 0 | J70: 0 | K70: 0 | L70: 0 | M70: 0 | N70: 0 | O70: 0 | P70: 0 | Q70: 0 | R70: 0 | S70: 0 | T70: 0 | U70: 0 | V70: 0 | W70: 0 | X70: 0 | Y70: 0 | Z70: 0 | AA70: 0 | AB70: 0 | AC70: 0
B71: Cumulative Discounted Total | D71: =IF((COLUMN(D53)-COLUMN($D53))<=Base_V1_Years_Usage_Modeled,C71+D70,0) -> 0 | E71: 0 | F71: 0 | G71: 0 | H71: 0 | I71: 0 | J71: 0 | K71: 0 | L71: 0 | M71: 0 | N71: 0 | O71: 0 | P71: 0 | Q71: 0 | R71: 0 | S71: 0 | T71: 0 | U71: 0 | V71: 0 | W71: 0 | X71: 0 | Y71: 0 | Z71: 0 | AA71: 0 | AB71: 0 | AC71: 0
B72: Annualized NPV Total Cost of Ownership | D72: =OFFSET($D71,0,Base_V1_Years_Usage_Modeled)/Base_V1_Years_Usage_Modeled -> 0
B74: Comparison Vehicle 1
D75: Year 0 | E75: Year 1 | F75: Year 2 | G75: Year 3 | H75: Year 4 | I75: Year 5 | J75: Year 6 | K75: Year 7 | L75: Year 8 | M75: Year 9 | N75: Year 10 | O75: Year 11 | P75: Year 12 | Q75: Year 13 | R75: Year 14 | S75: Year 15 | T75: Year 16 | U75: Year 17 | V75: Year 18 | W75: Year 19 | X75: Year 20 | Y75: Year 21 | Z75: Year 22 | AA75: Year 23 | AB75: Year 24 | AC75: Year 25
B76: Depreciation Calculations
B77: Fair Market Value - BEV | D77: =IF(_Comp_V1_Vehicle_Drivetrain="BEV",Comp_V1_Base_Price_Ex,0) -> 33526 | E77: =IF(_Comp_V1_Vehicle_Vehicle_Class=Const_Passenger_Light_Duty, IF(_Comp_V1_Vehicle_Drivetrain="BEV",MAX(IF(_Comp_V1_Vehicle_Drivetrain="BEV",Reg_BEV_Const_Ex+Reg_BEV_Age_Coef_Ex*(COLUMN(E75)-COLUMN($D75))+Reg_BEV_Agesq_Coef_Ex*((COLUMN(E75)-COLUMN($D75))^2)+Reg_BEV_MSRP_Coef_Ex*Comp_V1_Base_Price_Ex+Reg_BEV_Range_Coef_Ex*Constant_Comparison_Electric_Range+Reg_BEV_Mileage_Coef_Ex*Comp_V1_VMT_Modeled*(COLUMN(E75)-COLUMN($D75)),0),300),0), IF(COLUMN(E75)-COLUMN($D75)=1, 'Financial Model'!D77*0.77, 'Financial Model'!D77*0.85)) -> 23125.25907 | F77: =IF(_Comp_V1_Vehicle_Vehicle_Class=Const_Passenger_Light_Duty, IF(_Comp_V1_Vehicle_Drivetrain="BEV",MAX(IF(_Comp_V1_Vehicle_Drivetrain="BEV",Reg_BEV_Const_Ex+Reg_BEV_Age_Coef_Ex*(COLUMN(F75)-COLUMN($D75))+Reg_BEV_Agesq_Coef_Ex*((COLUMN(F75)-COLUMN($D75))^2)+Reg_BEV_MSRP_Coef_Ex*Comp_V1_Base_Price_Ex+Reg_BEV_Range_Coef_Ex*Constant_Comparison_Electric_Range+Reg_BEV_Mileage_Coef_Ex*Comp_V1_VMT_Modeled*(COLUMN(F75)-COLUMN($D75)),0),300),0), IF(COLUMN(F75)-COLUMN($D75)=1, 'Financial Model'!E77*0.77, 'Financial Model'!E77*0.85)) -> 18806.01007 | G77: =IF(_Comp_V1_Vehicle_Vehicle_Class=Const_Passenger_Light_Duty, IF(_Comp_V1_Vehicle_Drivetrain="BEV",MAX(IF(_Comp_V1_Vehicle_Drivetrain="BEV",Reg_BEV_Const_Ex+Reg_BEV_Age_Coef_Ex*(COLUMN(G75)-COLUMN($D75))+Reg_BEV_Agesq_Coef_Ex*((COLUMN(G75)-COLUMN($D75))^2)+Reg_BEV_MSRP_Coef_Ex*Comp_V1_Base_Price_Ex+Reg_BEV_Range_Coef_Ex*Constant_Comparison_Electric_Range+Reg_BEV_Mileage_Coef_Ex*Comp_V1_VMT_Modeled*(COLUMN(G75)-COLUMN($D75)),0),300),0), IF(COLUMN(G75)-COLUMN($D75)=1, 'Financial Model'!F77*0.77, 'Financial Model'!F77*0.85)) -> 14224.19507 | H77: =IF(_Comp_V1_Vehicle_Vehicle_Class=Const_Passenger_Light_Duty, IF(_Comp_V1_Vehicle_Drivetrain="BEV",MAX(IF(_Comp_V1_Vehicle_Drivetrain="BEV",Reg_BEV_Const_Ex+Reg_BEV_Age_Coef_Ex*(COLUMN(H75)-COLUMN($D75))+Reg_BEV_Agesq_Coef_Ex*((COLUMN(H75)-COLUMN($D75))^2)+Reg_BEV_MSRP_Coef_Ex*Comp_V1_Base_Price_Ex+Reg_BEV_Range_Coef_Ex*Constant_Comparison_Electric_Range+Reg_BEV_Mileage_Coef_Ex*Comp_V1_VMT_Modeled*(COLUMN(H75)-COLUMN($D75)),0),300),0), IF(COLUMN(H75)-COLUMN($D75)=1, 'Financial Model'!G77*0.77, 'Financial Model'!G77*0.85)) -> 9379.814072 | I77: =IF(_Comp_V1_Vehicle_Vehicle_Class=Const_Passenger_Light_Duty, IF(_Comp_V1_Vehicle_Drivetrain="BEV",MAX(IF(_Comp_V1_Vehicle_Drivetrain="BEV",Reg_BEV_Const_Ex+Reg_BEV_Age_Coef_Ex*(COLUMN(I75)-COLUMN($D75))+Reg_BEV_Agesq_Coef_Ex*((COLUMN(I75)-COLUMN($D75))^2)+Reg_BEV_MSRP_Coef_Ex*Comp_V1_Base_Price_Ex+Reg_BEV_Range_Coef_Ex*Constant_Comparison_Electric_Range+Reg_BEV_Mileage_Coef_Ex*Comp_V1_VMT_Modeled*(COLUMN(I75)-COLUMN($D75)),0),300),0), IF(COLUMN(I75)-COLUMN($D75)=1, 'Financial Model'!H77*0.77, 'Financial Model'!H77*0.85)) -> 4272.867072 | J77: =IF($H77-$I77=0,0,MAX((1-($H77-$I77)/$H77)*I77,300)) -> 1946.455748 | K77: 886.6856644 | L77: 403.919518 | M77: 300 | N77: 300 | O77: 300 | P77: 300 | Q77: 300 | R77: 300 | S77: 300 | T77: 300 | U77: 300 | V77: 300 | W77: 300 | X77: 300 | Y77: 300 | Z77: 300 | AA77: 300 | AB77: 300 | AC77: 300
B78: Fair Market Value - PHEV | D78: =IF(_Comp_V1_Vehicle_Drivetrain="PHEV",Comp_V1_Base_Price_Ex,0) -> 0 | E78: =IF(_Comp_V1_Vehicle_Vehicle_Class=Const_Passenger_Light_Duty, IF(_Comp_V1_Vehicle_Drivetrain="PHEV",MAX(IF(_Comp_V1_Vehicle_Drivetrain="PHEV",Reg_PHEV_Const_Ex+Reg_PHEV_Age_Coef_Ex*(COLUMN(E75)-COLUMN($D75))+Reg_PHEV_Agesq_Coef_Ex*((COLUMN(E75)-COLUMN($D75))^2)+Reg_PHEV_MSRP_Coef_Ex*Comp_V1_Base_Price_Ex+Reg_PHEV_Range_Coef_Ex*Constant_Comparison_Electric_Range+Reg_PHEV_Mileage_Coef_Ex*Comp_V1_VMT_Modeled*(COLUMN(E75)-COLUMN($D75)),0),300),0),IF(COLUMN(E75)-COLUMN($D75)=1, 'Financial Model'!D78*0.77, 'Financial Model'!D78*0.85)) -> 0 | F78: =IF(_Comp_V1_Vehicle_Vehicle_Class=Const_Passenger_Light_Duty, IF(_Comp_V1_Vehicle_Drivetrain="PHEV",MAX(IF(_Comp_V1_Vehicle_Drivetrain="PHEV",Reg_PHEV_Const_Ex+Reg_PHEV_Age_Coef_Ex*(COLUMN(F75)-COLUMN($D75))+Reg_PHEV_Agesq_Coef_Ex*((COLUMN(F75)-COLUMN($D75))^2)+Reg_PHEV_MSRP_Coef_Ex*Comp_V1_Base_Price_Ex+Reg_PHEV_Range_Coef_Ex*Constant_Comparison_Electric_Range+Reg_PHEV_Mileage_Coef_Ex*Comp_V1_VMT_Modeled*(COLUMN(F75)-COLUMN($D75)),0),300),0),IF(COLUMN(F75)-COLUMN($D75)=1, 'Financial Model'!E78*0.77, 'Financial Model'!E78*0.85)) -> 0 | G78: =IF(_Comp_V1_Vehicle_Vehicle_Class=Const_Passenger_Light_Duty, IF(_Comp_V1_Vehicle_Drivetrain="PHEV",MAX(IF(_Comp_V1_Vehicle_Drivetrain="PHEV",Reg_PHEV_Const_Ex+Reg_PHEV_Age_Coef_Ex*(COLUMN(G75)-COLUMN($D75))+Reg_PHEV_Agesq_Coef_Ex*((COLUMN(G75)-COLUMN($D75))^2)+Reg_PHEV_MSRP_Coef_Ex*Comp_V1_Base_Price_Ex+Reg_PHEV_Range_Coef_Ex*Constant_Comparison_Electric_Range+Reg_PHEV_Mileage_Coef_Ex*Comp_V1_VMT_Modeled*(COLUMN(G75)-COLUMN($D75)),0),300),0),IF(COLUMN(G75)-COLUMN($D75)=1, 'Financial Model'!F78*0.77, 'Financial Model'!F78*0.85)) -> 0 | H78: =IF(_Comp_V1_Vehicle_Vehicle_Class=Const_Passenger_Light_Duty, IF(_Comp_V1_Vehicle_Drivetrain="PHEV",MAX(IF(_Comp_V1_Vehicle_Drivetrain="PHEV",Reg_PHEV_Const_Ex+Reg_PHEV_Age_Coef_Ex*(COLUMN(H75)-COLUMN($D75))+Reg_PHEV_Agesq_Coef_Ex*((COLUMN(H75)-COLUMN($D75))^2)+Reg_PHEV_MSRP_Coef_Ex*Comp_V1_Base_Price_Ex+Reg_PHEV_Range_Coef_Ex*Constant_Comparison_Electric_Range+Reg_PHEV_Mileage_Coef_Ex*Comp_V1_VMT_Modeled*(COLUMN(H75)-COLUMN($D75)),0),300),0),IF(COLUMN(H75)-COLUMN($D75)=1, 'Financial Model'!G78*0.77, 'Financial Model'!G78*0.85)) -> 0 | I78: =IF(_Comp_V1_Vehicle_Vehicle_Class=Const_Passenger_Light_Duty, IF(_Comp_V1_Vehicle_Drivetrain="PHEV",MAX(IF(_Comp_V1_Vehicle_Drivetrain="PHEV",Reg_PHEV_Const_Ex+Reg_PHEV_Age_Coef_Ex*(COLUMN(I75)-COLUMN($D75))+Reg_PHEV_Agesq_Coef_Ex*((COLUMN(I75)-COLUMN($D75))^2)+Reg_PHEV_MSRP_Coef_Ex*Comp_V1_Base_Price_Ex+Reg_PHEV_Range_Coef_Ex*Constant_Comparison_Electric_Range+Reg_PHEV_Mileage_Coef_Ex*Comp_V1_VMT_Modeled*(COLUMN(I75)-COLUMN($D75)),0),300),0),IF(COLUMN(I75)-COLUMN($D75)=1, 'Financial Model'!H78*0.77, 'Financial Model'!H78*0.85)) -> 0 | J78: 0 | K78: 0 | L78: 0 | M78: 0 | N78: 0 | O78: 0 | P78: 0 | Q78: 0 | R78: 0 | S78: 0 | T78: 0 | U78: 0 | V78: 0 | W78: 0 | X78: 0 | Y78: 0 | Z78: 0 | AA78: 0 | AB78: 0 | AC78: 0
B79: Fair Market Value - ICE | D79: =IF(_Comp_V1_Vehicle_Drivetrain="ICE",Comp_V1_Base_Price_Ex,0) -> 0 | E79: =IF(_Comp_V1_Vehicle_Vehicle_Class=Const_Passenger_Light_Duty, IF(_Comp_V1_Vehicle_Drivetrain="ICE",MAX(IF(_Comp_V1_Vehicle_Drivetrain="ICE",Reg_ICE_Const_Ex+Reg_ICE_Age_Coef_Ex*(COLUMN(E75)-COLUMN($D75))+Reg_ICE_Agesq_Coef_Ex*(COLUMN(E75)-COLUMN($D75))^2+Reg_ICE_MSRP_Coef_Ex*Comp_V1_Base_Price_Ex+Reg_ICE_MPG_Coef_Ex*Constant_Comparison_Fuel_Economy_Gas_City+Reg_ICE_Mileage_Coef_Ex*Comp_V1_VMT_Modeled*(COLUMN(E75)-COLUMN($D75)),0),300),0), IF(COLUMN(E75)-COLUMN($D75)=1, 'Financial Model'!D79*0.77, 'Financial Model'!D79*0.85)) -> 0 | F79: =IF(_Comp_V1_Vehicle_Vehicle_Class=Const_Passenger_Light_Duty, IF(_Comp_V1_Vehicle_Drivetrain="ICE",MAX(IF(_Comp_V1_Vehicle_Drivetrain="ICE",Reg_ICE_Const_Ex+Reg_ICE_Age_Coef_Ex*(COLUMN(F75)-COLUMN($D75))+Reg_ICE_Agesq_Coef_Ex*(COLUMN(F75)-COLUMN($D75))^2+Reg_ICE_MSRP_Coef_Ex*Comp_V1_Base_Price_Ex+Reg_ICE_MPG_Coef_Ex*Constant_Comparison_Fuel_Economy_Gas_City+Reg_ICE_Mileage_Coef_Ex*Comp_V1_VMT_Modeled*(COLUMN(F75)-COLUMN($D75)),0),300),0), IF(COLUMN(F75)-COLUMN($D75)=1, 'Financial Model'!E79*0.77, 'Financial Model'!E79*0.85)) -> 0 | G79: =IF(_Comp_V1_Vehicle_Vehicle_Class=Const_Passenger_Light_Duty, IF(_Comp_V1_Vehicle_Drivetrain="ICE",MAX(IF(_Comp_V1_Vehicle_Drivetrain="ICE",Reg_ICE_Const_Ex+Reg_ICE_Age_Coef_Ex*(COLUMN(G75)-COLUMN($D75))+Reg_ICE_Agesq_Coef_Ex*(COLUMN(G75)-COLUMN($D75))^2+Reg_ICE_MSRP_Coef_Ex*Comp_V1_Base_Price_Ex+Reg_ICE_MPG_Coef_Ex*Constant_Comparison_Fuel_Economy_Gas_City+Reg_ICE_Mileage_Coef_Ex*Comp_V1_VMT_Modeled*(COLUMN(G75)-COLUMN($D75)),0),300),0), IF(COLUMN(G75)-COLUMN($D75)=1, 'Financial Model'!F79*0.77, 'Financial Model'!F79*0.85)) -> 0 | H79: =IF(_Comp_V1_Vehicle_Vehicle_Class=Const_Passenger_Light_Duty, IF(_Comp_V1_Vehicle_Drivetrain="ICE",MAX(IF(_Comp_V1_Vehicle_Drivetrain="ICE",Reg_ICE_Const_Ex+Reg_ICE_Age_Coef_Ex*(COLUMN(H75)-COLUMN($D75))+Reg_ICE_Agesq_Coef_Ex*(COLUMN(H75)-COLUMN($D75))^2+Reg_ICE_MSRP_Coef_Ex*Comp_V1_Base_Price_Ex+Reg_ICE_MPG_Coef_Ex*Constant_Comparison_Fuel_Economy_Gas_City+Reg_ICE_Mileage_Coef_Ex*Comp_V1_VMT_Modeled*(COLUMN(H75)-COLUMN($D75)),0),300),0), IF(COLUMN(H75)-COLUMN($D75)=1, 'Financial Model'!G79*0.77, 'Financial Model'!G79*0.85)) -> 0 | I79: =IF(_Comp_V1_Vehicle_Vehicle_Class=Const_Passenger_Light_Duty, IF(_Comp_V1_Vehicle_Drivetrain="ICE",MAX(IF(_Comp_V1_Vehicle_Drivetrain="ICE",Reg_ICE_Const_Ex+Reg_ICE_Age_Coef_Ex*(COLUMN(I75)-COLUMN($D75))+Reg_ICE_Agesq_Coef_Ex*(COLUMN(I75)-COLUMN($D75))^2+Reg_ICE_MSRP_Coef_Ex*Comp_V1_Base_Price_Ex+Reg_ICE_MPG_Coef_Ex*Constant_Comparison_Fuel_Economy_Gas_City+Reg_ICE_Mileage_Coef_Ex*Comp_V1_VMT_Modeled*(COLUMN(I75)-COLUMN($D75)),0),300),0), IF(COLUMN(I75)-COLUMN($D75)=1, 'Financial Model'!H79*0.77, 'Financial Model'!H79*0.85)) -> 0 | J79: 0 | K79: 0 | L79: 0 | M79: 0 | N79: 0 | O79: 0 | P79: 0 | Q79: 0 | R79: 0 | S79: 0 | T79: 0 | U79: 0 | V79: 0 | W79: 0 | X79: 0 | Y79: 0 | Z79: 0 | AA79: 0 | AB79: 0 | AC79: 0
B81: Capital and Financing Costs
B82: Cash
B83: Cash Payment | D83: =IF(AND(Comp_V1_Has_Cash_Purchase_Ex=TRUE,Comp_V1_Has_Loan_Ex=FALSE,Comp_V1_Has_Lease_Ex=FALSE,COLUMN(D75)-COLUMN($D75)=0),-(Comp_V1_Base_Price_Ex-IF(Comp_V1_Tax_Incentives_Monetized="Yes",Comp_V1_Federal_Tax_Incentives_Modeled+IF(Comp_V1_State_Tax_Incentive_Cap_Modeled=0,Comp_V1_State_Tax_Incentives_Modeled,MIN(Comp_V1_State_Tax_Incentive_Cap_Modeled,Comp_V1_State_Tax_Incentives_Modeled*Comp_V1_Num_Vehicles_Modeled)/Comp_V1_Num_Vehicles_Modeled),0)-Comp_V1_Other_Incentives_Modeled),IF(AND(Comp_V1_Has_Cash_Purchase_Ex=TRUE,OR(Comp_V1_Has_Loan_Ex=TRUE,Comp_V1_Has_Lease_Ex=TRUE),COLUMN(D75)-COLUMN($D75)=Comp_V1_Lease_Term_Modeled),IF(ISERROR(FIND("Tax",_Comp_V1_Ownership_Structure,1)),-SUM(D77:D79),-Comp_V1_Lease_Residual_Price_Modeled),0)) -> -26026 | E83: 0 | F83: 0 | G83: 0 | H83: 0 | I83: 0 | J83: 0 | K83: 0 | L83: 0 | M83: 0 | N83: 0 | O83: 0 | P83: 0 | Q83: 0 | R83: 0 | S83: 0 | T83: 0 | U83: 0 | V83: 0 | W83: 0 | X83: 0 | Y83: 0 | Z83: 0 | AA83: 0 | AB83: 0 | AC83: 0
B84: Lease
B85: Down Payment | D85: =IF(Comp_V1_Has_Lease_Ex=TRUE,-Comp_V1_Down_Payment_Modeled,0) -> 0
B86: Acquisition Fee | D86: =IF(Comp_V1_Has_Lease_Ex=TRUE,-Comp_V1_Lease_Acquisition_Fee_Modeled,0) -> 0
B87: Disposition Charge | D87: =IF(AND(Comp_V1_Has_Lease_Ex=TRUE,((COLUMN(D75)-COLUMN($D75))=Comp_V1_Lease_Term_Modeled)),-Comp_V1_Lease_Disposition_Fee_Modeled,0) -> 0 | E87: 0 | F87: 0 | G87: 0 | H87: 0 | I87: 0 | J87: 0 | K87: 0 | L87: 0 | M87: 0 | N87: 0 | O87: 0 | P87: 0 | Q87: 0 | R87: 0 | S87: 0 | T87: 0 | U87: 0 | V87: 0 | W87: 0 | X87: 0 | Y87: 0 | Z87: 0 | AA87: 0 | AB87: 0 | AC87: 0
B88: Lease Payments | E88: =IF(Comp_V1_Has_Lease_Ex=TRUE,IF((COLUMN(E75)-COLUMN($E75))<Comp_V1_Lease_Term_Modeled,-PMT(Comp_V1_Lease_APR_Modeled/12,Comp_V1_Lease_Term_Modeled*12,-(Comp_V1_Base_Price_Ex-IF(Comp_V1_Tax_Incentives_Monetized="Yes",Comp_V1_Federal_Tax_Incentives_Modeled+IF(Comp_V1_State_Tax_Incentive_Cap_Modeled=0,Comp_V1_State_Tax_Incentives_Modeled,MIN(Comp_V1_State_Tax_Incentive_Cap_Modeled,Comp_V1_State_Tax_Incentives_Modeled*Comp_V1_Num_Vehicles_Modeled)/Comp_V1_Num_Vehicles_Modeled),0)-Comp_V1_Other_Incentives_Modeled-Comp_V1_Down_Payment_Modeled)+Comp_V1_Lease_Residual_Price_Modeled,0)*12,0),0) -> 0 | F88: 0 | G88: 0 | H88: 0 | I88: 0 | J88: 0 | K88: 0 | L88: 0 | M88: 0 | N88: 0 | O88: 0 | P88: 0 | Q88: 0 | R88: 0 | S88: 0 | T88: 0 | U88: 0 | V88: 0 | W88: 0 | X88: 0 | Y88: 0 | Z88: 0 | AA88: 0 | AB88: 0 | AC88: 0
B89: Principal Payments | E89: =IF(Comp_V1_Has_Lease_Ex=TRUE,IF((COLUMN(E75)-COLUMN($E75))<Comp_V1_Lease_Term_Modeled,-PPMT(Comp_V1_Lease_APR_Modeled/12,(COLUMN(E75)-COLUMN($D75))*12,Comp_V1_Lease_Term_Modeled*12,-(Comp_V1_Base_Price_Ex-IF(Comp_V1_Tax_Incentives_Monetized="Yes",Comp_V1_Federal_Tax_Incentives_Modeled+IF(Comp_V1_State_Tax_Incentive_Cap_Modeled=0,Comp_V1_State_Tax_Incentives_Modeled,MIN(Comp_V1_State_Tax_Incentive_Cap_Modeled,Comp_V1_State_Tax_Incentives_Modeled*Comp_V1_Num_Vehicles_Modeled)/Comp_V1_Num_Vehicles_Modeled),0)-Comp_V1_Other_Incentives_Modeled-Comp_V1_Down_Payment_Modeled)+Comp_V1_Lease_Residual_Price_Modeled,0)*12,0),0) -> 0 | F89: 0 | G89: 0 | H89: 0 | I89: 0 | J89: 0 | K89: 0 | L89: 0 | M89: 0 | N89: 0 | O89: 0 | P89: 0 | Q89: 0 | R89: 0 | S89: 0 | T89: 0 | U89: 0 | V89: 0 | W89: 0 | X89: 0 | Y89: 0 | Z89: 0 | AA89: 0 | AB89: 0 | AC89: 0
B90: Interest Payments | E90: =IF(Comp_V1_Has_Lease_Ex=TRUE,IF((COLUMN(E75)-COLUMN($E75))<Comp_V1_Lease_Term_Modeled,-IPMT(Comp_V1_Lease_APR_Modeled/12,(COLUMN(E75)-COLUMN($D75))*12,Comp_V1_Lease_Term_Modeled*12,-(Comp_V1_Base_Price_Ex-IF(Comp_V1_Tax_Incentives_Monetized="Yes",Comp_V1_Federal_Tax_Incentives_Modeled+IF(Comp_V1_State_Tax_Incentive_Cap_Modeled=0,Comp_V1_State_Tax_Incentives_Modeled,MIN(Comp_V1_State_Tax_Incentive_Cap_Modeled,Comp_V1_State_Tax_Incentives_Modeled*Comp_V1_Num_Vehicles_Modeled)/Comp_V1_Num_Vehicles_Modeled),0)-Comp_V1_Other_Incentives_Modeled-Comp_V1_Down_Payment_Modeled)+Comp_V1_Lease_Residual_Price_Modeled,0)*12,0),0) -> 0 | F90: 0 | G90: 0 | H90: 0 | I90: 0 | J90: 0 | K90: 0 | L90: 0 | M90: 0 | N90: 0 | O90: 0 | P90: 0 | Q90: 0 | R90: 0 | S90: 0 | T90: 0 | U90: 0 | V90: 0 | W90: 0 | X90: 0 | Y90: 0 | Z90: 0 | AA90: 0 | AB90: 0 | AC90: 0
B91: TRAC Value Adjustment | E91: =IF(ISERROR(FIND("TRAC",_Comp_V1_Ownership_Structure,1)),0,IF(Comp_V1_Has_Loan_Ex=TRUE,0,IF((COLUMN(E75)-COLUMN($D75))=Comp_V1_Lease_Term_Modeled,SUM(E77:E79)-Comp_V1_Lease_Residual_Price_Modeled,0))) -> 0 | F91: 0 | G91: 0 | H91: 0 | I91: 0 | J91: 0 | K91: 0 | L91: 0 | M91: 0 | N91: 0 | O91: 0 | P91: 0 | Q91: 0 | R91: 0 | S91: 0 | T91: 0 | U91: 0 | V91: 0 | W91: 0 | X91: 0 | Y91: 0 | Z91: 0 | AA91: 0 | AB91: 0 | AC91: 0
B92: FMV Mileage Adjustment | E92: =MIN(0,MAX(-Comp_V1_Lease_Residual_Price_Modeled+SUM(E77:E79),IF(IFERROR(IF(FIND("FMV",_Comp_V1_Ownership_Structure,1)>0,TRUE,FALSE),FALSE),IF((COLUMN(E75)-COLUMN($D75))=Comp_V1_Lease_Term_Modeled,(Comp_V1_Lease_Mileage_Inc_Modeled-Comp_V1_VMT_Modeled)*(COLUMN(E75)-COLUMN($D75))*Comp_V1_Lease_Mileage_Cost_Modeled,0),0))) -> 0 | F92: 0 | G92: 0 | H92: 0 | I92: 0 | J92: 0 | K92: 0 | L92: 0 | M92: 0 | N92: 0 | O92: 0 | P92: 0 | Q92: 0 | R92: 0 | S92: 0 | T92: 0 | U92: 0 | V92: 0 | W92: 0 | X92: 0 | Y92: 0 | Z92: 0 | AA92: 0 | AB92: 0 | AC92: 0
B93: Subtotal Lease Cash Flows | D93: =SUM(D85:D88)+SUM(D91:D92) -> 0 | E93: =SUM(E85:E88)+SUM(E91:E92) -> 0 | F93: 0 | G93: 0 | H93: 0 | I93: 0 | J93: 0 | K93: 0 | L93: 0 | M93: 0 | N93: 0 | O93: 0 | P93: 0 | Q93: 0 | R93: 0 | S93: 0 | T93: 0 | U93: 0 | V93: 0 | W93: 0 | X93: 0 | Y93: 0 | Z93: 0 | AA93: 0 | AB93: 0 | AC93: 0
B94: Loan
B95: Down Payment | D95: =IF(AND(Comp_V1_Has_Loan_Ex=TRUE,Comp_V1_Has_Lease_Ex=FALSE),-Comp_V1_Down_Payment_Modeled,0) -> 0
B96: Loan Payments | E96: =IF(Comp_V1_Has_Loan_Ex=TRUE,IF(AND((COLUMN(E75)-COLUMN($E75))<Comp_V1_Loan_Term_Modeled+Comp_V1_Lease_Term_Modeled,(COLUMN(E75)-COLUMN($E75))>=Comp_V1_Lease_Term_Modeled),PMT(Comp_V1_Loan_APR_Modeled/12,Comp_V1_Loan_Term_Modeled*12,IF(Comp_V1_Has_Lease_Ex=TRUE,SUM(OFFSET($D77,0,Comp_V1_Lease_Term_Modeled,3,1)),Comp_V1_Base_Price_Ex-IF(Comp_V1_Tax_Incentives_Monetized="Yes",Comp_V1_Federal_Tax_Incentives_Modeled+IF(Comp_V1_State_Tax_Incentive_Cap_Modeled=0,Comp_V1_State_Tax_Incentives_Modeled,MIN(Comp_V1_State_Tax_Incentive_Cap_Modeled,Comp_V1_State_Tax_Incentives_Modeled*Comp_V1_Num_Vehicles_Modeled)/Comp_V1_Num_Vehicles_Modeled),0)-Comp_V1_Other_Incentives_Modeled-Comp_V1_Down_Payment_Modeled),0)*12,0),0) -> 0 | F96: 0 | G96: 0 | H96: 0 | I96: 0 | J96: 0 | K96: 0 | L96: 0 | M96: 0 | N96: 0 | O96: 0 | P96: 0 | Q96: 0 | R96: 0 | S96: 0 | T96: 0 | U96: 0 | V96: 0 | W96: 0 | X96: 0 | Y96: 0 | Z96: 0 | AA96: 0 | AB96: 0 | AC96: 0
B97: Principal Payments | E97: =IF(Comp_V1_Has_Loan_Ex=TRUE,IF(AND((COLUMN(E75)-COLUMN($E75))<Comp_V1_Loan_Term_Modeled+Comp_V1_Lease_Term_Modeled,(COLUMN(E75)-COLUMN($E75))>=Comp_V1_Lease_Term_Modeled),PPMT(Comp_V1_Loan_APR_Modeled/12,IF(Comp_V1_Has_Lease_Ex=TRUE,(COLUMN(E75)-COLUMN($D75)-Comp_V1_Lease_Term_Modeled)*12,(COLUMN(E75)-COLUMN($D75))*12),Comp_V1_Loan_Term_Modeled*12,IF(Comp_V1_Has_Lease_Ex=TRUE,SUM(OFFSET($D77,0,Comp_V1_Lease_Term_Modeled,3,1)),Comp_V1_Base_Price_Ex-IF(Comp_V1_Tax_Incentives_Monetized="Yes",Comp_V1_Federal_Tax_Incentives_Modeled+IF(Comp_V1_State_Tax_Incentive_Cap_Modeled=0,Comp_V1_State_Tax_Incentives_Modeled,MIN(Comp_V1_State_Tax_Incentive_Cap_Modeled,Comp_V1_State_Tax_Incentives_Modeled*Comp_V1_Num_Vehicles_Modeled)/Comp_V1_Num_Vehicles_Modeled),0)-Comp_V1_Other_Incentives_Modeled-Comp_V1_Down_Payment_Modeled),0)*12,0),0) -> 0 | F97: 0 | G97: 0 | H97: 0 | I97: 0 | J97: 0 | K97: 0 | L97: 0 | M97: 0 | N97: 0 | O97: 0 | P97: 0 | Q97: 0 | R97: 0 | S97: 0 | T97: 0 | U97: 0 | V97: 0 | W97: 0 | X97: 0 | Y97: 0 | Z97: 0 | AA97: 0 | AB97: 0 | AC97: 0
B98: Interest Payments | E98: =IF(Comp_V1_Has_Loan_Ex=TRUE,IF(AND((COLUMN(E75)-COLUMN($E75))<Comp_V1_Loan_Term_Modeled+Comp_V1_Lease_Term_Modeled,(COLUMN(E75)-COLUMN($E75))>=Comp_V1_Lease_Term_Modeled),IPMT(Comp_V1_Loan_APR_Modeled/12,IF(Comp_V1_Has_Lease_Ex=TRUE,(COLUMN(E75)-COLUMN($D75)-Comp_V1_Lease_Term)*12,(COLUMN(E75)-COLUMN($D75))*12),Comp_V1_Loan_Term_Modeled*12,IF(Comp_V1_Has_Lease_Ex=TRUE,SUM(OFFSET($D77,0,Comp_V1_Lease_Term_Modeled,3,1)),Comp_V1_Base_Price_Ex-IF(Comp_V1_Tax_Incentives_Monetized="Yes",Comp_V1_Federal_Tax_Incentives_Modeled+IF(Comp_V1_State_Tax_Incentive_Cap_Modeled=0,Comp_V1_State_Tax_Incentives_Modeled,MIN(Comp_V1_State_Tax_Incentive_Cap_Modeled,Comp_V1_State_Tax_Incentives_Modeled*Comp_V1_Num_Vehicles_Modeled)/Comp_V1_Num_Vehicles_Modeled),0)-Comp_V1_Other_Incentives_Modeled-Comp_V1_Down_Payment_Modeled),0)*12,0),0) -> 0 | F98: 0 | G98: 0 | H98: 0 | I98: 0 | J98: 0 | K98: 0 | L98: 0 | M98: 0 | N98: 0 | O98: 0 | P98: 0 | Q98: 0 | R98: 0 | S98: 0 | T98: 0 | U98: 0 | V98: 0 | W98: 0 | X98: 0 | Y98: 0 | Z98: 0 | AA98: 0 | AB98: 0 | AC98: 0
B99: Subtotal Loan Cash Flows | D99: =SUM(D95:D96) -> 0 | E99: =SUM(E95:E96) -> 0 | F99: 0 | G99: 0 | H99: 0 | I99: 0 | J99: 0 | K99: 0 | L99: 0 | M99: 0 | N99: 0 | O99: 0 | P99: 0 | Q99: 0 | R99: 0 | S99: 0 | T99: 0 | U99: 0 | V99: 0 | W99: 0 | X99: 0 | Y99: 0 | Z99: 0 | AA99: 0 | AB99: 0 | AC99: 0
B100: Terminal Value | E100: =IF(OR(Comp_V1_Has_Loan_Ex=TRUE,Comp_V1_Has_Cash_Purchase_Ex=TRUE),IF((COLUMN(E75)-COLUMN($D75))=Comp_V1_Years_Usage_Modeled,SUM(E77:E79),0),0) -> 0 | F100: 0 | G100: 0 | H100: 0 | I100: 0 | J100: 0 | K100: 886.6856644 | L100: 0 | M100: 0 | N100: 0 | O100: 0 | P100: 0 | Q100: 0 | R100: 0 | S100: 0 | T100: 0 | U100: 0 | V100: 0 | W100: 0 | X100: 0 | Y100: 0 | Z100: 0 | AA100: 0 | AB100: 0 | AC100: 0
B102: Total Capital and Financing Costs | D102: =D83+D93+D99+D100 -> -26026 | E102: 0 | F102: 0 | G102: 0 | H102: 0 | I102: 0 | J102: 0 | K102: 886.6856644 | L102: 0 | M102: 0 | N102: 0 | O102: 0 | P102: 0 | Q102: 0 | R102: 0 | S102: 0 | T102: 0 | U102: 0 | V102: 0 | W102: 0 | X102: 0 | Y102: 0 | Z102: 0 | AA102: 0 | AB102: 0 | AC102: 0
B104: Fuel and Operating Costs
B105: Fuel Cost | E105: =IF(COLUMN(E75)-COLUMN($E75)<Comp_V1_Years_Usage_Modeled,-((Comp_V1_Gas_Usage_Ex*IF(Comp_V1_Fuel_Type_Ex="Diesel", Diesel_Price_Modeled, Gasoline_Price_Modeled)*IF(_Market="U.S.", Data!D$72, Data!D$75))+(Comp_V1_Electricity_Usage_Ex*IF(_Market="U.S.", Data!D$74, Data!D$76))*(Comp_Percent_Home_Charging_Modeled*Electricity_Price_Modeled+Comp_Percent_Public_Charging_Modeled*Public_Charging_Price_Modeled+Comp_Percent_En_Route_Charging_Modeled*En_Route_Charging_Price_Modeled)),0) -> -517.2830327 | F105: =IF(COLUMN(F75)-COLUMN($E75)<Comp_V1_Years_Usage_Modeled,-((Comp_V1_Gas_Usage_Ex*IF(Comp_V1_Fuel_Type_Ex="Diesel", Diesel_Price_Modeled, Gasoline_Price_Modeled)*IF(_Market="U.S.", Data!E$72, Data!E$75))+(Comp_V1_Electricity_Usage_Ex*IF(_Market="U.S.", Data!E$74, Data!E$76))*(Comp_Percent_Home_Charging_Modeled*Electricity_Price_Modeled+Comp_Percent_Public_Charging_Modeled*Public_Charging_Price_Modeled+Comp_Percent_En_Route_Charging_Modeled*En_Route_Charging_Price_Modeled)),0) -> -591.6902176 | G105: =IF(COLUMN(G75)-COLUMN($E75)<Comp_V1_Years_Usage_Modeled,-((Comp_V1_Gas_Usage_Ex*IF(Comp_V1_Fuel_Type_Ex="Diesel", Diesel_Price_Modeled, Gasoline_Price_Modeled)*IF(_Market="U.S.", Data!F$72, Data!F$75))+(Comp_V1_Electricity_Usage_Ex*IF(_Market="U.S.", Data!F$74, Data!F$76))*(Comp_Percent_Home_Charging_Modeled*Electricity_Price_Modeled+Comp_Percent_Public_Charging_Modeled*Public_Charging_Price_Modeled+Comp_Percent_En_Route_Charging_Modeled*En_Route_Charging_Price_Modeled)),0) -> -627.4946737 | H105: =IF(COLUMN(H75)-COLUMN($E75)<Comp_V1_Years_Usage_Modeled,-((Comp_V1_Gas_Usage_Ex*IF(Comp_V1_Fuel_Type_Ex="Diesel", Diesel_Price_Modeled, Gasoline_Price_Modeled)*IF(_Market="U.S.", Data!G$72, Data!G$75))+(Comp_V1_Electricity_Usage_Ex*IF(_Market="U.S.", Data!G$74, Data!G$76))*(Comp_Percent_Home_Charging_Modeled*Electricity_Price_Modeled+Comp_Percent_Public_Charging_Modeled*Public_Charging_Price_Modeled+Comp_Percent_En_Route_Charging_Modeled*En_Route_Charging_Price_Modeled)),0) -> -633.786619 | I105: =IF(COLUMN(I75)-COLUMN($E75)<Comp_V1_Years_Usage_Modeled,-((Comp_V1_Gas_Usage_Ex*IF(Comp_V1_Fuel_Type_Ex="Diesel", Diesel_Price_Modeled, Gasoline_Price_Modeled)*IF(_Market="U.S.", Data!H$72, Data!H$75))+(Comp_V1_Electricity_Usage_Ex*IF(_Market="U.S.", Data!H$74, Data!H$76))*(Comp_Percent_Home_Charging_Modeled*Electricity_Price_Modeled+Comp_Percent_Public_Charging_Modeled*Public_Charging_Price_Modeled+Comp_Percent_En_Route_Charging_Modeled*En_Route_Charging_Price_Modeled)),0) -> -642.325807 | J105: =IF(COLUMN(J75)-COLUMN($E75)<Comp_V1_Years_Usage_Modeled,-((Comp_V1_Gas_Usage_Ex*IF(Comp_V1_Fuel_Type_Ex="Diesel", Diesel_Price_Modeled, Gasoline_Price_Modeled)*IF(_Market="U.S.", Data!I$72, Data!I$75))+(Comp_V1_Electricity_Usage_Ex*IF(_Market="U.S.", Data!I$74, Data!I$76))*(Comp_Percent_Home_Charging_Modeled*Electricity_Price_Modeled+Comp_Percent_Public_Charging_Modeled*Public_Charging_Price_Modeled+Comp_Percent_En_Route_Charging_Modeled*En_Route_Charging_Price_Modeled)),0) -> -655.2898728 | K105: =IF(COLUMN(K75)-COLUMN($E75)<Comp_V1_Years_Usage_Modeled,-((Comp_V1_Gas_Usage_Ex*IF(Comp_V1_Fuel_Type_Ex="Diesel", Diesel_Price_Modeled, Gasoline_Price_Modeled)*IF(_Market="U.S.", Data!J$72, Data!J$75))+(Comp_V1_Electricity_Usage_Ex*IF(_Market="U.S.", Data!J$74, Data!J$76))*(Comp_Percent_Home_Charging_Modeled*Electricity_Price_Modeled+Comp_Percent_Public_Charging_Modeled*Public_Charging_Price_Modeled+Comp_Percent_En_Route_Charging_Modeled*En_Route_Charging_Price_Modeled)),0) -> -666.5662046 | L105: =IF(COLUMN(L75)-COLUMN($E75)<Comp_V1_Years_Usage_Modeled,-((Comp_V1_Gas_Usage_Ex*IF(Comp_V1_Fuel_Type_Ex="Diesel", Diesel_Price_Modeled, Gasoline_Price_Modeled)*IF(_Market="U.S.", Data!K$72, Data!K$75))+(Comp_V1_Electricity_Usage_Ex*IF(_Market="U.S.", Data!K$74, Data!K$76))*(Comp_Percent_Home_Charging_Modeled*Electricity_Price_Modeled+Comp_Percent_Public_Charging_Modeled*Public_Charging_Price_Modeled+Comp_Percent_En_Route_Charging_Modeled*En_Route_Charging_Price_Modeled)),0) -> 0 | M105: =IF(COLUMN(M75)-COLUMN($E75)<Comp_V1_Years_Usage_Modeled,-((Comp_V1_Gas_Usage_Ex*IF(Comp_V1_Fuel_Type_Ex="Diesel", Diesel_Price_Modeled, Gasoline_Price_Modeled)*IF(_Market="U.S.", Data!L$72, Data!L$75))+(Comp_V1_Electricity_Usage_Ex*IF(_Market="U.S.", Data!L$74, Data!L$76))*(Comp_Percent_Home_Charging_Modeled*Electricity_Price_Modeled+Comp_Percent_Public_Charging_Modeled*Public_Charging_Price_Modeled+Comp_Percent_En_Route_Charging_Modeled*En_Route_Charging_Price_Modeled)),0) -> 0 | N105: =IF(COLUMN(N75)-COLUMN($E75)<Comp_V1_Years_Usage_Modeled,-((Comp_V1_Gas_Usage_Ex*IF(Comp_V1_Fuel_Type_Ex="Diesel", Diesel_Price_Modeled, Gasoline_Price_Modeled)*IF(_Market="U.S.", Data!M$72, Data!M$75))+(Comp_V1_Electricity_Usage_Ex*IF(_Market="U.S.", Data!M$74, Data!M$76))*(Comp_Percent_Home_Charging_Modeled*Electricity_Price_Modeled+Comp_Percent_Public_Charging_Modeled*Public_Charging_Price_Modeled+Comp_Percent_En_Route_Charging_Modeled*En_Route_Charging_Price_Modeled)),0) -> 0 | O105: =IF(COLUMN(O75)-COLUMN($E75)<Comp_V1_Years_Usage_Modeled,-((Comp_V1_Gas_Usage_Ex*IF(Comp_V1_Fuel_Type_Ex="Diesel", Diesel_Price_Modeled, Gasoline_Price_Modeled)*IF(_Market="U.S.", Data!N$72, Data!N$75))+(Comp_V1_Electricity_Usage_Ex*IF(_Market="U.S.", Data!N$74, Data!N$76))*(Comp_Percent_Home_Charging_Modeled*Electricity_Price_Modeled+Comp_Percent_Public_Charging_Modeled*Public_Charging_Price_Modeled+Comp_Percent_En_Route_Charging_Modeled*En_Route_Charging_Price_Modeled)),0) -> 0 | P105: =IF(COLUMN(P75)-COLUMN($E75)<Comp_V1_Years_Usage_Modeled,-((Comp_V1_Gas_Usage_Ex*IF(Comp_V1_Fuel_Type_Ex="Diesel", Diesel_Price_Modeled, Gasoline_Price_Modeled)*IF(_Market="U.S.", Data!O$72, Data!O$75))+(Comp_V1_Electricity_Usage_Ex*IF(_Market="U.S.", Data!O$74, Data!O$76))*(Comp_Percent_Home_Charging_Modeled*Electricity_Price_Modeled+Comp_Percent_Public_Charging_Modeled*Public_Charging_Price_Modeled+Comp_Percent_En_Route_Charging_Modeled*En_Route_Charging_Price_Modeled)),0) -> 0 | Q105: =IF(COLUMN(Q75)-COLUMN($E75)<Comp_V1_Years_Usage_Modeled,-((Comp_V1_Gas_Usage_Ex*IF(Comp_V1_Fuel_Type_Ex="Diesel", Diesel_Price_Modeled, Gasoline_Price_Modeled)*IF(_Market="U.S.", Data!P$72, Data!P$75))+(Comp_V1_Electricity_Usage_Ex*IF(_Market="U.S.", Data!P$74, Data!P$76))*(Comp_Percent_Home_Charging_Modeled*Electricity_Price_Modeled+Comp_Percent_Public_Charging_Modeled*Public_Charging_Price_Modeled+Comp_Percent_En_Route_Charging_Modeled*En_Route_Charging_Price_Modeled)),0) -> 0 | R105: =IF(COLUMN(R75)-COLUMN($E75)<Comp_V1_Years_Usage_Modeled,-((Comp_V1_Gas_Usage_Ex*IF(Comp_V1_Fuel_Type_Ex="Diesel", Diesel_Price_Modeled, Gasoline_Price_Modeled)*IF(_Market="U.S.", Data!Q$72, Data!Q$75))+(Comp_V1_Electricity_Usage_Ex*IF(_Market="U.S.", Data!Q$74, Data!Q$76))*(Comp_Percent_Home_Charging_Modeled*Electricity_Price_Modeled+Comp_Percent_Public_Charging_Modeled*Public_Charging_Price_Modeled+Comp_Percent_En_Route_Charging_Modeled*En_Route_Charging_Price_Modeled)),0) -> 0 | S105: =IF(COLUMN(S75)-COLUMN($E75)<Comp_V1_Years_Usage_Modeled,-((Comp_V1_Gas_Usage_Ex*IF(Comp_V1_Fuel_Type_Ex="Diesel", Diesel_Price_Modeled, Gasoline_Price_Modeled)*IF(_Market="U.S.", Data!R$72, Data!R$75))+(Comp_V1_Electricity_Usage_Ex*IF(_Market="U.S.", Data!R$74, Data!R$76))*(Comp_Percent_Home_Charging_Modeled*Electricity_Price_Modeled+Comp_Percent_Public_Charging_Modeled*Public_Charging_Price_Modeled+Comp_Percent_En_Route_Charging_Modeled*En_Route_Charging_Price_Modeled)),0) -> 0 | T105: =IF(COLUMN(T75)-COLUMN($E75)<Comp_V1_Years_Usage_Modeled,-((Comp_V1_Gas_Usage_Ex*IF(Comp_V1_Fuel_Type_Ex="Diesel", Diesel_Price_Modeled, Gasoline_Price_Modeled)*IF(_Market="U.S.", Data!S$72, Data!S$75))+(Comp_V1_Electricity_Usage_Ex*IF(_Market="U.S.", Data!S$74, Data!S$76))*(Comp_Percent_Home_Charging_Modeled*Electricity_Price_Modeled+Comp_Percent_Public_Charging_Modeled*Public_Charging_Price_Modeled+Comp_Percent_En_Route_Charging_Modeled*En_Route_Charging_Price_Modeled)),0) -> 0 | U105: =IF(COLUMN(U75)-COLUMN($E75)<Comp_V1_Years_Usage_Modeled,-((Comp_V1_Gas_Usage_Ex*IF(Comp_V1_Fuel_Type_Ex="Diesel", Diesel_Price_Modeled, Gasoline_Price_Modeled)*IF(_Market="U.S.", Data!T$72, Data!T$75))+(Comp_V1_Electricity_Usage_Ex*IF(_Market="U.S.", Data!T$74, Data!T$76))*(Comp_Percent_Home_Charging_Modeled*Electricity_Price_Modeled+Comp_Percent_Public_Charging_Modeled*Public_Charging_Price_Modeled+Comp_Percent_En_Route_Charging_Modeled*En_Route_Charging_Price_Modeled)),0) -> 0 | V105: =IF(COLUMN(V75)-COLUMN($E75)<Comp_V1_Years_Usage_Modeled,-((Comp_V1_Gas_Usage_Ex*IF(Comp_V1_Fuel_Type_Ex="Diesel", Diesel_Price_Modeled, Gasoline_Price_Modeled)*IF(_Market="U.S.", Data!U$72, Data!U$75))+(Comp_V1_Electricity_Usage_Ex*IF(_Market="U.S.", Data!U$74, Data!U$76))*(Comp_Percent_Home_Charging_Modeled*Electricity_Price_Modeled+Comp_Percent_Public_Charging_Modeled*Public_Charging_Price_Modeled+Comp_Percent_En_Route_Charging_Modeled*En_Route_Charging_Price_Modeled)),0) -> 0 | W105: =IF(COLUMN(W75)-COLUMN($E75)<Comp_V1_Years_Usage_Modeled,-((Comp_V1_Gas_Usage_Ex*IF(Comp_V1_Fuel_Type_Ex="Diesel", Diesel_Price_Modeled, Gasoline_Price_Modeled)*IF(_Market="U.S.", Data!V$72, Data!V$75))+(Comp_V1_Electricity_Usage_Ex*IF(_Market="U.S.", Data!V$74, Data!V$76))*(Comp_Percent_Home_Charging_Modeled*Electricity_Price_Modeled+Comp_Percent_Public_Charging_Modeled*Public_Charging_Price_Modeled+Comp_Percent_En_Route_Charging_Modeled*En_Route_Charging_Price_Modeled)),0) -> 0 | X105: =IF(COLUMN(X75)-COLUMN($E75)<Comp_V1_Years_Usage_Modeled,-((Comp_V1_Gas_Usage_Ex*IF(Comp_V1_Fuel_Type_Ex="Diesel", Diesel_Price_Modeled, Gasoline_Price_Modeled)*IF(_Market="U.S.", Data!W$72, Data!W$75))+(Comp_V1_Electricity_Usage_Ex*IF(_Market="U.S.", Data!W$74, Data!W$76))*(Comp_Percent_Home_Charging_Modeled*Electricity_Price_Modeled+Comp_Percent_Public_Charging_Modeled*Public_Charging_Price_Modeled+Comp_Percent_En_Route_Charging_Modeled*En_Route_Charging_Price_Modeled)),0) -> 0 | Y105: =IF(COLUMN(Y75)-COLUMN($E75)<Comp_V1_Years_Usage_Modeled,-((Comp_V1_Gas_Usage_Ex*IF(Comp_V1_Fuel_Type_Ex="Diesel", Diesel_Price_Modeled, Gasoline_Price_Modeled)*IF(_Market="U.S.", Data!X$72, Data!X$75))+(Comp_V1_Electricity_Usage_Ex*IF(_Market="U.S.", Data!X$74, Data!X$76))*(Comp_Percent_Home_Charging_Modeled*Electricity_Price_Modeled+Comp_Percent_Public_Charging_Modeled*Public_Charging_Price_Modeled+Comp_Percent_En_Route_Charging_Modeled*En_Route_Charging_Price_Modeled)),0) -> 0 | Z105: =IF(COLUMN(Z75)-COLUMN($E75)<Comp_V1_Years_Usage_Modeled,-((Comp_V1_Gas_Usage_Ex*IF(Comp_V1_Fuel_Type_Ex="Diesel", Diesel_Price_Modeled, Gasoline_Price_Modeled)*IF(_Market="U.S.", Data!Y$72, Data!Y$75))+(Comp_V1_Electricity_Usage_Ex*IF(_Market="U.S.", Data!Y$74, Data!Y$76))*(Comp_Percent_Home_Charging_Modeled*Electricity_Price_Modeled+Comp_Percent_Public_Charging_Modeled*Public_Charging_Price_Modeled+Comp_Percent_En_Route_Charging_Modeled*En_Route_Charging_Price_Modeled)),0) -> 0 | AA105: =IF(COLUMN(AA75)-COLUMN($E75)<Comp_V1_Years_Usage_Modeled,-((Comp_V1_Gas_Usage_Ex*IF(Comp_V1_Fuel_Type_Ex="Diesel", Diesel_Price_Modeled, Gasoline_Price_Modeled)*IF(_Market="U.S.", Data!Z$72, Data!Z$75))+(Comp_V1_Electricity_Usage_Ex*IF(_Market="U.S.", Data!Z$74, Data!Z$76))*(Comp_Percent_Home_Charging_Modeled*Electricity_Price_Modeled+Comp_Percent_Public_Charging_Modeled*Public_Charging_Price_Modeled+Comp_Percent_En_Route_Charging_Modeled*En_Route_Charging_Price_Modeled)),0) -> 0 | AB105: =IF(COLUMN(AB75)-COLUMN($E75)<Comp_V1_Years_Usage_Modeled,-((Comp_V1_Gas_Usage_Ex*IF(Comp_V1_Fuel_Type_Ex="Diesel", Diesel_Price_Modeled, Gasoline_Price_Modeled)*IF(_Market="U.S.", Data!AA$72, Data!AA$75))+(Comp_V1_Electricity_Usage_Ex*IF(_Market="U.S.", Data!AA$74, Data!AA$76))*(Comp_Percent_Home_Charging_Modeled*Electricity_Price_Modeled+Comp_Percent_Public_Charging_Modeled*Public_Charging_Price_Modeled+Comp_Percent_En_Route_Charging_Modeled*En_Route_Charging_Price_Modeled)),0) -> 0 | AC105: =IF(COLUMN(AC75)-COLUMN($E75)<Comp_V1_Years_Usage_Modeled,-((Comp_V1_Gas_Usage_Ex*IF(Comp_V1_Fuel_Type_Ex="Diesel", Diesel_Price_Modeled, Gasoline_Price_Modeled)*IF(_Market="U.S.", Data!AB$72, Data!AB$75))+(Comp_V1_Electricity_Usage_Ex*IF(_Market="U.S.", Data!AB$74, Data!AB$76))*(Comp_Percent_Home_Charging_Modeled*Electricity_Price_Modeled+Comp_Percent_Public_Charging_Modeled*Public_Charging_Price_Modeled+Comp_Percent_En_Route_Charging_Modeled*En_Route_Charging_Price_Modeled)),0) -> 0
B106: Maintenance and Repair Cost | E106: =-IF(_Comp_V1_Maint_Repair_Cost_Use_Default="Yes",IF(COLUMN(E75)-COLUMN($E75)<Comp_V1_Years_Usage_Modeled,VLOOKUP(_Comp_V1_Vehicle_Vehicle_Class & _Comp_V1_Vehicle_Drivetrain & _Market,DB_Maint_Repair_Costs[],COLUMN(E75)-COLUMN($E75)+COLUMN(DB_Maint_Repair_Costs[[#Headers],[Year 1 ]]),FALSE)*Comp_V1_VMT_Modeled,0),IF(AND(COLUMN(E75)-COLUMN($E75)<Comp_V1_Years_Usage_Modeled,COLUMN(E75)-COLUMN($E75)<5),Comp_V1_Maint_Repair_Cost_Year_1_Modeled*Comp_V1_VMT_Modeled,IF(AND(COLUMN(E75)-COLUMN($E75)<Comp_V1_Years_Usage_Modeled,COLUMN(E75)-COLUMN($E75)>=5),Comp_V1_Maint_Repair_Cost_Year_5_Modeled*Comp_V1_VMT_Modeled,0)))*Data!D$83 -> -600 | F106: =-IF(_Comp_V1_Maint_Repair_Cost_Use_Default="Yes",IF(COLUMN(F75)-COLUMN($E75)<Comp_V1_Years_Usage_Modeled,VLOOKUP(_Comp_V1_Vehicle_Vehicle_Class & _Comp_V1_Vehicle_Drivetrain & _Market,DB_Maint_Repair_Costs[],COLUMN(F75)-COLUMN($E75)+COLUMN(DB_Maint_Repair_Costs[[#Headers],[Year 1 ]]),FALSE)*Comp_V1_VMT_Modeled,0),IF(AND(COLUMN(F75)-COLUMN($E75)<Comp_V1_Years_Usage_Modeled,COLUMN(F75)-COLUMN($E75)<5),Comp_V1_Maint_Repair_Cost_Year_1_Modeled*Comp_V1_VMT_Modeled,IF(AND(COLUMN(F75)-COLUMN($E75)<Comp_V1_Years_Usage_Modeled,COLUMN(F75)-COLUMN($E75)>=5),Comp_V1_Maint_Repair_Cost_Year_5_Modeled*Comp_V1_VMT_Modeled,0)))*Data!E$83 -> -612 | G106: =-IF(_Comp_V1_Maint_Repair_Cost_Use_Default="Yes",IF(COLUMN(G75)-COLUMN($E75)<Comp_V1_Years_Usage_Modeled,VLOOKUP(_Comp_V1_Vehicle_Vehicle_Class & _Comp_V1_Vehicle_Drivetrain & _Market,DB_Maint_Repair_Costs[],COLUMN(G75)-COLUMN($E75)+COLUMN(DB_Maint_Repair_Costs[[#Headers],[Year 1 ]]),FALSE)*Comp_V1_VMT_Modeled,0),IF(AND(COLUMN(G75)-COLUMN($E75)<Comp_V1_Years_Usage_Modeled,COLUMN(G75)-COLUMN($E75)<5),Comp_V1_Maint_Repair_Cost_Year_1_Modeled*Comp_V1_VMT_Modeled,IF(AND(COLUMN(G75)-COLUMN($E75)<Comp_V1_Years_Usage_Modeled,COLUMN(G75)-COLUMN($E75)>=5),Comp_V1_Maint_Repair_Cost_Year_5_Modeled*Comp_V1_VMT_Modeled,0)))*Data!F$83 -> -624.24 | H106: =-IF(_Comp_V1_Maint_Repair_Cost_Use_Default="Yes",IF(COLUMN(H75)-COLUMN($E75)<Comp_V1_Years_Usage_Modeled,VLOOKUP(_Comp_V1_Vehicle_Vehicle_Class & _Comp_V1_Vehicle_Drivetrain & _Market,DB_Maint_Repair_Costs[],COLUMN(H75)-COLUMN($E75)+COLUMN(DB_Maint_Repair_Costs[[#Headers],[Year 1 ]]),FALSE)*Comp_V1_VMT_Modeled,0),IF(AND(COLUMN(H75)-COLUMN($E75)<Comp_V1_Years_Usage_Modeled,COLUMN(H75)-COLUMN($E75)<5),Comp_V1_Maint_Repair_Cost_Year_1_Modeled*Comp_V1_VMT_Modeled,IF(AND(COLUMN(H75)-COLUMN($E75)<Comp_V1_Years_Usage_Modeled,COLUMN(H75)-COLUMN($E75)>=5),Comp_V1_Maint_Repair_Cost_Year_5_Modeled*Comp_V1_VMT_Modeled,0)))*Data!G$83 -> -636.7248 | I106: =-IF(_Comp_V1_Maint_Repair_Cost_Use_Default="Yes",IF(COLUMN(I75)-COLUMN($E75)<Comp_V1_Years_Usage_Modeled,VLOOKUP(_Comp_V1_Vehicle_Vehicle_Class & _Comp_V1_Vehicle_Drivetrain & _Market,DB_Maint_Repair_Costs[],COLUMN(I75)-COLUMN($E75)+COLUMN(DB_Maint_Repair_Costs[[#Headers],[Year 1 ]]),FALSE)*Comp_V1_VMT_Modeled,0),IF(AND(COLUMN(I75)-COLUMN($E75)<Comp_V1_Years_Usage_Modeled,COLUMN(I75)-COLUMN($E75)<5),Comp_V1_Maint_Repair_Cost_Year_1_Modeled*Comp_V1_VMT_Modeled,IF(AND(COLUMN(I75)-COLUMN($E75)<Comp_V1_Years_Usage_Modeled,COLUMN(I75)-COLUMN($E75)>=5),Comp_V1_Maint_Repair_Cost_Year_5_Modeled*Comp_V1_VMT_Modeled,0)))*Data!H$83 -> -649.459296 | J106: =-IF(_Comp_V1_Maint_Repair_Cost_Use_Default="Yes",IF(COLUMN(J75)-COLUMN($E75)<Comp_V1_Years_Usage_Modeled,VLOOKUP(_Comp_V1_Vehicle_Vehicle_Class & _Comp_V1_Vehicle_Drivetrain & _Market,DB_Maint_Repair_Costs[],COLUMN(J75)-COLUMN($E75)+COLUMN(DB_Maint_Repair_Costs[[#Headers],[Year 1 ]]),FALSE)*Comp_V1_VMT_Modeled,0),IF(AND(COLUMN(J75)-COLUMN($E75)<Comp_V1_Years_Usage_Modeled,COLUMN(J75)-COLUMN($E75)<5),Comp_V1_Maint_Repair_Cost_Year_1_Modeled*Comp_V1_VMT_Modeled,IF(AND(COLUMN(J75)-COLUMN($E75)<Comp_V1_Years_Usage_Modeled,COLUMN(J75)-COLUMN($E75)>=5),Comp_V1_Maint_Repair_Cost_Year_5_Modeled*Comp_V1_VMT_Modeled,0)))*Data!I$83 -> -861.1830265 | K106: =-IF(_Comp_V1_Maint_Repair_Cost_Use_Default="Yes",IF(COLUMN(K75)-COLUMN($E75)<Comp_V1_Years_Usage_Modeled,VLOOKUP(_Comp_V1_Vehicle_Vehicle_Class & _Comp_V1_Vehicle_Drivetrain & _Market,DB_Maint_Repair_Costs[],COLUMN(K75)-COLUMN($E75)+COLUMN(DB_Maint_Repair_Costs[[#Headers],[Year 1 ]]),FALSE)*Comp_V1_VMT_Modeled,0),IF(AND(COLUMN(K75)-COLUMN($E75)<Comp_V1_Years_Usage_Modeled,COLUMN(K75)-COLUMN($E75)<5),Comp_V1_Maint_Repair_Cost_Year_1_Modeled*Comp_V1_VMT_Modeled,IF(AND(COLUMN(K75)-COLUMN($E75)<Comp_V1_Years_Usage_Modeled,COLUMN(K75)-COLUMN($E75)>=5),Comp_V1_Maint_Repair_Cost_Year_5_Modeled*Comp_V1_VMT_Modeled,0)))*Data!J$83 -> -878.406687 | L106: =-IF(_Comp_V1_Maint_Repair_Cost_Use_Default="Yes",IF(COLUMN(L75)-COLUMN($E75)<Comp_V1_Years_Usage_Modeled,VLOOKUP(_Comp_V1_Vehicle_Vehicle_Class & _Comp_V1_Vehicle_Drivetrain & _Market,DB_Maint_Repair_Costs[],COLUMN(L75)-COLUMN($E75)+COLUMN(DB_Maint_Repair_Costs[[#Headers],[Year 1 ]]),FALSE)*Comp_V1_VMT_Modeled,0),IF(AND(COLUMN(L75)-COLUMN($E75)<Comp_V1_Years_Usage_Modeled,COLUMN(L75)-COLUMN($E75)<5),Comp_V1_Maint_Repair_Cost_Year_1_Modeled*Comp_V1_VMT_Modeled,IF(AND(COLUMN(L75)-COLUMN($E75)<Comp_V1_Years_Usage_Modeled,COLUMN(L75)-COLUMN($E75)>=5),Comp_V1_Maint_Repair_Cost_Year_5_Modeled*Comp_V1_VMT_Modeled,0)))*Data!K$83 -> 0 | M106: =-IF(_Comp_V1_Maint_Repair_Cost_Use_Default="Yes",IF(COLUMN(M75)-COLUMN($E75)<Comp_V1_Years_Usage_Modeled,VLOOKUP(_Comp_V1_Vehicle_Vehicle_Class & _Comp_V1_Vehicle_Drivetrain & _Market,DB_Maint_Repair_Costs[],COLUMN(M75)-COLUMN($E75)+COLUMN(DB_Maint_Repair_Costs[[#Headers],[Year 1 ]]),FALSE)*Comp_V1_VMT_Modeled,0),IF(AND(COLUMN(M75)-COLUMN($E75)<Comp_V1_Years_Usage_Modeled,COLUMN(M75)-COLUMN($E75)<5),Comp_V1_Maint_Repair_Cost_Year_1_Modeled*Comp_V1_VMT_Modeled,IF(AND(COLUMN(M75)-COLUMN($E75)<Comp_V1_Years_Usage_Modeled,COLUMN(M75)-COLUMN($E75)>=5),Comp_V1_Maint_Repair_Cost_Year_5_Modeled*Comp_V1_VMT_Modeled,0)))*Data!L$83 -> 0 | N106: =-IF(_Comp_V1_Maint_Repair_Cost_Use_Default="Yes",IF(COLUMN(N75)-COLUMN($E75)<Comp_V1_Years_Usage_Modeled,VLOOKUP(_Comp_V1_Vehicle_Vehicle_Class & _Comp_V1_Vehicle_Drivetrain & _Market,DB_Maint_Repair_Costs[],COLUMN(N75)-COLUMN($E75)+COLUMN(DB_Maint_Repair_Costs[[#Headers],[Year 1 ]]),FALSE)*Comp_V1_VMT_Modeled,0),IF(AND(COLUMN(N75)-COLUMN($E75)<Comp_V1_Years_Usage_Modeled,COLUMN(N75)-COLUMN($E75)<5),Comp_V1_Maint_Repair_Cost_Year_1_Modeled*Comp_V1_VMT_Modeled,IF(AND(COLUMN(N75)-COLUMN($E75)<Comp_V1_Years_Usage_Modeled,COLUMN(N75)-COLUMN($E75)>=5),Comp_V1_Maint_Repair_Cost_Year_5_Modeled*Comp_V1_VMT_Modeled,0)))*Data!M$83 -> 0 | O106: =-IF(_Comp_V1_Maint_Repair_Cost_Use_Default="Yes",IF(COLUMN(O75)-COLUMN($E75)<Comp_V1_Years_Usage_Modeled,VLOOKUP(_Comp_V1_Vehicle_Vehicle_Class & _Comp_V1_Vehicle_Drivetrain & _Market,DB_Maint_Repair_Costs[],COLUMN(O75)-COLUMN($E75)+COLUMN(DB_Maint_Repair_Costs[[#Headers],[Year 1 ]]),FALSE)*Comp_V1_VMT_Modeled,0),IF(AND(COLUMN(O75)-COLUMN($E75)<Comp_V1_Years_Usage_Modeled,COLUMN(O75)-COLUMN($E75)<5),Comp_V1_Maint_Repair_Cost_Year_1_Modeled*Comp_V1_VMT_Modeled,IF(AND(COLUMN(O75)-COLUMN($E75)<Comp_V1_Years_Usage_Modeled,COLUMN(O75)-COLUMN($E75)>=5),Comp_V1_Maint_Repair_Cost_Year_5_Modeled*Comp_V1_VMT_Modeled,0)))*Data!N$83 -> 0 | P106: =-IF(_Comp_V1_Maint_Repair_Cost_Use_Default="Yes",IF(COLUMN(P75)-COLUMN($E75)<Comp_V1_Years_Usage_Modeled,VLOOKUP(_Comp_V1_Vehicle_Vehicle_Class & _Comp_V1_Vehicle_Drivetrain & _Market,DB_Maint_Repair_Costs[],COLUMN(P75)-COLUMN($E75)+COLUMN(DB_Maint_Repair_Costs[[#Headers],[Year 1 ]]),FALSE)*Comp_V1_VMT_Modeled,0),IF(AND(COLUMN(P75)-COLUMN($E75)<Comp_V1_Years_Usage_Modeled,COLUMN(P75)-COLUMN($E75)<5),Comp_V1_Maint_Repair_Cost_Year_1_Modeled*Comp_V1_VMT_Modeled,IF(AND(COLUMN(P75)-COLUMN($E75)<Comp_V1_Years_Usage_Modeled,COLUMN(P75)-COLUMN($E75)>=5),Comp_V1_Maint_Repair_Cost_Year_5_Modeled*Comp_V1_VMT_Modeled,0)))*Data!O$83 -> 0 | Q106: =-IF(_Comp_V1_Maint_Repair_Cost_Use_Default="Yes",IF(COLUMN(Q75)-COLUMN($E75)<Comp_V1_Years_Usage_Modeled,VLOOKUP(_Comp_V1_Vehicle_Vehicle_Class & _Comp_V1_Vehicle_Drivetrain & _Market,DB_Maint_Repair_Costs[],COLUMN(Q75)-COLUMN($E75)+COLUMN(DB_Maint_Repair_Costs[[#Headers],[Year 1 ]]),FALSE)*Comp_V1_VMT_Modeled,0),IF(AND(COLUMN(Q75)-COLUMN($E75)<Comp_V1_Years_Usage_Modeled,COLUMN(Q75)-COLUMN($E75)<5),Comp_V1_Maint_Repair_Cost_Year_1_Modeled*Comp_V1_VMT_Modeled,IF(AND(COLUMN(Q75)-COLUMN($E75)<Comp_V1_Years_Usage_Modeled,COLUMN(Q75)-COLUMN($E75)>=5),Comp_V1_Maint_Repair_Cost_Year_5_Modeled*Comp_V1_VMT_Modeled,0)))*Data!P$83 -> 0 | R106: =-IF(_Comp_V1_Maint_Repair_Cost_Use_Default="Yes",IF(COLUMN(R75)-COLUMN($E75)<Comp_V1_Years_Usage_Modeled,VLOOKUP(_Comp_V1_Vehicle_Vehicle_Class & _Comp_V1_Vehicle_Drivetrain & _Market,DB_Maint_Repair_Costs[],COLUMN(R75)-COLUMN($E75)+COLUMN(DB_Maint_Repair_Costs[[#Headers],[Year 1 ]]),FALSE)*Comp_V1_VMT_Modeled,0),IF(AND(COLUMN(R75)-COLUMN($E75)<Comp_V1_Years_Usage_Modeled,COLUMN(R75)-COLUMN($E75)<5),Comp_V1_Maint_Repair_Cost_Year_1_Modeled*Comp_V1_VMT_Modeled,IF(AND(COLUMN(R75)-COLUMN($E75)<Comp_V1_Years_Usage_Modeled,COLUMN(R75)-COLUMN($E75)>=5),Comp_V1_Maint_Repair_Cost_Year_5_Modeled*Comp_V1_VMT_Modeled,0)))*Data!Q$83 -> 0 | S106: =-IF(_Comp_V1_Maint_Repair_Cost_Use_Default="Yes",IF(COLUMN(S75)-COLUMN($E75)<Comp_V1_Years_Usage_Modeled,VLOOKUP(_Comp_V1_Vehicle_Vehicle_Class & _Comp_V1_Vehicle_Drivetrain & _Market,DB_Maint_Repair_Costs[],COLUMN(S75)-COLUMN($E75)+COLUMN(DB_Maint_Repair_Costs[[#Headers],[Year 1 ]]),FALSE)*Comp_V1_VMT_Modeled,0),IF(AND(COLUMN(S75)-COLUMN($E75)<Comp_V1_Years_Usage_Modeled,COLUMN(S75)-COLUMN($E75)<5),Comp_V1_Maint_Repair_Cost_Year_1_Modeled*Comp_V1_VMT_Modeled,IF(AND(COLUMN(S75)-COLUMN($E75)<Comp_V1_Years_Usage_Modeled,COLUMN(S75)-COLUMN($E75)>=5),Comp_V1_Maint_Repair_Cost_Year_5_Modeled*Comp_V1_VMT_Modeled,0)))*Data!R$83 -> 0 | T106: =-IF(_Comp_V1_Maint_Repair_Cost_Use_Default="Yes",IF(COLUMN(T75)-COLUMN($E75)<Comp_V1_Years_Usage_Modeled,VLOOKUP(_Comp_V1_Vehicle_Vehicle_Class & _Comp_V1_Vehicle_Drivetrain & _Market,DB_Maint_Repair_Costs[],COLUMN(T75)-COLUMN($E75)+COLUMN(DB_Maint_Repair_Costs[[#Headers],[Year 1 ]]),FALSE)*Comp_V1_VMT_Modeled,0),IF(AND(COLUMN(T75)-COLUMN($E75)<Comp_V1_Years_Usage_Modeled,COLUMN(T75)-COLUMN($E75)<5),Comp_V1_Maint_Repair_Cost_Year_1_Modeled*Comp_V1_VMT_Modeled,IF(AND(COLUMN(T75)-COLUMN($E75)<Comp_V1_Years_Usage_Modeled,COLUMN(T75)-COLUMN($E75)>=5),Comp_V1_Maint_Repair_Cost_Year_5_Modeled*Comp_V1_VMT_Modeled,0)))*Data!S$83 -> 0 | U106: =-IF(_Comp_V1_Maint_Repair_Cost_Use_Default="Yes",IF(COLUMN(U75)-COLUMN($E75)<Comp_V1_Years_Usage_Modeled,VLOOKUP(_Comp_V1_Vehicle_Vehicle_Class & _Comp_V1_Vehicle_Drivetrain & _Market,DB_Maint_Repair_Costs[],COLUMN(U75)-COLUMN($E75)+COLUMN(DB_Maint_Repair_Costs[[#Headers],[Year 1 ]]),FALSE)*Comp_V1_VMT_Modeled,0),IF(AND(COLUMN(U75)-COLUMN($E75)<Comp_V1_Years_Usage_Modeled,COLUMN(U75)-COLUMN($E75)<5),Comp_V1_Maint_Repair_Cost_Year_1_Modeled*Comp_V1_VMT_Modeled,IF(AND(COLUMN(U75)-COLUMN($E75)<Comp_V1_Years_Usage_Modeled,COLUMN(U75)-COLUMN($E75)>=5),Comp_V1_Maint_Repair_Cost_Year_5_Modeled*Comp_V1_VMT_Modeled,0)))*Data!T$83 -> 0 | V106: =-IF(_Comp_V1_Maint_Repair_Cost_Use_Default="Yes",IF(COLUMN(V75)-COLUMN($E75)<Comp_V1_Years_Usage_Modeled,VLOOKUP(_Comp_V1_Vehicle_Vehicle_Class & _Comp_V1_Vehicle_Drivetrain & _Market,DB_Maint_Repair_Costs[],COLUMN(V75)-COLUMN($E75)+COLUMN(DB_Maint_Repair_Costs[[#Headers],[Year 1 ]]),FALSE)*Comp_V1_VMT_Modeled,0),IF(AND(COLUMN(V75)-COLUMN($E75)<Comp_V1_Years_Usage_Modeled,COLUMN(V75)-COLUMN($E75)<5),Comp_V1_Maint_Repair_Cost_Year_1_Modeled*Comp_V1_VMT_Modeled,IF(AND(COLUMN(V75)-COLUMN($E75)<Comp_V1_Years_Usage_Modeled,COLUMN(V75)-COLUMN($E75)>=5),Comp_V1_Maint_Repair_Cost_Year_5_Modeled*Comp_V1_VMT_Modeled,0)))*Data!U$83 -> 0 | W106: =-IF(_Comp_V1_Maint_Repair_Cost_Use_Default="Yes",IF(COLUMN(W75)-COLUMN($E75)<Comp_V1_Years_Usage_Modeled,VLOOKUP(_Comp_V1_Vehicle_Vehicle_Class & _Comp_V1_Vehicle_Drivetrain & _Market,DB_Maint_Repair_Costs[],COLUMN(W75)-COLUMN($E75)+COLUMN(DB_Maint_Repair_Costs[[#Headers],[Year 1 ]]),FALSE)*Comp_V1_VMT_Modeled,0),IF(AND(COLUMN(W75)-COLUMN($E75)<Comp_V1_Years_Usage_Modeled,COLUMN(W75)-COLUMN($E75)<5),Comp_V1_Maint_Repair_Cost_Year_1_Modeled*Comp_V1_VMT_Modeled,IF(AND(COLUMN(W75)-COLUMN($E75)<Comp_V1_Years_Usage_Modeled,COLUMN(W75)-COLUMN($E75)>=5),Comp_V1_Maint_Repair_Cost_Year_5_Modeled*Comp_V1_VMT_Modeled,0)))*Data!V$83 -> 0 | X106: =-IF(_Comp_V1_Maint_Repair_Cost_Use_Default="Yes",IF(COLUMN(X75)-COLUMN($E75)<Comp_V1_Years_Usage_Modeled,VLOOKUP(_Comp_V1_Vehicle_Vehicle_Class & _Comp_V1_Vehicle_Drivetrain & _Market,DB_Maint_Repair_Costs[],COLUMN(X75)-COLUMN($E75)+COLUMN(DB_Maint_Repair_Costs[[#Headers],[Year 1 ]]),FALSE)*Comp_V1_VMT_Modeled,0),IF(AND(COLUMN(X75)-COLUMN($E75)<Comp_V1_Years_Usage_Modeled,COLUMN(X75)-COLUMN($E75)<5),Comp_V1_Maint_Repair_Cost_Year_1_Modeled*Comp_V1_VMT_Modeled,IF(AND(COLUMN(X75)-COLUMN($E75)<Comp_V1_Years_Usage_Modeled,COLUMN(X75)-COLUMN($E75)>=5),Comp_V1_Maint_Repair_Cost_Year_5_Modeled*Comp_V1_VMT_Modeled,0)))*Data!W$83 -> 0 | Y106: =-IF(_Comp_V1_Maint_Repair_Cost_Use_Default="Yes",IF(COLUMN(Y75)-COLUMN($E75)<Comp_V1_Years_Usage_Modeled,VLOOKUP(_Comp_V1_Vehicle_Vehicle_Class & _Comp_V1_Vehicle_Drivetrain & _Market,DB_Maint_Repair_Costs[],COLUMN(Y75)-COLUMN($E75)+COLUMN(DB_Maint_Repair_Costs[[#Headers],[Year 1 ]]),FALSE)*Comp_V1_VMT_Modeled,0),IF(AND(COLUMN(Y75)-COLUMN($E75)<Comp_V1_Years_Usage_Modeled,COLUMN(Y75)-COLUMN($E75)<5),Comp_V1_Maint_Repair_Cost_Year_1_Modeled*Comp_V1_VMT_Modeled,IF(AND(COLUMN(Y75)-COLUMN($E75)<Comp_V1_Years_Usage_Modeled,COLUMN(Y75)-COLUMN($E75)>=5),Comp_V1_Maint_Repair_Cost_Year_5_Modeled*Comp_V1_VMT_Modeled,0)))*Data!X$83 -> 0 | Z106: =-IF(_Comp_V1_Maint_Repair_Cost_Use_Default="Yes",IF(COLUMN(Z75)-COLUMN($E75)<Comp_V1_Years_Usage_Modeled,VLOOKUP(_Comp_V1_Vehicle_Vehicle_Class & _Comp_V1_Vehicle_Drivetrain & _Market,DB_Maint_Repair_Costs[],COLUMN(Z75)-COLUMN($E75)+COLUMN(DB_Maint_Repair_Costs[[#Headers],[Year 1 ]]),FALSE)*Comp_V1_VMT_Modeled,0),IF(AND(COLUMN(Z75)-COLUMN($E75)<Comp_V1_Years_Usage_Modeled,COLUMN(Z75)-COLUMN($E75)<5),Comp_V1_Maint_Repair_Cost_Year_1_Modeled*Comp_V1_VMT_Modeled,IF(AND(COLUMN(Z75)-COLUMN($E75)<Comp_V1_Years_Usage_Modeled,COLUMN(Z75)-COLUMN($E75)>=5),Comp_V1_Maint_Repair_Cost_Year_5_Modeled*Comp_V1_VMT_Modeled,0)))*Data!Y$83 -> 0 | AA106: =-IF(_Comp_V1_Maint_Repair_Cost_Use_Default="Yes",IF(COLUMN(AA75)-COLUMN($E75)<Comp_V1_Years_Usage_Modeled,VLOOKUP(_Comp_V1_Vehicle_Vehicle_Class & _Comp_V1_Vehicle_Drivetrain & _Market,DB_Maint_Repair_Costs[],COLUMN(AA75)-COLUMN($E75)+COLUMN(DB_Maint_Repair_Costs[[#Headers],[Year 1 ]]),FALSE)*Comp_V1_VMT_Modeled,0),IF(AND(COLUMN(AA75)-COLUMN($E75)<Comp_V1_Years_Usage_Modeled,COLUMN(AA75)-COLUMN($E75)<5),Comp_V1_Maint_Repair_Cost_Year_1_Modeled*Comp_V1_VMT_Modeled,IF(AND(COLUMN(AA75)-COLUMN($E75)<Comp_V1_Years_Usage_Modeled,COLUMN(AA75)-COLUMN($E75)>=5),Comp_V1_Maint_Repair_Cost_Year_5_Modeled*Comp_V1_VMT_Modeled,0)))*Data!Z$83 -> 0 | AB106: =-IF(_Comp_V1_Maint_Repair_Cost_Use_Default="Yes",IF(COLUMN(AB75)-COLUMN($E75)<Comp_V1_Years_Usage_Modeled,VLOOKUP(_Comp_V1_Vehicle_Vehicle_Class & _Comp_V1_Vehicle_Drivetrain & _Market,DB_Maint_Repair_Costs[],COLUMN(AB75)-COLUMN($E75)+COLUMN(DB_Maint_Repair_Costs[[#Headers],[Year 1 ]]),FALSE)*Comp_V1_VMT_Modeled,0),IF(AND(COLUMN(AB75)-COLUMN($E75)<Comp_V1_Years_Usage_Modeled,COLUMN(AB75)-COLUMN($E75)<5),Comp_V1_Maint_Repair_Cost_Year_1_Modeled*Comp_V1_VMT_Modeled,IF(AND(COLUMN(AB75)-COLUMN($E75)<Comp_V1_Years_Usage_Modeled,COLUMN(AB75)-COLUMN($E75)>=5),Comp_V1_Maint_Repair_Cost_Year_5_Modeled*Comp_V1_VMT_Modeled,0)))*Data!AA$83 -> 0 | AC106: =-IF(_Comp_V1_Maint_Repair_Cost_Use_Default="Yes",IF(COLUMN(AC75)-COLUMN($E75)<Comp_V1_Years_Usage_Modeled,VLOOKUP(_Comp_V1_Vehicle_Vehicle_Class & _Comp_V1_Vehicle_Drivetrain & _Market,DB_Maint_Repair_Costs[],COLUMN(AC75)-COLUMN($E75)+COLUMN(DB_Maint_Repair_Costs[[#Headers],[Year 1 ]]),FALSE)*Comp_V1_VMT_Modeled,0),IF(AND(COLUMN(AC75)-COLUMN($E75)<Comp_V1_Years_Usage_Modeled,COLUMN(AC75)-COLUMN($E75)<5),Comp_V1_Maint_Repair_Cost_Year_1_Modeled*Comp_V1_VMT_Modeled,IF(AND(COLUMN(AC75)-COLUMN($E75)<Comp_V1_Years_Usage_Modeled,COLUMN(AC75)-COLUMN($E75)>=5),Comp_V1_Maint_Repair_Cost_Year_5_Modeled*Comp_V1_VMT_Modeled,0)))*Data!AB$83 -> 0
B107: Taxes and Fees | D107: =-Comp_V1_Initial_Taxes_Fees_Modeled-(Comp_V1_Initial_Percent_Base_Price_Modeled*Comp_V1_Base_Price_Ex) -> -1000 | E107: =-IF(COLUMN(E75)-COLUMN($E75)<Comp_V1_Years_Usage_Modeled,Comp_V1_Taxes_Fees_Modeled,0)*Data!D$83 -> -10 | F107: =-IF(COLUMN(F75)-COLUMN($E75)<Comp_V1_Years_Usage_Modeled,Comp_V1_Taxes_Fees_Modeled,0)*Data!E$83 -> -10.2 | G107: =-IF(COLUMN(G75)-COLUMN($E75)<Comp_V1_Years_Usage_Modeled,Comp_V1_Taxes_Fees_Modeled,0)*Data!F$83 -> -10.404 | H107: =-IF(COLUMN(H75)-COLUMN($E75)<Comp_V1_Years_Usage_Modeled,Comp_V1_Taxes_Fees_Modeled,0)*Data!G$83 -> -10.61208 | I107: =-IF(COLUMN(I75)-COLUMN($E75)<Comp_V1_Years_Usage_Modeled,Comp_V1_Taxes_Fees_Modeled,0)*Data!H$83 -> -10.8243216 | J107: =-IF(COLUMN(J75)-COLUMN($E75)<Comp_V1_Years_Usage_Modeled,Comp_V1_Taxes_Fees_Modeled,0)*Data!I$83 -> -11.04080803 | K107: =-IF(COLUMN(K75)-COLUMN($E75)<Comp_V1_Years_Usage_Modeled,Comp_V1_Taxes_Fees_Modeled,0)*Data!J$83 -> -11.26162419 | L107: =-IF(COLUMN(L75)-COLUMN($E75)<Comp_V1_Years_Usage_Modeled,Comp_V1_Taxes_Fees_Modeled,0)*Data!K$83 -> 0 | M107: =-IF(COLUMN(M75)-COLUMN($E75)<Comp_V1_Years_Usage_Modeled,Comp_V1_Taxes_Fees_Modeled,0)*Data!L$83 -> 0 | N107: =-IF(COLUMN(N75)-COLUMN($E75)<Comp_V1_Years_Usage_Modeled,Comp_V1_Taxes_Fees_Modeled,0)*Data!M$83 -> 0 | O107: =-IF(COLUMN(O75)-COLUMN($E75)<Comp_V1_Years_Usage_Modeled,Comp_V1_Taxes_Fees_Modeled,0)*Data!N$83 -> 0 | P107: =-IF(COLUMN(P75)-COLUMN($E75)<Comp_V1_Years_Usage_Modeled,Comp_V1_Taxes_Fees_Modeled,0)*Data!O$83 -> 0 | Q107: =-IF(COLUMN(Q75)-COLUMN($E75)<Comp_V1_Years_Usage_Modeled,Comp_V1_Taxes_Fees_Modeled,0)*Data!P$83 -> 0 | R107: =-IF(COLUMN(R75)-COLUMN($E75)<Comp_V1_Years_Usage_Modeled,Comp_V1_Taxes_Fees_Modeled,0)*Data!Q$83 -> 0 | S107: =-IF(COLUMN(S75)-COLUMN($E75)<Comp_V1_Years_Usage_Modeled,Comp_V1_Taxes_Fees_Modeled,0)*Data!R$83 -> 0 | T107: =-IF(COLUMN(T75)-COLUMN($E75)<Comp_V1_Years_Usage_Modeled,Comp_V1_Taxes_Fees_Modeled,0)*Data!S$83 -> 0 | U107: =-IF(COLUMN(U75)-COLUMN($E75)<Comp_V1_Years_Usage_Modeled,Comp_V1_Taxes_Fees_Modeled,0)*Data!T$83 -> 0 | V107: =-IF(COLUMN(V75)-COLUMN($E75)<Comp_V1_Years_Usage_Modeled,Comp_V1_Taxes_Fees_Modeled,0)*Data!U$83 -> 0 | W107: =-IF(COLUMN(W75)-COLUMN($E75)<Comp_V1_Years_Usage_Modeled,Comp_V1_Taxes_Fees_Modeled,0)*Data!V$83 -> 0 | X107: =-IF(COLUMN(X75)-COLUMN($E75)<Comp_V1_Years_Usage_Modeled,Comp_V1_Taxes_Fees_Modeled,0)*Data!W$83 -> 0 | Y107: =-IF(COLUMN(Y75)-COLUMN($E75)<Comp_V1_Years_Usage_Modeled,Comp_V1_Taxes_Fees_Modeled,0)*Data!X$83 -> 0 | Z107: =-IF(COLUMN(Z75)-COLUMN($E75)<Comp_V1_Years_Usage_Modeled,Comp_V1_Taxes_Fees_Modeled,0)*Data!Y$83 -> 0 | AA107: =-IF(COLUMN(AA75)-COLUMN($E75)<Comp_V1_Years_Usage_Modeled,Comp_V1_Taxes_Fees_Modeled,0)*Data!Z$83 -> 0 | AB107: =-IF(COLUMN(AB75)-COLUMN($E75)<Comp_V1_Years_Usage_Modeled,Comp_V1_Taxes_Fees_Modeled,0)*Data!AA$83 -> 0 | AC107: =-IF(COLUMN(AC75)-COLUMN($E75)<Comp_V1_Years_Usage_Modeled,Comp_V1_Taxes_Fees_Modeled,0)*Data!AB$83 -> 0
B108: Insurance Cost | E108: =-IF(COLUMN(E75)-COLUMN($E75)<Comp_V1_Years_Usage_Modeled,Comp_V1_Insurance_Cost_Modeled,0)*Data!D$83 -> -1222 | F108: =-IF(COLUMN(F75)-COLUMN($E75)<Comp_V1_Years_Usage_Modeled,Comp_V1_Insurance_Cost_Modeled,0)*Data!E$83 -> -1246.44 | G108: =-IF(COLUMN(G75)-COLUMN($E75)<Comp_V1_Years_Usage_Modeled,Comp_V1_Insurance_Cost_Modeled,0)*Data!F$83 -> -1271.3688 | H108: =-IF(COLUMN(H75)-COLUMN($E75)<Comp_V1_Years_Usage_Modeled,Comp_V1_Insurance_Cost_Modeled,0)*Data!G$83 -> -1296.796176 | I108: =-IF(COLUMN(I75)-COLUMN($E75)<Comp_V1_Years_Usage_Modeled,Comp_V1_Insurance_Cost_Modeled,0)*Data!H$83 -> -1322.7321 | J108: =-IF(COLUMN(J75)-COLUMN($E75)<Comp_V1_Years_Usage_Modeled,Comp_V1_Insurance_Cost_Modeled,0)*Data!I$83 -> -1349.186742 | K108: =-IF(COLUMN(K75)-COLUMN($E75)<Comp_V1_Years_Usage_Modeled,Comp_V1_Insurance_Cost_Modeled,0)*Data!J$83 -> -1376.170476 | L108: =-IF(COLUMN(L75)-COLUMN($E75)<Comp_V1_Years_Usage_Modeled,Comp_V1_Insurance_Cost_Modeled,0)*Data!K$83 -> 0 | M108: =-IF(COLUMN(M75)-COLUMN($E75)<Comp_V1_Years_Usage_Modeled,Comp_V1_Insurance_Cost_Modeled,0)*Data!L$83 -> 0 | N108: =-IF(COLUMN(N75)-COLUMN($E75)<Comp_V1_Years_Usage_Modeled,Comp_V1_Insurance_Cost_Modeled,0)*Data!M$83 -> 0 | O108: =-IF(COLUMN(O75)-COLUMN($E75)<Comp_V1_Years_Usage_Modeled,Comp_V1_Insurance_Cost_Modeled,0)*Data!N$83 -> 0 | P108: =-IF(COLUMN(P75)-COLUMN($E75)<Comp_V1_Years_Usage_Modeled,Comp_V1_Insurance_Cost_Modeled,0)*Data!O$83 -> 0 | Q108: =-IF(COLUMN(Q75)-COLUMN($E75)<Comp_V1_Years_Usage_Modeled,Comp_V1_Insurance_Cost_Modeled,0)*Data!P$83 -> 0 | R108: =-IF(COLUMN(R75)-COLUMN($E75)<Comp_V1_Years_Usage_Modeled,Comp_V1_Insurance_Cost_Modeled,0)*Data!Q$83 -> 0 | S108: =-IF(COLUMN(S75)-COLUMN($E75)<Comp_V1_Years_Usage_Modeled,Comp_V1_Insurance_Cost_Modeled,0)*Data!R$83 -> 0 | T108: =-IF(COLUMN(T75)-COLUMN($E75)<Comp_V1_Years_Usage_Modeled,Comp_V1_Insurance_Cost_Modeled,0)*Data!S$83 -> 0 | U108: =-IF(COLUMN(U75)-COLUMN($E75)<Comp_V1_Years_Usage_Modeled,Comp_V1_Insurance_Cost_Modeled,0)*Data!T$83 -> 0 | V108: =-IF(COLUMN(V75)-COLUMN($E75)<Comp_V1_Years_Usage_Modeled,Comp_V1_Insurance_Cost_Modeled,0)*Data!U$83 -> 0 | W108: =-IF(COLUMN(W75)-COLUMN($E75)<Comp_V1_Years_Usage_Modeled,Comp_V1_Insurance_Cost_Modeled,0)*Data!V$83 -> 0 | X108: =-IF(COLUMN(X75)-COLUMN($E75)<Comp_V1_Years_Usage_Modeled,Comp_V1_Insurance_Cost_Modeled,0)*Data!W$83 -> 0 | Y108: =-IF(COLUMN(Y75)-COLUMN($E75)<Comp_V1_Years_Usage_Modeled,Comp_V1_Insurance_Cost_Modeled,0)*Data!X$83 -> 0 | Z108: =-IF(COLUMN(Z75)-COLUMN($E75)<Comp_V1_Years_Usage_Modeled,Comp_V1_Insurance_Cost_Modeled,0)*Data!Y$83 -> 0 | AA108: =-IF(COLUMN(AA75)-COLUMN($E75)<Comp_V1_Years_Usage_Modeled,Comp_V1_Insurance_Cost_Modeled,0)*Data!Z$83 -> 0 | AB108: =-IF(COLUMN(AB75)-COLUMN($E75)<Comp_V1_Years_Usage_Modeled,Comp_V1_Insurance_Cost_Modeled,0)*Data!AA$83 -> 0 | AC108: =-IF(COLUMN(AC75)-COLUMN($E75)<Comp_V1_Years_Usage_Modeled,Comp_V1_Insurance_Cost_Modeled,0)*Data!AB$83 -> 0
B109: Subtotal Fuel and Operating Costs | D109: =SUM(D105:D108) -> -1000 | E109: -2349.283033 | F109: -2460.330218 | G109: -2533.507474 | H109: -2577.919675 | I109: -2625.341524 | J109: -2876.700449 | K109: -2932.404992 | L109: 0 | M109: 0 | N109: 0 | O109: 0 | P109: 0 | Q109: 0 | R109: 0 | S109: 0 | T109: 0 | U109: 0 | V109: 0 | W109: 0 | X109: 0 | Y109: 0 | Z109: 0 | AA109: 0 | AB109: 0 | AC109: 0
B111: Other Costs
B112: Cost of Carbon | E112: =-IF(COLUMN(E75)-COLUMN($E75)<Comp_V1_Years_Usage_Modeled,Comp_V1_CO2_Ex/2204.62*Carbon_Price_Modeled,0) -> 0 | F112: 0 | G112: 0 | H112: 0 | I112: 0 | J112: 0 | K112: 0 | L112: 0 | M112: 0 | N112: 0 | O112: 0 | P112: 0 | Q112: 0 | R112: 0 | S112: 0 | T112: 0 | U112: 0 | V112: 0 | W112: 0 | X112: 0 | Y112: 0 | Z112: 0 | AA112: 0 | AB112: 0 | AC112: 0
B113: Cost of Downtime from Public Charging | E113: =-IF(AND(COLUMN(E76)-COLUMN($E76)<Comp_V1_Years_Usage_Modeled, Cost_of_Downtime_from_Charging_Modeled<>0, Comp_Station_Max_Power_Modeled<>0),(Comp_V1_Electricity_Usage_Ex*Comp_Percent_Public_Charging_Modeled)/Comp_Station_Max_Power_Modeled*Cost_of_Downtime_from_Charging, 0) -> 0 | F113: 0 | G113: 0 | H113: 0 | I113: 0 | J113: 0 | K113: 0 | L113: 0 | M113: 0 | N113: 0 | O113: 0 | P113: 0 | Q113: 0 | R113: 0 | S113: 0 | T113: 0 | U113: 0 | V113: 0 | W113: 0 | X113: 0 | Y113: 0 | Z113: 0 | AA113: 0 | AB113: 0 | AC113: 0
B114: Subtotal Other Costs | D114: =SUM(D112:D113) -> 0 | E114: =SUM(E112:E113) -> 0 | F114: =SUM(F112:F113) -> 0 | G114: =SUM(G112:G113) -> 0 | H114: =SUM(H112:H113) -> 0 | I114: =SUM(I112:I113) -> 0 | J114: =SUM(J112:J113) -> 0 | K114: =SUM(K112:K113) -> 0 | L114: =SUM(L112:L113) -> 0 | M114: =SUM(M112:M113) -> 0 | N114: =SUM(N112:N113) -> 0 | O114: =SUM(O112:O113) -> 0 | P114: =SUM(P112:P113) -> 0 | Q114: =SUM(Q112:Q113) -> 0 | R114: =SUM(R112:R113) -> 0 | S114: =SUM(S112:S113) -> 0 | T114: =SUM(T112:T113) -> 0 | U114: =SUM(U112:U113) -> 0 | V114: =SUM(V112:V113) -> 0 | W114: =SUM(W112:W113) -> 0 | X114: =SUM(X112:X113) -> 0 | Y114: =SUM(Y112:Y113) -> 0 | Z114: =SUM(Z112:Z113) -> 0 | AA114: =SUM(AA112:AA113) -> 0 | AB114: =SUM(AB112:AB113) -> 0 | AC114: =SUM(AC112:AC113) -> 0
B116: Total Discounted Costs
B117: Total Annual Costs | D117: =D102+D109+D114 -> -27026 | E117: -2349.283033 | F117: -2460.330218 | G117: -2533.507474 | H117: -2577.919675 | I117: -2625.341524 | J117: -2876.700449 | K117: -2045.719328 | L117: 0 | M117: 0 | N117: 0 | O117: 0 | P117: 0 | Q117: 0 | R117: 0 | S117: 0 | T117: 0 | U117: 0 | V117: 0 | W117: 0 | X117: 0 | Y117: 0 | Z117: 0 | AA117: 0 | AB117: 0 | AC117: 0
B118: Discount Factor | C118: =Comp_Discount_Rate_Modeled -> 0 | D118: =(1/(1+$C118))^(COLUMN(D75)-COLUMN($D75)) -> 1 | E118: 1 | F118: 1 | G118: 1 | H118: 1 | I118: 1 | J118: 1 | K118: 1 | L118: 1 | M118: 1 | N118: 1 | O118: 1 | P118: 1 | Q118: 1 | R118: 1 | S118: 1 | T118: 1 | U118: 1 | V118: 1 | W118: 1 | X118: 1 | Y118: 1 | Z118: 1 | AA118: 1 | AB118: 1 | AC118: 1
B119: Discounted Total | D119: =D117*D118 -> -27026 | E119: =E117*E118 -> -2349.283033 | F119: =F117*F118 -> -2460.330218 | G119: -2533.507474 | H119: -2577.919675 | I119: -2625.341524 | J119: -2876.700449 | K119: -2045.719328 | L119: 0 | M119: 0 | N119: 0 | O119: 0 | P119: 0 | Q119: 0 | R119: 0 | S119: 0 | T119: 0 | U119: 0 | V119: 0 | W119: 0 | X119: 0 | Y119: 0 | Z119: 0 | AA119: 0 | AB119: 0 | AC119: 0
B120: Cumulative Discounted Total | D120: =IF((COLUMN(D75)-COLUMN($D75))<=Comp_V1_Years_Usage_Modeled,C120+D119,0) -> -27026 | E120: -29375.28303 | F120: -31835.61325 | G120: -34369.12072 | H120: -36947.0404 | I120: -39572.38192 | J120: -42449.08237 | K120: -44494.8017 | L120: 0 | M120: 0 | N120: 0 | O120: 0 | P120: 0 | Q120: 0 | R120: 0 | S120: 0 | T120: 0 | U120: 0 | V120: 0 | W120: 0 | X120: 0 | Y120: 0 | Z120: 0 | AA120: 0 | AB120: 0 | AC120: 0
B121: Annualized NPV Total Cost of Ownership | D121: =OFFSET($D120,0,Comp_V1_Years_Usage_Modeled)/Comp_V1_Years_Usage_Modeled -> -6356.400243
B123: Comparison EV Infrastructure
D124: Year 0 | E124: Year 1 | F124: Year 2 | G124: Year 3 | H124: Year 4 | I124: Year 5 | J124: Year 6 | K124: Year 7 | L124: Year 8 | M124: Year 9 | N124: Year 10 | O124: Year 11 | P124: Year 12 | Q124: Year 13 | R124: Year 14 | S124: Year 15 | T124: Year 16 | U124: Year 17 | V124: Year 18 | W124: Year 19 | X124: Year 20 | Y124: Year 21 | Z124: Year 22 | AA124: Year 23 | AB124: Year 24 | AC124: Year 25
B125: Capital and Financing Costs
B126: Cash
B127: Cash Payment | D127: =IF(AND(Comp_Inf_Has_Cash_Purchase_Ex=TRUE,_Comp_Include_Charging="Yes"),-Comp_Num_Stations_Modeled*Comp_Station_Cost_Modeled,0) -> 0
B128: Loan
B129: Down Payment | D129: =IF(AND(Comp_Inf_Has_Cash_Purchase_Ex=FALSE,_Comp_Include_Charging="Yes"),-Comp_Inf_Down_Payment_Modeled,0) -> 0
B130: Loan Payments | E130: =IF(AND(Comp_Inf_Has_Cash_Purchase_Ex=FALSE,_Comp_Include_Charging="Yes",(COLUMN(E124)-COLUMN($E124))<Comp_Inf_Loan_Term_Modeled),PMT(Comp_Inf_Loan_APR_Modeled/12,Comp_Inf_Loan_Term_Modeled*12,(Comp_Num_Stations_Modeled*Comp_Station_Cost_Modeled)-Comp_Inf_Down_Payment_Modeled,0)*12,0) -> 0 | F130: 0 | G130: 0 | H130: 0 | I130: 0 | J130: 0 | K130: 0 | L130: 0 | M130: 0 | N130: 0 | O130: 0 | P130: 0 | Q130: 0 | R130: 0 | S130: 0 | T130: 0 | U130: 0 | V130: 0 | W130: 0 | X130: 0 | Y130: 0 | Z130: 0 | AA130: 0 | AB130: 0 | AC130: 0
B131: Subtotal Loan Cash Flows | D131: =SUM(D129:D130) -> 0 | E131: 0 | F131: 0 | G131: 0 | H131: 0 | I131: 0 | J131: 0 | K131: 0 | L131: 0 | M131: 0 | N131: 0 | O131: 0 | P131: 0 | Q131: 0 | R131: 0 | S131: 0 | T131: 0 | U131: 0 | V131: 0 | W131: 0 | X131: 0 | Y131: 0 | Z131: 0 | AA131: 0 | AB131: 0 | AC131: 0
B133: Total Capital and Financing Costs | D133: =D127+D131 -> 0 | E133: =E127+E131 -> 0 | F133: 0 | G133: 0 | H133: 0 | I133: 0 | J133: 0 | K133: 0 | L133: 0 | M133: 0 | N133: 0 | O133: 0 | P133: 0 | Q133: 0 | R133: 0 | S133: 0 | T133: 0 | U133: 0 | V133: 0 | W133: 0 | X133: 0 | Y133: 0 | Z133: 0 | AA133: 0 | AB133: 0 | AC133: 0
B135: Operating Costs
B136: Maintenance Cost | E136: =-IF(AND(COLUMN(E124)-COLUMN($E124)<Comp_V1_Years_Usage_Modeled,_Comp_Include_Charging="Yes"),Comp_Station_Maint_Cost_Modeled*Comp_Num_Stations_Modeled,0)*Data!D$83 -> 0 | F136: =-IF(AND(COLUMN(F124)-COLUMN($E124)<Comp_V1_Years_Usage_Modeled,_Comp_Include_Charging="Yes"),Comp_Station_Maint_Cost_Modeled*Comp_Num_Stations_Modeled,0)*Data!E$83 -> 0 | G136: =-IF(AND(COLUMN(G124)-COLUMN($E124)<Comp_V1_Years_Usage_Modeled,_Comp_Include_Charging="Yes"),Comp_Station_Maint_Cost_Modeled*Comp_Num_Stations_Modeled,0)*Data!F$83 -> 0 | H136: =-IF(AND(COLUMN(H124)-COLUMN($E124)<Comp_V1_Years_Usage_Modeled,_Comp_Include_Charging="Yes"),Comp_Station_Maint_Cost_Modeled*Comp_Num_Stations_Modeled,0)*Data!G$83 -> 0 | I136: =-IF(AND(COLUMN(I124)-COLUMN($E124)<Comp_V1_Years_Usage_Modeled,_Comp_Include_Charging="Yes"),Comp_Station_Maint_Cost_Modeled*Comp_Num_Stations_Modeled,0)*Data!H$83 -> 0 | J136: =-IF(AND(COLUMN(J124)-COLUMN($E124)<Comp_V1_Years_Usage_Modeled,_Comp_Include_Charging="Yes"),Comp_Station_Maint_Cost_Modeled*Comp_Num_Stations_Modeled,0)*Data!I$83 -> 0 | K136: =-IF(AND(COLUMN(K124)-COLUMN($E124)<Comp_V1_Years_Usage_Modeled,_Comp_Include_Charging="Yes"),Comp_Station_Maint_Cost_Modeled*Comp_Num_Stations_Modeled,0)*Data!J$83 -> 0 | L136: =-IF(AND(COLUMN(L124)-COLUMN($E124)<Comp_V1_Years_Usage_Modeled,_Comp_Include_Charging="Yes"),Comp_Station_Maint_Cost_Modeled*Comp_Num_Stations_Modeled,0)*Data!K$83 -> 0 | M136: =-IF(AND(COLUMN(M124)-COLUMN($E124)<Comp_V1_Years_Usage_Modeled,_Comp_Include_Charging="Yes"),Comp_Station_Maint_Cost_Modeled*Comp_Num_Stations_Modeled,0)*Data!L$83 -> 0 | N136: =-IF(AND(COLUMN(N124)-COLUMN($E124)<Comp_V1_Years_Usage_Modeled,_Comp_Include_Charging="Yes"),Comp_Station_Maint_Cost_Modeled*Comp_Num_Stations_Modeled,0)*Data!M$83 -> 0 | O136: =-IF(AND(COLUMN(O124)-COLUMN($E124)<Comp_V1_Years_Usage_Modeled,_Comp_Include_Charging="Yes"),Comp_Station_Maint_Cost_Modeled*Comp_Num_Stations_Modeled,0)*Data!N$83 -> 0 | P136: =-IF(AND(COLUMN(P124)-COLUMN($E124)<Comp_V1_Years_Usage_Modeled,_Comp_Include_Charging="Yes"),Comp_Station_Maint_Cost_Modeled*Comp_Num_Stations_Modeled,0)*Data!O$83 -> 0 | Q136: =-IF(AND(COLUMN(Q124)-COLUMN($E124)<Comp_V1_Years_Usage_Modeled,_Comp_Include_Charging="Yes"),Comp_Station_Maint_Cost_Modeled*Comp_Num_Stations_Modeled,0)*Data!P$83 -> 0 | R136: =-IF(AND(COLUMN(R124)-COLUMN($E124)<Comp_V1_Years_Usage_Modeled,_Comp_Include_Charging="Yes"),Comp_Station_Maint_Cost_Modeled*Comp_Num_Stations_Modeled,0)*Data!Q$83 -> 0 | S136: =-IF(AND(COLUMN(S124)-COLUMN($E124)<Comp_V1_Years_Usage_Modeled,_Comp_Include_Charging="Yes"),Comp_Station_Maint_Cost_Modeled*Comp_Num_Stations_Modeled,0)*Data!R$83 -> 0 | T136: =-IF(AND(COLUMN(T124)-COLUMN($E124)<Comp_V1_Years_Usage_Modeled,_Comp_Include_Charging="Yes"),Comp_Station_Maint_Cost_Modeled*Comp_Num_Stations_Modeled,0)*Data!S$83 -> 0 | U136: =-IF(AND(COLUMN(U124)-COLUMN($E124)<Comp_V1_Years_Usage_Modeled,_Comp_Include_Charging="Yes"),Comp_Station_Maint_Cost_Modeled*Comp_Num_Stations_Modeled,0)*Data!T$83 -> 0 | V136: =-IF(AND(COLUMN(V124)-COLUMN($E124)<Comp_V1_Years_Usage_Modeled,_Comp_Include_Charging="Yes"),Comp_Station_Maint_Cost_Modeled*Comp_Num_Stations_Modeled,0)*Data!U$83 -> 0 | W136: =-IF(AND(COLUMN(W124)-COLUMN($E124)<Comp_V1_Years_Usage_Modeled,_Comp_Include_Charging="Yes"),Comp_Station_Maint_Cost_Modeled*Comp_Num_Stations_Modeled,0)*Data!V$83 -> 0 | X136: =-IF(AND(COLUMN(X124)-COLUMN($E124)<Comp_V1_Years_Usage_Modeled,_Comp_Include_Charging="Yes"),Comp_Station_Maint_Cost_Modeled*Comp_Num_Stations_Modeled,0)*Data!W$83 -> 0 | Y136: =-IF(AND(COLUMN(Y124)-COLUMN($E124)<Comp_V1_Years_Usage_Modeled,_Comp_Include_Charging="Yes"),Comp_Station_Maint_Cost_Modeled*Comp_Num_Stations_Modeled,0)*Data!X$83 -> 0 | Z136: =-IF(AND(COLUMN(Z124)-COLUMN($E124)<Comp_V1_Years_Usage_Modeled,_Comp_Include_Charging="Yes"),Comp_Station_Maint_Cost_Modeled*Comp_Num_Stations_Modeled,0)*Data!Y$83 -> 0 | AA136: =-IF(AND(COLUMN(AA124)-COLUMN($E124)<Comp_V1_Years_Usage_Modeled,_Comp_Include_Charging="Yes"),Comp_Station_Maint_Cost_Modeled*Comp_Num_Stations_Modeled,0)*Data!Z$83 -> 0 | AB136: =-IF(AND(COLUMN(AB124)-COLUMN($E124)<Comp_V1_Years_Usage_Modeled,_Comp_Include_Charging="Yes"),Comp_Station_Maint_Cost_Modeled*Comp_Num_Stations_Modeled,0)*Data!AA$83 -> 0 | AC136: =-IF(AND(COLUMN(AC124)-COLUMN($E124)<Comp_V1_Years_Usage_Modeled,_Comp_Include_Charging="Yes"),Comp_Station_Maint_Cost_Modeled*Comp_Num_Stations_Modeled,0)*Data!AB$83 -> 0
B137: Subtotal Operating Costs | E137: =SUM(E136:E136) -> 0 | F137: 0 | G137: 0 | H137: 0 | I137: 0 | J137: 0 | K137: 0 | L137: 0 | M137: 0 | N137: 0 | O137: 0 | P137: 0 | Q137: 0 | R137: 0 | S137: 0 | T137: 0 | U137: 0 | V137: 0 | W137: 0 | X137: 0 | Y137: 0 | Z137: 0 | AA137: 0 | AB137: 0 | AC137: =SUM(AC136:AC136) -> 0
B138: Total Discounted Costs
B139: Total Annual Costs | D139: =D133+D137 -> 0 | E139: =E133+E137 -> 0 | F139: 0 | G139: 0 | H139: 0 | I139: 0 | J139: 0 | K139: 0 | L139: 0 | M139: 0 | N139: 0 | O139: 0 | P139: 0 | Q139: 0 | R139: 0 | S139: 0 | T139: 0 | U139: 0 | V139: 0 | W139: 0 | X139: 0 | Y139: 0 | Z139: 0 | AA139: 0 | AB139: 0 | AC139: 0
B140: Discount Factor | C140: =Comp_Discount_Rate_Modeled -> 0 | D140: =(1/(1+$C140))^(COLUMN(D124)-COLUMN($D124)) -> 1 | E140: 1 | F140: 1 | G140: 1 | H140: 1 | I140: 1 | J140: 1 | K140: 1 | L140: 1 | M140: 1 | N140: 1 | O140: 1 | P140: 1 | Q140: 1 | R140: 1 | S140: 1 | T140: 1 | U140: 1 | V140: 1 | W140: 1 | X140: 1 | Y140: 1 | Z140: 1 | AA140: 1 | AB140: 1 | AC140: 1
B141: Discounted Total | D141: =D139*D140 -> 0 | E141: =E139*E140 -> 0 | F141: =F139*F140 -> 0 | G141: 0 | H141: 0 | I141: 0 | J141: 0 | K141: 0 | L141: 0 | M141: 0 | N141: 0 | O141: 0 | P141: 0 | Q141: 0 | R141: 0 | S141: 0 | T141: 0 | U141: 0 | V141: 0 | W141: 0 | X141: 0 | Y141: 0 | Z141: 0 | AA141: 0 | AB141: 0 | AC141: 0
B142: Cumulative Discounted Total | D142: =IF((COLUMN(D124)-COLUMN($D124))<=Comp_V1_Years_Usage_Modeled,C142+D141,0) -> 0 | E142: 0 | F142: 0 | G142: 0 | H142: 0 | I142: 0 | J142: 0 | K142: 0 | L142: 0 | M142: 0 | N142: 0 | O142: 0 | P142: 0 | Q142: 0 | R142: 0 | S142: 0 | T142: 0 | U142: 0 | V142: 0 | W142: 0 | X142: 0 | Y142: 0 | Z142: 0 | AA142: 0 | AB142: 0 | AC142: 0
B143: Annualized NPV Total Cost of Ownership | D143: =OFFSET($D142,0,Comp_V1_Years_Usage_Modeled)/Comp_V1_Years_Usage_Modeled -> 0

Sheet Environmental Model
A1: Environmental Models - Fleet Procurement Analysis Tool
C3: =Base_V1_Type_Ex&" (Baseline)" -> 2017 Chevrolet Cruze ICE (Baseline) | D3: =Comp_V1_Type_Ex&" (Comparison)" -> 2017 Chevrolet Bolt EV BEV (Comparison)
B4: ="Annual V" & LEFT(Constant_Distance_Metric,1) & "T" -> Annual VMT | C4: =Base_V1_VMT_Modeled -> 15000 | D4: =Comp_V1_VMT_Modeled -> 15000
B5: =IF(_Market="U.S.", DB_Vehicles[[#Headers],[Fuel Economy Gas/Diesel City (MPG)]], DB_Vehicles__Canada[[#Headers],[Fuel Consumption Gas/Diesel City (L/100 km)]]) -> Fuel Economy Gas/Diesel City (MPG) | C5: =Base_V1_Fuel_Economy_Gas_City_Modeled -> 30 | D5: =Comp_V1_Fuel_Economy_Gas_City_Modeled -> 0
B6: =IF(_Market="U.S.", DB_Vehicles[[#Headers],[Fuel Economy Gas/Diesel Hwy (MPG)]], DB_Vehicles__Canada[[#Headers],[Fuel Consumption Gas/Diesel Hwy (L/100 km)]]) -> Fuel Economy Gas/Diesel Hwy (MPG) | C6: =Base_V1_Fuel_Economy_Gas_Hwy_Modeled -> 40 | D6: =Comp_V1_Fuel_Economy_Gas_Hwy_Modeled -> 0
B7: =IF(_Market="U.S.", DB_Vehicles[[#Headers],[Fuel Economy Electric City (MPGe)]], DB_Vehicles__Canada[[#Headers],[Fuel Consumption Electric City (Le/100 km)]]) -> Fuel Economy Electric City (MPGe) | C7: =Base_V1_Fuel_Economy_Electric_City_Modeled -> 0 | D7: =Comp_V1_Fuel_Economy_Electric_City_Modeled -> 128
B8: =IF(_Market="U.S.", DB_Vehicles[[#Headers],[Fuel Economy Electric Hwy (MPGe)]], DB_Vehicles__Canada[[#Headers],[Fuel Consumption Electric Hwy (Le/100 km)]]) -> Fuel Economy Electric Hwy (MPGe) | C8: =Base_V1_Fuel_Economy_Electric_Hwy_Modeled -> 0 | D8: =Comp_V1_Fuel_Economy_Electric_Hwy_Modeled -> 110
B9: ="% of Annual " & Constant_Distance_Metric & "s on Gasoline/Diesel*" -> % of Annual Miles on Gasoline/Diesel* | C9: =Base_V1_Miles_Gas_Modeled -> 1 | D9: =Comp_V1_Miles_Gas_Modeled -> 0
B10: ="% of Annual " & Constant_Distance_Metric & "s City Driving" -> % of Annual Miles City Driving | C10: =Base_V1_Miles_City_Modeled -> 0.55 | D10: =Comp_V1_Miles_City_Modeled -> 0.55
B11: =Constant_Volume_Metric & "s of Gasoline/Diesel per Year" -> Gallons of Gasoline/Diesel per Year | C11: =IF(C5=0,0,(C4*C10*C9)/IF(_Market="U.S.", C5, 100/C5))+IF(C6=0,0,(C4*C9*(1-C10))/IF(_Market="U.S.", C6, 100/C6)) -> 443.75 | D11: =IF(D5=0,0,(D4*D10*D9)/IF(_Market="U.S.", D5, 100/D5))+IF(D6=0,0,(D4*D9*(1-D10))/IF(_Market="U.S.", D6, 100/D6)) -> 0
B12: ="Well-to-Wheel Carbon Intensity of " & Constant_Volume_Metric & " of Gasoline/Diesel (" & Constant_Weight_Metric_Abbreviation & ")" -> Well-to-Wheel Carbon Intensity of Gallon of Gasoline/Diesel (lb) | C12: =(SUMIFS(DB_Gasoline_Diesel_Emissions[Emissions],DB_Gasoline_Diesel_Emissions[Key], "CO2 (g/MJ)"&_Market&"Well-to-Wheel"&_Base_V1_Vehicle_Vehicle_Class)*IF(Base_V1_Fuel_Type_Ex="Gasoline", Constant_Megajoule_Per_Gasoline_Volume, Constant_Megajoule_Per_Diesel_Volume))/Constant_Grams_Per_Weight -> 23.98357047 | D12: =(SUMIFS(DB_Gasoline_Diesel_Emissions[Emissions],DB_Gasoline_Diesel_Emissions[Key],"CO2 (g/MJ)"&_Market&"Well-to-Wheel"&_Comp_V1_Vehicle_Vehicle_Class)*IF(Comp_V1_Fuel_Type_Ex="Gasoline", Constant_Megajoule_Per_Gasoline_Volume, Constant_Megajoule_Per_Diesel_Volume))/Constant_Grams_Per_Weight -> 27.00820473
B13: kWh Electricity / Year | C13: =IF(C7=0,0,((C4*(1-C9)*C10)/IF(_Market="U.S.", C7, 100/C7)*Constant_kWh_Per_Gasoline_Volume))+IF(C8=0,0,((C4*(1-C9)*(1-C10))/IF(_Market="U.S.", C8, 100/C8)*Constant_kWh_Per_Gasoline_Volume)) -> 0 | D13: =IF(D7=0,0,((D4*(1-D9)*D10)/IF(_Market="U.S.", D7, 100/D7)*Constant_kWh_Per_Gasoline_Volume))+IF(D8=0,0,((D4*(1-D9)*(1-D10))/IF(_Market="U.S.", D8, 100/D8)*Constant_kWh_Per_Gasoline_Volume)) -> 4240.024858
B14: =IF(_Market="U.S.", "eGrid Region", "Province") -> eGrid Region | C14: =IF(_Market="U.S.", eGrid_Region_Ex, Province_Ex) -> RFCE | D14: =IF(_Market="U.S.", eGrid_Region_Ex, Province_Ex) -> RFCE
B15: ="Well-to-Wheel Carbon Intensity of kWh (" & Constant_Weight_Metric_Abbreviation & ")**" -> Well-to-Wheel Carbon Intensity of kWh (lb)** | C15: =Constant_CO2_Intensity_Electricity -> 0.83060624 | D15: =Constant_CO2_Intensity_Electricity -> 0.83060624
B16: =IF(_Market="U.S.", "Electrical Transmission Line Loss", "") -> Electrical Transmission Line Loss | C16: =IF(_Market="U.S.", VLOOKUP(eGrid_Region_Ex,DB_Electricity_Emissions[],COLUMN(DB_Electricity_Emissions[[#Headers],[Grid gross loss '[Estimated losses/(Total disposition - Direct use)']]])-COLUMN(DB_Electricity_Emissions[[#Headers],[eGRID subregion acronym]])+1,FALSE), "") -> 0 | D16: =IF(_Market="U.S.", VLOOKUP(eGrid_Region_Ex,DB_Electricity_Emissions[],COLUMN(DB_Electricity_Emissions[[#Headers],[Grid gross loss '[Estimated losses/(Total disposition - Direct use)']]])-COLUMN(DB_Electricity_Emissions[[#Headers],[eGRID subregion acronym]])+1,FALSE), "") -> 0
B17: ="Total Annual CO2 (" & Constant_Weight_Metric_Abbreviation & ")" -> Total Annual CO2 (lb) | C17: =(C11*C12)+(C13*(C15/(1-IF(_Market="U.S.", C16, 0)))) -> 10642.7094 | D17: =(D11*D12)+(D13*(D15/(1-IF(_Market="U.S.", D16, 0)))) -> 3521.791105
B18: ="Well-to-Wheel CO2 (" & Constant_Weight_Metric_Abbreviation & "/" & Constant_Distance_Metric_Abbreviation & ")" -> Well-to-Wheel CO2 (lb/mi) | C18: =C17/C4 -> 0.7095139598 | D18: =D17/D4 -> 0.2347860737
B19: Other Well-to-Wheel Emissions**
B20: ="NOx (mg/" & Constant_Distance_Metric_Abbreviation & ")" -> NOx (mg/mi) | C20: =((Constant_NOX_Intensity_Electricity*Base_V1_Electricity_Usage_Ex)+(SUMIFS(DB_Gasoline_Diesel_Emissions[Emissions],DB_Gasoline_Diesel_Emissions[Key],"NOx (mg/MJ)" &_Market&"Well-to-Wheel"&_Base_V1_Vehicle_Vehicle_Class)*Base_V1_Gas_Diesel_Usage_Ex*IF(Base_V1_Fuel_Type_Ex="Gasoline", Constant_Megajoule_Per_Gasoline_Volume, Constant_Megajoule_Per_Diesel_Volume)))/Base_V1_VMT_Modeled -> 219.0754367 | D20: =((Constant_NOX_Intensity_Electricity*Comp_V1_Electricity_Usage_Ex)+(SUMIFS(DB_Gasoline_Diesel_Emissions[Emissions],DB_Gasoline_Diesel_Emissions[Key],"NOx (mg/MJ)"&_Market&"Well-to-Wheel"&_Comp_V1_Vehicle_Vehicle_Class)*Comp_V1_Gas_Usage_Ex*IF(Comp_V1_Fuel_Type_Ex="Gasoline", Constant_Megajoule_Per_Gasoline_Volume, Constant_Megajoule_Per_Diesel_Volume)))/Comp_V1_VMT_Modeled -> 42.69595809
B21: ="SOx (mg/" & Constant_Distance_Metric_Abbreviation & ")" -> SOx (mg/mi) | C21: =((Constant_SOX_Intensity_Electricity*Base_V1_Electricity_Usage_Ex)+(SUMIFS(DB_Gasoline_Diesel_Emissions[Emissions],DB_Gasoline_Diesel_Emissions[Key],"SOx (mg/MJ)"&_Market&"Well-to-Wheel"&_Base_V1_Vehicle_Vehicle_Class)*Base_V1_Gas_Diesel_Usage_Ex*IF(Base_V1_Fuel_Type_Ex="Gasoline", Constant_Megajoule_Per_Gasoline_Volume, Constant_Megajoule_Per_Diesel_Volume)))/Base_V1_VMT_Modeled -> 76.01601819 | D21: =((Constant_SOX_Intensity_Electricity*Comp_V1_Electricity_Usage_Ex)+(SUMIFS(DB_Gasoline_Diesel_Emissions[Emissions],DB_Gasoline_Diesel_Emissions[Key],"SOx (mg/MJ)"&_Market&"Well-to-Wheel"&_Comp_V1_Vehicle_Vehicle_Class)*Comp_V1_Gas_Usage_Ex*IF(Comp_V1_Fuel_Type_Ex="Gasoline", Constant_Megajoule_Per_Gasoline_Volume, Constant_Megajoule_Per_Diesel_Volume)))/Comp_V1_VMT_Modeled -> 61.54372337
B22: ="VOC (mg/" & Constant_Distance_Metric_Abbreviation & ")" -> VOC (mg/mi) | C22: =IF(AND(Constant_VOC_Intensity_Electricity=0, Base_V1_Gas_Diesel_Usage_Ex=0),"Unknown",((Constant_VOC_Intensity_Electricity*Base_V1_Electricity_Usage_Ex)+(SUMIFS(DB_Gasoline_Diesel_Emissions[Emissions],DB_Gasoline_Diesel_Emissions[Key],"VOC (mg/MJ)"&_Market&"Well-to-Wheel"&_Base_V1_Vehicle_Vehicle_Class)*Base_V1_Gas_Diesel_Usage_Ex*IF(Base_V1_Fuel_Type_Ex="Gasoline", Constant_Megajoule_Per_Gasoline_Volume, Constant_Megajoule_Per_Diesel_Volume)))/Base_V1_VMT_Modeled) -> 207.7699383 | D22: =IF(AND(Constant_VOC_Intensity_Electricity=0, Comp_V1_Gas_Usage_Ex=0),"Unknown",((Constant_VOC_Intensity_Electricity*Comp_V1_Electricity_Usage_Ex)+(SUMIFS(DB_Gasoline_Diesel_Emissions[Emissions],DB_Gasoline_Diesel_Emissions[Key], "VOC (mg/MJ)"&_Market&"Well-to-Wheel"&_Base_V1_Vehicle_Vehicle_Class)*Comp_V1_Gas_Usage_Ex*IF(Comp_V1_Fuel_Type_Ex="Gasoline", Constant_Megajoule_Per_Gasoline_Volume, Constant_Megajoule_Per_Diesel_Volume)))/Comp_V1_VMT_Modeled) -> 2.634563713
B23: ="PM10 (mg/" & Constant_Distance_Metric_Abbreviation & ")" -> PM10 (mg/mi) | C23: =((Constant_PM10_Intensity_Electricity*Base_V1_Electricity_Usage_Ex)+(SUMIFS(DB_Gasoline_Diesel_Emissions[Emissions],DB_Gasoline_Diesel_Emissions[Key],"PM10 (mg/MJ)"&_Market&"Well-to-Wheel"&_Base_V1_Vehicle_Vehicle_Class)*Base_V1_Gas_Diesel_Usage_Ex*IF(Base_V1_Fuel_Type_Ex="Gasoline", Constant_Megajoule_Per_Gasoline_Volume, Constant_Megajoule_Per_Diesel_Volume)))/Base_V1_VMT_Modeled -> 16.22249302 | D23: =((Constant_PM10_Intensity_Electricity*Comp_V1_Electricity_Usage_Ex)+(SUMIFS(DB_Gasoline_Diesel_Emissions[Emissions],DB_Gasoline_Diesel_Emissions[Key],"PM10 (mg/MJ)"&_Market&"Well-to-Wheel"&_Comp_V1_Vehicle_Vehicle_Class)*Comp_V1_Gas_Usage_Ex*IF(Comp_V1_Fuel_Type_Ex="Gasoline", Constant_Megajoule_Per_Gasoline_Volume, Constant_Megajoule_Per_Diesel_Volume)))/Comp_V1_VMT_Modeled -> 16.19617692
B24: ="PM2.5 (mg/" & Constant_Distance_Metric_Abbreviation & ")" -> PM2.5 (mg/mi) | C24: =((Constant_PM25_Intensity_Electricity*Base_V1_Electricity_Usage_Ex)+(SUMIFS(DB_Gasoline_Diesel_Emissions[Emissions],DB_Gasoline_Diesel_Emissions[Key],"PM2.5 (mg/MJ)"&_Market&"Well-to-Wheel"&_Base_V1_Vehicle_Vehicle_Class)*Base_V1_Gas_Diesel_Usage_Ex*IF(Base_V1_Fuel_Type_Ex="Gasoline", Constant_Megajoule_Per_Gasoline_Volume, Constant_Megajoule_Per_Diesel_Volume)))/Base_V1_VMT_Modeled -> 11.80796505 | D24: =((Constant_PM25_Intensity_Electricity*Comp_V1_Electricity_Usage_Ex)+(SUMIFS(DB_Gasoline_Diesel_Emissions[Emissions],DB_Gasoline_Diesel_Emissions[Key],"PM2.5 (mg/MJ)"&_Market&"Well-to-Wheel"&_Comp_V1_Vehicle_Vehicle_Class)*Comp_V1_Gas_Usage_Ex*IF(Comp_V1_Fuel_Type_Ex="Gasoline", Constant_Megajoule_Per_Gasoline_Volume, Constant_Megajoule_Per_Diesel_Volume)))/Comp_V1_VMT_Modeled -> 12.6260766
B27: *For PHEV calculations, assumes an equal number of miles driven on a daily basis, 365 days per year. No charging during the day.
B28: ** Emissions are well-to-wheel from Argonne National Laboratory's GREET model and U.S. EPA's eGRID.

Sheet Lists_Hidden (hidden)
A1: Lists (Hidden Tab) - EV Fleet Procurement Analysis Tool
A3: Ownership Structures | C3: Pricing Approaches | E3: Input Fields | F3: Field Range Name Base | G3: Field Range Name Comp | I3: Help Description Field | J3: U.S. | K3: Canada | M3: Representative City | N3: Province | P3: Constants | Q3: Value | R3: Source | T3: Vehicle Class
A4: Purchase (Cash) | C4: MSRP Less Discounts | E4: =IF(IFERROR(FIND("Comp",G4,1)>0,FALSE),OFFSET(INDIRECT(G4),0,-3),IF(IFERROR(FIND("Base",G4,1)>0,FALSE),OFFSET(INDIRECT(G4),0,-3),OFFSET(INDIRECT(G4),0,-1))) -> Electricity Cost ($/kWh) | F4: Electricity_Price | G4: Electricity_Price | I4: Gasoline_Price | J4: Default gasoline cost is average price for last year available from U.S. Energy Information Administration and set based on ZIP code. Some prices are available at state level, while others are available at regional level (PADD). | K4: Default gasoline cost is average price for the last year available from Natural Resources Canada and set based on a representative city from each province or territory. | M4: Charlottetown | N4: Prince Edward Island | P4: Grams per Weight | Q4: =IF(_Market="U.S.", 453.592, 1000) -> 453.592 | T4: Passenger Vehicles (Light-Duty)
A5: Purchase (Loan) | C5: Dealer Cost Plus Markup | E5: Gasoline Price ($/Gallon) | F5: Gasoline_Price | G5: Gasoline_Price | I5: Electricity_Price | J5: Default electricity cost is aggregated by state and the price is calculated based on revenue and energy delivered for commercial customers for last year available from U.S. Energy Information Administration’s survey of electric utilities (EIA-861M). | K5: Default electricity cost is the price for a representative city from each province or territory, as defined by an annual report from Hydro Quebec. | M5: Edmonton | N5: Alberta | P5: Kilometers per Mile | Q5: 1.6093 | T5: Heavy-Duty Vehicles (Class 7-8)
A6: FMV (Closed-End) Lease | E6: Cost of Carbon ($/Ton) | F6: Carbon_Price | G6: Carbon_Price | I6: Carbon_Price | J6: The default cost of carbon is the social cost of carbon using a 3% discount rate, as defined by the U.S. federal government. | K6: The default cost of carbon is the social cost of carbon using a 3% discount rate as defined by the Environment and Climate Change Canada. | M6: Halifax | N6: Nova Scotia | P6: Gigajoules per Kilowatt-hours | Q6: 0.0036 | T6: Medium Duty Vehicles (Class 3-6)
A7: FMV (Closed-End) Lease w/ Cash Purchase | E7: Inflation Rate (Excluding Fuel) (%/Year) | F7: Inflation_Rate_General | G7: Inflation_Rate_General | I7: Inflation_Rate_General | J7: Inflation rate is used for maintenance and other operating costs, excluding fuel. Default inflation rate is based on Federal Reserve’s medium term target. Inflation for fuel is based on data from U.S. Energy Information Administration. | K7: Inflation rate is used for maintenance and other operating costs, excluding fuel. Default inflation rate is average from 2017-2027 from Canada's Energy Future Report. | M7: Moncton | N7: New Brunswick | P7: Distance Metric | Q7: =IF(_Market="U.S.","Mile","Kilometer") -> Mile | T7: *Custom
A8: FMV (Closed-End) Lease w/ Loan Purchase | E8: Fuel Economy Electric City (MPGe) | F8: Base_V1_Fuel_Economy_Electric_City | G8: Comp_V1_Fuel_Economy_Electric_City | I8: Base_V1_Fuel_Economy_Gas_City | J8: The default value is the city fuel economy when powered by gasoline for the selected vehicle from www.fueleconomy.gov. This field is not relevant for battery electric vehicles. | K8: The default value is the city fuel consumption when powered by gasoline for the selected vehicle from the Fuel Consumption Report. This field is not relevant for battery electric vehicles. | M8: Montreal | N8: Quebec | P8: Distance Metric Abbreviation | Q8: =IF(_Market="U.S.","mi","km") -> mi
A9: TRAC (Open-End) Lease | E9: Fuel Economy Electric Hwy (MPGe) | F9: Base_V1_Fuel_Economy_Electric_Hwy | G9: Comp_V1_Fuel_Economy_Electric_Hwy | I9: Base_V1_Fuel_Economy_Gas_Hwy | J9: The default value is the highway fuel economy when powered by gasoline for the selected vehicle from www.fueleconomy.gov. This field is not relevant for battery electric vehicles. | K9: The default value is the highway fuel consumption when powered by gasoline for the selected vehicle from the Fuel Consumption Report. This field is not relevant for battery electric vehicles. | M9: Regina | N9: Saskatchewan | P9: Volume Metric | Q9: =IF(_Market="U.S.", "Gallon", "Liter") -> Gallon
A10: TRAC (Open-End) Lease w/ Cash Purchase | E10: Fuel Economy Gasoline/Diesel City (MPG) | F10: Base_V1_Fuel_Economy_Gas_City | G10: Comp_V1_Fuel_Economy_Gas_City | I10: Base_V1_Fuel_Economy_Electric_City | J10: The default value is the city fuel economy when powered by batteries for the selected vehicle from www.fueleconomy.gov. This field is not relevant for gasoline vehicles. | K10: The default value is the city fuel consumption when powered by batteries for the selected vehicle from the Fuel Consumption Report. This field is not relevant for gasoline vehicles. | M10: St. John's | N10: Newfoundland and Labrador | P10: Volume Metric Abbreviation | Q10: L
A11: TRAC (Open-End) Lease w/ Loan Purchase | E11: Fuel Economy Gasoline/Diesel Highway (MPG) | F11: Base_V1_Fuel_Economy_Gas_Hwy | G11: Comp_V1_Fuel_Economy_Gas_Hwy | I11: Base_V1_Fuel_Economy_Electric_Hwy | J11: The default value is the highway fuel economy when powered by batteries for the selected vehicle from www.fueleconomy.gov. This field is not relevant for gasoline vehicles. | K11: The default value is the highway fuel consumption when powered by batteries for the selected vehicle from the Fuel Consumption Report. This field is not relevant for gasoline vehicles. | M11: Toronto | N11: Ontario | P11: Fuel Use Metric | Q11: =IF(_Market="U.S.", "Fuel Economy", "Fuel Consumption") -> Fuel Economy
A12: Tax-Exempt Lease Purchase (Cash) | E12: Expected Years of Use/Ownership (Years) | F12: Base_V1_Years_Usage | G12: Comp_V1_Years_Usage | I12: Base_V1_VMT | J12: The default value is 15,000 and users can customize this value to their expected number of miles traveled per year. The 15,000 value for annual vehicle mileage is the assumption used by Edmunds True Cost to Own calculator. | K12: The default value is 24,135 km and users can customize this value to their expected number of kilometers traveled per year. | M12: Vancouver | N12: British Columbia | P12: kWh per Gasoline Volume | Q12: =IF(_Market="U.S.", 33.7, 8.9) -> 33.7 | R12: EPA figure for U.S. market. From 2017 Fuel Consumption Guide for Canada market.
E13: Annual Vehicle Mileage (VMT/Year) | F13: Base_V1_VMT | G13: Comp_V1_VMT | I13: Base_V1_Miles_Gas | J13: Default value is 100% for gasoline vehicles and 0% for battery electric vehicles. For plug-in hybrids, value is a function of electric range and expected daily vehicle miles traveled. It is assumed the vehicle only charges once per day. | K13: Default value is 100% for gasoline vehicles and 0% for battery electric vehicles. For plug-in hybrids, value is a function of electric range and expected daily vehicle miles traveled. It is assumed the vehicle only charges once per day. | M13: Winnipeg | N13: Manitoba | P13: MJ per Gasoline Volume | Q13: =Constant_kWh_Per_Gasoline_Volume/0.277778 -> 121.3199029 | R13: 1 kWh is 0.277778 Megajoules. (EPA uses 121 MJ/gasoline-gallon)
E14: % of Annual Miles City Driving | F14: Base_V1_Miles_City | G14: Comp_V1_Miles_City | I14: Base_V1_Miles_City | J14: The default value is 55%, based on the U.S. Environmental Protection Agency’s method for calculating fuel economy. | K14: The default value is 55%, based on the U.S. Environmental Protection Agency’s method for calculating fuel economy. | M14: Yellowknife | N14: Northwest Territories | P14: kWh per Diesel Volume | Q14: =IF(_Market="U.S.", 37.95, 0) -> 37.95 | R14: From Wikipedia: https://en.wikipedia.org/wiki/Miles_per_gallon_gasoline_equivalent
E15: % of Annual Miles on Gasoline/Diesel | F15: Base_V1_Miles_Gas | G15: Comp_V1_Miles_Gas | I15: Base_V1_Insurance_Cost | J15: Average passenger car insurance costs from AAA 2016 Your Driving Cost Study. Users can set custom values that are more accurate. | K15: Average passenger car insurance costs from Table 3 of 2016 study on Auto Insurance System in Ontario. | M15: Iqaluit | N15: Nunavut | P15: MJ per Diesel Volume | Q15: =Constant_kWh_Per_Diesel_Volume/0.277778 -> 136.6198907 | R15: 1 kWh is 0.277778 Megajoules.
E16: Cost to Insure ($/Year) | F16: Base_V1_Insurance_Cost | G16: Comp_V1_Insurance_Cost | I16: Comp_V1_Fuel_Economy_Gas_City | J16: The default value is the city fuel economy when powered by gasoline for the selected vehicle from www.fueleconomy.gov. This field is not relevant for battery electric vehicles. | K16: The default value is the city fuel consumption when powered by gasoline for the selected vehicle from the Fuel Consumption Report. This field is not relevant for battery electric vehicles. | M16: Whitehorse | N16: Yukon | P16: Weight Metric Abbreviation | Q16: =IF(_Market="U.S.", "lb", "kg") -> lb
E17: =IF(IFERROR(FIND("Comp",G17,1)>0,FALSE),OFFSET(INDIRECT(G17),0,-3),IF(IFERROR(FIND("Base",G17,1)>0,FALSE),OFFSET(INDIRECT(G17),0,-3),OFFSET(INDIRECT(G17),0,-1))) -> Maintenance and Repair Cost - Years 1 - 5 ($/Mile) | F17: Base_V1_Maint_Repair_Cost_Year_1 | G17: Comp_V1_Maint_Repair_Cost_Year_1 | I17: Comp_V1_Fuel_Economy_Gas_Hwy | J17: The default value is the highway fuel economy when powered by gasoline for the selected vehicle from www.fueleconomy.gov. This field is not relevant for battery electric vehicles. | K17: The default value is the highway fuel consumption when powered by gasoline for the selected vehicle from the Fuel Consumption Report. This field is not relevant for battery electric vehicles. | M17: Canada | N17: Canada Avg | P17: CO2 Intensity (Electricity) | Q17: =(VLOOKUP(eGrid_Region_Ex,DB_Electricity_Emissions[],COLUMN(DB_Electricity_Emissions[[#Headers],[eGRID subregion annual CO2 total output emission rate (lb/MWh)]])-COLUMN(DB_Electricity_Emissions[[#Headers],[eGRID subregion acronym]])+1,FALSE)+VLOOKUP(eGrid_Region_Ex,DB_Electricity_Emissions[], COLUMN(DB_Electricity_Emissions[[#Headers],[Upstream Emissions After Transmission Loss (lb/MWh)]])-COLUMN(DB_Electricity_Emissions[[#Headers],[eGRID subregion acronym]])+1,FALSE))/1000 -> 0.83060624
E18: Maintenance and Repair Cost - Years 5+ ($/Mile) | F18: Base_V1_Maint_Repair_Cost_Year_5 | G18: Comp_V1_Maint_Repair_Cost_Year_5 | I18: Comp_V1_Fuel_Economy_Electric_City | J18: The default value is the city fuel economy when powered by batteries for the selected vehicle from www.fueleconomy.gov. This field is not relevant for gasoline vehicles. | K18: The default value is the city fuel consumption when powered by batteries for the selected vehicle from the Fuel Consumption Report. This field is not relevant for gasoline vehicles. | P18: NOx Intensity (Electricity) | Q18: =IF(_Market="U.S.", VLOOKUP(eGrid_Region_Ex,DB_Electricity_Emissions[],COLUMN(DB_Electricity_Emissions[[#Headers],[eGRID subregion annual NOx total output emission rate (lb/MWh)]])-COLUMN(DB_Electricity_Emissions[[#Headers],[eGRID subregion acronym]])+1,FALSE)*Constant_Grams_Per_Weight, VLOOKUP(Province_Ex, DB_Electricity_Emissions_Canada[], COLUMN(DB_Electricity_Emissions_Canada[[#Headers],[NOx as NO2]])-COLUMN(DB_Electricity_Emissions_Canada[[#Headers],[Province]])+1,FALSE)*Constant_Gigajoule_Per_Kilowatt_Hour*1000) -> 151.046136
E19: Recurring Taxes and Fees ($/Year) | F19: Base_V1_Taxes_Fees | G19: Comp_V1_Taxes_Fees | I19: Comp_V1_Fuel_Economy_Electric_Hwy | J19: The default value is the highway fuel economy when powered by batteries for the selected vehicle from www.fueleconomy.gov. This field is not relevant for gasoline vehicles. | K19: The default value is the highway fuel consumption when powered by batteries for the selected vehicle from the Fuel Consumption Report. This field is not relevant for gasoline vehicles. | P19: SOx Intensity (Electricity) | Q19: =IF(_Market="U.S.", VLOOKUP(eGrid_Region_Ex,DB_Electricity_Emissions[],COLUMN(DB_Electricity_Emissions[[#Headers],[eGRID subregion annual SO2 total output emission rate (lb/MWh)]])-COLUMN(DB_Electricity_Emissions[[#Headers],[eGRID subregion acronym]])+1,FALSE)*Constant_Grams_Per_Weight, VLOOKUP(Province_Ex, DB_Electricity_Emissions_Canada[], COLUMN(DB_Electricity_Emissions_Canada[[#Headers],[SOx]])-COLUMN(DB_Electricity_Emissions_Canada[[#Headers],[Province]])+1,FALSE)*Constant_Gigajoule_Per_Kilowatt_Hour*1000) -> 217.72416
E20: Number of Vehicles to Procure (#) | F20: Base_V1_Num_Vehicles | G20: Comp_V1_Num_Vehicles | I20: Comp_V1_VMT | J20: The default value is 15,000 and users can customize this value to their expected number of miles traveled per year. The 15,000 value for annual vehicle mileage is the assumption used by Edmunds True Cost to Own calculator. | K20: The default value is 24,135 km and users can customize this value to their expected number of kilometers traveled per year. | P20: PM10 Intensity (Electricity) | Q20: =IF(_Market="U.S.", VLOOKUP(eGrid_Region_Ex,DB_Electricity_Emissions[],COLUMN(DB_Electricity_Emissions[[#Headers],[EPA PM10 total direct plant output emission rate based on national average (lb/M]])-COLUMN(DB_Electricity_Emissions[[#Headers],[eGRID subregion acronym]])+1,FALSE)*Constant_Grams_Per_Weight, VLOOKUP(Province_Ex, DB_Electricity_Emissions_Canada[], COLUMN(DB_Electricity_Emissions_Canada[[#Headers],[PM10]])-COLUMN(DB_Electricity_Emissions_Canada[[#Headers],[Province]])+1,FALSE)*Constant_Gigajoule_Per_Kilowatt_Hour*1000) -> 57.29745979
E21: MSRP ($) | F21: Base_V1_MSRP | G21: Comp_V1_MSRP | I21: Comp_V1_Miles_Gas | J21: Default value is 100% for gasoline vehicles and 0% for battery electric vehicles. For plug-in hybrids, value is a function of electric range and expected daily vehicle miles traveled. It is assumed the vehicle only charges once per day. | K21: Default value is 100% for gasoline vehicles and 0% for battery electric vehicles. For plug-in hybrids, value is a function of electric range and expected daily vehicle miles traveled. It is assumed the vehicle only charges once per day. | P21: PM2.5 Intensity (Electricity) | Q21: =IF(_Market="U.S.", VLOOKUP(eGrid_Region_Ex,DB_Electricity_Emissions[],COLUMN(DB_Electricity_Emissions[[#Headers],[EPA PM2.5 total direct plant output emission rate based on national average (lb/]])-COLUMN(DB_Electricity_Emissions[[#Headers],[eGRID subregion acronym]])+1,FALSE)*Constant_Grams_Per_Weight, VLOOKUP(Province_Ex, DB_Electricity_Emissions_Canada[], COLUMN(DB_Electricity_Emissions_Canada[[#Headers],[PM2.5]])-COLUMN(DB_Electricity_Emissions_Canada[[#Headers],[Province]])+1,FALSE)*Constant_Gigajoule_Per_Kilowatt_Hour*1000) -> 44.66746196
E22: Value of Negotiated Discounts off MSRP ($/Vehicle) | F22: Base_V1_Discounts | G22: Comp_V1_Discounts | I22: Comp_V1_Miles_City | J22: The default value is 55%, based on the U.S. Environmental Protection Agency’s method for calculating fuel economy. | K22: The default value is 55%, based on the U.S. Environmental Protection Agency’s method for calculating fuel economy. | P22: VOC Intensity (Electricity) | Q22: =IF(_Market="U.S.", VLOOKUP(eGrid_Region_Ex,DB_Electricity_Emissions[],COLUMN(DB_Electricity_Emissions[[#Headers],[EPA VOC total direct plant output emission rate based on national average (lb/MW]])-COLUMN(DB_Electricity_Emissions[[#Headers],[eGRID subregion acronym]])+1,FALSE)*Constant_Grams_Per_Weight, 0) -> 9.320335853
E23: Dealer Triple Net Price ($/Vehicle) | F23: Base_V1_List_Price | G23: Comp_V1_List_Price | I23: Comp_V1_Insurance_Cost | J23: Average passenger car insurance costs from AAA 2016 Your Driving Cost Study. Users can set custom values that are more accurate. | K23: Average passenger car insurance costs from Table 3 of 2016 study on Auto Insurance System in Ontario. | P23: Baseline Vehicle Electric Range | Q23: =IF(_Market="U.S.", VLOOKUP(Base_V1_Type_Ex,DB_Vehicles[],COLUMN(DB_Vehicles[[#Headers],[Electric Range]]),FALSE), VLOOKUP(Base_V1_Type_Ex, DB_Vehicles__Canada[], COLUMN(DB_Vehicles__Canada[[#Headers],[Electric Range]])-COLUMN(DB_Vehicles__Canada[[#Headers],[Selection Name]])+1,FALSE)/Constant_Kilometers_Per_Mile) -> 0
E24: Dealer Markup ($/Vehicle) | F24: Base_V1_List_Price_Markup | G24: Comp_V1_List_Price_Markup | I24: Base_V1_Lease_Mileage_Cost | J24: Cost per mile above the mileage included in the lease agreement. | K24: Cost per kilometer above the mileage included in the lease agreement. | P24: Baseline Vehicle Mileage | Q24: =IF(_Market="U.S.",Base_V1_Fuel_Economy_Gas_City,IFERROR(CONVERT(1/CONVERT(Base_V1_Fuel_Economy_Gas_City/100,"l","gal"),"km","mi"),0)) -> 30
E25: Value of Federal Tax Credits ($/Vehicle) | F25: Base_V1_Federal_Tax_Incentives | G25: Comp_V1_Federal_Tax_Incentives | I25: Comp_V1_Lease_Mileage_Cost | J25: Cost per mile above the mileage included in the lease agreement. | K25: Cost per kilometer above the mileage included in the lease agreement. | P25: Comparison Vehicle Electric Range | Q25: =IF(_Market="U.S.", VLOOKUP(Comp_V1_Type_Ex,DB_Vehicles[],COLUMN(DB_Vehicles[[#Headers],[Electric Range]]),FALSE), VLOOKUP(Comp_V1_Type_Ex, DB_Vehicles__Canada[], COLUMN(DB_Vehicles__Canada[[#Headers],[Electric Range]])-COLUMN(DB_Vehicles__Canada[[#Headers],[Selection Name]])+1,FALSE)/Constant_Kilometers_Per_Mile) -> 238
E26: Value of State Tax Incentives ($/Vehicle) | F26: Base_V1_State_Tax_Incentives | G26: Comp_V1_State_Tax_Incentives | P26: Comparison Vehicle Mileage | Q26: =IF(_Market="U.S.", Comp_V1_Fuel_Economy_Gas_City, IFERROR(CONVERT(1/CONVERT(Comp_V1_Fuel_Economy_Gas_City/100,"l","gal"),"km","mi"),0)) -> 0
E27: State Tax Incentive Cap ($) | F27: Base_V1_State_Tax_Incentive_Cap | G27: Comp_V1_State_Tax_Incentive_Cap | P27: Base Fuel Type | Q27: =VLOOKUP(Base_V1_Type_Ex,DB_Vehicles[], COLUMN(DB_Vehicles[[#Headers],[Fuel]]),FALSE) -> Gasoline
E28: Value of Non-tax Incentives ($/Vehicle) | F28: Base_V1_Other_Incentives | G28: Comp_V1_Other_Incentives | P28: Comparison Fuel Type | Q28: =VLOOKUP(Comp_V1_Type_Ex,DB_Vehicles[], COLUMN(DB_Vehicles[[#Headers],[Fuel]]),FALSE) -> Electricity
E29: Initial Tax, Title, and Registration Cost ($/Vehicle) | F29: Base_V1_Initial_Taxes_Fees | G29: Comp_V1_Initial_Taxes_Fees
E30: Initial Fee as Percent of Vehicle Base Price (%) | F30: Base_V1_Initial_Percent_Base_Price | G30: Comp_V1_Initial_Percent_Base_Price
E31: Down Payment ($/Vehicle) | F31: Base_V1_Down_Payment | G31: Comp_V1_Down_Payment
E32: Lease Term (Years) | F32: Base_V1_Lease_Term | G32: Comp_V1_Lease_Term
E33: Lease Interest Rate (APR - %) | F33: Base_V1_Lease_APR | G33: Comp_V1_Lease_APR
E34: Money Factor (#) | F34: Base_V1_Lease_Money_Factor | G34: Comp_V1_Lease_Money_Factor
E35: =IF(IFERROR(FIND("Comp",G35,1)>0,FALSE),OFFSET(INDIRECT(G35),0,-3),IF(IFERROR(FIND("Base",G35,1)>0,FALSE),OFFSET(INDIRECT(G35),0,-3),OFFSET(INDIRECT(G35),0,-1))) -> Acquisition Fee ($/Vehicle) | F35: Base_V1_Lease_Acquisition_Fee | G35: Comp_V1_Lease_Acquisition_Fee
E36: Disposition Charge ($/Vehicle) | F36: Base_V1_Lease_Disposition_Fee | G36: Comp_V1_Lease_Disposition_Fee
E37: Negotiated Residual Value ($/Vehicle) | F37: Base_V1_Lease_Residual_Price | G37: Comp_V1_Lease_Residual_Price
E38: Mileage Included (Closed-End Only) | F38: Base_V1_Lease_Mileage_Inc | G38: Comp_V1_Lease_Mileage_Inc
E39: Excess Mileage Cost ($/Mile) | F39: Base_V1_Lease_Mileage_Cost | G39: Comp_V1_Lease_Mileage_Cost
E40: Loan Term (Years) | F40: Base_V1_Loan_Term | G40: Comp_V1_Loan_Term
E41: Loan Interest Rate (APR - %) | F41: Base_V1_Loan_APR | G41: Comp_V1_Loan_APR
E42: Number of EV Charging Stations Needed (#) | F42: Base_Num_Stations | G42: Comp_Num_Stations
E43: Charging Equipment Cost ($/Station) | F43: Base_Station_Cost | G43: Comp_Station_Cost
E44: Maintenance Cost ($/Station/Year) | F44: Base_Station_Maint_Cost | G44: Comp_Station_Maint_Cost

Sheet Data
A1: Data - Fleet Procurement Analysis Tool
A2: Electricity and Gasoline Prices
A3: Energy Inflation
A4: General Inflation (Maintenance, Insurance)
A5: Maintenance and Repair Costs
A6: Electricity Emissions
A7: Gasoline and Diesel Emissions
A8: Other Default Values and Scalars
A9: Vehicles and Incentives
A11: Electricity and Gasoline Prices
A12: State Abbreviation | B12: Date | C12: Gasoline Price | D12: Diesel Price | E12: Residential Electricity Price ($/kWh) | F12: Commerical Electricity Price ($/kWh) | H12: Province | I12: Commercial Electricity Price ($/kWh) | J12: Date | L12: Province | M12: Gasoline Price | N12: Date
A13: AK | B13: 2019 | C13: 3.4244 | D13: 3.617 | E13: 0.04466 | F13: 0.05379 | H13: Alberta | I13: 0.1398 | J13: 2018 | L13: Alberta | M13: 116.875 | N13: 2018
A14: AL | B14: 2019 | C14: 2.3465 | D14: 2.8195 | E14: 0.07682 | F14: 0.08502 | H14: British Columbia | I14: 0.12 | J14: 2018 | L14: British Columbia | M14: 150.1083 | N14: 2018
A15: AR | B15: 2019 | C15: 2.3465 | D15: 2.8195 | E15: 0.10192 | F15: 0.11439 | H15: Canada Avg | I15: =AVERAGE(I13,I14,I16,I17,I18,I20,I22,I23,I24,I25) -> 0.14023 | J15: 2018 | L15: Canada Avg | M15: 128.8167 | N15: 2018
A16: AZ | B16: 2019 | C16: 3.4244 | D16: 3.617 | E16: 0.08007 | F16: 0.09709 | H16: Manitoba | I16: 0.0977 | J16: 2018 | L16: Manitoba | M16: 113.0667 | N16: 2018
A17: CA | B17: 2019 | C17: 3.6742 | D17: 3.9217 | E17: 0.05296 | F17: 0.05873 | H17: New Brunswick | I17: 0.145 | J17: 2018 | L17: New Brunswick | M17: 120.3167 | N17: 2018
A18: CO | B18: 2019 | C18: 2.6527 | D18: 3.0419 | E18: 0.08394 | F18: 0.10111 | H18: Newfoundland and Labrador | I18: 0.1123 | J18: 2018 | L18: Newfoundland and Labrador | M18: 127.075 | N18: 2018
A19: CT | B19: 2019 | C19: 2.6434 | D19: 3.1326 | E19: 0.04599 | F19: 0.05787 | H19: Northwest Territories | I19: 0.3 | J19: 2018 | L19: Northwest Territories | M19: 135.6833 | N19: 2018
A20: DC | B20: 2019 | C20: 2.7208 | D20: 3.2668 | E20: 0.08188 | F20: 0.07856 | H20: Nova Scotia | I20: 0.1715 | J20: 2018 | L20: Nova Scotia | M20: 119 | N20: 2018
A21: DE | B21: 2019 | C21: 2.7208 | D21: 3.2668 | E21: 0.0807 | F21: 0.08578 | H21: Nunavut | I21: 0.285 | J21: 2018 | L21: Nunavut | M21: 1.0964 | N21: 2018
A22: FL | B22: 2019 | C22: 2.5068 | D22: 2.9446 | E22: 0.08571 | F22: 0.10921 | H22: Ontario | I22: 0.1483 | J22: 2018 | L22: Ontario | M22: 127.0083 | N22: 2018
A23: GA | B23: 2019 | C23: 2.4812 | D23: 2.9446 | E23: 0.08444 | F23: 0.10471 | H23: Prince Edward Island | I23: 0.1832 | J23: 2018 | L23: Prince Edward Island | M23: 121.15 | N23: 2018
A24: HI | B24: 2019 | C24: 3.4244 | D24: 3.617 | E24: 0.03109 | F24: 0.03374 | H24: Quebec | I24: 0.121 | J24: 2018 | L24: Quebec | M24: 131.925 | N24: 2018
A25: IA | B25: 2019 | C25: 2.5336 | D25: 2.954 | E25: 0.07755 | F25: 0.09633 | H25: Saskatchewan | I25: 0.1635 | J25: 2018 | L25: Saskatchewan | M25: 114.4417 | N25: 2018
A26: ID | B26: 2019 | C26: 2.7315 | D26: 3.0419 | E26: 0.101 | F26: 0.12983 | H26: Yukon | I26: 0.1465 | J26: 2018 | L26: Yukon | M26: 135.5333 | N26: 2018
A27: IL | B27: 2019 | C27: 2.5336 | D27: 2.954 | E27: 0.08058 | F27: 0.10553
A28: IN | B28: 2019 | C28: 2.5336 | D28: 2.954 | E28: 0.07919 | F28: 0.08979 | H28: Source: http://www.hydroquebec.com/data/documents-donnees/pdf/comparison-electricity-prices.pdf (Use Medium Power up to 100,000 kWh) | L28: Source: http://www2.nrcan.gc.ca/eneene/sources/pripri/prices_bycity_e.cfm?productID=1&locationID=66&locationID=8&locationID=43&locationID=10&locationID=39&locationID=35&locationID=28&locationID=12&locationID=44&locationID=17&locationID=2&locationID=1&locationID=15&locationID=7&frequency=M&priceYear=2018&Redisplay=
A29: KS | B29: 2019 | C29: 2.5336 | D29: 2.954 | E29: 0.07953 | F29: 0.0991 | H29: Source: https://www.neb-one.gc.ca/nrg/ntgrtd/mrkt/snpsht/2018/10-01-1cndffgrdcmmnts-eng.html (for territories) | L29: Source (Nunavut only): https://www.gov.nu.ca/community-and-government-services/news/retail-fuel-price-adjustments-0
A30: KY | B30: 2019 | C30: 2.5336 | D30: 2.954 | E30: 0.09379 | F30: 0.09943
A31: LA | B31: 2019 | C31: 2.3465 | D31: 2.8195 | E31: 0.10133 | F31: 0.11265
A32: MA | B32: 2019 | C32: 2.6617 | D32: 3.1326 | E32: 0.04381 | F32: 0.06056
A33: MD | B33: 2019 | C33: 2.7208 | D33: 3.2668 | E33: 0.07847 | F33: 0.08824
A34: ME | B34: 2019 | C34: 2.6434 | D34: 3.1326 | E34: 0.05668 | F34: 0.07075
A35: MI | B35: 2019 | C35: 2.5336 | D35: 2.954 | E35: 0.06297 | F35: 0.08455
A36: MN | B36: 2019 | C36: 2.4981 | D36: 2.954 | E36: 0.07465 | F36: 0.0964
A37: MO | B37: 2019 | C37: 2.5336 | D37: 2.954 | E37: 0.0896 | F37: 0.11159
A38: MS | B38: 2019 | C38: 2.3465 | D38: 2.8195 | E38: 0.09046 | F38: 0.09882
A39: MT | B39: 2019 | C39: 2.7315 | D39: 3.0419 | E39: 0.0898 | F39: 0.09428
A40: NC | B40: 2019 | C40: 2.4812 | D40: 2.9446 | E40: 0.08979 | F40: 0.11838
A41: ND | B41: 2019 | C41: 2.5336 | D41: 2.954 | E41: 0.09597 | F41: 0.11204
A42: NE | B42: 2019 | C42: 2.5336 | D42: 2.954 | E42: 0.09342 | F42: 0.11686
A43: NH | B43: 2019 | C43: 2.6434 | D43: 3.1326 | E43: 0.05055 | F43: 0.06034
A44: NJ | B44: 2019 | C44: 2.7208 | D44: 3.2668 | E44: 0.06364 | F44: 0.07878
A45: NM | B45: 2019 | C45: 2.3465 | D45: 2.8195 | E45: 0.08339 | F45: 0.10655
A46: NV | B46: 2019 | C46: 3.4244 | D46: 3.617 | E46: 0.08307 | F46: 0.11095
A47: NY | B47: 2019 | C47: 2.7262 | D47: 3.2668 | E47: 0.05569 | F47: 0.06192
A48: OH | B48: 2019 | C48: 2.5348 | D48: 2.954 | E48: 0.08411 | F48: 0.09302
A49: OK | B49: 2019 | C49: 2.5336 | D49: 2.954 | E49: 0.10097 | F49: 0.13462
A50: OR | B50: 2019 | C50: 3.4244 | D50: 3.617 | E50: 0.08652 | F50: 0.10872
A51: PA | B51: 2019 | C51: 2.7208 | D51: 3.2668 | E51: 0.07697 | F51: 0.09656
A52: RI | B52: 2019 | C52: 2.6434 | D52: 3.1326 | E52: 0.0466 | F52: 0.05747
A53: SC | B53: 2019 | C53: 2.4812 | D53: 2.9446 | E53: 0.07899 | F53: 0.09784
A54: SD | B54: 2019 | C54: 2.5336 | D54: 2.954 | E54: 0.0868 | F54: 0.10596
A55: TN | B55: 2019 | C55: 2.5336 | D55: 2.954 | E55: 0.09206 | F55: 0.09487
A56: TX | B56: 2019 | C56: 2.3505 | D56: 2.8195 | E56: 0.09395 | F56: 0.12228
A57: U.S. Avg | B57: 2019 | C57: 2.681 | D57: 3.1005 | E57: 0.07657 | F57: 0.09365
A58: UT | B58: 2019 | C58: 2.7315 | D58: 3.0419 | E58: 0.09426 | F58: 0.12132
A59: VA | B59: 2019 | C59: 2.4812 | D59: 2.9446 | E59: 0.08398 | F59: 0.12401
A60: VT | B60: 2019 | C60: 2.6434 | D60: 3.1326 | E60: 0.05699 | F60: 0.06234
A61: WA | B61: 2019 | C61: 3.184 | D61: 3.617 | E61: 0.09771 | F61: 0.10702
A62: WI | B62: 2019 | C62: 2.5336 | D62: 2.954 | E62: 0.06892 | F62: 0.09212
A63: WV | B63: 2019 | C63: 2.4812 | D63: 2.9446 | E63: 0.08947 | F63: 0.11065
A64: WY | B64: 2019 | C64: 2.7315 | D64: 3.0419 | E64: 0.09219 | F64: 0.10497
A66: Source: Electricity Prices, https://www.eia.gov/electricity/data/eia861m/index.html
A67: Source: Gasoline Prices, http://www.eia.gov/dnav/pet/pet_pri_gnd_a_epmr_pte_dpgal_w.htm
A69: Energy Inflation
A70: Market | B70: Field | C70: Units | D70: 2017 | E70: 2018 | F70: 2019 | G70: 2020 | H70: 2021 | I70: 2022 | J70: 2023 | K70: 2024 | L70: 2025 | M70: 2026 | N70: 2027 | O70: 2028 | P70: 2029 | Q70: 2030 | R70: 2031 | S70: 2032 | T70: 2033 | U70: 2034 | V70: 2035 | W70: 2036 | X70: 2037 | Y70: 2038 | Z70: 2039 | AA70: 2040 | AB70: 2041
A71: U.S. | B71: Motor Gasoline - Reference | C71: 2018 $/MMBtu | D71: 21.520517 | E71: 24.06465 | F71: 24.234852 | G71: 24.960867 | H71: 25.147348 | I71: 25.215456 | J71: 25.564999 | K71: 25.915911 | L71: 26.205999 | M71: 26.42157 | N71: 26.967485 | O71: 27.159895 | P71: 27.825689 | Q71: 27.940798 | R71: 28.244511 | S71: 28.481457 | T71: 28.597303 | U71: 28.805796 | V71: 28.990618 | W71: 29.231501 | X71: 29.229696 | Y71: 29.398031 | Z71: 29.585928 | AA71: 29.794043 | AB71: 29.794043
A72: U.S. | B72: Motor Gasoline - % over base | C72: % | D72: =D71/$D$71 -> 1 | E72: 1.118218954 | F72: 1.126127778 | G72: 1.159863724 | H72: 1.16852899 | I72: 1.171693784 | J72: 1.187936098 | K72: 1.204242026 | L72: 1.217721628 | M72: 1.227738627 | N72: 1.253105815 | O72: 1.262046586 | P72: 1.292984225 | Q72: 1.298333028 | R72: 1.312445747 | S72: 1.323455984 | T72: 1.328839033 | U72: 1.338527137 | V72: 1.347115313 | W72: 1.358308492 | X72: 1.358224619 | Y72: 1.366046689 | Z72: 1.374777753 | AA72: 1.384448292 | AB72: =AB71/$D$71 -> 1.384448292
A73: U.S. | B73: Electricity - Reference case | C73: 2018 $/MMBtu | D73: 29.101452 | E73: 33.287472 | F73: 35.301769 | G73: 35.655743 | H73: 36.136143 | I73: 36.865479 | J73: 37.499866 | K73: 37.917561 | L73: 38.429222 | M73: 38.868603 | N73: 38.934277 | O73: 38.963169 | P73: 38.951664 | Q73: 38.994389 | R73: 38.99868 | S73: 39.170242 | T73: 39.252037 | U73: 39.125347 | V73: 38.958588 | W73: 38.886948 | X73: 38.818939 | Y73: 38.574703 | Z73: 38.337807 | AA73: 38.110615 | AB73: 38.110615
A74: U.S. | B74: Electricity - % over base | C74: % | D74: =D73/$D$73 -> 1 | E74: 1.143842307 | F74: 1.213058682 | G74: 1.22522213 | H74: 1.241729897 | I74: 1.266791739 | J74: 1.288590892 | K74: 1.302943956 | L74: 1.320525931 | M74: 1.335624181 | N74: 1.337880907 | O74: 1.33887371 | P74: 1.338478369 | Q74: 1.339946509 | R74: 1.340093958 | S74: 1.345989265 | T74: 1.34879995 | U74: 1.344446559 | V74: 1.338716295 | W74: 1.336254562 | X74: 1.3339176 | Y74: 1.325525029 | Z74: 1.317384679 | AA74: 1.309577783 | AB74: =AB73/$D$73 -> 1.309577783
A75: Canada | B75: Motor Gasoline - % over base | C75: % | D75: 1 | E75: 1.21411762 | F75: 1.621293368 | G75: 1.552545946 | H75: 1.552545946 | I75: 1.552545946 | J75: 1.569732802 | K75: 1.609835465 | L75: 1.649938127 | M75: 1.684311838 | N75: 1.707227646 | O75: 1.718685549 | P75: 1.718685549 | Q75: 1.718685549 | R75: 1.718685549 | S75: 1.718685549 | T75: 1.718685549 | U75: 1.718685549 | V75: 1.718685549 | W75: 1.718685549 | X75: 1.718685549 | Y75: 1.718685549 | Z75: 1.718685549 | AA75: 1.718685549 | AB75: 1.718685549
A76: Canada | B76: Electricity - % over base | C76: % | D76: =D74 -> 1 | E76: 1.143842307 | F76: 1.213058682 | G76: 1.22522213 | H76: 1.241729897 | I76: 1.266791739 | J76: 1.288590892 | K76: 1.302943956 | L76: 1.320525931 | M76: 1.335624181 | N76: 1.337880907 | O76: 1.33887371 | P76: 1.338478369 | Q76: 1.339946509 | R76: 1.340093958 | S76: 1.345989265 | T76: 1.34879995 | U76: 1.344446559 | V76: 1.338716295 | W76: 1.336254562 | X76: 1.3339176 | Y76: 1.325525029 | Z76: 1.317384679 | AA76: 1.309577783 | AB76: =AB74 -> 1.309577783
A78: Source: https://www.eia.gov/outlooks/aeo/data/browser/#/?id=3-AEO2019&region=1-0&cases=ref2019&start=2017&end=2040&f=A&linechart=ref2019-d111618a.3-3-AEO2019.1-0&map=ref2019-d111618a.4-3-AEO2019.1-0&sourcekey=0
A79: Source: https://neb-one.gc.ca/nrg/ntgrtd/ftr/2018/pblctn-eng.html (Figure 2.2 Use Brent crude oil as proxy for gasoline prices)
A81: General Inflation (Maintenance, Insurance)
A82: Inflation (U.S.) | B82: Inflation (Canada) | D82: 2017 | E82: 2018 | F82: 2019 | G82: 2020 | H82: 2021 | I82: 2022 | J82: 2023 | K82: 2024 | L82: 2025 | M82: 2026 | N82: 2027 | O82: 2028 | P82: 2029 | Q82: 2030 | R82: 2031 | S82: 2032 | T82: 2033 | U82: 2034 | V82: 2035 | W82: 2036 | X82: 2037 | Y82: 2038 | Z82: 2039 | AA82: 2040 | AB82: 2041
A83: 0.022 | B83: 0.0144 | D83: =(1+Inflation_Rate_General_Modeled)^(D82-$D$82) -> 1 | E83: =(1+Inflation_Rate_General_Modeled)^(E82-$D$82) -> 1.02 | F83: 1.0404 | G83: 1.061208 | H83: 1.08243216 | I83: 1.104080803 | J83: 1.126162419 | K83: 1.148685668 | L83: 1.171659381 | M83: 1.195092569 | N83: 1.21899442 | O83: 1.243374308 | P83: 1.268241795 | Q83: 1.29360663 | R83: 1.319478763 | S83: 1.345868338 | T83: 1.372785705 | U83: 1.400241419 | V83: 1.428246248 | W83: 1.456811173 | X83: 1.485947396 | Y83: 1.515666344 | Z83: 1.545979671 | AA83: 1.576899264 | AB83: 1.608437249
A85: Source: https://www.philadelphiafed.org/-/media/research-and-data/real-time-center/survey-of-professional-forecasters/historical-data/inflation.xlsx?la=en (10-year ahead average inflation forecast)
A86: Source: https://apps.neb-one.gc.ca/ftrppndc/dflt.aspx?GoCTemplateCulture=en-CA (10-year average of 2017-2027)
A88: Maintenance and Repair Costs
A89: Key | B89: Vehicle Class | C89: Vehicle Type | D89: Market | E89: Year 1 | F89: Year 2 | G89: Year 3 | H89: Year 4 | I89: Year 5 | J89: Year 6 | K89: Year 7 | L89: Year 8 | M89: Year 9 | N89: Year 10 | O89: Year 11 | P89: Year 12 | Q89: Year 13 | R89: Year 14 | S89: Year 15 | T89: Year 16 | U89: Year 17 | V89: Year 18 | W89: Year 19 | X89: Year 20 | Y89: Year 21 | Z89: Year 22 | AA89: Year 23 | AB89: Year 24 | AC89: Year 25
A90: =DB_Maint_Repair_Costs[[#This Row],[Vehicle Class]]&DB_Maint_Repair_Costs[[#This Row],[Vehicle Type]]&DB_Maint_Repair_Costs[[#This Row],[Market]] -> Passenger Vehicles (Light-Duty)ICEU.S. | B90: Passenger Vehicles (Light-Duty) | C90: ICE | D90: U.S. | E90: 0.08 | F90: 0.08 | G90: 0.08 | H90: 0.08 | I90: 0.08 | J90: =DB_Maint_Repair_Costs[[#This Row],[Year 5]]*1.3 -> 0.104 | K90: =DB_Maint_Repair_Costs[[#This Row],[Year 5]]*1.3 -> 0.104 | L90: =DB_Maint_Repair_Costs[[#This Row],[Year 5]]*1.3 -> 0.104 | M90: =DB_Maint_Repair_Costs[[#This Row],[Year 5]]*1.3 -> 0.104 | N90: =DB_Maint_Repair_Costs[[#This Row],[Year 5]]*1.3 -> 0.104 | O90: =DB_Maint_Repair_Costs[[#This Row],[Year 5]]*1.3 -> 0.104 | P90: =DB_Maint_Repair_Costs[[#This Row],[Year 5]]*1.3 -> 0.104 | Q90: =DB_Maint_Repair_Costs[[#This Row],[Year 5]]*1.3 -> 0.104 | R90: =DB_Maint_Repair_Costs[[#This Row],[Year 5]]*1.3 -> 0.104 | S90: =DB_Maint_Repair_Costs[[#This Row],[Year 5]]*1.3 -> 0.104 | T90: =DB_Maint_Repair_Costs[[#This Row],[Year 5]]*1.3 -> 0.104 | U90: =DB_Maint_Repair_Costs[[#This Row],[Year 5]]*1.3 -> 0.104 | V90: =DB_Maint_Repair_Costs[[#This Row],[Year 5]]*1.3 -> 0.104 | W90: =DB_Maint_Repair_Costs[[#This Row],[Year 5]]*1.3 -> 0.104 | X90: =DB_Maint_Repair_Costs[[#This Row],[Year 5]]*1.3 -> 0.104 | Y90: =DB_Maint_Repair_Costs[[#This Row],[Year 5]]*1.3 -> 0.104 | Z90: =DB_Maint_Repair_Costs[[#This Row],[Year 5]]*1.3 -> 0.104 | AA90: =DB_Maint_Repair_Costs[[#This Row],[Year 5]]*1.3 -> 0.104 | AB90: =DB_Maint_Repair_Costs[[#This Row],[Year 5]]*1.3 -> 0.104 | AC90: =DB_Maint_Repair_Costs[[#This Row],[Year 5]]*1.3 -> 0.104
A91: =DB_Maint_Repair_Costs[[#This Row],[Vehicle Class]]&DB_Maint_Repair_Costs[[#This Row],[Vehicle Type]]&DB_Maint_Repair_Costs[[#This Row],[Market]] -> Passenger Vehicles (Light-Duty)BEVU.S. | B91: Passenger Vehicles (Light-Duty) | C91: BEV | D91: U.S. | E91: 0.04 | F91: 0.04 | G91: 0.04 | H91: 0.04 | I91: 0.04 | J91: =DB_Maint_Repair_Costs[[#This Row],[Year 5]]*1.3 -> 0.052 | K91: =DB_Maint_Repair_Costs[[#This Row],[Year 5]]*1.3 -> 0.052 | L91: =DB_Maint_Repair_Costs[[#This Row],[Year 5]]*1.3 -> 0.052 | M91: =DB_Maint_Repair_Costs[[#This Row],[Year 5]]*1.3 -> 0.052 | N91: =DB_Maint_Repair_Costs[[#This Row],[Year 5]]*1.3 -> 0.052 | O91: =DB_Maint_Repair_Costs[[#This Row],[Year 5]]*1.3 -> 0.052 | P91: =DB_Maint_Repair_Costs[[#This Row],[Year 5]]*1.3 -> 0.052 | Q91: =DB_Maint_Repair_Costs[[#This Row],[Year 5]]*1.3 -> 0.052 | R91: =DB_Maint_Repair_Costs[[#This Row],[Year 5]]*1.3 -> 0.052 | S91: =DB_Maint_Repair_Costs[[#This Row],[Year 5]]*1.3 -> 0.052 | T91: =DB_Maint_Repair_Costs[[#This Row],[Year 5]]*1.3 -> 0.052 | U91: =DB_Maint_Repair_Costs[[#This Row],[Year 5]]*1.3 -> 0.052 | V91: =DB_Maint_Repair_Costs[[#This Row],[Year 5]]*1.3 -> 0.052 | W91: =DB_Maint_Repair_Costs[[#This Row],[Year 5]]*1.3 -> 0.052 | X91: =DB_Maint_Repair_Costs[[#This Row],[Year 5]]*1.3 -> 0.052 | Y91: =DB_Maint_Repair_Costs[[#This Row],[Year 5]]*1.3 -> 0.052 | Z91: =DB_Maint_Repair_Costs[[#This Row],[Year 5]]*1.3 -> 0.052 | AA91: =DB_Maint_Repair_Costs[[#This Row],[Year 5]]*1.3 -> 0.052 | AB91: =DB_Maint_Repair_Costs[[#This Row],[Year 5]]*1.3 -> 0.052 | AC91: =DB_Maint_Repair_Costs[[#This Row],[Year 5]]*1.3 -> 0.052
A92: =DB_Maint_Repair_Costs[[#This Row],[Vehicle Class]]&DB_Maint_Repair_Costs[[#This Row],[Vehicle Type]]&DB_Maint_Repair_Costs[[#This Row],[Market]] -> Passenger Vehicles (Light-Duty)PHEVU.S. | B92: Passenger Vehicles (Light-Duty) | C92: PHEV | D92: U.S. | E92: 0.07 | F92: 0.07 | G92: 0.07 | H92: 0.07 | I92: 0.07 | J92: =DB_Maint_Repair_Costs[[#This Row],[Year 5]]*1.3 -> 0.091 | K92: =DB_Maint_Repair_Costs[[#This Row],[Year 5]]*1.3 -> 0.091 | L92: =DB_Maint_Repair_Costs[[#This Row],[Year 5]]*1.3 -> 0.091 | M92: =DB_Maint_Repair_Costs[[#This Row],[Year 5]]*1.3 -> 0.091 | N92: =DB_Maint_Repair_Costs[[#This Row],[Year 5]]*1.3 -> 0.091 | O92: =DB_Maint_Repair_Costs[[#This Row],[Year 5]]*1.3 -> 0.091 | P92: =DB_Maint_Repair_Costs[[#This Row],[Year 5]]*1.3 -> 0.091 | Q92: =DB_Maint_Repair_Costs[[#This Row],[Year 5]]*1.3 -> 0.091 | R92: =DB_Maint_Repair_Costs[[#This Row],[Year 5]]*1.3 -> 0.091 | S92: =DB_Maint_Repair_Costs[[#This Row],[Year 5]]*1.3 -> 0.091 | T92: =DB_Maint_Repair_Costs[[#This Row],[Year 5]]*1.3 -> 0.091 | U92: =DB_Maint_Repair_Costs[[#This Row],[Year 5]]*1.3 -> 0.091 | V92: =DB_Maint_Repair_Costs[[#This Row],[Year 5]]*1.3 -> 0.091 | W92: =DB_Maint_Repair_Costs[[#This Row],[Year 5]]*1.3 -> 0.091 | X92: =DB_Maint_Repair_Costs[[#This Row],[Year 5]]*1.3 -> 0.091 | Y92: =DB_Maint_Repair_Costs[[#This Row],[Year 5]]*1.3 -> 0.091 | Z92: =DB_Maint_Repair_Costs[[#This Row],[Year 5]]*1.3 -> 0.091 | AA92: =DB_Maint_Repair_Costs[[#This Row],[Year 5]]*1.3 -> 0.091 | AB92: =DB_Maint_Repair_Costs[[#This Row],[Year 5]]*1.3 -> 0.091 | AC92: =DB_Maint_Repair_Costs[[#This Row],[Year 5]]*1.3 -> 0.091
A93: =DB_Maint_Repair_Costs[[#This Row],[Vehicle Class]]&DB_Maint_Repair_Costs[[#This Row],[Vehicle Type]]&DB_Maint_Repair_Costs[[#This Row],[Market]] -> Passenger Vehicles (Light-Duty)ICECanada | B93: Passenger Vehicles (Light-Duty) | C93: ICE | D93: Canada | E93: =E90*Constant_Kilometers_Per_Mile -> 0.128744 | F93: 0.128744 | G93: 0.128744 | H93: 0.128744 | I93: 0.128744 | J93: 0.1673672 | K93: 0.1673672 | L93: 0.1673672 | M93: 0.1673672 | N93: 0.1673672 | O93: 0.1673672 | P93: 0.1673672 | Q93: 0.1673672 | R93: 0.1673672 | S93: 0.1673672 | T93: 0.1673672 | U93: 0.1673672 | V93: 0.1673672 | W93: 0.1673672 | X93: 0.1673672 | Y93: 0.1673672 | Z93: 0.1673672 | AA93: 0.1673672 | AB93: 0.1673672 | AC93: 0.1673672
A94: =DB_Maint_Repair_Costs[[#This Row],[Vehicle Class]]&DB_Maint_Repair_Costs[[#This Row],[Vehicle Type]]&DB_Maint_Repair_Costs[[#This Row],[Market]] -> Passenger Vehicles (Light-Duty)BEVCanada | B94: Passenger Vehicles (Light-Duty) | C94: BEV | D94: Canada | E94: =E91*Constant_Kilometers_Per_Mile -> 0.064372 | F94: 0.064372 | G94: 0.064372 | H94: 0.064372 | I94: 0.064372 | J94: 0.0836836 | K94: 0.0836836 | L94: 0.0836836 | M94: 0.0836836 | N94: 0.0836836 | O94: 0.0836836 | P94: 0.0836836 | Q94: 0.0836836 | R94: 0.0836836 | S94: 0.0836836 | T94: 0.0836836 | U94: 0.0836836 | V94: 0.0836836 | W94: 0.0836836 | X94: 0.0836836 | Y94: 0.0836836 | Z94: 0.0836836 | AA94: 0.0836836 | AB94: 0.0836836 | AC94: 0.0836836
A95: =DB_Maint_Repair_Costs[[#This Row],[Vehicle Class]]&DB_Maint_Repair_Costs[[#This Row],[Vehicle Type]]&DB_Maint_Repair_Costs[[#This Row],[Market]] -> Passenger Vehicles (Light-Duty)PHEVCanada | B95: Passenger Vehicles (Light-Duty) | C95: PHEV | D95: Canada | E95: =E92*Constant_Kilometers_Per_Mile -> 0.112651 | F95: 0.112651 | G95: 0.112651 | H95: 0.112651 | I95: 0.112651 | J95: 0.1464463 | K95: 0.1464463 | L95: 0.1464463 | M95: 0.1464463 | N95: 0.1464463 | O95: 0.1464463 | P95: 0.1464463 | Q95: 0.1464463 | R95: 0.1464463 | S95: 0.1464463 | T95: 0.1464463 | U95: 0.1464463 | V95: 0.1464463 | W95: 0.1464463 | X95: 0.1464463 | Y95: 0.1464463 | Z95: 0.1464463 | AA95: 0.1464463 | AB95: 0.1464463 | AC95: 0.1464463
A96: =DB_Maint_Repair_Costs[[#This Row],[Vehicle Class]]&DB_Maint_Repair_Costs[[#This Row],[Vehicle Type]]&DB_Maint_Repair_Costs[[#This Row],[Market]] -> Medium Duty Vehicles (Class 3-6)ICEU.S. | B96: Medium Duty Vehicles (Class 3-6) | C96: ICE | D96: U.S. | E96: 0.135 | F96: 0.095 | G96: 0.095 | H96: 0.095 | I96: 0.095 | J96: =DB_Maint_Repair_Costs[[#This Row],[Year 5]]*1.3 -> 0.1235 | K96: =DB_Maint_Repair_Costs[[#This Row],[Year 5]]*1.3 -> 0.1235 | L96: =DB_Maint_Repair_Costs[[#This Row],[Year 5]]*1.3 -> 0.1235 | M96: =DB_Maint_Repair_Costs[[#This Row],[Year 5]]*1.3 -> 0.1235 | N96: =DB_Maint_Repair_Costs[[#This Row],[Year 5]]*1.3 -> 0.1235 | O96: =DB_Maint_Repair_Costs[[#This Row],[Year 5]]*1.3 -> 0.1235 | P96: =DB_Maint_Repair_Costs[[#This Row],[Year 5]]*1.3 -> 0.1235 | Q96: =DB_Maint_Repair_Costs[[#This Row],[Year 5]]*1.3 -> 0.1235 | R96: =DB_Maint_Repair_Costs[[#This Row],[Year 5]]*1.3 -> 0.1235 | S96: =DB_Maint_Repair_Costs[[#This Row],[Year 5]]*1.3 -> 0.1235 | T96: =DB_Maint_Repair_Costs[[#This Row],[Year 5]]*1.3 -> 0.1235 | U96: =DB_Maint_Repair_Costs[[#This Row],[Year 5]]*1.3 -> 0.1235 | V96: =DB_Maint_Repair_Costs[[#This Row],[Year 5]]*1.3 -> 0.1235 | W96: =DB_Maint_Repair_Costs[[#This Row],[Year 5]]*1.3 -> 0.1235 | X96: =DB_Maint_Repair_Costs[[#This Row],[Year 5]]*1.3 -> 0.1235 | Y96: =DB_Maint_Repair_Costs[[#This Row],[Year 5]]*1.3 -> 0.1235 | Z96: =DB_Maint_Repair_Costs[[#This Row],[Year 5]]*1.3 -> 0.1235 | AA96: =DB_Maint_Repair_Costs[[#This Row],[Year 5]]*1.3 -> 0.1235 | AB96: =DB_Maint_Repair_Costs[[#This Row],[Year 5]]*1.3 -> 0.1235 | AC96: =DB_Maint_Repair_Costs[[#This Row],[Year 5]]*1.3 -> 0.1235
A97: =DB_Maint_Repair_Costs[[#This Row],[Vehicle Class]]&DB_Maint_Repair_Costs[[#This Row],[Vehicle Type]]&DB_Maint_Repair_Costs[[#This Row],[Market]] -> Medium Duty Vehicles (Class 3-6)BEVU.S. | B97: Medium Duty Vehicles (Class 3-6) | C97: BEV | D97: U.S. | E97: 0.095 | F97: 0.095 | G97: 0.095 | H97: 0.095 | I97: 0.095 | J97: =DB_Maint_Repair_Costs[[#This Row],[Year 5]]*1.3 -> 0.1235 | K97: =DB_Maint_Repair_Costs[[#This Row],[Year 5]]*1.3 -> 0.1235 | L97: =DB_Maint_Repair_Costs[[#This Row],[Year 5]]*1.3 -> 0.1235 | M97: =DB_Maint_Repair_Costs[[#This Row],[Year 5]]*1.3 -> 0.1235 | N97: =DB_Maint_Repair_Costs[[#This Row],[Year 5]]*1.3 -> 0.1235 | O97: =DB_Maint_Repair_Costs[[#This Row],[Year 5]]*1.3 -> 0.1235 | P97: =DB_Maint_Repair_Costs[[#This Row],[Year 5]]*1.3 -> 0.1235 | Q97: =DB_Maint_Repair_Costs[[#This Row],[Year 5]]*1.3 -> 0.1235 | R97: =DB_Maint_Repair_Costs[[#This Row],[Year 5]]*1.3 -> 0.1235 | S97: =DB_Maint_Repair_Costs[[#This Row],[Year 5]]*1.3 -> 0.1235 | T97: =DB_Maint_Repair_Costs[[#This Row],[Year 5]]*1.3 -> 0.1235 | U97: =DB_Maint_Repair_Costs[[#This Row],[Year 5]]*1.3 -> 0.1235 | V97: =DB_Maint_Repair_Costs[[#This Row],[Year 5]]*1.3 -> 0.1235 | W97: =DB_Maint_Repair_Costs[[#This Row],[Year 5]]*1.3 -> 0.1235 | X97: =DB_Maint_Repair_Costs[[#This Row],[Year 5]]*1.3 -> 0.1235 | Y97: =DB_Maint_Repair_Costs[[#This Row],[Year 5]]*1.3 -> 0.1235 | Z97: =DB_Maint_Repair_Costs[[#This Row],[Year 5]]*1.3 -> 0.1235 | AA97: =DB_Maint_Repair_Costs[[#This Row],[Year 5]]*1.3 -> 0.1235 | AB97: =DB_Maint_Repair_Costs[[#This Row],[Year 5]]*1.3 -> 0.1235 | AC97: =DB_Maint_Repair_Costs[[#This Row],[Year 5]]*1.3 -> 0.1235
A98: =DB_Maint_Repair_Costs[[#This Row],[Vehicle Class]]&DB_Maint_Repair_Costs[[#This Row],[Vehicle Type]]&DB_Maint_Repair_Costs[[#This Row],[Market]] -> Medium Duty Vehicles (Class 3-6)ICECanada | B98: Medium Duty Vehicles (Class 3-6) | C98: ICE | D98: Canada | E98: =E96*Constant_Kilometers_Per_Mile -> 0.2172555 | F98: 0.1528835 | G98: 0.1528835 | H98: 0.1528835 | I98: 0.1528835 | J98: 0.19874855 | K98: 0.19874855 | L98: 0.19874855 | M98: 0.19874855 | N98: 0.19874855 | O98: 0.19874855 | P98: 0.19874855 | Q98: 0.19874855 | R98: 0.19874855 | S98: 0.19874855 | T98: 0.19874855 | U98: 0.19874855 | V98: 0.19874855 | W98: 0.19874855 | X98: 0.19874855 | Y98: 0.19874855 | Z98: 0.19874855 | AA98: 0.19874855 | AB98: 0.19874855 | AC98: 0.19874855
A99: =DB_Maint_Repair_Costs[[#This Row],[Vehicle Class]]&DB_Maint_Repair_Costs[[#This Row],[Vehicle Type]]&DB_Maint_Repair_Costs[[#This Row],[Market]] -> Medium Duty Vehicles (Class 3-6)BEVCanada | B99: Medium Duty Vehicles (Class 3-6) | C99: BEV | D99: Canada | E99: =E97*Constant_Kilometers_Per_Mile -> 0.1528835 | F99: 0.1528835 | G99: 0.1528835 | H99: 0.1528835 | I99: 0.1528835 | J99: 0.19874855 | K99: 0.19874855 | L99: 0.19874855 | M99: 0.19874855 | N99: 0.19874855 | O99: 0.19874855 | P99: 0.19874855 | Q99: 0.19874855 | R99: 0.19874855 | S99: 0.19874855 | T99: 0.19874855 | U99: 0.19874855 | V99: 0.19874855 | W99: 0.19874855 | X99: 0.19874855 | Y99: 0.19874855 | Z99: 0.19874855 | AA99: 0.19874855 | AB99: 0.19874855 | AC99: 0.19874855
A100: =DB_Maint_Repair_Costs[[#This Row],[Vehicle Class]]&DB_Maint_Repair_Costs[[#This Row],[Vehicle Type]]&DB_Maint_Repair_Costs[[#This Row],[Market]] -> Heavy-Duty Vehicles (Class 7-8)ICEU.S. | B100: Heavy-Duty Vehicles (Class 7-8) | C100: ICE | D100: U.S. | E100: 0.135 | F100: 0.095 | G100: 0.095 | H100: 0.095 | I100: 0.095 | J100: =DB_Maint_Repair_Costs[[#This Row],[Year 5]]*1.3 -> 0.1235 | K100: =DB_Maint_Repair_Costs[[#This Row],[Year 5]]*1.3 -> 0.1235 | L100: =DB_Maint_Repair_Costs[[#This Row],[Year 5]]*1.3 -> 0.1235 | M100: =DB_Maint_Repair_Costs[[#This Row],[Year 5]]*1.3 -> 0.1235 | N100: =DB_Maint_Repair_Costs[[#This Row],[Year 5]]*1.3 -> 0.1235 | O100: =DB_Maint_Repair_Costs[[#This Row],[Year 5]]*1.3 -> 0.1235 | P100: =DB_Maint_Repair_Costs[[#This Row],[Year 5]]*1.3 -> 0.1235 | Q100: =DB_Maint_Repair_Costs[[#This Row],[Year 5]]*1.3 -> 0.1235 | R100: =DB_Maint_Repair_Costs[[#This Row],[Year 5]]*1.3 -> 0.1235 | S100: =DB_Maint_Repair_Costs[[#This Row],[Year 5]]*1.3 -> 0.1235 | T100: =DB_Maint_Repair_Costs[[#This Row],[Year 5]]*1.3 -> 0.1235 | U100: =DB_Maint_Repair_Costs[[#This Row],[Year 5]]*1.3 -> 0.1235 | V100: =DB_Maint_Repair_Costs[[#This Row],[Year 5]]*1.3 -> 0.1235 | W100: =DB_Maint_Repair_Costs[[#This Row],[Year 5]]*1.3 -> 0.1235 | X100: =DB_Maint_Repair_Costs[[#This Row],[Year 5]]*1.3 -> 0.1235 | Y100: =DB_Maint_Repair_Costs[[#This Row],[Year 5]]*1.3 -> 0.1235 | Z100: =DB_Maint_Repair_Costs[[#This Row],[Year 5]]*1.3 -> 0.1235 | AA100: =DB_Maint_Repair_Costs[[#This Row],[Year 5]]*1.3 -> 0.1235 | AB100: =DB_Maint_Repair_Costs[[#This Row],[Year 5]]*1.3 -> 0.1235 | AC100: =DB_Maint_Repair_Costs[[#This Row],[Year 5]]*1.3 -> 0.1235
A101: =DB_Maint_Repair_Costs[[#This Row],[Vehicle Class]]&DB_Maint_Repair_Costs[[#This Row],[Vehicle Type]]&DB_Maint_Repair_Costs[[#This Row],[Market]] -> Heavy-Duty Vehicles (Class 7-8)BEVU.S. | B101: Heavy-Duty Vehicles (Class 7-8) | C101: BEV | D101: U.S. | E101: 0.095 | F101: 0.095 | G101: 0.095 | H101: 0.095 | I101: 0.095 | J101: =DB_Maint_Repair_Costs[[#This Row],[Year 5]]*1.3 -> 0.1235 | K101: =DB_Maint_Repair_Costs[[#This Row],[Year 5]]*1.3 -> 0.1235 | L101: =DB_Maint_Repair_Costs[[#This Row],[Year 5]]*1.3 -> 0.1235 | M101: =DB_Maint_Repair_Costs[[#This Row],[Year 5]]*1.3 -> 0.1235 | N101: =DB_Maint_Repair_Costs[[#This Row],[Year 5]]*1.3 -> 0.1235 | O101: =DB_Maint_Repair_Costs[[#This Row],[Year 5]]*1.3 -> 0.1235 | P101: =DB_Maint_Repair_Costs[[#This Row],[Year 5]]*1.3 -> 0.1235 | Q101: =DB_Maint_Repair_Costs[[#This Row],[Year 5]]*1.3 -> 0.1235 | R101: =DB_Maint_Repair_Costs[[#This Row],[Year 5]]*1.3 -> 0.1235 | S101: =DB_Maint_Repair_Costs[[#This Row],[Year 5]]*1.3 -> 0.1235 | T101: =DB_Maint_Repair_Costs[[#This Row],[Year 5]]*1.3 -> 0.1235 | U101: =DB_Maint_Repair_Costs[[#This Row],[Year 5]]*1.3 -> 0.1235 | V101: =DB_Maint_Repair_Costs[[#This Row],[Year 5]]*1.3 -> 0.1235 | W101: =DB_Maint_Repair_Costs[[#This Row],[Year 5]]*1.3 -> 0.1235 | X101: =DB_Maint_Repair_Costs[[#This Row],[Year 5]]*1.3 -> 0.1235 | Y101: =DB_Maint_Repair_Costs[[#This Row],[Year 5]]*1.3 -> 0.1235 | Z101: =DB_Maint_Repair_Costs[[#This Row],[Year 5]]*1.3 -> 0.1235 | AA101: =DB_Maint_Repair_Costs[[#This Row],[Year 5]]*1.3 -> 0.1235 | AB101: =DB_Maint_Repair_Costs[[#This Row],[Year 5]]*1.3 -> 0.1235 | AC101: =DB_Maint_Repair_Costs[[#This Row],[Year 5]]*1.3 -> 0.1235
A102: =DB_Maint_Repair_Costs[[#This Row],[Vehicle Class]]&DB_Maint_Repair_Costs[[#This Row],[Vehicle Type]]&DB_Maint_Repair_Costs[[#This Row],[Market]] -> Heavy-Duty Vehicles (Class 7-8)ICECanada | B102: Heavy-Duty Vehicles (Class 7-8) | C102: ICE | D102: Canada | E102: =E100*Constant_Kilometers_Per_Mile -> 0.2172555 | F102: 0.1528835 | G102: 0.1528835 | H102: 0.1528835 | I102: 0.1528835 | J102: 0.19874855 | K102: 0.19874855 | L102: 0.19874855 | M102: 0.19874855 | N102: 0.19874855 | O102: 0.19874855 | P102: 0.19874855 | Q102: 0.19874855 | R102: 0.19874855 | S102: 0.19874855 | T102: 0.19874855 | U102: 0.19874855 | V102: 0.19874855 | W102: 0.19874855 | X102: 0.19874855 | Y102: 0.19874855 | Z102: 0.19874855 | AA102: 0.19874855 | AB102: 0.19874855 | AC102: 0.19874855
A103: =DB_Maint_Repair_Costs[[#This Row],[Vehicle Class]]&DB_Maint_Repair_Costs[[#This Row],[Vehicle Type]]&DB_Maint_Repair_Costs[[#This Row],[Market]] -> Heavy-Duty Vehicles (Class 7-8)BEVCanada | B103: Heavy-Duty Vehicles (Class 7-8) | C103: BEV | D103: Canada | E103: =E101*Constant_Kilometers_Per_Mile -> 0.1528835 | F103: 0.1528835 | G103: 0.1528835 | H103: 0.1528835 | I103: 0.1528835 | J103: 0.19874855 | K103: 0.19874855 | L103: 0.19874855 | M103: 0.19874855 | N103: 0.19874855 | O103: 0.19874855 | P103: 0.19874855 | Q103: 0.19874855 | R103: 0.19874855 | S103: 0.19874855 | T103: 0.19874855 | U103: 0.19874855 | V103: 0.19874855 | W103: 0.19874855 | X103: 0.19874855 | Y103: 0.19874855 | Z103: 0.19874855 | AA103: 0.19874855 | AB103: 0.19874855 | AC103: 0.19874855
A105: Source: Alameda County, 2017 (Passenger Vehicle)
A107: Electricity Emissions
A108: eGRID subregion acronym | B108: eGRID subregion name | C108: eGRID subregion annual NOx total output emission rate (lb/MWh) | D108: eGRID subregion annual SO2 total output emission rate (lb/MWh) | E108: eGRID subregion annual CO2 total output emission rate (lb/MWh) | F108: eGRID subregion annual CH4 total output emission rate (lb/MWh) | G108: eGRID subregion annual N2O total output emission rate (lb/MWh) | H108: eGRID subregion annual CO2 equivalent total output emission rate (lb/MWh) | I108: Grid gross loss [Estimated losses/(Total disposition - Direct use)] | J108: Upstream Emissions After Transmission Loss (lb/MWh) | K108: EPA PM10 total direct plant output emission rate based on national average (lb/M | L108: EPA PM2.5 total direct plant output emission rate based on national average (lb/ | M108: EPA VOC total direct plant output emission rate based on national average (lb/MW | O108: Province | P108: CO2 | Q108: NOx as NO2 | R108: SOx | S108: PM10 | T108: PM2.5
A109: AKGD | B109: ASCC Alaska Grid | C109: 5.47 | D109: 1.1 | E109: 1039.635 | F109: 0.082 | G109: 0.011 | H109: 1044.989 | J109: 194.00656 | K109: 0.1263193791 | L109: 0.09847497742 | M109: 0.02054784003 | O109: Alberta | P109: 229660.9308 | Q109: 441.6532527 | R109: 356.1044762 | S109: 20.94195664 | T109: 11.80377245
A110: AKMS | B110: ASCC Miscellaneous | C110: 7.712 | D110: 0.677 | E110: 525.083 | F110: 0.024 | G110: 0.004 | H110: 526.963 | J110: 112.43562 | K110: 0.1263193791 | L110: 0.09847497742 | M110: 0.02054784003 | O110: British Columbia | P110: 7078.333564 | Q110: 38.15349953 | R110: 35.22922692 | S110: 11.97822546 | T110: 10.31916981
A111: AZNM | B111: WECC Southwest | C111: 0.73 | D111: 0.263 | E111: 1022.355 | F111: 0.077 | G111: 0.011 | H111: 1027.548 | J111: 125.66334 | K111: 0.1263193791 | L111: 0.09847497742 | M111: 0.02054784003 | O111: Canada Avg | P111: 48711.14958 | Q111: 82.9310631 | R111: 63.54457485 | S111: 5.765704581 | T111: 4.022608318
A112: ERCT | B112: ERCOT All | C112: 0.545 | D112: 0.829 | E112: 931.672 | F112: 0.066 | G112: 0.009 | H112: 936.082 | J112: 147.70954 | K112: 0.1263193791 | L112: 0.09847497742 | M112: 0.02054784003 | O112: Manitoba | P112: 7315.337035 | Q112: 3.864561885 | R112: 2.532458455 | S112: 0.3997530763 | T112: 0.3209228145
A113: CAMX | B113: WECC California | C113: 0.463 | D113: 0.047 | E113: 496.536 | F113: 0.034 | G113: 0.004 | H113: 498.686 | J113: 130.07258 | K113: 0.1263193791 | L113: 0.09847497742 | M113: 0.02054784003 | O113: New Brunswick | P113: 66784.54299 | Q113: 116.1035633 | R113: 101.6916204 | S113: 6.832625046 | T113: 4.200448217
A114: FRCC | B114: FRCC All | C114: 0.356 | D114: 0.278 | E114: 931.842 | F114: 0.066 | G114: 0.009 | H114: 936.145 | J114: 176.3696 | K114: 0.1263193791 | L114: 0.09847497742 | M114: 0.02054784003 | O114: Newfoundland and Labrador | P114: 66784.54299 | Q114: 116.1035633 | R114: 101.6916204 | S114: 6.832625046 | T114: 4.200448217
A115: HIMS | B115: HICC Miscellaneous | C115: 7.638 | D115: 3.969 | E115: 1110.689 | F115: 0.118 | G115: 0.018 | H115: 1119.077 | J115: 253.5313 | K115: 0.1263193791 | L115: 0.09847497742 | M115: 0.02054784003 | O115: Northwest Territories
A116: HIOA | B116: HICC Oahu | C116: 3.515 | D116: 7.997 | E116: 1669.943 | F116: 0.18 | G116: 0.027 | H116: 1682.596 | J116: 308.6468 | K116: 0.1263193791 | L116: 0.09847497742 | M116: 0.02054784003 | O116: Nova Scotia | P116: 66784.54299 | Q116: 116.1035633 | R116: 101.6916204 | S116: 6.832625046 | T116: 4.200448217
A117: MROE | B117: MRO East | C117: 0.88 | D117: 0.891 | E117: 1678.016 | F117: 0.169 | G117: 0.025 | H117: 1689.651 | J117: 123.45872 | K117: 0.1263193791 | L117: 0.09847497742 | M117: 0.02054784003 | O117: Nunavut
A118: MROW | B118: MRO West | C118: 0.977 | D118: 1.351 | E118: 1239.848 | F118: 0.138 | G118: 0.02 | H118: 1249.201 | J118: 105.82176 | K118: 0.1263193791 | L118: 0.09847497742 | M118: 0.02054784003 | O118: Ontario | P118: 29589.14785 | Q118: 25.14282993 | R118: 3.714692701 | S118: 2.280691243 | T118: 2.15293148
A119: NYLI | B119: NPCC Long Island | C119: 0.86 | D119: 0.234 | E119: 1184.241 | F119: 0.139 | G119: 0.018 | H119: 1193.091 | J119: 202.82504 | K119: 0.1263193791 | L119: 0.09847497742 | M119: 0.02054784003 | O119: Prince Edward Island | P119: 66784.54299 | Q119: 116.1035633 | R119: 101.6916204 | S119: 6.832625046 | T119: 4.200448217
A120: NEWE | B120: NPCC New England | C120: 0.387 | D120: 0.136 | E120: 522.312 | F120: 0.082 | G120: 0.011 | H120: 527.564 | J120: 130.07258 | K120: 0.1263193791 | L120: 0.09847497742 | M120: 0.02054784003 | O120: Quebec | P120: 5470.297741 | Q120: 3.250328434 | R120: 3.455501476 | S120: 0.9819170825 | T120: 0.8372661496
A121: NWPP | B121: WECC Northwest | C121: 0.58 | D121: 0.377 | E121: 639.037 | F121: 0.064 | G121: 0.009 | H121: 643.363 | J121: 59.52474 | K121: 0.1263193791 | L121: 0.09847497742 | M121: 0.02054784003 | O121: Saskatchewan | P121: 188497.8187 | Q121: 336.7583619 | R121: 254.6370728 | S121: 17.1145078 | T121: 10.53708133
A122: NYCW | B122: NPCC NYC/Westchester | C122: 0.251 | D122: 0.026 | E122: 596.414 | F122: 0.022 | G122: 0.003 | H122: 597.762 | J122: 138.89106 | K122: 0.1263193791 | L122: 0.09847497742 | M122: 0.02054784003 | O122: Yukon | P122: 7078.333564 | Q122: 38.15349953 | R122: 35.22922692 | S122: 11.97822546 | T122: 10.31916981
A123: NYUP | B123: NPCC Upstate NY | C123: 0.136 | D123: 0.092 | E123: 253.112 | F123: 0.018 | G123: 0.002 | H123: 253.889 | J123: 81.57094 | K123: 0.1263193791 | L123: 0.09847497742 | M123: 0.02054784003
A124: RFCE | B124: RFC East | C124: 0.333 | D124: 0.48 | E124: 715.966 | F124: 0.061 | G124: 0.008 | H124: 719.979 | J124: 114.64024 | K124: 0.1263193791 | L124: 0.09847497742 | M124: 0.02054784003 | O124: Source (g/GJ): https://ghgenius.ca v5.0d
A125: RFCM | B125: RFC Michigan | C125: 0.798 | D125: 1.296 | E125: 1312.56 | F125: 0.129 | G125: 0.018 | H125: 1321.185 | J125: 145.50492 | K125: 0.1263193791 | L125: 0.09847497742 | M125: 0.02054784003
A126: RFCW | B126: RFC West | C126: 0.825 | D126: 0.925 | E126: 1166.096 | F126: 0.117 | G126: 0.017 | H126: 1174.029 | J126: 121.2541 | K126: 0.1263193791 | L126: 0.09847497742 | M126: 0.02054784003
A127: SRMW | B127: SERC Midwest | C127: 1.06 | D127: 2.488 | E127: 1664.15 | F127: 0.185 | G127: 0.027 | H127: 1676.782 | J127: 132.2772 | K127: 0.1263193791 | L127: 0.09847497742 | M127: 0.02054784003
A128: RMPA | B128: WECC Rockies | C128: 0.673 | D128: 0.418 | E128: 1273.615 | F128: 0.123 | G128: 0.018 | H128: 1281.944 | J128: 134.48182 | K128: 0.1263193791 | L128: 0.09847497742 | M128: 0.02054784003
A129: SRMV | B129: SERC Mississippi Valley | C129: 0.614 | D129: 0.96 | E129: 854.645 | F129: 0.055 | G129: 0.008 | H129: 858.369 | J129: 154.3234 | K129: 0.1263193791 | L129: 0.09847497742 | M129: 0.02054784003
A130: SPNO | B130: SPP North | C130: 0.642 | D130: 0.333 | E130: 1163.187 | F130: 0.124 | G130: 0.018 | H130: 1171.606 | J130: 130.07258 | K130: 0.1263193791 | L130: 0.09847497742 | M130: 0.02054784003
A131: SRSO | B131: SERC South | C131: 0.496 | D131: 0.297 | E131: 1027.928 | F131: 0.081 | G131: 0.012 | H131: 1033.471 | J131: 145.50492 | K131: 0.1263193791 | L131: 0.09847497742 | M131: 0.02054784003
A132: SPSO | B132: SPP South | C132: 0.832 | D132: 1.242 | E132: 1166.582 | F132: 0.091 | G132: 0.013 | H132: 1172.755 | J132: 156.52802 | K132: 0.1263193791 | L132: 0.09847497742 | M132: 0.02054784003
A133: SRTV | B133: SERC Tennessee Valley | C133: 0.551 | D133: 0.619 | E133: 1031.537 | F133: 0.097 | G133: 0.014 | H133: 1038.127 | J133: 121.2541 | K133: 0.1263193791 | L133: 0.09847497742 | M133: 0.02054784003
A134: SRVC | B134: SERC Virginia/Carolina | C134: 0.437 | D134: 0.263 | E134: 743.328 | F134: 0.067 | G134: 0.009 | H134: 747.513 | J134: 108.02638 | K134: 0.1263193791 | L134: 0.09847497742 | M134: 0.02054784003
A135: U.S. Avg | B135: National Average | C135: 0.619 | D135: 0.675 | E135: 947.182 | F135: 0.085 | G135: 0.012 | H135: 952.877 | J135: 117.7088522 | K135: 0.1263193791 | L135: 0.09847497742 | M135: 0.02054784003
A137: Source (eGRID and Grid Loss): http://www.epa.gov/cleanenergy/energy-resources/egrid/index.html
A138: Source (Upstream Emissions): http://www.ucsusa.org/sites/default/files/attach/2015/11/Cleaner-Cars-from-Cradle-to-Grave-full-report.pdf
A139: Source (VOC, PM10, and PM2.5): https://www.epa.gov/air-emissions-inventories/air-pollutant-emissions-trends-data
A142: Gasoline and Diesel Emissions
A143: Key | B143: Pollutant | C143: Market | D143: Emissions Type | E143: Vehicle Class | F143: Emissions
A144: =DB_Gasoline_Diesel_Emissions[[#This Row],[Pollutant]]&DB_Gasoline_Diesel_Emissions[[#This Row],[Market]]&DB_Gasoline_Diesel_Emissions[[#This Row],[Emissions Type]]&DB_Gasoline_Diesel_Emissions[[#This Row],[Vehicle Class]] -> CO2 (g/MJ)U.S.TailpipeHeavy-Duty Vehicles (Class 7-8) | B144: CO2 (g/MJ) | C144: U.S. | D144: Tailpipe | E144: Heavy-Duty Vehicles (Class 7-8) | F144: 74.72
A145: =DB_Gasoline_Diesel_Emissions[[#This Row],[Pollutant]]&DB_Gasoline_Diesel_Emissions[[#This Row],[Market]]&DB_Gasoline_Diesel_Emissions[[#This Row],[Emissions Type]]&DB_Gasoline_Diesel_Emissions[[#This Row],[Vehicle Class]] -> GHG-100 (g/MJ)U.S.TailpipeHeavy-Duty Vehicles (Class 7-8) | B145: GHG-100 (g/MJ) | C145: U.S. | D145: Tailpipe | E145: Heavy-Duty Vehicles (Class 7-8) | F145: 75.49
A146: =DB_Gasoline_Diesel_Emissions[[#This Row],[Pollutant]]&DB_Gasoline_Diesel_Emissions[[#This Row],[Market]]&DB_Gasoline_Diesel_Emissions[[#This Row],[Emissions Type]]&DB_Gasoline_Diesel_Emissions[[#This Row],[Vehicle Class]] -> NOx (mg/MJ)U.S.TailpipeHeavy-Duty Vehicles (Class 7-8) | B146: NOx (mg/MJ) | C146: U.S. | D146: Tailpipe | E146: Heavy-Duty Vehicles (Class 7-8) | F146: 0.19
A147: =DB_Gasoline_Diesel_Emissions[[#This Row],[Pollutant]]&DB_Gasoline_Diesel_Emissions[[#This Row],[Market]]&DB_Gasoline_Diesel_Emissions[[#This Row],[Emissions Type]]&DB_Gasoline_Diesel_Emissions[[#This Row],[Vehicle Class]] -> SOx (mg/MJ)U.S.TailpipeHeavy-Duty Vehicles (Class 7-8) | B147: SOx (mg/MJ) | C147: U.S. | D147: Tailpipe | E147: Heavy-Duty Vehicles (Class 7-8) | F147: 0.52
A148: =DB_Gasoline_Diesel_Emissions[[#This Row],[Pollutant]]&DB_Gasoline_Diesel_Emissions[[#This Row],[Market]]&DB_Gasoline_Diesel_Emissions[[#This Row],[Emissions Type]]&DB_Gasoline_Diesel_Emissions[[#This Row],[Vehicle Class]] -> VOC (mg/MJ)U.S.TailpipeHeavy-Duty Vehicles (Class 7-8) | B148: VOC (mg/MJ) | C148: U.S. | D148: Tailpipe | E148: Heavy-Duty Vehicles (Class 7-8) | F148: 19.02
A149: =DB_Gasoline_Diesel_Emissions[[#This Row],[Pollutant]]&DB_Gasoline_Diesel_Emissions[[#This Row],[Market]]&DB_Gasoline_Diesel_Emissions[[#This Row],[Emissions Type]]&DB_Gasoline_Diesel_Emissions[[#This Row],[Vehicle Class]] -> PM10 (mg/MJ)U.S.TailpipeHeavy-Duty Vehicles (Class 7-8) | B149: PM10 (mg/MJ) | C149: U.S. | D149: Tailpipe | E149: Heavy-Duty Vehicles (Class 7-8) | F149: 2.19
A150: =DB_Gasoline_Diesel_Emissions[[#This Row],[Pollutant]]&DB_Gasoline_Diesel_Emissions[[#This Row],[Market]]&DB_Gasoline_Diesel_Emissions[[#This Row],[Emissions Type]]&DB_Gasoline_Diesel_Emissions[[#This Row],[Vehicle Class]] -> PM2.5 (mg/MJ)U.S.TailpipeHeavy-Duty Vehicles (Class 7-8) | B150: PM2.5 (mg/MJ) | C150: U.S. | D150: Tailpipe | E150: Heavy-Duty Vehicles (Class 7-8) | F150: 2.01
A151: =DB_Gasoline_Diesel_Emissions[[#This Row],[Pollutant]]&DB_Gasoline_Diesel_Emissions[[#This Row],[Market]]&DB_Gasoline_Diesel_Emissions[[#This Row],[Emissions Type]]&DB_Gasoline_Diesel_Emissions[[#This Row],[Vehicle Class]] -> CO2 (g/MJ)U.S.Well-to-WheelHeavy-Duty Vehicles (Class 7-8) | B151: CO2 (g/MJ) | C151: U.S. | D151: Well-to-Wheel | E151: Heavy-Duty Vehicles (Class 7-8) | F151: 88.16
A152: =DB_Gasoline_Diesel_Emissions[[#This Row],[Pollutant]]&DB_Gasoline_Diesel_Emissions[[#This Row],[Market]]&DB_Gasoline_Diesel_Emissions[[#This Row],[Emissions Type]]&DB_Gasoline_Diesel_Emissions[[#This Row],[Vehicle Class]] -> GHG-100 (g/MJ)U.S.Well-to-WheelHeavy-Duty Vehicles (Class 7-8) | B152: GHG-100 (g/MJ) | C152: U.S. | D152: Well-to-Wheel | E152: Heavy-Duty Vehicles (Class 7-8) | F152: 92.26
A153: =DB_Gasoline_Diesel_Emissions[[#This Row],[Pollutant]]&DB_Gasoline_Diesel_Emissions[[#This Row],[Market]]&DB_Gasoline_Diesel_Emissions[[#This Row],[Emissions Type]]&DB_Gasoline_Diesel_Emissions[[#This Row],[Vehicle Class]] -> NOx (mg/MJ)U.S.Well-to-WheelHeavy-Duty Vehicles (Class 7-8) | B153: NOx (mg/MJ) | C153: U.S. | D153: Well-to-Wheel | E153: Heavy-Duty Vehicles (Class 7-8) | F153: 0.21
A154: =DB_Gasoline_Diesel_Emissions[[#This Row],[Pollutant]]&DB_Gasoline_Diesel_Emissions[[#This Row],[Market]]&DB_Gasoline_Diesel_Emissions[[#This Row],[Emissions Type]]&DB_Gasoline_Diesel_Emissions[[#This Row],[Vehicle Class]] -> SOx (mg/MJ)U.S.Well-to-WheelHeavy-Duty Vehicles (Class 7-8) | B154: SOx (mg/MJ) | C154: U.S. | D154: Well-to-Wheel | E154: Heavy-Duty Vehicles (Class 7-8) | F154: 14.66
A155: =DB_Gasoline_Diesel_Emissions[[#This Row],[Pollutant]]&DB_Gasoline_Diesel_Emissions[[#This Row],[Market]]&DB_Gasoline_Diesel_Emissions[[#This Row],[Emissions Type]]&DB_Gasoline_Diesel_Emissions[[#This Row],[Vehicle Class]] -> VOC (mg/MJ)U.S.Well-to-WheelHeavy-Duty Vehicles (Class 7-8) | B155: VOC (mg/MJ) | C155: U.S. | D155: Well-to-Wheel | E155: Heavy-Duty Vehicles (Class 7-8) | F155: 26.62
A156: =DB_Gasoline_Diesel_Emissions[[#This Row],[Pollutant]]&DB_Gasoline_Diesel_Emissions[[#This Row],[Market]]&DB_Gasoline_Diesel_Emissions[[#This Row],[Emissions Type]]&DB_Gasoline_Diesel_Emissions[[#This Row],[Vehicle Class]] -> PM10 (mg/MJ)U.S.Well-to-WheelHeavy-Duty Vehicles (Class 7-8) | B156: PM10 (mg/MJ) | C156: U.S. | D156: Well-to-Wheel | E156: Heavy-Duty Vehicles (Class 7-8) | F156: 4.11
A157: =DB_Gasoline_Diesel_Emissions[[#This Row],[Pollutant]]&DB_Gasoline_Diesel_Emissions[[#This Row],[Market]]&DB_Gasoline_Diesel_Emissions[[#This Row],[Emissions Type]]&DB_Gasoline_Diesel_Emissions[[#This Row],[Vehicle Class]] -> PM2.5 (mg/MJ)U.S.Well-to-WheelHeavy-Duty Vehicles (Class 7-8) | B157: PM2.5 (mg/MJ) | C157: U.S. | D157: Well-to-Wheel | E157: Heavy-Duty Vehicles (Class 7-8) | F157: 3.58
A158: =DB_Gasoline_Diesel_Emissions[[#This Row],[Pollutant]]&DB_Gasoline_Diesel_Emissions[[#This Row],[Market]]&DB_Gasoline_Diesel_Emissions[[#This Row],[Emissions Type]]&DB_Gasoline_Diesel_Emissions[[#This Row],[Vehicle Class]] -> CO2 (g/MJ)CanadaTailpipeHeavy-Duty Vehicles (Class 7-8) | B158: CO2 (g/MJ) | C158: Canada | D158: Tailpipe | E158: Heavy-Duty Vehicles (Class 7-8)
A159: =DB_Gasoline_Diesel_Emissions[[#This Row],[Pollutant]]&DB_Gasoline_Diesel_Emissions[[#This Row],[Market]]&DB_Gasoline_Diesel_Emissions[[#This Row],[Emissions Type]]&DB_Gasoline_Diesel_Emissions[[#This Row],[Vehicle Class]] -> GHG-100 (g/MJ)CanadaTailpipeHeavy-Duty Vehicles (Class 7-8) | B159: GHG-100 (g/MJ) | C159: Canada | D159: Tailpipe | E159: Heavy-Duty Vehicles (Class 7-8)
A160: =DB_Gasoline_Diesel_Emissions[[#This Row],[Pollutant]]&DB_Gasoline_Diesel_Emissions[[#This Row],[Market]]&DB_Gasoline_Diesel_Emissions[[#This Row],[Emissions Type]]&DB_Gasoline_Diesel_Emissions[[#This Row],[Vehicle Class]] -> NOx (mg/MJ)CanadaTailpipeHeavy-Duty Vehicles (Class 7-8) | B160: NOx (mg/MJ) | C160: Canada | D160: Tailpipe | E160: Heavy-Duty Vehicles (Class 7-8)
A161: =DB_Gasoline_Diesel_Emissions[[#This Row],[Pollutant]]&DB_Gasoline_Diesel_Emissions[[#This Row],[Market]]&DB_Gasoline_Diesel_Emissions[[#This Row],[Emissions Type]]&DB_Gasoline_Diesel_Emissions[[#This Row],[Vehicle Class]] -> SOx (mg/MJ)CanadaTailpipeHeavy-Duty Vehicles (Class 7-8) | B161: SOx (mg/MJ) | C161: Canada | D161: Tailpipe | E161: Heavy-Duty Vehicles (Class 7-8)
A162: =DB_Gasoline_Diesel_Emissions[[#This Row],[Pollutant]]&DB_Gasoline_Diesel_Emissions[[#This Row],[Market]]&DB_Gasoline_Diesel_Emissions[[#This Row],[Emissions Type]]&DB_Gasoline_Diesel_Emissions[[#This Row],[Vehicle Class]] -> VOC (mg/MJ)CanadaTailpipeHeavy-Duty Vehicles (Class 7-8) | B162: VOC (mg/MJ) | C162: Canada | D162: Tailpipe | E162: Heavy-Duty Vehicles (Class 7-8)
A163: =DB_Gasoline_Diesel_Emissions[[#This Row],[Pollutant]]&DB_Gasoline_Diesel_Emissions[[#This Row],[Market]]&DB_Gasoline_Diesel_Emissions[[#This Row],[Emissions Type]]&DB_Gasoline_Diesel_Emissions[[#This Row],[Vehicle Class]] -> PM10 (mg/MJ)CanadaTailpipeHeavy-Duty Vehicles (Class 7-8) | B163: PM10 (mg/MJ) | C163: Canada | D163: Tailpipe | E163: Heavy-Duty Vehicles (Class 7-8)
A164: =DB_Gasoline_Diesel_Emissions[[#This Row],[Pollutant]]&DB_Gasoline_Diesel_Emissions[[#This Row],[Market]]&DB_Gasoline_Diesel_Emissions[[#This Row],[Emissions Type]]&DB_Gasoline_Diesel_Emissions[[#This Row],[Vehicle Class]] -> PM2.5 (mg/MJ)CanadaTailpipeHeavy-Duty Vehicles (Class 7-8) | B164: PM2.5 (mg/MJ) | C164: Canada | D164: Tailpipe | E164: Heavy-Duty Vehicles (Class 7-8)
A165: =DB_Gasoline_Diesel_Emissions[[#This Row],[Pollutant]]&DB_Gasoline_Diesel_Emissions[[#This Row],[Market]]&DB_Gasoline_Diesel_Emissions[[#This Row],[Emissions Type]]&DB_Gasoline_Diesel_Emissions[[#This Row],[Vehicle Class]] -> CO2 (g/MJ)CanadaWell-to-WheelHeavy-Duty Vehicles (Class 7-8) | B165: CO2 (g/MJ) | C165: Canada | D165: Well-to-Wheel | E165: Heavy-Duty Vehicles (Class 7-8)
A166: =DB_Gasoline_Diesel_Emissions[[#This Row],[Pollutant]]&DB_Gasoline_Diesel_Emissions[[#This Row],[Market]]&DB_Gasoline_Diesel_Emissions[[#This Row],[Emissions Type]]&DB_Gasoline_Diesel_Emissions[[#This Row],[Vehicle Class]] -> GHG-100 (g/MJ)CanadaWell-to-WheelHeavy-Duty Vehicles (Class 7-8) | B166: GHG-100 (g/MJ) | C166: Canada | D166: Well-to-Wheel | E166: Heavy-Duty Vehicles (Class 7-8)
A167: =DB_Gasoline_Diesel_Emissions[[#This Row],[Pollutant]]&DB_Gasoline_Diesel_Emissions[[#This Row],[Market]]&DB_Gasoline_Diesel_Emissions[[#This Row],[Emissions Type]]&DB_Gasoline_Diesel_Emissions[[#This Row],[Vehicle Class]] -> NOx (mg/MJ)CanadaWell-to-WheelHeavy-Duty Vehicles (Class 7-8) | B167: NOx (mg/MJ) | C167: Canada | D167: Well-to-Wheel | E167: Heavy-Duty Vehicles (Class 7-8)
A168: =DB_Gasoline_Diesel_Emissions[[#This Row],[Pollutant]]&DB_Gasoline_Diesel_Emissions[[#This Row],[Market]]&DB_Gasoline_Diesel_Emissions[[#This Row],[Emissions Type]]&DB_Gasoline_Diesel_Emissions[[#This Row],[Vehicle Class]] -> SOx (mg/MJ)CanadaWell-to-WheelHeavy-Duty Vehicles (Class 7-8) | B168: SOx (mg/MJ) | C168: Canada | D168: Well-to-Wheel | E168: Heavy-Duty Vehicles (Class 7-8)
A169: =DB_Gasoline_Diesel_Emissions[[#This Row],[Pollutant]]&DB_Gasoline_Diesel_Emissions[[#This Row],[Market]]&DB_Gasoline_Diesel_Emissions[[#This Row],[Emissions Type]]&DB_Gasoline_Diesel_Emissions[[#This Row],[Vehicle Class]] -> VOC (mg/MJ)CanadaWell-to-WheelHeavy-Duty Vehicles (Class 7-8) | B169: VOC (mg/MJ) | C169: Canada | D169: Well-to-Wheel | E169: Heavy-Duty Vehicles (Class 7-8)
A170: =DB_Gasoline_Diesel_Emissions[[#This Row],[Pollutant]]&DB_Gasoline_Diesel_Emissions[[#This Row],[Market]]&DB_Gasoline_Diesel_Emissions[[#This Row],[Emissions Type]]&DB_Gasoline_Diesel_Emissions[[#This Row],[Vehicle Class]] -> PM10 (mg/MJ)CanadaWell-to-WheelHeavy-Duty Vehicles (Class 7-8) | B170: PM10 (mg/MJ) | C170: Canada | D170: Well-to-Wheel | E170: Heavy-Duty Vehicles (Class 7-8)
A171: =DB_Gasoline_Diesel_Emissions[[#This Row],[Pollutant]]&DB_Gasoline_Diesel_Emissions[[#This Row],[Market]]&DB_Gasoline_Diesel_Emissions[[#This Row],[Emissions Type]]&DB_Gasoline_Diesel_Emissions[[#This Row],[Vehicle Class]] -> PM2.5 (mg/MJ)CanadaWell-to-WheelHeavy-Duty Vehicles (Class 7-8) | B171: PM2.5 (mg/MJ) | C171: Canada | D171: Well-to-Wheel | E171: Heavy-Duty Vehicles (Class 7-8)
A172: =DB_Gasoline_Diesel_Emissions[[#This Row],[Pollutant]]&DB_Gasoline_Diesel_Emissions[[#This Row],[Market]]&DB_Gasoline_Diesel_Emissions[[#This Row],[Emissions Type]]&DB_Gasoline_Diesel_Emissions[[#This Row],[Vehicle Class]] -> CO2 (g/MJ)U.S.TailpipeMedium Duty Vehicles (Class 3-6) | B172: CO2 (g/MJ) | C172: U.S. | D172: Tailpipe | E172: Medium Duty Vehicles (Class 3-6) | F172: 74.84
A173: =DB_Gasoline_Diesel_Emissions[[#This Row],[Pollutant]]&DB_Gasoline_Diesel_Emissions[[#This Row],[Market]]&DB_Gasoline_Diesel_Emissions[[#This Row],[Emissions Type]]&DB_Gasoline_Diesel_Emissions[[#This Row],[Vehicle Class]] -> GHG-100 (g/MJ)U.S.TailpipeMedium Duty Vehicles (Class 3-6) | B173: GHG-100 (g/MJ) | C173: U.S. | D173: Tailpipe | E173: Medium Duty Vehicles (Class 3-6) | F173: 75.12
A174: =DB_Gasoline_Diesel_Emissions[[#This Row],[Pollutant]]&DB_Gasoline_Diesel_Emissions[[#This Row],[Market]]&DB_Gasoline_Diesel_Emissions[[#This Row],[Emissions Type]]&DB_Gasoline_Diesel_Emissions[[#This Row],[Vehicle Class]] -> NOx (mg/MJ)U.S.TailpipeMedium Duty Vehicles (Class 3-6) | B174: NOx (mg/MJ) | C174: U.S. | D174: Tailpipe | E174: Medium Duty Vehicles (Class 3-6) | F174: 49.95
A175: =DB_Gasoline_Diesel_Emissions[[#This Row],[Pollutant]]&DB_Gasoline_Diesel_Emissions[[#This Row],[Market]]&DB_Gasoline_Diesel_Emissions[[#This Row],[Emissions Type]]&DB_Gasoline_Diesel_Emissions[[#This Row],[Vehicle Class]] -> SOx (mg/MJ)U.S.TailpipeMedium Duty Vehicles (Class 3-6) | B175: SOx (mg/MJ) | C175: U.S. | D175: Tailpipe | E175: Medium Duty Vehicles (Class 3-6) | F175: 0.52
A176: =DB_Gasoline_Diesel_Emissions[[#This Row],[Pollutant]]&DB_Gasoline_Diesel_Emissions[[#This Row],[Market]]&DB_Gasoline_Diesel_Emissions[[#This Row],[Emissions Type]]&DB_Gasoline_Diesel_Emissions[[#This Row],[Vehicle Class]] -> VOC (mg/MJ)U.S.TailpipeMedium Duty Vehicles (Class 3-6) | B176: VOC (mg/MJ) | C176: U.S. | D176: Tailpipe | E176: Medium Duty Vehicles (Class 3-6) | F176: 4.14
A177: =DB_Gasoline_Diesel_Emissions[[#This Row],[Pollutant]]&DB_Gasoline_Diesel_Emissions[[#This Row],[Market]]&DB_Gasoline_Diesel_Emissions[[#This Row],[Emissions Type]]&DB_Gasoline_Diesel_Emissions[[#This Row],[Vehicle Class]] -> PM10 (mg/MJ)U.S.TailpipeMedium Duty Vehicles (Class 3-6) | B177: PM10 (mg/MJ) | C177: U.S. | D177: Tailpipe | E177: Medium Duty Vehicles (Class 3-6) | F177: 0.82
A178: =DB_Gasoline_Diesel_Emissions[[#This Row],[Pollutant]]&DB_Gasoline_Diesel_Emissions[[#This Row],[Market]]&DB_Gasoline_Diesel_Emissions[[#This Row],[Emissions Type]]&DB_Gasoline_Diesel_Emissions[[#This Row],[Vehicle Class]] -> PM2.5 (mg/MJ)U.S.TailpipeMedium Duty Vehicles (Class 3-6) | B178: PM2.5 (mg/MJ) | C178: U.S. | D178: Tailpipe | E178: Medium Duty Vehicles (Class 3-6) | F178: 0.76
A179: =DB_Gasoline_Diesel_Emissions[[#This Row],[Pollutant]]&DB_Gasoline_Diesel_Emissions[[#This Row],[Market]]&DB_Gasoline_Diesel_Emissions[[#This Row],[Emissions Type]]&DB_Gasoline_Diesel_Emissions[[#This Row],[Vehicle Class]] -> CO2 (g/MJ)U.S.Well-to-WheelMedium Duty Vehicles (Class 3-6) | B179: CO2 (g/MJ) | C179: U.S. | D179: Well-to-Wheel | E179: Medium Duty Vehicles (Class 3-6) | F179: 88.28
A180: =DB_Gasoline_Diesel_Emissions[[#This Row],[Pollutant]]&DB_Gasoline_Diesel_Emissions[[#This Row],[Market]]&DB_Gasoline_Diesel_Emissions[[#This Row],[Emissions Type]]&DB_Gasoline_Diesel_Emissions[[#This Row],[Vehicle Class]] -> GHG-100 (g/MJ)U.S.Well-to-WheelMedium Duty Vehicles (Class 3-6) | B180: GHG-100 (g/MJ) | C180: U.S. | D180: Well-to-Wheel | E180: Medium Duty Vehicles (Class 3-6) | F180: 91.89
A181: =DB_Gasoline_Diesel_Emissions[[#This Row],[Pollutant]]&DB_Gasoline_Diesel_Emissions[[#This Row],[Market]]&DB_Gasoline_Diesel_Emissions[[#This Row],[Emissions Type]]&DB_Gasoline_Diesel_Emissions[[#This Row],[Vehicle Class]] -> NOx (mg/MJ)U.S.Well-to-WheelMedium Duty Vehicles (Class 3-6) | B181: NOx (mg/MJ) | C181: U.S. | D181: Well-to-Wheel | E181: Medium Duty Vehicles (Class 3-6) | F181: 77.64
A182: =DB_Gasoline_Diesel_Emissions[[#This Row],[Pollutant]]&DB_Gasoline_Diesel_Emissions[[#This Row],[Market]]&DB_Gasoline_Diesel_Emissions[[#This Row],[Emissions Type]]&DB_Gasoline_Diesel_Emissions[[#This Row],[Vehicle Class]] -> SOx (mg/MJ)U.S.Well-to-WheelMedium Duty Vehicles (Class 3-6) | B182: SOx (mg/MJ) | C182: U.S. | D182: Well-to-Wheel | E182: Medium Duty Vehicles (Class 3-6) | F182: 14.66
A183: =DB_Gasoline_Diesel_Emissions[[#This Row],[Pollutant]]&DB_Gasoline_Diesel_Emissions[[#This Row],[Market]]&DB_Gasoline_Diesel_Emissions[[#This Row],[Emissions Type]]&DB_Gasoline_Diesel_Emissions[[#This Row],[Vehicle Class]] -> VOC (mg/MJ)U.S.Well-to-WheelMedium Duty Vehicles (Class 3-6) | B183: VOC (mg/MJ) | C183: U.S. | D183: Well-to-Wheel | E183: Medium Duty Vehicles (Class 3-6) | F183: 11.75
A184: =DB_Gasoline_Diesel_Emissions[[#This Row],[Pollutant]]&DB_Gasoline_Diesel_Emissions[[#This Row],[Market]]&DB_Gasoline_Diesel_Emissions[[#This Row],[Emissions Type]]&DB_Gasoline_Diesel_Emissions[[#This Row],[Vehicle Class]] -> PM10 (mg/MJ)U.S.Well-to-WheelMedium Duty Vehicles (Class 3-6) | B184: PM10 (mg/MJ) | C184: U.S. | D184: Well-to-Wheel | E184: Medium Duty Vehicles (Class 3-6) | F184: 2.75
A185: =DB_Gasoline_Diesel_Emissions[[#This Row],[Pollutant]]&DB_Gasoline_Diesel_Emissions[[#This Row],[Market]]&DB_Gasoline_Diesel_Emissions[[#This Row],[Emissions Type]]&DB_Gasoline_Diesel_Emissions[[#This Row],[Vehicle Class]] -> PM2.5 (mg/MJ)U.S.Well-to-WheelMedium Duty Vehicles (Class 3-6) | B185: PM2.5 (mg/MJ) | C185: U.S. | D185: Well-to-Wheel | E185: Medium Duty Vehicles (Class 3-6) | F185: 2.32
A186: =DB_Gasoline_Diesel_Emissions[[#This Row],[Pollutant]]&DB_Gasoline_Diesel_Emissions[[#This Row],[Market]]&DB_Gasoline_Diesel_Emissions[[#This Row],[Emissions Type]]&DB_Gasoline_Diesel_Emissions[[#This Row],[Vehicle Class]] -> CO2 (g/MJ)CanadaTailpipeMedium Duty Vehicles (Class 3-6) | B186: CO2 (g/MJ) | C186: Canada | D186: Tailpipe | E186: Medium Duty Vehicles (Class 3-6)
A187: =DB_Gasoline_Diesel_Emissions[[#This Row],[Pollutant]]&DB_Gasoline_Diesel_Emissions[[#This Row],[Market]]&DB_Gasoline_Diesel_Emissions[[#This Row],[Emissions Type]]&DB_Gasoline_Diesel_Emissions[[#This Row],[Vehicle Class]] -> GHG-100 (g/MJ)CanadaTailpipeMedium Duty Vehicles (Class 3-6) | B187: GHG-100 (g/MJ) | C187: Canada | D187: Tailpipe | E187: Medium Duty Vehicles (Class 3-6)
A188: =DB_Gasoline_Diesel_Emissions[[#This Row],[Pollutant]]&DB_Gasoline_Diesel_Emissions[[#This Row],[Market]]&DB_Gasoline_Diesel_Emissions[[#This Row],[Emissions Type]]&DB_Gasoline_Diesel_Emissions[[#This Row],[Vehicle Class]] -> NOx (mg/MJ)CanadaTailpipeMedium Duty Vehicles (Class 3-6) | B188: NOx (mg/MJ) | C188: Canada | D188: Tailpipe | E188: Medium Duty Vehicles (Class 3-6)
A189: =DB_Gasoline_Diesel_Emissions[[#This Row],[Pollutant]]&DB_Gasoline_Diesel_Emissions[[#This Row],[Market]]&DB_Gasoline_Diesel_Emissions[[#This Row],[Emissions Type]]&DB_Gasoline_Diesel_Emissions[[#This Row],[Vehicle Class]] -> SOx (mg/MJ)CanadaTailpipeMedium Duty Vehicles (Class 3-6) | B189: SOx (mg/MJ) | C189: Canada | D189: Tailpipe | E189: Medium Duty Vehicles (Class 3-6)
A190: =DB_Gasoline_Diesel_Emissions[[#This Row],[Pollutant]]&DB_Gasoline_Diesel_Emissions[[#This Row],[Market]]&DB_Gasoline_Diesel_Emissions[[#This Row],[Emissions Type]]&DB_Gasoline_Diesel_Emissions[[#This Row],[Vehicle Class]] -> VOC (mg/MJ)CanadaTailpipeMedium Duty Vehicles (Class 3-6) | B190: VOC (mg/MJ) | C190: Canada | D190: Tailpipe | E190: Medium Duty Vehicles (Class 3-6)
A191: =DB_Gasoline_Diesel_Emissions[[#This Row],[Pollutant]]&DB_Gasoline_Diesel_Emissions[[#This Row],[Market]]&DB_Gasoline_Diesel_Emissions[[#This Row],[Emissions Type]]&DB_Gasoline_Diesel_Emissions[[#This Row],[Vehicle Class]] -> PM10 (mg/MJ)CanadaTailpipeMedium Duty Vehicles (Class 3-6) | B191: PM10 (mg/MJ) | C191: Canada | D191: Tailpipe | E191: Medium Duty Vehicles (Class 3-6)
A192: =DB_Gasoline_Diesel_Emissions[[#This Row],[Pollutant]]&DB_Gasoline_Diesel_Emissions[[#This Row],[Market]]&DB_Gasoline_Diesel_Emissions[[#This Row],[Emissions Type]]&DB_Gasoline_Diesel_Emissions[[#This Row],[Vehicle Class]] -> PM2.5 (mg/MJ)CanadaTailpipeMedium Duty Vehicles (Class 3-6) | B192: PM2.5 (mg/MJ) | C192: Canada | D192: Tailpipe | E192: Medium Duty Vehicles (Class 3-6)
A193: =DB_Gasoline_Diesel_Emissions[[#This Row],[Pollutant]]&DB_Gasoline_Diesel_Emissions[[#This Row],[Market]]&DB_Gasoline_Diesel_Emissions[[#This Row],[Emissions Type]]&DB_Gasoline_Diesel_Emissions[[#This Row],[Vehicle Class]] -> CO2 (g/MJ)CanadaWell-to-WheelMedium Duty Vehicles (Class 3-6) | B193: CO2 (g/MJ) | C193: Canada | D193: Well-to-Wheel | E193: Medium Duty Vehicles (Class 3-6)
A194: =DB_Gasoline_Diesel_Emissions[[#This Row],[Pollutant]]&DB_Gasoline_Diesel_Emissions[[#This Row],[Market]]&DB_Gasoline_Diesel_Emissions[[#This Row],[Emissions Type]]&DB_Gasoline_Diesel_Emissions[[#This Row],[Vehicle Class]] -> GHG-100 (g/MJ)CanadaWell-to-WheelMedium Duty Vehicles (Class 3-6) | B194: GHG-100 (g/MJ) | C194: Canada | D194: Well-to-Wheel | E194: Medium Duty Vehicles (Class 3-6)
A195: =DB_Gasoline_Diesel_Emissions[[#This Row],[Pollutant]]&DB_Gasoline_Diesel_Emissions[[#This Row],[Market]]&DB_Gasoline_Diesel_Emissions[[#This Row],[Emissions Type]]&DB_Gasoline_Diesel_Emissions[[#This Row],[Vehicle Class]] -> NOx (mg/MJ)CanadaWell-to-WheelMedium Duty Vehicles (Class 3-6) | B195: NOx (mg/MJ) | C195: Canada | D195: Well-to-Wheel | E195: Medium Duty Vehicles (Class 3-6)
A196: =DB_Gasoline_Diesel_Emissions[[#This Row],[Pollutant]]&DB_Gasoline_Diesel_Emissions[[#This Row],[Market]]&DB_Gasoline_Diesel_Emissions[[#This Row],[Emissions Type]]&DB_Gasoline_Diesel_Emissions[[#This Row],[Vehicle Class]] -> SOx (mg/MJ)CanadaWell-to-WheelMedium Duty Vehicles (Class 3-6) | B196: SOx (mg/MJ) | C196: Canada | D196: Well-to-Wheel | E196: Medium Duty Vehicles (Class 3-6)
A197: =DB_Gasoline_Diesel_Emissions[[#This Row],[Pollutant]]&DB_Gasoline_Diesel_Emissions[[#This Row],[Market]]&DB_Gasoline_Diesel_Emissions[[#This Row],[Emissions Type]]&DB_Gasoline_Diesel_Emissions[[#This Row],[Vehicle Class]] -> VOC (mg/MJ)CanadaWell-to-WheelMedium Duty Vehicles (Class 3-6) | B197: VOC (mg/MJ) | C197: Canada | D197: Well-to-Wheel | E197: Medium Duty Vehicles (Class 3-6)
A198: =DB_Gasoline_Diesel_Emissions[[#This Row],[Pollutant]]&DB_Gasoline_Diesel_Emissions[[#This Row],[Market]]&DB_Gasoline_Diesel_Emissions[[#This Row],[Emissions Type]]&DB_Gasoline_Diesel_Emissions[[#This Row],[Vehicle Class]] -> PM10 (mg/MJ)CanadaWell-to-WheelMedium Duty Vehicles (Class 3-6) | B198: PM10 (mg/MJ) | C198: Canada | D198: Well-to-Wheel | E198: Medium Duty Vehicles (Class 3-6)
A199: =DB_Gasoline_Diesel_Emissions[[#This Row],[Pollutant]]&DB_Gasoline_Diesel_Emissions[[#This Row],[Market]]&DB_Gasoline_Diesel_Emissions[[#This Row],[Emissions Type]]&DB_Gasoline_Diesel_Emissions[[#This Row],[Vehicle Class]] -> PM2.5 (mg/MJ)CanadaWell-to-WheelMedium Duty Vehicles (Class 3-6) | B199: PM2.5 (mg/MJ) | C199: Canada | D199: Well-to-Wheel | E199: Medium Duty Vehicles (Class 3-6)
A200: =DB_Gasoline_Diesel_Emissions[[#This Row],[Pollutant]]&DB_Gasoline_Diesel_Emissions[[#This Row],[Market]]&DB_Gasoline_Diesel_Emissions[[#This Row],[Emissions Type]]&DB_Gasoline_Diesel_Emissions[[#This Row],[Vehicle Class]] -> CO2 (g/MJ)U.S.TailpipePassenger Vehicles (Light-Duty) | B200: CO2 (g/MJ) | C200: U.S. | D200: Tailpipe | E200: Passenger Vehicles (Light-Duty) | F200: 71.67
A201: =DB_Gasoline_Diesel_Emissions[[#This Row],[Pollutant]]&DB_Gasoline_Diesel_Emissions[[#This Row],[Market]]&DB_Gasoline_Diesel_Emissions[[#This Row],[Emissions Type]]&DB_Gasoline_Diesel_Emissions[[#This Row],[Vehicle Class]] -> GHG-100 (g/MJ)U.S.TailpipePassenger Vehicles (Light-Duty) | B201: GHG-100 (g/MJ) | C201: U.S. | D201: Tailpipe | E201: Passenger Vehicles (Light-Duty) | F201: 68.47
A202: =DB_Gasoline_Diesel_Emissions[[#This Row],[Pollutant]]&DB_Gasoline_Diesel_Emissions[[#This Row],[Market]]&DB_Gasoline_Diesel_Emissions[[#This Row],[Emissions Type]]&DB_Gasoline_Diesel_Emissions[[#This Row],[Vehicle Class]] -> NOx (mg/MJ)U.S.TailpipePassenger Vehicles (Light-Duty) | B202: NOx (mg/MJ) | C202: U.S. | D202: Tailpipe | E202: Passenger Vehicles (Light-Duty) | F202: 26.45
A203: =DB_Gasoline_Diesel_Emissions[[#This Row],[Pollutant]]&DB_Gasoline_Diesel_Emissions[[#This Row],[Market]]&DB_Gasoline_Diesel_Emissions[[#This Row],[Emissions Type]]&DB_Gasoline_Diesel_Emissions[[#This Row],[Vehicle Class]] -> SOx (mg/MJ)U.S.TailpipePassenger Vehicles (Light-Duty) | B203: SOx (mg/MJ) | C203: U.S. | D203: Tailpipe | E203: Passenger Vehicles (Light-Duty) | F203: 0.43
A204: =DB_Gasoline_Diesel_Emissions[[#This Row],[Pollutant]]&DB_Gasoline_Diesel_Emissions[[#This Row],[Market]]&DB_Gasoline_Diesel_Emissions[[#This Row],[Emissions Type]]&DB_Gasoline_Diesel_Emissions[[#This Row],[Vehicle Class]] -> VOC (mg/MJ)U.S.TailpipePassenger Vehicles (Light-Duty) | B204: VOC (mg/MJ) | C204: U.S. | D204: Tailpipe | E204: Passenger Vehicles (Light-Duty) | F204: 29.66
A205: =DB_Gasoline_Diesel_Emissions[[#This Row],[Pollutant]]&DB_Gasoline_Diesel_Emissions[[#This Row],[Market]]&DB_Gasoline_Diesel_Emissions[[#This Row],[Emissions Type]]&DB_Gasoline_Diesel_Emissions[[#This Row],[Vehicle Class]] -> PM10 (mg/MJ)U.S.TailpipePassenger Vehicles (Light-Duty) | B205: PM10 (mg/MJ) | C205: U.S. | D205: Tailpipe | E205: Passenger Vehicles (Light-Duty) | F205: 1.19
A206: =DB_Gasoline_Diesel_Emissions[[#This Row],[Pollutant]]&DB_Gasoline_Diesel_Emissions[[#This Row],[Market]]&DB_Gasoline_Diesel_Emissions[[#This Row],[Emissions Type]]&DB_Gasoline_Diesel_Emissions[[#This Row],[Vehicle Class]] -> PM2.5 (mg/MJ)U.S.TailpipePassenger Vehicles (Light-Duty) | B206: PM2.5 (mg/MJ) | C206: U.S. | D206: Tailpipe | E206: Passenger Vehicles (Light-Duty) | F206: 1.05
A207: =DB_Gasoline_Diesel_Emissions[[#This Row],[Pollutant]]&DB_Gasoline_Diesel_Emissions[[#This Row],[Market]]&DB_Gasoline_Diesel_Emissions[[#This Row],[Emissions Type]]&DB_Gasoline_Diesel_Emissions[[#This Row],[Vehicle Class]] -> CO2 (g/MJ)U.S.Well-to-WheelPassenger Vehicles (Light-Duty) | B207: CO2 (g/MJ) | C207: U.S. | D207: Well-to-Wheel | E207: Passenger Vehicles (Light-Duty) | F207: 89.67
A208: =DB_Gasoline_Diesel_Emissions[[#This Row],[Pollutant]]&DB_Gasoline_Diesel_Emissions[[#This Row],[Market]]&DB_Gasoline_Diesel_Emissions[[#This Row],[Emissions Type]]&DB_Gasoline_Diesel_Emissions[[#This Row],[Vehicle Class]] -> GHG-100 (g/MJ)U.S.Well-to-WheelPassenger Vehicles (Light-Duty) | B208: GHG-100 (g/MJ) | C208: U.S. | D208: Well-to-Wheel | E208: Passenger Vehicles (Light-Duty) | F208: 91.18
A209: =DB_Gasoline_Diesel_Emissions[[#This Row],[Pollutant]]&DB_Gasoline_Diesel_Emissions[[#This Row],[Market]]&DB_Gasoline_Diesel_Emissions[[#This Row],[Emissions Type]]&DB_Gasoline_Diesel_Emissions[[#This Row],[Vehicle Class]] -> NOx (mg/MJ)U.S.Well-to-WheelPassenger Vehicles (Light-Duty) | B209: NOx (mg/MJ) | C209: U.S. | D209: Well-to-Wheel | E209: Passenger Vehicles (Light-Duty) | F209: 61.04
A210: =DB_Gasoline_Diesel_Emissions[[#This Row],[Pollutant]]&DB_Gasoline_Diesel_Emissions[[#This Row],[Market]]&DB_Gasoline_Diesel_Emissions[[#This Row],[Emissions Type]]&DB_Gasoline_Diesel_Emissions[[#This Row],[Vehicle Class]] -> SOx (mg/MJ)U.S.Well-to-WheelPassenger Vehicles (Light-Duty) | B210: SOx (mg/MJ) | C210: U.S. | D210: Well-to-Wheel | E210: Passenger Vehicles (Light-Duty) | F210: 21.18
A211: =DB_Gasoline_Diesel_Emissions[[#This Row],[Pollutant]]&DB_Gasoline_Diesel_Emissions[[#This Row],[Market]]&DB_Gasoline_Diesel_Emissions[[#This Row],[Emissions Type]]&DB_Gasoline_Diesel_Emissions[[#This Row],[Vehicle Class]] -> VOC (mg/MJ)U.S.Well-to-WheelPassenger Vehicles (Light-Duty) | B211: VOC (mg/MJ) | C211: U.S. | D211: Well-to-Wheel | E211: Passenger Vehicles (Light-Duty) | F211: 57.89
A212: =DB_Gasoline_Diesel_Emissions[[#This Row],[Pollutant]]&DB_Gasoline_Diesel_Emissions[[#This Row],[Market]]&DB_Gasoline_Diesel_Emissions[[#This Row],[Emissions Type]]&DB_Gasoline_Diesel_Emissions[[#This Row],[Vehicle Class]] -> PM10 (mg/MJ)U.S.Well-to-WheelPassenger Vehicles (Light-Duty) | B212: PM10 (mg/MJ) | C212: U.S. | D212: Well-to-Wheel | E212: Passenger Vehicles (Light-Duty) | F212: 4.52
... 3306 more rows

Sheet Version
A1: Version History - Fleet Procurement Analysis Tool
B2: Developed By
B4: Nick Nigro | E4: Philip Quebe
B5: nick.nigro@atlaspolicy.com | E5: philip.quebe@cadmusgroup.com
B7: Version | C7: Date | D7: Author | E7: Organization | F7: Revisions
B8: 1 | C8: 42885 | D8: Philip Quebe | E8: The Cadmus Group, Inc. | F8: First launch
B9: 1.05 | C9: 42887 | D9: Philip Quebe | E9: The Cadmus Group, Inc. | F9: Minor bug fixes: sensitivity analysis and EV infrastructure inputs
B10: 1.06 | C10: 42919 | D10: Nick Nigro | E10: Atlas Public Policy | F10: Added support for U.S. average emissions and fuel prices. Use ZIP Code 00000 to set to U.S. average. Added support for more comprehensive vehicle selection and vehicle incentives. Improved robustness of some table lookup calculations. Added link to vehicle details on fueleconomy.gov.
B11: 1.07 | C11: 42983 | D11: Nick Nigro | E11: Atlas Public Policy | F11: Fix to allow users to add custom vehicles to "DB_Vehicles" table.
B12: 1.08 | C12: 43028 | D12: Nick Nigro | E12: Atlas Public Policy | F12: Added support for Canadian market (metric system, Canadian province-specific data, etc.). Moved remaining hardcoded defaults to Data tab to make it easier for users to customize them. Speed up user experience when editing inputs. Updated GREET figures for gasoline emissions. Updated U.S. insurance costs. Argument files created with previous version of the tool will not work correctly.
B13: 1.09 | C13: 43056 | D13: Philip Quebe | E13: The Cadmus Group, Inc. | F13: Improvements to sensitivity analysis functionality. Added ability to model both baseline and comparison scenarios in a single sensitivity chart. Simplified and organized sensitivity selection options.
B14: 1.1 | C14: 43073 | D14: Philip Quebe | E14: The Cadmus Group, Inc. | F14: Backend code improvements
B15: 1.11 | C15: 43117 | D15: Nick Nigro | E15: Atlas Public Policy | F15: Add significantly more U.S.-based light-duty vehicles (over 2,000). Updated fuel price data for 2017.
B16: 1.12 | C16: 43567 | D16: Nick Nigro | E16: Atlas Public Policy | F16: Update data through 2018 for U.S. and Canadian markets.
B17: 1.13 | C17: 43633 | D17: Nick Nigro | E17: Atlas Public Policy | F17: Fixed bug with calculating costs for Purchased (loan) when lease year is set to a non-zero value.
B18: 1.14 | C18: 43725 | D18: Nick Nigro | E18: Atlas Public Policy | F18: Upgrade to support medium- and heavy-duty vehicles. Fixed bug with calculating maintenance costs for Canadian market. Updated vehicle incentives for light-duty vehicles to remove federal incentive for Tesla and General Motors. Added vehicles for model years 2019 and 2020.
B19: 1.15 | C19: 43789 | D19: Nick Nigro | E19: Atlas Public Policy | F19: Fixed bug with custom vehicle selection.
B20: 1.16 | C20: 43810 | D20: Nick Nigro | E20: Atlas Public Policy | F20: Fixed bug with vehicle selection.
B21: 1.17 | C21: 43873 | D21: Nick Nigro | E21: Atlas Public Policy | F21: Updated fuel prices for 2019, vehicle availability through February 2020, and eGrid for 2018. Fixed bugs with cash flow chart and Load/Save feature.

Sheet Automated Inputs (hidden)
A1: Index | B1: _Carbon_Price_Include | C1: _Base_V1_Vehicle_Drivetrain | D1: _Base_V1_Vehicle_Vehicle_Class | E1: _Base_V1_Vehicle_Year | F1: _Base_V1_Vehicle_Make | G1: _Base_V1_Vehicle_Model | H1: _Base_V1_Ownership_Structure | I1: _Base_V1_Maint_Repair_Cost_Use_Default | J1: _Base_Include_Charging | K1: _Base_Charging_Level | L1: Public_Charging_Price | M1: En_Route_Charging_Price | N1: Electricity_Price | O1: Diesel_Price | P1: Base_V1_Years_Usage | Q1: Base_V1_VMT | R1: Base_V1_Other_Incentives | S1: Base_V1_Maint_Repair_Cost_Year_5 | T1: Base_V1_Maint_Repair_Cost_Year_1 | U1: Base_V1_MSRP | V1: Base_Station_Utility_Cost | W1: Base_Station_Maint_Cost | X1: Base_Station_Cost | Y1: Base_Station_Construction_Cost | Z1: Base_Percent_Public_Charging | AA1: Base_Percent_Home_Charging | AB1: Base_Num_Stations

Sheet Automated Outputs (hidden)
D2: Start/resume on this index number: | F2: Max Scenario
D3: 1759 | F3: =MAX(Automated_Output_Table[Index]) -> 0
A5: Index | B5: Base_V1_Result_Depreciation_CPM_Ex | C5: Base_V1_Result_Financing_CPM_Ex | D5: Base_V1_Result_Fuel_CPM_Ex | E5: Base_V1_Result_Maint_CPM_Ex | F5: Base_V1_Result_Taxes_Fees_CPM_Ex | G5: Base_V1_Result_Insurance_CPM_Ex | H5: Base_V1_Result_Downtime_CPM_Ex | I5: Base_V1_Result_Carbon_CPM_Ex | J5: Base_V1_Result_Charging_CPM_Ex | K5: Base_V1_Result_Total_CPM_Ex | L5: Base_V1_Result_Total_NPV_CPM_Ex | M5: Base_V1_Result_Total_NPV_Ex | N5: Base_V1_Result_Env_CO2_CPM_Ex | O5: Base_V1_Result_Env_NOX_CPM_Ex | P5: Base_V1_Result_Env_SOX_CPM_Ex | Q5: Base_V1_Result_Env_VOC_CPM_Ex | R5: Base_V1_Result_Env_PM10_CPM_Ex | S5: Base_V1_Result_Env_PM2_5_CPM_Ex

Sheet Results Tables (hidden)
A1: Results Tables - EV Fleet Procurement Analysis Tool
B3: Total Cost per Vehicle
C4: =Base_V1_Type_Ex&" (Baseline)" -> 2017 Chevrolet Cruze ICE (Baseline) | D4: =Comp_V1_Type_Ex&" (Comparison)" -> 2017 Chevrolet Bolt EV BEV (Comparison)
B5: Depreciation (less tax credits and incentives) | C5: =SUM('Financial Model'!D31:AC31)-SUM('Financial Model'!D19:AC19)-SUM('Financial Model'!D27:AC27) -> -14676.06771 | D5: =SUM('Financial Model'!D102:AC102)-SUM('Financial Model'!D90:AC90)-SUM('Financial Model'!D98:AC98) -> -25139.31434
B6: Financing | C6: =SUM('Financial Model'!E19:AC19)+SUM('Financial Model'!E27:AC27) -> 0 | D6: =SUM('Financial Model'!E90:AC90)+SUM('Financial Model'!E98:AC98) -> 0
B7: Fuel | C7: =SUM('Financial Model'!D34:AC34) -> -8138.214313 | D7: =SUM('Financial Model'!D105:AC105) -> -4334.436427
B8: Maintenance and Repairs | C8: =SUM('Financial Model'!D35:AC35) -> -9724.027619 | D8: =SUM('Financial Model'!D106:AC106) -> -4862.01381
B9: Taxes & Fees | C9: =SUM('Financial Model'!D36:AC36) -> -1074.342834 | D9: =SUM('Financial Model'!D107:AC107) -> -1074.342834
B10: Insurance | C10: =SUM('Financial Model'!D37:AC37) -> -9084.694293 | D10: =SUM('Financial Model'!D108:AC108) -> -9084.694293
B11: Cost of Downtime | C11: =SUM('Financial Model'!D42:AC42) -> 0 | D11: =SUM('Financial Model'!D113:AC113) -> 0
B12: Carbon | C12: =SUM('Financial Model'!D41:AC41) -> 0 | D12: =SUM('Financial Model'!D112:AC112) -> 0
B13: Vehicle Total | C13: =SUM(C5:C12) -> -42697.34677 | D13: =SUM(D5:D12) -> -44494.8017
B14: Vehicle Total - Check | C14: =SUM('Financial Model'!D46:AC46) -> -42697.34677 | D14: =SUM('Financial Model'!D117:AC117) -> -44494.8017
B15: Infrastructure per Vehicle | C15: =SUM('Financial Model'!D68:AC68)/Base_V1_Num_Vehicles_Modeled -> 0 | D15: =SUM('Financial Model'!D139:AC139)/Comp_V1_Num_Vehicles_Modeled -> 0
B16: Grand Total | C16: =C13+C15 -> -42697.34677 | D16: =D13+D15 -> -44494.8017
B18: Vehicle Cost per Mile
C19: =C4 -> 2017 Chevrolet Cruze ICE (Baseline) | D19: =D4 -> 2017 Chevrolet Bolt EV BEV (Comparison)
B20: Depreciation (less tax credits and incentives) | C20: =-C5/(Base_V1_VMT_Modeled*Base_V1_Years_Usage_Modeled) -> 0.1397720734 | D20: =-D5/(Comp_V1_VMT_Modeled*Comp_V1_Years_Usage_Modeled) -> 0.2394220413
B21: Financing | C21: 0 | D21: 0
B22: Fuel | C22: 0.07750680298 | D22: 0.04128034693
B23: Maintenance and Repairs | C23: 0.09260978685 | D23: 0.04630489342
B24: Taxes & Fees | C24: 0.01023183651 | D24: 0.01023183651
B25: Insurance | C25: 0.08652089803 | D25: 0.08652089803
B26: Cost of Downtime | C26: =IF(C11<>0, -C11/(Base_V1_VMT_Modeled*Base_V1_Years_Usage_Modeled), "") ->  | D26: =IF(D11<>0, -D11/(Comp_V1_VMT_Modeled*Comp_V1_Years_Usage_Modeled), "") -> 
B27: Carbon | C27: =IF(C12<>0, -C12/(Base_V1_VMT_Modeled*Base_V1_Years_Usage_Modeled), "") ->  | D27: =IF(D12<>0, -D12/(Comp_V1_VMT_Modeled*Comp_V1_Years_Usage_Modeled), "") -> 
B28: Vehicle Total | C28: =SUM(C20:C27) -> 0.4066413978 | D28: =SUM(D20:D27) -> 0.4237600162
B29: Vehicle Total - Check | C29: =-C14/(Base_V1_VMT_Modeled*Base_V1_Years_Usage_Modeled) -> 0.4066413978 | D29: =-D14/(Comp_V1_VMT_Modeled*Comp_V1_Years_Usage_Modeled) -> 0.4237600162
B30: Charging Infrastructure | C30: =-C15/(Base_V1_VMT_Modeled*Base_V1_Years_Usage_Modeled) -> 0 | D30: =-D15/(Comp_V1_VMT_Modeled*Comp_V1_Years_Usage_Modeled) -> 0
B31: Grand Total | C31: =-C16/(Base_V1_VMT_Modeled*Base_V1_Years_Usage_Modeled) -> 0.4066413978 | D31: =-D16/(Comp_V1_VMT_Modeled*Comp_V1_Years_Usage_Modeled) -> 0.4237600162
B33: Gasoline Displaced
C34: =C4 -> 2017 Chevrolet Cruze ICE (Baseline) | D34: =D4 -> 2017 Chevrolet Bolt EV BEV (Comparison)
B35: Gallons of Gasoline / Year / Vehicle | C35: =Base_V1_Gas_Diesel_Usage_Ex -> 443.75 | D35: =Comp_V1_Gas_Usage_Ex -> 0
B36: Number of Years | C36: =Base_V1_Years_Usage_Modeled -> 7 | D36: =Comp_V1_Years_Usage_Modeled -> 7
B37: Number of Vehicles | C37: =Base_V1_Num_Vehicles_Modeled -> 19 | D37: =Comp_V1_Num_Vehicles_Modeled -> 19
B38: Total Gasoline Consumption (Gallons) | C38: =C35*C36*C37 -> 59018.75 | D38: =D35*D36*D37 -> 0
B39: Gasoline Consumption / Mile (Average) | C39: =C35/Base_V1_VMT_Modeled -> 0.02958333333 | D39: =D35/Comp_V1_VMT_Modeled -> 0
B41: Cash Flow Chart
B43: =Base_V1_Type_Ex&" (Baseline)" -> 2017 Chevrolet Cruze ICE (Baseline)
C44: Year 0 | D44: Year 1 | E44: Year 2 | F44: Year 3 | G44: Year 4 | H44: Year 5 | I44: Year 6 | J44: Year 7 | K44: Year 8 | L44: Year 9 | M44: Year 10 | N44: Year 11 | O44: Year 12 | P44: Year 13 | Q44: Year 14 | R44: Year 15 | S44: Year 16 | T44: Year 17 | U44: Year 18 | V44: Year 19 | W44: Year 20 | X44: Year 21 | Y44: Year 22 | Z44: Year 23 | AA44: Year 24 | AB44: Year 25 | AC44: Totals
B45: Principal (less tax credits and incentives) | C45: =('Financial Model'!D31-'Financial Model'!D27-'Financial Model'!D29)*Base_V1_Num_Vehicles_Modeled -> -346256 | D45: =('Financial Model'!E31-'Financial Model'!E27-'Financial Model'!E29)*Base_V1_Num_Vehicles_Modeled -> 0 | E45: =('Financial Model'!F31-'Financial Model'!F27-'Financial Model'!F29)*Base_V1_Num_Vehicles_Modeled -> 0 | F45: =('Financial Model'!G31-'Financial Model'!G27-'Financial Model'!G29)*Base_V1_Num_Vehicles_Modeled -> 0 | G45: =('Financial Model'!H31-'Financial Model'!H27-'Financial Model'!H29)*Base_V1_Num_Vehicles_Modeled -> 0 | H45: =('Financial Model'!I31-'Financial Model'!I27-'Financial Model'!I29)*Base_V1_Num_Vehicles_Modeled -> 0 | I45: =('Financial Model'!J31-'Financial Model'!J27-'Financial Model'!J29)*Base_V1_Num_Vehicles_Modeled -> 0 | J45: =('Financial Model'!K31-'Financial Model'!K27-'Financial Model'!K29)*Base_V1_Num_Vehicles_Modeled -> 0 | K45: =('Financial Model'!L31-'Financial Model'!L27-'Financial Model'!L29)*Base_V1_Num_Vehicles_Modeled -> 0 | L45: =('Financial Model'!M31-'Financial Model'!M27-'Financial Model'!M29)*Base_V1_Num_Vehicles_Modeled -> 0 | M45: =('Financial Model'!N31-'Financial Model'!N27-'Financial Model'!N29)*Base_V1_Num_Vehicles_Modeled -> 0 | N45: =('Financial Model'!O31-'Financial Model'!O27-'Financial Model'!O29)*Base_V1_Num_Vehicles_Modeled -> 0 | O45: =('Financial Model'!P31-'Financial Model'!P27-'Financial Model'!P29)*Base_V1_Num_Vehicles_Modeled -> 0 | P45: =('Financial Model'!Q31-'Financial Model'!Q27-'Financial Model'!Q29)*Base_V1_Num_Vehicles_Modeled -> 0 | Q45: =('Financial Model'!R31-'Financial Model'!R27-'Financial Model'!R29)*Base_V1_Num_Vehicles_Modeled -> 0 | R45: =('Financial Model'!S31-'Financial Model'!S27-'Financial Model'!S29)*Base_V1_Num_Vehicles_Modeled -> 0 | S45: =('Financial Model'!T31-'Financial Model'!T27-'Financial Model'!T29)*Base_V1_Num_Vehicles_Modeled -> 0 | T45: =('Financial Model'!U31-'Financial Model'!U27-'Financial Model'!U29)*Base_V1_Num_Vehicles_Modeled -> 0 | U45: =('Financial Model'!V31-'Financial Model'!V27-'Financial Model'!V29)*Base_V1_Num_Vehicles_Modeled -> 0 | V45: =('Financial Model'!W31-'Financial Model'!W27-'Financial Model'!W29)*Base_V1_Num_Vehicles_Modeled -> 0 | W45: =('Financial Model'!X31-'Financial Model'!X27-'Financial Model'!X29)*Base_V1_Num_Vehicles_Modeled -> 0 | X45: =('Financial Model'!Y31-'Financial Model'!Y27-'Financial Model'!Y29)*Base_V1_Num_Vehicles_Modeled -> 0 | Y45: =('Financial Model'!Z31-'Financial Model'!Z27-'Financial Model'!Z29)*Base_V1_Num_Vehicles_Modeled -> 0 | Z45: =('Financial Model'!AA31-'Financial Model'!AA27-'Financial Model'!AA29)*Base_V1_Num_Vehicles_Modeled -> 0 | AA45: =('Financial Model'!AB31-'Financial Model'!AB27-'Financial Model'!AB29)*Base_V1_Num_Vehicles_Modeled -> 0 | AB45: =('Financial Model'!AC31-'Financial Model'!AC27-'Financial Model'!AC29)*Base_V1_Num_Vehicles_Modeled -> 0 | AC45: =SUM(C45:AB45) -> -346256
B46: Financing | C46: ='Financial Model'!D27*Base_V1_Num_Vehicles_Modeled -> 0 | D46: ='Financial Model'!E27*Base_V1_Num_Vehicles_Modeled -> 0 | E46: ='Financial Model'!F27*Base_V1_Num_Vehicles_Modeled -> 0 | F46: ='Financial Model'!G27*Base_V1_Num_Vehicles_Modeled -> 0 | G46: ='Financial Model'!H27*Base_V1_Num_Vehicles_Modeled -> 0 | H46: ='Financial Model'!I27*Base_V1_Num_Vehicles_Modeled -> 0 | I46: ='Financial Model'!J27*Base_V1_Num_Vehicles_Modeled -> 0 | J46: ='Financial Model'!K27*Base_V1_Num_Vehicles_Modeled -> 0 | K46: ='Financial Model'!L27*Base_V1_Num_Vehicles_Modeled -> 0 | L46: ='Financial Model'!M27*Base_V1_Num_Vehicles_Modeled -> 0 | M46: ='Financial Model'!N27*Base_V1_Num_Vehicles_Modeled -> 0 | N46: ='Financial Model'!O27*Base_V1_Num_Vehicles_Modeled -> 0 | O46: ='Financial Model'!P27*Base_V1_Num_Vehicles_Modeled -> 0 | P46: ='Financial Model'!Q27*Base_V1_Num_Vehicles_Modeled -> 0 | Q46: ='Financial Model'!R27*Base_V1_Num_Vehicles_Modeled -> 0 | R46: ='Financial Model'!S27*Base_V1_Num_Vehicles_Modeled -> 0 | S46: ='Financial Model'!T27*Base_V1_Num_Vehicles_Modeled -> 0 | T46: ='Financial Model'!U27*Base_V1_Num_Vehicles_Modeled -> 0 | U46: ='Financial Model'!V27*Base_V1_Num_Vehicles_Modeled -> 0 | V46: ='Financial Model'!W27*Base_V1_Num_Vehicles_Modeled -> 0 | W46: ='Financial Model'!X27*Base_V1_Num_Vehicles_Modeled -> 0 | X46: ='Financial Model'!Y27*Base_V1_Num_Vehicles_Modeled -> 0 | Y46: ='Financial Model'!Z27*Base_V1_Num_Vehicles_Modeled -> 0 | Z46: ='Financial Model'!AA27*Base_V1_Num_Vehicles_Modeled -> 0 | AA46: ='Financial Model'!AB27*Base_V1_Num_Vehicles_Modeled -> 0 | AB46: ='Financial Model'!AC27*Base_V1_Num_Vehicles_Modeled -> 0 | AC46: =SUM(C46:AB46) -> 0
B47: Residual Value (Vehicle Sale) | C47: ='Financial Model'!D29*Base_V1_Num_Vehicles_Modeled -> 0 | D47: ='Financial Model'!E29*Base_V1_Num_Vehicles_Modeled -> 0 | E47: ='Financial Model'!F29*Base_V1_Num_Vehicles_Modeled -> 0 | F47: ='Financial Model'!G29*Base_V1_Num_Vehicles_Modeled -> 0 | G47: ='Financial Model'!H29*Base_V1_Num_Vehicles_Modeled -> 0 | H47: ='Financial Model'!I29*Base_V1_Num_Vehicles_Modeled -> 0 | I47: ='Financial Model'!J29*Base_V1_Num_Vehicles_Modeled -> 0 | J47: ='Financial Model'!K29*Base_V1_Num_Vehicles_Modeled -> 67410.7135 | K47: ='Financial Model'!L29*Base_V1_Num_Vehicles_Modeled -> 0 | L47: ='Financial Model'!M29*Base_V1_Num_Vehicles_Modeled -> 0 | M47: ='Financial Model'!N29*Base_V1_Num_Vehicles_Modeled -> 0 | N47: ='Financial Model'!O29*Base_V1_Num_Vehicles_Modeled -> 0 | O47: ='Financial Model'!P29*Base_V1_Num_Vehicles_Modeled -> 0 | P47: ='Financial Model'!Q29*Base_V1_Num_Vehicles_Modeled -> 0 | Q47: ='Financial Model'!R29*Base_V1_Num_Vehicles_Modeled -> 0 | R47: ='Financial Model'!S29*Base_V1_Num_Vehicles_Modeled -> 0 | S47: ='Financial Model'!T29*Base_V1_Num_Vehicles_Modeled -> 0 | T47: ='Financial Model'!U29*Base_V1_Num_Vehicles_Modeled -> 0 | U47: ='Financial Model'!V29*Base_V1_Num_Vehicles_Modeled -> 0 | V47: ='Financial Model'!W29*Base_V1_Num_Vehicles_Modeled -> 0 | W47: ='Financial Model'!X29*Base_V1_Num_Vehicles_Modeled -> 0 | X47: ='Financial Model'!Y29*Base_V1_Num_Vehicles_Modeled -> 0 | Y47: ='Financial Model'!Z29*Base_V1_Num_Vehicles_Modeled -> 0 | Z47: ='Financial Model'!AA29*Base_V1_Num_Vehicles_Modeled -> 0 | AA47: ='Financial Model'!AB29*Base_V1_Num_Vehicles_Modeled -> 0 | AB47: ='Financial Model'!AC29*Base_V1_Num_Vehicles_Modeled -> 0 | AC47: 67410.7135
B48: Fuel | C48: ='Financial Model'!D34*Base_V1_Num_Vehicles_Modeled -> 0 | D48: ='Financial Model'!E34*Base_V1_Num_Vehicles_Modeled -> -19493.05 | E48: ='Financial Model'!F34*Base_V1_Num_Vehicles_Modeled -> -21797.49797 | F48: ='Financial Model'!G34*Base_V1_Num_Vehicles_Modeled -> -21951.66509 | G48: ='Financial Model'!H34*Base_V1_Num_Vehicles_Modeled -> -22609.28157 | H48: ='Financial Model'!I34*Base_V1_Num_Vehicles_Modeled -> -22778.19403 | I48: ='Financial Model'!J34*Base_V1_Num_Vehicles_Modeled -> -22839.88552 | J48: ='Financial Model'!K34*Base_V1_Num_Vehicles_Modeled -> -23156.49776 | K48: ='Financial Model'!L34*Base_V1_Num_Vehicles_Modeled -> 0 | L48: ='Financial Model'!M34*Base_V1_Num_Vehicles_Modeled -> 0 | M48: ='Financial Model'!N34*Base_V1_Num_Vehicles_Modeled -> 0 | N48: ='Financial Model'!O34*Base_V1_Num_Vehicles_Modeled -> 0 | O48: ='Financial Model'!P34*Base_V1_Num_Vehicles_Modeled -> 0 | P48: ='Financial Model'!Q34*Base_V1_Num_Vehicles_Modeled -> 0 | Q48: ='Financial Model'!R34*Base_V1_Num_Vehicles_Modeled -> 0 | R48: ='Financial Model'!S34*Base_V1_Num_Vehicles_Modeled -> 0 | S48: ='Financial Model'!T34*Base_V1_Num_Vehicles_Modeled -> 0 | T48: ='Financial Model'!U34*Base_V1_Num_Vehicles_Modeled -> 0 | U48: ='Financial Model'!V34*Base_V1_Num_Vehicles_Modeled -> 0 | V48: ='Financial Model'!W34*Base_V1_Num_Vehicles_Modeled -> 0 | W48: ='Financial Model'!X34*Base_V1_Num_Vehicles_Modeled -> 0 | X48: ='Financial Model'!Y34*Base_V1_Num_Vehicles_Modeled -> 0 | Y48: ='Financial Model'!Z34*Base_V1_Num_Vehicles_Modeled -> 0 | Z48: ='Financial Model'!AA34*Base_V1_Num_Vehicles_Modeled -> 0 | AA48: ='Financial Model'!AB34*Base_V1_Num_Vehicles_Modeled -> 0 | AB48: ='Financial Model'!AC34*Base_V1_Num_Vehicles_Modeled -> 0 | AC48: -154626.072
B49: Maintenance and Repairs | C49: ='Financial Model'!D35*Base_V1_Num_Vehicles_Modeled -> 0 | D49: ='Financial Model'!E35*Base_V1_Num_Vehicles_Modeled -> -22800 | E49: ='Financial Model'!F35*Base_V1_Num_Vehicles_Modeled -> -23256 | F49: ='Financial Model'!G35*Base_V1_Num_Vehicles_Modeled -> -23721.12 | G49: ='Financial Model'!H35*Base_V1_Num_Vehicles_Modeled -> -24195.5424 | H49: ='Financial Model'!I35*Base_V1_Num_Vehicles_Modeled -> -24679.45325 | I49: ='Financial Model'!J35*Base_V1_Num_Vehicles_Modeled -> -32724.95501 | J49: ='Financial Model'!K35*Base_V1_Num_Vehicles_Modeled -> -33379.45411 | K49: ='Financial Model'!L35*Base_V1_Num_Vehicles_Modeled -> 0 | L49: ='Financial Model'!M35*Base_V1_Num_Vehicles_Modeled -> 0 | M49: ='Financial Model'!N35*Base_V1_Num_Vehicles_Modeled -> 0 | N49: ='Financial Model'!O35*Base_V1_Num_Vehicles_Modeled -> 0 | O49: ='Financial Model'!P35*Base_V1_Num_Vehicles_Modeled -> 0 | P49: ='Financial Model'!Q35*Base_V1_Num_Vehicles_Modeled -> 0 | Q49: ='Financial Model'!R35*Base_V1_Num_Vehicles_Modeled -> 0 | R49: ='Financial Model'!S35*Base_V1_Num_Vehicles_Modeled -> 0 | S49: ='Financial Model'!T35*Base_V1_Num_Vehicles_Modeled -> 0 | T49: ='Financial Model'!U35*Base_V1_Num_Vehicles_Modeled -> 0 | U49: ='Financial Model'!V35*Base_V1_Num_Vehicles_Modeled -> 0 | V49: ='Financial Model'!W35*Base_V1_Num_Vehicles_Modeled -> 0 | W49: ='Financial Model'!X35*Base_V1_Num_Vehicles_Modeled -> 0 | X49: ='Financial Model'!Y35*Base_V1_Num_Vehicles_Modeled -> 0 | Y49: ='Financial Model'!Z35*Base_V1_Num_Vehicles_Modeled -> 0 | Z49: ='Financial Model'!AA35*Base_V1_Num_Vehicles_Modeled -> 0 | AA49: ='Financial Model'!AB35*Base_V1_Num_Vehicles_Modeled -> 0 | AB49: ='Financial Model'!AC35*Base_V1_Num_Vehicles_Modeled -> 0 | AC49: -184756.5248
B50: Taxes & Fees | C50: ='Financial Model'!D36*Base_V1_Num_Vehicles_Modeled -> -19000 | D50: ='Financial Model'!E36*Base_V1_Num_Vehicles_Modeled -> -190 | E50: ='Financial Model'!F36*Base_V1_Num_Vehicles_Modeled -> -193.8 | F50: ='Financial Model'!G36*Base_V1_Num_Vehicles_Modeled -> -197.676 | G50: ='Financial Model'!H36*Base_V1_Num_Vehicles_Modeled -> -201.62952 | H50: ='Financial Model'!I36*Base_V1_Num_Vehicles_Modeled -> -205.6621104 | I50: ='Financial Model'!J36*Base_V1_Num_Vehicles_Modeled -> -209.7753526 | J50: ='Financial Model'!K36*Base_V1_Num_Vehicles_Modeled -> -213.9708597 | K50: ='Financial Model'!L36*Base_V1_Num_Vehicles_Modeled -> 0 | L50: ='Financial Model'!M36*Base_V1_Num_Vehicles_Modeled -> 0 | M50: ='Financial Model'!N36*Base_V1_Num_Vehicles_Modeled -> 0 | N50: ='Financial Model'!O36*Base_V1_Num_Vehicles_Modeled -> 0 | O50: ='Financial Model'!P36*Base_V1_Num_Vehicles_Modeled -> 0 | P50: ='Financial Model'!Q36*Base_V1_Num_Vehicles_Modeled -> 0 | Q50: ='Financial Model'!R36*Base_V1_Num_Vehicles_Modeled -> 0 | R50: ='Financial Model'!S36*Base_V1_Num_Vehicles_Modeled -> 0 | S50: ='Financial Model'!T36*Base_V1_Num_Vehicles_Modeled -> 0 | T50: ='Financial Model'!U36*Base_V1_Num_Vehicles_Modeled -> 0 | U50: ='Financial Model'!V36*Base_V1_Num_Vehicles_Modeled -> 0 | V50: ='Financial Model'!W36*Base_V1_Num_Vehicles_Modeled -> 0 | W50: ='Financial Model'!X36*Base_V1_Num_Vehicles_Modeled -> 0 | X50: ='Financial Model'!Y36*Base_V1_Num_Vehicles_Modeled -> 0 | Y50: ='Financial Model'!Z36*Base_V1_Num_Vehicles_Modeled -> 0 | Z50: ='Financial Model'!AA36*Base_V1_Num_Vehicles_Modeled -> 0 | AA50: ='Financial Model'!AB36*Base_V1_Num_Vehicles_Modeled -> 0 | AB50: ='Financial Model'!AC36*Base_V1_Num_Vehicles_Modeled -> 0 | AC50: -20412.51384
B51: Insurance | C51: ='Financial Model'!D37*Base_V1_Num_Vehicles_Modeled -> 0 | D51: ='Financial Model'!E37*Base_V1_Num_Vehicles_Modeled -> -23218 | E51: ='Financial Model'!F37*Base_V1_Num_Vehicles_Modeled -> -23682.36 | F51: ='Financial Model'!G37*Base_V1_Num_Vehicles_Modeled -> -24156.0072 | G51: ='Financial Model'!H37*Base_V1_Num_Vehicles_Modeled -> -24639.12734 | H51: ='Financial Model'!I37*Base_V1_Num_Vehicles_Modeled -> -25131.90989 | I51: ='Financial Model'!J37*Base_V1_Num_Vehicles_Modeled -> -25634.54809 | J51: ='Financial Model'!K37*Base_V1_Num_Vehicles_Modeled -> -26147.23905 | K51: ='Financial Model'!L37*Base_V1_Num_Vehicles_Modeled -> 0 | L51: ='Financial Model'!M37*Base_V1_Num_Vehicles_Modeled -> 0 | M51: ='Financial Model'!N37*Base_V1_Num_Vehicles_Modeled -> 0 | N51: ='Financial Model'!O37*Base_V1_Num_Vehicles_Modeled -> 0 | O51: ='Financial Model'!P37*Base_V1_Num_Vehicles_Modeled -> 0 | P51: ='Financial Model'!Q37*Base_V1_Num_Vehicles_Modeled -> 0 | Q51: ='Financial Model'!R37*Base_V1_Num_Vehicles_Modeled -> 0 | R51: ='Financial Model'!S37*Base_V1_Num_Vehicles_Modeled -> 0 | S51: ='Financial Model'!T37*Base_V1_Num_Vehicles_Modeled -> 0 | T51: ='Financial Model'!U37*Base_V1_Num_Vehicles_Modeled -> 0 | U51: ='Financial Model'!V37*Base_V1_Num_Vehicles_Modeled -> 0 | V51: ='Financial Model'!W37*Base_V1_Num_Vehicles_Modeled -> 0 | W51: ='Financial Model'!X37*Base_V1_Num_Vehicles_Modeled -> 0 | X51: ='Financial Model'!Y37*Base_V1_Num_Vehicles_Modeled -> 0 | Y51: ='Financial Model'!Z37*Base_V1_Num_Vehicles_Modeled -> 0 | Z51: ='Financial Model'!AA37*Base_V1_Num_Vehicles_Modeled -> 0 | AA51: ='Financial Model'!AB37*Base_V1_Num_Vehicles_Modeled -> 0 | AB51: ='Financial Model'!AC37*Base_V1_Num_Vehicles_Modeled -> 0 | AC51: -172609.1916
B52: Carbon | C52: ='Financial Model'!D43*Base_V1_Num_Vehicles_Modeled -> 0 | D52: ='Financial Model'!E43*Base_V1_Num_Vehicles_Modeled -> 0 | E52: ='Financial Model'!F43*Base_V1_Num_Vehicles_Modeled -> 0 | F52: ='Financial Model'!G43*Base_V1_Num_Vehicles_Modeled -> 0 | G52: ='Financial Model'!H43*Base_V1_Num_Vehicles_Modeled -> 0 | H52: ='Financial Model'!I43*Base_V1_Num_Vehicles_Modeled -> 0 | I52: ='Financial Model'!J43*Base_V1_Num_Vehicles_Modeled -> 0 | J52: ='Financial Model'!K43*Base_V1_Num_Vehicles_Modeled -> 0 | K52: ='Financial Model'!L43*Base_V1_Num_Vehicles_Modeled -> 0 | L52: ='Financial Model'!M43*Base_V1_Num_Vehicles_Modeled -> 0 | M52: ='Financial Model'!N43*Base_V1_Num_Vehicles_Modeled -> 0 | N52: ='Financial Model'!O43*Base_V1_Num_Vehicles_Modeled -> 0 | O52: ='Financial Model'!P43*Base_V1_Num_Vehicles_Modeled -> 0 | P52: ='Financial Model'!Q43*Base_V1_Num_Vehicles_Modeled -> 0 | Q52: ='Financial Model'!R43*Base_V1_Num_Vehicles_Modeled -> 0 | R52: ='Financial Model'!S43*Base_V1_Num_Vehicles_Modeled -> 0 | S52: ='Financial Model'!T43*Base_V1_Num_Vehicles_Modeled -> 0 | T52: ='Financial Model'!U43*Base_V1_Num_Vehicles_Modeled -> 0 | U52: ='Financial Model'!V43*Base_V1_Num_Vehicles_Modeled -> 0 | V52: ='Financial Model'!W43*Base_V1_Num_Vehicles_Modeled -> 0 | W52: ='Financial Model'!X43*Base_V1_Num_Vehicles_Modeled -> 0 | X52: ='Financial Model'!Y43*Base_V1_Num_Vehicles_Modeled -> 0 | Y52: ='Financial Model'!Z43*Base_V1_Num_Vehicles_Modeled -> 0 | Z52: ='Financial Model'!AA43*Base_V1_Num_Vehicles_Modeled -> 0 | AA52: ='Financial Model'!AB43*Base_V1_Num_Vehicles_Modeled -> 0 | AB52: ='Financial Model'!AC43*Base_V1_Num_Vehicles_Modeled -> 0 | AC52: 0
B53: Vehicle Total | C53: =SUM(C45:C52) -> -365256 | D53: -65701.05 | E53: -68929.65797 | F53: -70026.46829 | G53: -71645.58084 | H53: -72795.21928 | I53: -81409.16397 | J53: -15486.44828 | K53: 0 | L53: 0 | M53: 0 | N53: 0 | O53: 0 | P53: 0 | Q53: 0 | R53: 0 | S53: 0 | T53: 0 | U53: 0 | V53: 0 | W53: 0 | X53: 0 | Y53: 0 | Z53: 0 | AA53: 0 | AB53: 0 | AC53: -811249.5886
